{"text_format":"1","workbook":"xlsx","n_sheets":9,"sheets":["Base Bid - old","Summary","Base Bid - Nontax","Base Bid - Tax","Add Alt 1 - Nontax","Add Alt 2 - Nontax","Add Alt 3 - Nontax","Detail List","Quantities"],"not_rendered":{"charts":0,"images":0,"macros":0,"external_links":0,"defined_names":13,"comments":0,"pivot_tables":0},"unopened":[],"bounds":{"document_bytes":16777216,"sheet_cells":100000,"rows_first":2000,"rows_last":500,"rows_between":2000,"halvings":0,"cell_chars":16384,"cell_head_chars":4096},"cells_cut":0,"cells_raw":0,"read":"whole","date_system":"1900"}

{"sheet":"Base Bid - old","index":0,"n_rows":70,"n_cols":10,"rows_kept":70,"cut":false,"hidden":true,"merged":[[3,0,5,7]]}
["Base Bid Schedule"]
["City of Arlington and Stillaguamish Tribe"]
["Gifford Ave Sidewalks"]
["NOTE: All entries must be typed or written in ink. Unit prices for all items, all extensions, lump sum prices, and the total amount of bid must be shown. Show unit prices in both words and figures; where conflicts occur, the written words will take precedence and be used to determine the total amount bid. The total bid amount shall include all work as included in the contract documents and sales tax.\n"]
[]
[]
["Item No.","DESCRIPTION","WSDOT Standard Item No.","WSDOT\nSpec\nRef Sect","Approx. Quantity","UNIT","Unit Price","Total Price","Unit Price","Total Price"]
[]
[null,"PREPARATION"]
[1,{"$f":"VLOOKUP(C10,'Detail List'!$A$2:$G$5000,3,FALSE)","v":"MOBILIZATION"},"0001","1-09.7",1,{"$f":"VLOOKUP(C10,'Detail List'!$A$2:$I$5000,2,FALSE)","v":"L.S."},"$","$",3000,{"$f":"E10*I10","v":3000}]
[null,"(Unit Price in Words) ___________________________________________________"]
[2,{"$f":"VLOOKUP(C12,'Detail List'!$A$2:$G$5000,3,FALSE)","v":"REMOVAL OF STRUCTURE AND OBSTRUCTION"},"0050","2-02.4",1,{"$f":"VLOOKUP(C12,'Detail List'!$A$2:$I$5000,2,FALSE)","v":"L.S."},"$","$",7350,{"$f":"E12*I12","v":7350}]
[null,"(Unit Price in Words) ___________________________________________________"]
[3,"SAWCUT EXISTING PAVEMENT","----","GSP",710,"L.F.","$","$",2.4,{"$f":"E14*I14","v":1704}]
[null,"(Unit Price in Words) ___________________________________________________"]
[]
[null,"GRADING"]
[4,{"$f":"VLOOKUP(C18,'Detail List'!$A$2:$G$5000,3,FALSE)","v":"ROADWAY EXCAVATION INCL. HAUL"},"0310","2-03.4",310,{"$f":"VLOOKUP(C18,'Detail List'!$A$2:$I$5000,2,FALSE)","v":"C.Y."},"$","$",24,{"$f":"E18*I18","v":7440}]
[null,"(Unit Price in Words) ___________________________________________________"]
[]
[null,"SURFACING"]
[5,{"$f":"VLOOKUP(C22,'Detail List'!$A$2:$G$5000,3,FALSE)","v":"CRUSHED SURFACING BASE COURSE"},"5100","4-04.4",20,{"$f":"VLOOKUP(C22,'Detail List'!$A$2:$I$5000,2,FALSE)","v":"TON"},"$","$",32,{"$f":"E22*I22","v":640}]
[null,"(Unit Price in Words) ___________________________________________________"]
[]
[null,"HOT MIX ASPHALT"]
[6,{"$f":"VLOOKUP(C26,'Detail List'!$A$2:$G$5000,3,FALSE)","v":"COMMERCIAL HMA"},"5875","5-04.4",24,{"$f":"VLOOKUP(C26,'Detail List'!$A$2:$I$5000,2,FALSE)","v":"TON"},"$","$",210,{"$f":"E26*I26","v":5040}]
[null,"(Unit Price in Words) ___________________________________________________"]
[]
[null,"EROSION CONTROL AND PLANTING"]
[7,"TOPSOIL TYPE B","6405","8-02.4",25,{"$f":"VLOOKUP(C30,'Detail List'!$A$2:$I$5000,2,FALSE)","v":"C.Y."},"$","$",37.5,{"$f":"E30*I30","v":937.5}]
[null,"(Unit Price in Words) ___________________________________________________"]
[8,{"$f":"VLOOKUP(C32,'Detail List'!$A$2:$G$5000,3,FALSE)","v":"SEEDING, FERTILIZING, AND MULCHING"},"6414","8-02.4",0.1,{"$f":"VLOOKUP(C32,'Detail List'!$A$2:$I$5000,2,FALSE)","v":"ACRE"},"$","$",2250,{"$f":"E32*I32","v":225}]
[null,"(Unit Price in Words) ___________________________________________________"]
[9,{"$f":"VLOOKUP(C34,'Detail List'!$A$2:$G$5000,3,FALSE)","v":"INLET PROTECTION"},"6471","8-02.4",6,{"$f":"VLOOKUP(C34,'Detail List'!$A$2:$I$5000,2,FALSE)","v":"EACH"},"$","$",102,{"$f":"E34*I34","v":612}]
[null,"(Unit Price in Words) ___________________________________________________"]
[10,{"$f":"VLOOKUP(C36,'Detail List'!$A$2:$G$5000,3,FALSE)","v":"EROSION/WATER POLLUTION CONTROL"},"6490","8-02.4",500,{"$f":"VLOOKUP(C36,'Detail List'!$A$2:$I$5000,2,FALSE)","v":"EST."},"$","$",1,{"$f":"E36*I36","v":500}]
[null,"(Unit Price in Words) ___________________________________________________"]
[]
[null,"TRAFFIC"]
[11,{"$f":"VLOOKUP(C40,'Detail List'!$A$2:$G$5000,3,FALSE)","v":"PROJECT TEMPORARY TRAFFIC CONTROL"},"6971","1-10.4",1,{"$f":"VLOOKUP(C40,'Detail List'!$A$2:$I$5000,2,FALSE)","v":"L.S."},"$","$",4600,{"$f":"E40*I40","v":4600}]
[null,"(Unit Price in Words) ___________________________________________________"]
[]
[null,"OTHER"]
[12,"ADJUST WATER VALVE BOX","----","GSP",7,"EACH","$","$",60,{"$f":"E44*I44","v":420}]
[null,"(Unit Price in Words) ___________________________________________________"]
[13,{"$f":"VLOOKUP(C46,'Detail List'!$A$2:$G$5000,3,FALSE)","v":"CEMENT CONC. SIDEWALK"},"7055","5-05.4",765,{"$f":"VLOOKUP(C46,'Detail List'!$A$2:$I$5000,2,FALSE)","v":"S.Y."},"$","$",35,{"$f":"E46*I46","v":26775}]
[null,"(Unit Price in Words) ___________________________________________________"]
[null,{"$f":"VLOOKUP(C48,'Detail List'!$A$2:$G$5000,3,FALSE)","v":"DETECTABLE WARNING SURFACE"},"7054",null,4,"EACH","$","$",700,{"$f":"E48*I48","v":2800}]
[null,"(Unit Price in Words) ___________________________________________________"]
[14,"CEMENT CONC. SIDEWALK RAMP TYPE 2","7058","5-05.4",2,{"$f":"VLOOKUP(C50,'Detail List'!$A$2:$I$5000,2,FALSE)","v":"EACH"},"$","$",1600,{"$f":"E50*I50","v":3200}]
[null,"(Unit Price in Words) ___________________________________________________"]
[15,"CEMENT CONC. SIDEWALK RAMP TYPE 5","7058","5-05.4",2,{"$f":"VLOOKUP(C52,'Detail List'!$A$2:$I$5000,2,FALSE)","v":"EACH"},"$","$",1700,{"$f":"E52*I52","v":3400}]
[null,"(Unit Price in Words) ___________________________________________________"]
[16,"CEMENT CONC. DRIVEWAY ENTRANCE TYPE 1","7059","5-05.4",5,{"$f":"VLOOKUP(C54,'Detail List'!$A$2:$I$5000,2,FALSE)","v":"S.Y."},"$","$",1200,{"$f":"E54*I54","v":6000}]
[null,"(Unit Price in Words) ___________________________________________________"]
[17,"CEMENT CONC. DRIVEWAY ENTRANCE TYPE 2","7059","5-05.4",6,{"$f":"VLOOKUP(C56,'Detail List'!$A$2:$I$5000,2,FALSE)","v":"S.Y."},"$","$",1450,{"$f":"E56*I56","v":8700}]
[null,"(Unit Price in Words) ___________________________________________________"]
[18,{"$f":"VLOOKUP(C58,'Detail List'!$A$2:$G$5000,3,FALSE)","v":"CONSTRUCTION GEOTEXTILE FOR UNDERGROUND DRAINAGE"},"7550","2-12.4",1035,{"$f":"VLOOKUP(C58,'Detail List'!$A$2:$I$5000,2,FALSE)","v":"S.Y."},"$","$",4,{"$f":"E58*I58","v":4140}]
[null,"(Unit Price in Words) ___________________________________________________"]
[19,{"$f":"VLOOKUP(C60,'Detail List'!$A$2:$G$5000,3,FALSE)","v":"TRIMMING AND CLEANUP"},"7490","2-11.4",1,{"$f":"VLOOKUP(C60,'Detail List'!$A$2:$I$5000,2,FALSE)","v":"L.S."},"$","$",1100,{"$f":"E60*I60","v":1100}]
[null,"(Unit Price in Words) ___________________________________________________"]
[20,{"$f":"VLOOKUP(C62,'Detail List'!$A$2:$G$5000,3,FALSE)","v":"FORCE ACCOUNT"},"7715","GSP",1,{"$f":"VLOOKUP(C62,'Detail List'!$A$2:$I$5000,2,FALSE)","v":"EST."},1000,{"$f":"E62*G62","v":1000},1000,{"$f":"E62*I62","v":1000}]
[null,"(Unit Price in Words) ___________________________________________________"]
[21,{"$f":"VLOOKUP(C64,'Detail List'!$A$2:$G$5000,3,FALSE)","v":"REIMBURSEMENT FOR THIRD PARTY DAMAGE"},"7725","1-07.13(4)",1,{"$f":"VLOOKUP(C64,'Detail List'!$A$2:$I$5000,2,FALSE)","v":"EST."},500,{"$f":"E64*G64","v":500},500,{"$f":"E64*I64","v":500}]
[null,"(Unit Price in Words) ___________________________________________________"]
[22,{"$f":"VLOOKUP(C66,'Detail List'!$A$2:$G$5000,3,FALSE)","v":"SPCC PLAN"},"7736","1-07.15(1)",1,{"$f":"VLOOKUP(C66,'Detail List'!$A$2:$I$5000,2,FALSE)","v":"L.S."},"$","$",750,{"$f":"E66*I66","v":750}]
[null,"(Unit Price in Words) ___________________________________________________"]
[null,null,null,null,null,null,"Total Bid Amount","$","Subtototal",{"$f":"SUM(J8:J66)","v":90833.5}]
[null,null,null,null,null,null,null,null,"Contingency",{"$f":"95000-J68","v":4166.5}]
[null,null,null,null,null,null,null,null,"TOTAL",{"$f":"SUM(J68:J69)","v":95000}]

{"sheet":"Summary","index":1,"n_rows":25,"n_cols":7,"rows_kept":25,"cut":false,"hidden":false,"merged":[]}
["Engineer's Estimate",null,null,null,"Reece Bid"]
[]
["Airport Blvd Phase I Estimate Costs",null,null,null,"Airport Blvd Phase I Estimate Costs"]
[]
["Roadway","Base Bid",{"$f":"'Base Bid - Nontax'!J100","v":818000},null,"Roadway","Base Bid",612405.80000000005]
["Water","Base Bid",{"$f":"'Base Bid - Tax'!L58","v":107412.5025},null,"Water","Base Bid",{"$f":"'Base Bid - Tax'!P58","v":94288.691999999995}]
["Sewer","Base Bid",{"$f":"'Base Bid - Tax'!M58","v":84587.497499999998},null,"Sewer","Base Bid",{"$f":"'Base Bid - Tax'!Q58","v":94837.122000000003}]
["Overlay","Alternate 1",{"$f":"'Add Alt 1 - Nontax'!J21","v":56600},null,"Overlay","Alternate 1",41642.199999999997]
["Curb","Alternate 2",{"$f":"'Add Alt 2 - Nontax'!J19","v":132000},null,"Curb","Alternate 2",58820]
["Landscaping","Alternate 3",{"$f":"'Add Alt 3 - Nontax'!J55","v":479000},null,"Landscaping","Alternate 3",241959.8]
[null,null,null,null,"Change Order - 1",null,153481.32500000001]
["GRAND TOTAL",null,{"$f":"SUM(C5:C10)","v":1677600}]
[null,null,null,null,"GRAND TOTAL",null,{"$f":"SUM(G5:G11)","v":1297434.939}]
[]
[]
[]
["Funding",null,null,null,"Funding"]
[]
["PSRC STP Grant",null,452000,null,"PSRC STP Grant",null,452000]
["Airport Fund",null,475000,null,"Airport Fund",null,475000]
["COA Water Utility",null,90000,null,"COA Water Utility",null,{"$f":"G6","v":94288.691999999995}]
["COA Sewer Utility",null,84000,null,"COA Sewer Utility",null,{"$f":"G13-SUM(G19:G21)","v":276146.24699999997}]
["COA Transpo Fund",null,{"$f":"1293000-SUM(C19:C22)","v":192000},null,"COA Transpo Fund",null,0]
[]
["Total Funding",null,{"$f":"SUM(C18:C24)","v":1293000},null,"Total Funding",null,{"$f":"SUM(G18:G24)","v":1297434.939}]

{"sheet":"Base Bid - Nontax","index":2,"n_rows":100,"n_cols":11,"rows_kept":100,"cut":false,"hidden":false,"merged":[[3,0,5,7]]}
["Base Bid Schedule - Roadway"]
["City of Arlington"]
["Airport Blvd Phase 1A"]
["NOTE: All entries must be typed or written in ink. Unit prices for all items, all extensions, lump sum prices, and the total amount of bid must be shown. Show unit prices in both words and figures; where conflicts occur, the written words will take precedence and be used to determine the total amount bid. The total bid amount shall include all work as included in the contract documents and applicable tax.\n"]
[]
[null,null,null,null,null,null,null,null,null,{"$f":"J100","v":818000}]
["Item No.","DESCRIPTION","WSDOT Standard Item No.","WSDOT\nSpec\nRef Sect","Approx. Quantity","UNIT","Unit Price","Total Price","Unit Price","Total Price"]
[]
[null,"PREPARATION"]
[101,{"$f":"VLOOKUP(C10,'Detail List'!$A$2:$G$5000,3,FALSE)","v":"MOBILIZATION"},"0001","1-09.7",1,{"$f":"VLOOKUP(C10,'Detail List'!$A$2:$I$5000,2,FALSE)","v":"L.S."},"$","$",55000,{"$f":"E10*I10","v":55000}]
[null,"(Unit Price in Words) ___________________________________________________"]
[102,{"$f":"VLOOKUP(C12,'Detail List'!$A$2:$G$5000,3,FALSE)","v":"REMOVAL OF STRUCTURE AND OBSTRUCTION"},"0050","2-02.5",1,{"$f":"VLOOKUP(C12,'Detail List'!$A$2:$I$5000,2,FALSE)","v":"L.S."},"$","$",1500,{"$f":"E12*I12","v":1500}]
[null,"(Unit Price in Words) ___________________________________________________"]
[103,{"$f":"VLOOKUP(C14,'Detail List'!$A$2:$G$5000,3,FALSE)","v":"REMOVING ASPHALT CONC. PAVEMENT"},"0120","GSP",{"$f":"ROUND((1*(4048-2100)+(40*20))/9,-1)","v":310},{"$f":"VLOOKUP(C14,'Detail List'!$A$2:$I$5000,2,FALSE)","v":"S.Y."},"$","$",3.5,{"$f":"E14*I14","v":1085}]
[null,"(Unit Price in Words) ___________________________________________________"]
[104,{"$f":"VLOOKUP(C16,'Detail List'!$A$2:$G$5000,3,FALSE)","v":"CLEARING AND GRUBBING"},"0025","2-01.5",{"$f":"ROUND((Quantities!C3+Quantities!C12*9+Quantities!C53)/43560,1)","v":4},{"$f":"VLOOKUP(C16,'Detail List'!$A$2:$I$5000,2,FALSE)","v":"ACRE"},"$","$",2000,{"$f":"E16*I16","v":8000}]
[null,"(Unit Price in Words) ___________________________________________________"]
[105,"SAWCUT EXISTING PAVEMENT","---","SP",{"$f":"Quantities!C29+Quantities!C31","v":2124.42},"L.F.","$","$",1.5,{"$f":"E18*I18","v":3186.63}]
[null,"(Unit Price in Words) ___________________________________________________"]
[]
[null,"EROSION CONTROL AND ROADSIDE RESTORATION"]
[107,{"$f":"VLOOKUP(C22,'Detail List'!$A$2:$G$5000,3,FALSE)","v":"WATTLE"},"6479","8-01.5",{"$f":"80*10*3","v":2400},{"$f":"VLOOKUP(C22,'Detail List'!$A$2:$I$5000,2,FALSE)","v":"L.F."},"$","$",5,{"$f":"E22*I22","v":12000}]
[null,"(Unit Price in Words) ___________________________________________________"]
[108,{"$f":"VLOOKUP(C24,'Detail List'!$A$2:$G$5000,3,FALSE)","v":"INLET PROTECTION"},"6471","8-01.5",14,{"$f":"VLOOKUP(C24,'Detail List'!$A$2:$I$5000,2,FALSE)","v":"EACH"},"$","$",75,{"$f":"E24*I24","v":1050}]
[null,"(Unit Price in Words) ___________________________________________________"]
[109,{"$f":"VLOOKUP(C26,'Detail List'!$A$2:$G$5000,3,FALSE)","v":"STABILIZED CONSTRUCTION ENTRANCE"},"6468","8-01.5",170,{"$f":"VLOOKUP(C26,'Detail List'!$A$2:$I$5000,2,FALSE)","v":"S.Y."},"$","$",5,{"$f":"E26*I26","v":850}]
[null,"(Unit Price in Words) ___________________________________________________"]
[110,{"$f":"VLOOKUP(C28,'Detail List'!$A$2:$G$5000,3,FALSE)","v":"EROSION/WATER POLLUTION CONTROL"},"6490","8-01.5",1,"L.S.","$","$",2000,{"$f":"E28*I28","v":2000}]
[null,"(Unit Price in Words) ___________________________________________________"]
[111,{"$f":"VLOOKUP(C30,'Detail List'!$A$2:$G$5000,3,FALSE)","v":"SEEDING AND FERTILIZING"},"6412","8-01.5",{"$f":"ROUND(Quantities!C53*1.5/43560,1)","v":1.1000000000000001},{"$f":"VLOOKUP(C30,'Detail List'!$A$2:$I$5000,2,FALSE)","v":"ACRE"},"$","$",3000,{"$f":"E30*I30","v":3300.0000000000005}]
[null,"(Unit Price in Words) ___________________________________________________"]
[112,{"$f":"VLOOKUP(C32,'Detail List'!$A$2:$G$5000,3,FALSE)","v":"FINE COMPOST"},"6447","8-01.5",500,{"$f":"VLOOKUP(C32,'Detail List'!$A$2:$I$5000,2,FALSE)","v":"C.Y."},"$","$",35,{"$f":"E32*I32","v":17500}]
[null,"(Unit Price in Words) ___________________________________________________"]
[113,{"$f":"VLOOKUP(C34,'Detail List'!$A$2:$G$5000,3,FALSE)","v":"TOPSOIL TYPE B"},"6410","8-01.5",{"$f":"ROUND(Quantities!C63+Quantities!F56,-1)","v":1110},{"$f":"VLOOKUP(C34,'Detail List'!$A$2:$I$5000,2,FALSE)","v":"C.Y."},"$","$",8,{"$f":"E34*I34","v":8880}]
[null,"(Unit Price in Words) ___________________________________________________"]
[114,"BIORETENTION SOIL MIX","--","GSP",{"$f":"ROUND(Quantities!C55,-1)","v":1770},"C.Y.","$","$",8,{"$f":"E36*I36","v":14160}]
[null,"(Unit Price in Words) ___________________________________________________"]
[]
[null,"GRADING"]
[115,{"$f":"VLOOKUP(C40,'Detail List'!$A$2:$G$5000,3,FALSE)","v":"ROADWAY EXCAVATION INCL. HAUL"},"0310","2-03.5",{"$f":"ROUNDUP(Quantities!F47,-1)","v":3780},{"$f":"VLOOKUP(C40,'Detail List'!$A$2:$I$5000,2,FALSE)","v":"C.Y."},"$","$",16,{"$f":"E40*I40","v":60480}]
[null,"(Unit Price in Words) ___________________________________________________"]
[]
[null,"SURFACING"]
[116,{"$f":"VLOOKUP(C44,'Detail List'!$A$2:$G$5000,3,FALSE)","v":"CRUSHED SURFACING BASE COURSE"},"5100","4-04.5",{"$f":"Quantities!C22","v":5981.7694444444442},{"$f":"VLOOKUP(C44,'Detail List'!$A$2:$I$5000,2,FALSE)","v":"TON"},"$","$",20,{"$f":"E44*I44","v":119635.38888888888}]
[null,"(Unit Price in Words) ___________________________________________________"]
[117,{"$f":"VLOOKUP(C46,'Detail List'!$A$2:$G$5000,3,FALSE)","v":"CRUSHED SURFACING TOP COURSE"},"5120","4-04.5",{"$f":"Quantities!C25","v":321.82291666666669},{"$f":"VLOOKUP(C46,'Detail List'!$A$2:$I$5000,2,FALSE)","v":"TON"},"$","$",24,{"$f":"E46*I46","v":7723.75}]
[null,"(Unit Price in Words) ___________________________________________________"]
[118,{"$f":"VLOOKUP(C48,'Detail List'!$A$2:$G$5000,3,FALSE)","v":"QUARRY SPALLS"},"1086","4-04.5",{"$f":"Quantities!C57","v":1462.150925925926},{"$f":"VLOOKUP(C48,'Detail List'!$A$2:$I$5000,2,FALSE)","v":"TON"},"$","$",24,{"$f":"E48*I48","v":35091.622222222228}]
[null,"(Unit Price in Words) ___________________________________________________"]
[]
[null,"HOT MIX ASPHALT"]
[119,{"$f":"VLOOKUP(C52,'Detail List'!$A$2:$G$5000,3,FALSE)","v":"LONGITUDINAL JOINT SEAL"},"6514","5-04.5",{"$f":"Quantities!C29","v":1988.42},{"$f":"VLOOKUP(C52,'Detail List'!$A$2:$I$5000,2,FALSE)","v":"L.F."},"$","$",0.9,{"$f":"E52*I52","v":1789.5780000000002}]
[null,"(Unit Price in Words) ___________________________________________________"]
[120,"HMA FOR PAVEMENT CL. 1/2 IN. PG 64-22","5739","5-04.5",{"$f":"Quantities!C8","v":2927.791777777778},{"$f":"VLOOKUP(C54,'Detail List'!$A$2:$I$5000,2,FALSE)","v":"TON"},"$","$",80,{"$f":"E54*I54","v":234223.34222222224}]
[null,"(Unit Price in Words) ___________________________________________________"]
[]
[null,"TRAFFIC"]
[121,{"$f":"VLOOKUP(C58,'Detail List'!$A$2:$G$5000,3,FALSE)","v":"PAINT LINE"},"6806","8-22.5",{"$f":"Quantities!C81","v":14100},{"$f":"VLOOKUP(C58,'Detail List'!$A$2:$I$5000,2,FALSE)","v":"L.F."},"$","$",0.55000000000000004,{"$f":"E58*I58","v":7755.0000000000009}]
[null,"(Unit Price in Words) ___________________________________________________"]
[122,{"$f":"VLOOKUP(C60,'Detail List'!$A$2:$G$5000,3,FALSE)","v":"PLASTIC CROSSWALK LINE"},"6857","8-22.5 SP",{"$f":"ROUND(Quantities!C89,-1)","v":1440},{"$f":"VLOOKUP(C60,'Detail List'!$A$2:$I$5000,2,FALSE)","v":"S.F."},"$","$",3,{"$f":"E60*I60","v":4320}]
[null,"(Unit Price in Words) ___________________________________________________"]
[123,{"$f":"VLOOKUP(C62,'Detail List'!$A$2:$G$5000,3,FALSE)","v":"PLASTIC STOP LINE"},"6859","8-22.5",{"$f":"2*13","v":26},{"$f":"VLOOKUP(C62,'Detail List'!$A$2:$I$5000,2,FALSE)","v":"L.F."},"$","$",5.13,{"$f":"E62*I62","v":133.38}]
[null,"(Unit Price in Words) ___________________________________________________"]
[124,{"$f":"VLOOKUP(C64,'Detail List'!$A$2:$G$5000,3,FALSE)","v":"PLASTIC TRAFFIC ARROW"},"6833","8-22.5",18,{"$f":"VLOOKUP(C64,'Detail List'!$A$2:$I$5000,2,FALSE)","v":"EACH"},"$","$",65,{"$f":"E64*I64","v":1170}]
[null,"(Unit Price in Words) ___________________________________________________"]
[125,{"$f":"VLOOKUP(C66,'Detail List'!$A$2:$G$5000,3,FALSE)","v":"PLASTIC BICYCLE LANE SYMBOL"},"6867","8-22.5",21,{"$f":"VLOOKUP(C66,'Detail List'!$A$2:$I$5000,2,FALSE)","v":"EACH"},"$","$",65,{"$f":"E66*I66","v":1365}]
[null,"(Unit Price in Words) ___________________________________________________"]
[126,{"$f":"VLOOKUP(C68,'Detail List'!$A$2:$G$5000,3,FALSE)","v":"PERMANENT SIGNING"},"6890","8-21.5",1,{"$f":"VLOOKUP(C68,'Detail List'!$A$2:$I$5000,2,FALSE)","v":"L.S."},"$","$",5000,{"$f":"E68*I68","v":5000}]
[null,"(Unit Price in Words) ___________________________________________________"]
[127,{"$f":"VLOOKUP(C70,'Detail List'!$A$2:$G$5000,3,FALSE)","v":"PROJECT TEMPORARY TRAFFIC CONTROL"},"6971","1-10.5",1,{"$f":"VLOOKUP(C70,'Detail List'!$A$2:$I$5000,2,FALSE)","v":"L.S."},"$","$",5000,{"$f":"E70*I70","v":5000}]
[null,"(Unit Price in Words) ___________________________________________________"]
[]
[null,"OTHER"]
[128,{"$f":"VLOOKUP(C74,'Detail List'!$A$2:$I$5000,3,FALSE)","v":"ROADWAY SURVEYING"},"7038","7-05.5",1,{"$f":"VLOOKUP(C74,'Detail List'!$A$2:$I$5000,2,FALSE)","v":"L.S."},"$","$",8000,{"$f":"E74*I74","v":8000}]
[null,"(Unit Price in Words) ___________________________________________________"]
[129,{"$f":"VLOOKUP(C76,'Detail List'!$A$2:$G$5000,3,FALSE)","v":"MONUMENT CASE AND COVER"},"7045","8-13.5",5,{"$f":"VLOOKUP(C76,'Detail List'!$A$2:$I$5000,2,FALSE)","v":"EACH"},"$","$",200,{"$f":"E76*I76","v":1000}]
[null,"(Unit Price in Words) ___________________________________________________"]
[130,{"$f":"VLOOKUP(C78,'Detail List'!$A$2:$G$5000,3,FALSE)","v":"CEMENT CONC. SIDEWALK"},"7055","8-14.5",{"$f":"Quantities!C12","v":3125},{"$f":"VLOOKUP(C78,'Detail List'!$A$2:$I$5000,2,FALSE)","v":"S.Y."},"$","$",37,{"$f":"E78*I78","v":115625}]
[null,"(Unit Price in Words) ___________________________________________________"]
[131,"CEMENT CONC. CURB RAMP TYPE COMBINATION","7058","8-14.5",7,{"$f":"VLOOKUP(C80,'Detail List'!$A$2:$I$5000,2,FALSE)","v":"EACH"},"$","$",1600,{"$f":"E80*I80","v":11200}]
[null,"(Unit Price in Words) ___________________________________________________"]
[132,"CEMENT CONC. CURB RAMP TYPE PARALLEL","7058","8-14.5",1,{"$f":"VLOOKUP(C82,'Detail List'!$A$2:$I$5000,2,FALSE)","v":"EACH"},"$","$",1600,{"$f":"E82*I82","v":1600}]
[null,"(Unit Price in Words) ___________________________________________________"]
[133,{"$f":"VLOOKUP(C84,'Detail List'!$A$2:$G$5000,3,FALSE)","v":"TRIMMING AND CLEANUP"},"7490","2-11.5",1,{"$f":"VLOOKUP(C84,'Detail List'!$A$2:$I$5000,2,FALSE)","v":"L.S."},"$","$",2000,{"$f":"E84*I84","v":2000}]
[null,"(Unit Price in Words) ___________________________________________________"]
[134,{"$f":"VLOOKUP(C86,'Detail List'!$A$2:$G$5000,3,FALSE)","v":"CONSTRUCTION GEOTEXTILE FOR UNDERGROUND DRAINAGE"},"7550","7-04",{"$f":"ROUND((Quantities!C53+2*1.5*Quantities!C51)/9,-1)","v":5170},{"$f":"VLOOKUP(C86,'Detail List'!$A$2:$I$5000,2,FALSE)","v":"S.Y."},"$","$",2.5,{"$f":"E86*I86","v":12925}]
[null,"(Unit Price in Words) ___________________________________________________"]
[135,"UNFORSEEN CONDITIONS FORCE ACCOUNT","7715","1-09.6",1,{"$f":"VLOOKUP(C88,'Detail List'!$A$2:$I$5000,2,FALSE)","v":"EST."},20000,{"$f":"E88*G88","v":20000},{"$f":"G88","v":20000},{"$f":"E88*I88","v":20000}]
[null,"(Unit Price in Words) ___________________________________________________"]
[136,{"$f":"VLOOKUP(C90,'Detail List'!$A$2:$G$5000,3,FALSE)","v":"REIMBURSEMENT FOR THIRD PARTY DAMAGE"},"7725","1-07.13(4)",1,{"$f":"VLOOKUP(C90,'Detail List'!$A$2:$I$5000,2,FALSE)","v":"EST."},500,{"$f":"E90*G90","v":500},{"$f":"G90","v":500},{"$f":"E90*I90","v":500}]
[null,"(Unit Price in Words) ___________________________________________________"]
[137,{"$f":"VLOOKUP(C92,'Detail List'!$A$2:$G$5000,3,FALSE)","v":"SPCC PLAN"},"7736","1-07.15(1)",1,{"$f":"VLOOKUP(C92,'Detail List'!$A$2:$I$5000,2,FALSE)","v":"L.S."},"$","$",500,{"$f":"E92*I92","v":500}]
[null,"(Unit Price in Words) ___________________________________________________"]
[138,"RECORD DRAWINGS","--","GSP, 1-05","1","L.S.",null,null,1000,{"$f":"E94*I94","v":1000}]
[null,"(Unit Price in Words) ___________________________________________________"]
[139,{"$f":"VLOOKUP(C96,'Detail List'!$A$2:$G$5000,3,FALSE)","v":"TYPE B PROGRESS SCHEDULE"},"7003","1-08.3, SP",1,{"$f":"VLOOKUP(C96,'Detail List'!$A$2:$I$5000,2,FALSE)","v":"L.S."},"$","$",2000,{"$f":"E96*I96","v":2000}]
[null,"(Unit Price in Words) ___________________________________________________"]
[null,null,null,null,null,null,"TOTAL ROADWAY BASE BID",null,"Subtototal",{"$f":"SUM(J8:J97)","v":788548.69133333338}]
[null,null,null,null,null,null,null,null,"Contingency",{"$f":"818000-J98","v":29451.30866666662},{"$f":"J99/J98","v":3.7348750927312151E-2}]
[null,null,null,null,null,null,null,null,"TOTAL",{"$f":"SUM(J98:J99)","v":818000}]

{"sheet":"Base Bid - Tax","index":3,"n_rows":58,"n_cols":17,"rows_kept":58,"cut":false,"hidden":false,"merged":[[3,0,5,7]]}
["Base Bid Schedule - Utilities"]
["City of Arlington"]
["Airport Blvd Phase 1A"]
["NOTE: All entries must be typed or written in ink. Unit prices for all items, all extensions, lump sum prices, and the total amount of bid must be shown. Show unit prices in both words and figures; where conflicts occur, the written words will take precedence and be used to determine the total amount bid. The total bid amount shall include all work as included in the contract documents and sales tax.\n"]
[]
[null,null,null,null,null,null,null,null,null,{"$f":"J58","v":192000},null,null,null,null,"Reece Bid"]
["Item No.","DESCRIPTION","WSDOT Standard Item No.","WSDOT\nSpec\nRef Sect","Approx. Quantity","UNIT","Unit Price","Total Price","Unit Price","Total Price",null,"Water","Sewer",null,null,"Water","Sewer"]
[]
[null,"PREPARATION"]
[201,{"$f":"VLOOKUP(C10,'Detail List'!$A$2:$G$5000,3,FALSE)","v":"MOBILIZATION"},"0001","1-09.7",1,{"$f":"VLOOKUP(C10,'Detail List'!$A$2:$I$5000,2,FALSE)","v":"L.S."},"$","$",12000,{"$f":"E10*I10","v":12000},null,{"$f":"J10*0.5","v":6000},{"$f":"J10*0.5","v":6000},null,2900,{"$f":"O10*0.5","v":1450},{"$f":"O10*0.5","v":1450}]
[null,"(Unit Price in Words) ___________________________________________________"]
[202,{"$f":"VLOOKUP(C12,'Detail List'!$A$2:$G$5000,3,FALSE)","v":"REMOVAL OF STRUCTURE AND OBSTRUCTION"},"0050","2-02.5",1,{"$f":"VLOOKUP(C12,'Detail List'!$A$2:$I$5000,2,FALSE)","v":"L.S."},"$","$",2000,{"$f":"E12*I12","v":2000},null,{"$f":"J12*0.5","v":1000},{"$f":"J12*0.5","v":1000},null,500,{"$f":"O12*0.5","v":250},{"$f":"O12*0.5","v":250}]
[null,"(Unit Price in Words) ___________________________________________________"]
[]
[null,"WATER"]
[203,{"$f":"VLOOKUP(C16,'Detail List'!$A$2:$G$5000,3,FALSE)","v":"HYDRANT ASSEMBLY"},"3846","7-14.5",2,{"$f":"VLOOKUP(C16,'Detail List'!$A$2:$I$5000,2,FALSE)","v":"EACH"},"$","$",3800,{"$f":"E16*I16","v":7600},null,{"$f":"J16","v":7600},null,null,7150,{"$f":"O16","v":7150}]
[null,"(Unit Price in Words) ___________________________________________________"]
[204,{"$f":"VLOOKUP(C18,'Detail List'!$A$2:$G$5000,3,FALSE)","v":"RESETTING EXISTING HYDRANTS"},"3848","7-14.5",11,{"$f":"VLOOKUP(C18,'Detail List'!$A$2:$I$5000,2,FALSE)","v":"EACH"},"$","$",2500,{"$f":"E18*I18","v":27500},null,{"$f":"J18","v":27500},null,null,6930,{"$f":"O18","v":6930}]
[null,"(Unit Price in Words) ___________________________________________________"]
[205,{"$f":"VLOOKUP(C20,'Detail List'!$A$2:$G$5000,3,FALSE)","v":"DUCTILE IRON PIPE FOR WATER MAIN 6 IN. DIAM."},"3866","7-09.5",20,{"$f":"VLOOKUP(C20,'Detail List'!$A$2:$I$5000,2,FALSE)","v":"L.F."},"$","$",52,{"$f":"E20*I20","v":1040},null,{"$f":"J20","v":1040},null,null,600,{"$f":"O20","v":600}]
[null,"(Unit Price in Words) ___________________________________________________"]
[206,{"$f":"VLOOKUP(C22,'Detail List'!$A$2:$G$5000,3,FALSE)","v":"DUCTILE IRON PIPE FOR WATER MAIN 8 IN. DIAM."},"3867","7-09.5",{"$f":"83+83","v":166},{"$f":"VLOOKUP(C22,'Detail List'!$A$2:$I$5000,2,FALSE)","v":"L.F."},"$","$",50,{"$f":"E22*I22","v":8300},null,{"$f":"J22","v":8300},null,null,15272,{"$f":"O22","v":15272}]
[null,"(Unit Price in Words) ___________________________________________________"]
[207,{"$f":"VLOOKUP(C24,'Detail List'!$A$2:$G$5000,3,FALSE)","v":"DUCTILE IRON PIPE FOR WATER MAIN 12 IN. DIAM."},"3869","7-09.5",250,{"$f":"VLOOKUP(C24,'Detail List'!$A$2:$I$5000,2,FALSE)","v":"L.F."},"$","$",60,{"$f":"E24*I24","v":15000},null,{"$f":"J24","v":15000},null,null,17750,{"$f":"O24","v":17750}]
[null,"(Unit Price in Words) ___________________________________________________"]
[208,{"$f":"VLOOKUP(C26,'Detail List'!$A$2:$G$5000,3,FALSE)","v":"GATE VALVE 6 IN."},"6155","7-12.5",2,{"$f":"VLOOKUP(C26,'Detail List'!$A$2:$I$5000,2,FALSE)","v":"EACH"},"$","$",1000,{"$f":"E26*I26","v":2000},null,{"$f":"J26","v":2000},null,null,1900,{"$f":"O26","v":1900}]
[null,"(Unit Price in Words) ___________________________________________________"]
[209,{"$f":"VLOOKUP(C28,'Detail List'!$A$2:$G$5000,3,FALSE)","v":"GATE VALVE 8 IN."},"6160","7-12.5",6,{"$f":"VLOOKUP(C28,'Detail List'!$A$2:$I$5000,2,FALSE)","v":"EACH"},"$","$",1100,{"$f":"E28*I28","v":6600},null,{"$f":"J28","v":6600},null,null,7590,{"$f":"O28","v":7590}]
[null,"(Unit Price in Words) ___________________________________________________"]
[210,"WATER SERVICE CONNECTION 2 IN. DIAM. (>30')","3858","7-15.5, GSP",1,{"$f":"VLOOKUP(C30,'Detail List'!$A$2:$I$5000,2,FALSE)","v":"EACH"},"$","$",850,{"$f":"E30*I30","v":850},null,{"$f":"J30","v":850},null,null,1800,{"$f":"O30","v":1800}]
[null,"(Unit Price in Words) ___________________________________________________"]
[211,"WATER SERVICE CONNECTION 2 IN. DIAM. (<30')","3858","7-15.5, GSP",12,{"$f":"VLOOKUP(C32,'Detail List'!$A$2:$I$5000,2,FALSE)","v":"EACH"},"$","$",830,{"$f":"E32*I32","v":9960},null,{"$f":"J32","v":9960},null,null,11640,{"$f":"O32","v":11640}]
[null,"(Unit Price in Words) ___________________________________________________"]
[]
[null,"SEWER"]
[212,{"$f":"VLOOKUP(C36,'Detail List'!$A$2:$G$5000,3,FALSE)","v":"CONNECTION TO DRAINAGE STRUCTURE"},"9605","7-05.5",2,{"$f":"VLOOKUP(C36,'Detail List'!$A$2:$I$5000,2,FALSE)","v":"EACH"},"$","$",600,{"$f":"E36*I36","v":1200},null,null,{"$f":"J36","v":1200},null,1260,null,{"$f":"O36","v":1260}]
[null,"(Unit Price in Words) ___________________________________________________"]
[213,{"$f":"VLOOKUP(C38,'Detail List'!$A$2:$G$5000,3,FALSE)","v":"PVC SANITARY SEWER PIPE 6 IN. DIAM."},"3766","7-17.5",790,{"$f":"VLOOKUP(C38,'Detail List'!$A$2:$I$5000,2,FALSE)","v":"L.F."},"$","$",28,{"$f":"E38*I38","v":22120},null,null,{"$f":"J38","v":22120},null,55300,null,{"$f":"O38","v":55300}]
[null,"(Unit Price in Words) ___________________________________________________"]
[214,{"$f":"VLOOKUP(C40,'Detail List'!$A$2:$G$5000,3,FALSE)","v":"PVC SANITARY SEWER PIPE 8 IN. DIAM."},"3767","7-17.5",145,{"$f":"VLOOKUP(C40,'Detail List'!$A$2:$I$5000,2,FALSE)","v":"L.F."},"$","$",30,{"$f":"E40*I40","v":4350},null,null,{"$f":"J40","v":4350},null,8700,null,{"$f":"O40","v":8700}]
[null,"(Unit Price in Words) ___________________________________________________"]
[215,{"$f":"VLOOKUP(C42,'Detail List'!$A$2:$G$5000,3,FALSE)","v":"PVC SANITARY SEWER PIPE 12 IN. DIAM."},"3769","7-17.5",225,{"$f":"VLOOKUP(C42,'Detail List'!$A$2:$I$5000,2,FALSE)","v":"L.F."},"$","$",33,{"$f":"E42*I42","v":7425},null,null,{"$f":"J42","v":7425},null,10800,null,{"$f":"O42","v":10800}]
[null,"(Unit Price in Words) ___________________________________________________"]
[216,{"$f":"VLOOKUP(C44,'Detail List'!$A$2:$G$5000,3,FALSE)","v":"MANHOLE 48 IN. DIAM. TYPE"},"7360","7-17.5",2,{"$f":"VLOOKUP(C44,'Detail List'!$A$2:$I$5000,2,FALSE)","v":"EACH"},"$","$",3500,{"$f":"E44*I44","v":7000},null,null,{"$f":"J44","v":7000},null,5800,null,{"$f":"O44","v":5800}]
[null,"(Unit Price in Words) ___________________________________________________"]
[]
[null,"OTHER"]
[217,{"$f":"VLOOKUP(C48,'Detail List'!$A$2:$G$5000,3,FALSE)","v":"SHORING OR EXTRA EXCAVATION CLASS B"},"7008","2-09.5",{"$f":"2*(E42+E40)*15+2*E38*((15+10)/2)","v":30850},{"$f":"VLOOKUP(C48,'Detail List'!$A$2:$I$5000,2,FALSE)","v":"S.F."},"$","$",0.75,{"$f":"E48*I48","v":23137.5},null,null,{"$f":"J48","v":23137.5},null,617,null,{"$f":"O48","v":617}]
[null,"(Unit Price in Words) ___________________________________________________"]
[218,"ADJUST WATER VALVE BOX","--","SP",46,"EACH","$","$",200,{"$f":"E50*I50","v":9200},null,{"$f":"J50","v":9200},null,null,14490,{"$f":"O50","v":14490}]
[null,"(Unit Price in Words) ___________________________________________________"]
[219,{"$f":"VLOOKUP(C52,'Detail List'!$A$2:$I$5000,3,FALSE)","v":"ADJUST MANHOLE"},"3080","7-05.5",4,{"$f":"VLOOKUP(C52,'Detail List'!$A$2:$I$5000,2,FALSE)","v":"EACH"},"$","$",450,{"$f":"E52*I52","v":1800},null,null,{"$f":"J52","v":1800},null,3150,null,{"$f":"O52","v":3150}]
[null,"(Unit Price in Words) ___________________________________________________"]
[]
[null,null,null,null,null,null,"Subtotal Utilities Base Bid Amount",null,"Subtototal",{"$f":"SUM(J8:J54)","v":169082.5},null,{"$f":"SUM(L8:L54)","v":95050},{"$f":"SUM(M8:M54)","v":74032.5},null,{"$f":"SUM(O9:O54)","v":174149},{"$f":"SUM(P8:P54)","v":86822},{"$f":"SUM(Q8:Q54)","v":87327}]
[null,null,null,null,null,null,"8.6% Sales Tax",null,"8.6% Sales Tax",{"$f":"J55*0.086","v":14541.094999999999},null,{"$f":"L55*0.086","v":8174.2999999999993},{"$f":"M55*0.086","v":6366.7949999999992},null,{"$f":"O55*0.086","v":14976.813999999998},{"$f":"P55*0.086","v":7466.6919999999991},{"$f":"Q55*0.086","v":7510.1219999999994}]
[null,null,null,null,null,null,"TOTAL UTILITIES BASE BID",null,"Contingency",{"$f":"192000-(J55+J56)","v":8376.4049999999988},{"$f":"J57/(J55+J56)","v":4.5617258501011261E-2},{"$f":"0.5*J57","v":4188.2024999999994},{"$f":"0.5*J57","v":4188.2024999999994}]
[null,null,null,null,null,null,null,null,"TOTAL",{"$f":"SUM(J55:J57)","v":192000},null,{"$f":"SUM(L55:L57)","v":107412.5025},{"$f":"SUM(M55:M57)","v":84587.497499999998},null,{"$f":"SUM(O55:O57)","v":189125.81400000001},{"$f":"SUM(P55:P57)","v":94288.691999999995},{"$f":"SUM(Q55:Q57)","v":94837.122000000003}]

{"sheet":"Add Alt 1 - Nontax","index":4,"n_rows":21,"n_cols":11,"rows_kept":21,"cut":false,"hidden":false,"merged":[[3,0,5,7]]}
["Alternative 1 Bid Schedule - Overlay"]
["City of Arlington"]
["Airport Blvd Phase 1A"]
["NOTE: All entries must be typed or written in ink. Unit prices for all items, all extensions, lump sum prices, and the total amount of bid must be shown. Show unit prices in both words and figures; where conflicts occur, the written words will take precedence and be used to determine the total amount bid. The total bid amount shall include all work as included in the contract documents and applicable tax.\n"]
[]
[null,null,null,null,null,null,null,null,null,{"$f":"J21","v":56600}]
["Item No.","DESCRIPTION","WSDOT Standard Item No.","WSDOT\nSpec\nRef Sect","Approx. Quantity","UNIT","Unit Price","Total Price","Unit Price","Total Price"]
[]
[null,"PREPARATION"]
[301,{"$f":"VLOOKUP(C10,'Detail List'!$A$2:$G$5000,3,FALSE)","v":"MOBILIZATION"},"0001","1-09.7",1,{"$f":"VLOOKUP(C10,'Detail List'!$A$2:$I$5000,2,FALSE)","v":"L.S."},"$","$",4000,{"$f":"E10*I10","v":4000}]
[null,"(Unit Price in Words) ___________________________________________________"]
[]
[null,"HOT MIX ASPHALT"]
[302,{"$f":"VLOOKUP(C14,'Detail List'!$A$2:$G$5000,3,FALSE)","v":"PLANING BITUMINOUS PAVEMENT"},"5711","5-04.5",{"$f":"ROUND(Quantities!C101,-1)","v":1350},{"$f":"VLOOKUP(C14,'Detail List'!$A$2:$I$5000,2,FALSE)","v":"S.Y."},"$","$",5,{"$f":"E14*I14","v":6750}]
[null,"(Unit Price in Words) ___________________________________________________"]
[303,"HMA FOR PAVEMENT CL. 1/2 IN. PG 64-22","5739","5-04.5",{"$f":"ROUND(Quantities!C109,-1)","v":540},{"$f":"VLOOKUP(C16,'Detail List'!$A$2:$I$5000,2,FALSE)","v":"TON"},"$","$",{"$f":"'Base Bid - Nontax'!I54","v":80},{"$f":"E16*I16","v":43200}]
[null,"(Unit Price in Words) ___________________________________________________"]
[]
[null,null,null,null,null,null,"TOTAL OVERLAY ALTERNATIVE 1",null,"Subtototal",{"$f":"SUM(J8:J18)","v":53950}]
[null,null,null,null,null,null,null,null,"Contingency",{"$f":"56600-J19","v":2650},{"$f":"J20/J19","v":4.911955514365153E-2}]
[null,null,null,null,null,null,null,null,"TOTAL",{"$f":"SUM(J19:J20)","v":56600}]

{"sheet":"Add Alt 2 - Nontax","index":5,"n_rows":19,"n_cols":11,"rows_kept":19,"cut":false,"hidden":false,"merged":[[3,0,5,7]]}
["Alternative 2 Bid Schedule - Curb"]
["City of Arlington"]
["Airport Blvd Phase 1A"]
["NOTE: All entries must be typed or written in ink. Unit prices for all items, all extensions, lump sum prices, and the total amount of bid must be shown. Show unit prices in both words and figures; where conflicts occur, the written words will take precedence and be used to determine the total amount bid. The total bid amount shall include all work as included in the contract documents and applicable tax.\n"]
[]
[null,null,null,null,null,null,null,null,null,{"$f":"J19","v":132000}]
["Item No.","DESCRIPTION","WSDOT Standard Item No.","WSDOT\nSpec\nRef Sect","Approx. Quantity","UNIT","Unit Price","Total Price","Unit Price","Total Price"]
[]
[null,"PREPARATION"]
[401,{"$f":"VLOOKUP(C10,'Detail List'!$A$2:$G$5000,3,FALSE)","v":"MOBILIZATION"},"0001","1-09.7",1,{"$f":"VLOOKUP(C10,'Detail List'!$A$2:$I$5000,2,FALSE)","v":"L.S."},"$","$",5000,{"$f":"E10*I10","v":5000}]
[null,"(Unit Price in Words) ___________________________________________________"]
[]
[null,"TRAFFIC"]
[402,{"$f":"VLOOKUP(C14,'Detail List'!$A$2:$G$5000,3,FALSE)","v":"CEMENT CONC. TRAFFIC CURB AND GUTTER"},"6700","8-04.5",{"$f":"Quantities!C17","v":4900},{"$f":"VLOOKUP(C14,'Detail List'!$A$2:$I$5000,2,FALSE)","v":"L.F."},"$","$",25,{"$f":"E14*I14","v":122500}]
[null,"(Unit Price in Words) ___________________________________________________"]
[]
[null,null,null,null,null,null,"TOTAL CURB ALTERNATIVE 2",null,"Subtototal",{"$f":"SUM(J8:J16)","v":127500}]
[null,null,null,null,null,null,null,null,"Contingency",{"$f":"132000-J17","v":4500},{"$f":"J18/J17","v":3.5294117647058823E-2}]
[null,null,null,null,null,null,null,null,"TOTAL",{"$f":"SUM(J17:J18)","v":132000}]

{"sheet":"Add Alt 3 - Nontax","index":6,"n_rows":55,"n_cols":12,"rows_kept":55,"cut":false,"hidden":false,"merged":[[3,0,5,7]]}
["Alternative 3 Bid Schedule - Plantings"]
["City of Arlington"]
["Airport Blvd Phase 1A"]
["NOTE: All entries must be typed or written in ink. Unit prices for all items, all extensions, lump sum prices, and the total amount of bid must be shown. Show unit prices in both words and figures; where conflicts occur, the written words will take precedence and be used to determine the total amount bid. The total bid amount shall include all work as included in the contract documents and applicable tax.\n"]
[]
[null,null,null,null,null,null,null,null,null,{"$f":"J55","v":479000}]
["Item No.","DESCRIPTION","WSDOT Standard Item No.","WSDOT\nSpec\nRef Sect","Approx. Quantity","UNIT","Unit Price","Total Price","Unit Price","Total Price","Material","labor"]
[]
[null,"PREPARATION"]
[501,{"$f":"VLOOKUP(C10,'Detail List'!$A$2:$G$5000,3,FALSE)","v":"MOBILIZATION"},"0001","1-09.7",1,{"$f":"VLOOKUP(C10,'Detail List'!$A$2:$I$5000,2,FALSE)","v":"L.S."},"$","$",28000,{"$f":"E10*I10","v":28000}]
[null,"(Unit Price in Words) ___________________________________________________"]
[]
[null,"EROSION CONTROL AND ROADSIDE RESTORATION"]
[502,"PSIPE CAPITAL PEAR","6552","7-05.4",39,{"$f":"VLOOKUP(C14,'Detail List'!$A$2:$I$5000,2,FALSE)","v":"EACH"},"$","$",{"$f":"SUM(K14:L14)","v":135},{"$f":"E14*I14","v":5265},105,30]
[null,"(Unit Price in Words) ___________________________________________________"]
[503,"PSIPE RED SUNSET","6552","7-05.4",24,{"$f":"VLOOKUP(C16,'Detail List'!$A$2:$I$5000,2,FALSE)","v":"EACH"},"$","$",{"$f":"SUM(K16:L16)","v":155},{"$f":"E16*I16","v":3720},125,30]
[null,"(Unit Price in Words) ___________________________________________________"]
[504,"PSIPE KARPICK","6552","7-05.4",285,{"$f":"VLOOKUP(C18,'Detail List'!$A$2:$I$5000,2,FALSE)","v":"EACH"},"$","$",{"$f":"SUM(K18:L18)","v":155},{"$f":"E18*I18","v":44175},125,30]
[null,"(Unit Price in Words) ___________________________________________________"]
[505,"PSIPE DWARF REDWIG DOGWOOD","6552","7-05.4",30,{"$f":"VLOOKUP(C20,'Detail List'!$A$2:$I$5000,2,FALSE)","v":"EACH"},"$","$",{"$f":"SUM(K20:L20)","v":38.75},{"$f":"E20*I20","v":1162.5},16.75,22]
[null,"(Unit Price in Words) ___________________________________________________"]
[506,"PSIPE SALAL SHRUB","6552","7-05.4",60,{"$f":"VLOOKUP(C22,'Detail List'!$A$2:$I$5000,2,FALSE)","v":"EACH"},"$","$",{"$f":"SUM(K22:L22)","v":26.25},{"$f":"E22*I22","v":1575},4.25,22]
[null,"(Unit Price in Words) ___________________________________________________"]
[507,"PSIPE MOCK ORANGE","6552","7-05.4",60,{"$f":"VLOOKUP(C24,'Detail List'!$A$2:$I$5000,2,FALSE)","v":"EACH"},"$","$",{"$f":"SUM(K24:L24)","v":38.5},{"$f":"E24*I24","v":2310},16.5,22]
[null,"(Unit Price in Words) ___________________________________________________"]
[508,"PSIPE STAR MAGNOLIA","6552","7-05.4",12,{"$f":"VLOOKUP(C26,'Detail List'!$A$2:$I$5000,2,FALSE)","v":"EACH"},"$","$",{"$f":"SUM(K26:L26)","v":46.5},{"$f":"E26*I26","v":558},24.5,22]
[null,"(Unit Price in Words) ___________________________________________________"]
[509,"PSIPE LEATHERLEAF VIBURNUM","6552","7-05.4",60,{"$f":"VLOOKUP(C28,'Detail List'!$A$2:$I$5000,2,FALSE)","v":"EACH"},"$","$",{"$f":"SUM(K28:L28)","v":41.5},{"$f":"E28*I28","v":2490},19.5,22]
[null,"(Unit Price in Words) ___________________________________________________"]
[510,"PSIPE HEATHER SPECIES","6552","7-05.4",392,{"$f":"VLOOKUP(C30,'Detail List'!$A$2:$I$5000,2,FALSE)","v":"EACH"},"$","$",{"$f":"SUM(K30:L30)","v":4.5},{"$f":"E30*I30","v":1764},2.5,2]
[null,"(Unit Price in Words) ___________________________________________________"]
[511,"PSIPE OREGON GRAPE","6552","7-05.4",588,{"$f":"VLOOKUP(C32,'Detail List'!$A$2:$I$5000,2,FALSE)","v":"EACH"},"$","$",{"$f":"SUM(K32:L32)","v":41.5},{"$f":"E32*I32","v":24402},19.5,22]
[null,"(Unit Price in Words) ___________________________________________________"]
[512,"PSIPE KINNIKINNICK SHRUB","6552","7-05.4",560,{"$f":"VLOOKUP(C34,'Detail List'!$A$2:$I$5000,2,FALSE)","v":"EACH"},"$","$",{"$f":"SUM(K34:L34)","v":41.5},{"$f":"E34*I34","v":23240},19.5,22]
[null,"(Unit Price in Words) ___________________________________________________"]
[513,"PSIPE SWEAT GALE","6552","7-05.4",560,{"$f":"VLOOKUP(C36,'Detail List'!$A$2:$I$5000,2,FALSE)","v":"EACH"},"$","$",{"$f":"SUM(K36:L36)","v":41.5},{"$f":"E36*I36","v":23240},19.5,22]
[null,"(Unit Price in Words) ___________________________________________________"]
[514,"PSIPE SNOW BERRY","6552","7-05.4",560,{"$f":"VLOOKUP(C38,'Detail List'!$A$2:$I$5000,2,FALSE)","v":"EACH"},"$","$",{"$f":"SUM(K38:L38)","v":41.5},{"$f":"E38*I38","v":23240},19.5,22]
[null,"(Unit Price in Words) ___________________________________________________"]
[515,"PSIPE KINNIKINNICK GROUND COVER","6552","7-05.4",9286,"S.F.","$","$",{"$f":"SUM(K40:L40)","v":6.3},{"$f":"E40*I40","v":58501.799999999996},{"$f":"4*1.45","v":5.8},0.5]
[null,"(Unit Price in Words) ___________________________________________________"]
[516,"PSIPE WINTER CREEPER GROUND COVER","6552","7-05.4",6931,"S.F.","$","$",{"$f":"SUM(K42:L42)","v":6.3},{"$f":"E42*I42","v":43665.299999999996},{"$f":"4*1.45","v":5.8},0.5]
[null,"(Unit Price in Words) ___________________________________________________"]
[517,"PSIPE SALAL GROUND COVER","6552","7-05.4",6931,"S.F.","$","$",{"$f":"SUM(K44:L44)","v":6.3},{"$f":"E44*I44","v":43665.299999999996},{"$f":"4*1.45","v":5.8},0.5]
[null,"(Unit Price in Words) ___________________________________________________"]
[518,"PSIPE SMALL FRUITED BULRUSH","6552","7-05.4",8575,"S.F.","$","$",{"$f":"SUM(K46:L46)","v":6.3},{"$f":"E46*I46","v":54022.5},{"$f":"4*1.45","v":5.8},0.5]
[null,"(Unit Price in Words) ___________________________________________________"]
[519,"PSIPE OWLFRUIT SEDGE","6552","7-05.4",8575,"S.F.","$","$",{"$f":"SUM(K48:L48)","v":6.3},{"$f":"E48*I48","v":54022.5},{"$f":"4*1.45","v":5.8},0.5]
[null,"(Unit Price in Words) ___________________________________________________"]
[520,"PSIPE PATH RUSH","6552","7-05.4",8575,"S.F.","$","$",{"$f":"SUM(K50:L50)","v":6.3},{"$f":"E50*I50","v":54022.5},{"$f":"4*1.45","v":5.8},0.5]
[null,"(Unit Price in Words) ___________________________________________________"]
[]
[null,null,null,null,null,null,"TOTAL PLANTINGS ALTERNATIVE 3",null,"Subtototal",{"$f":"SUM(J12:J52)","v":465041.39999999997}]
[null,null,null,null,null,null,null,null,"Contingency",{"$f":"479000-J53","v":13958.600000000035},{"$f":"J54/J53","v":3.0015822247223659E-2}]
[null,null,null,null,null,null,null,null,"TOTAL",{"$f":"SUM(J53:J54)","v":479000}]

{"sheet":"Detail List","index":7,"n_rows":3199,"n_cols":9,"rows_kept":3199,"cut":false,"hidden":false,"merged":[]}
["Standard Item Number","Unit of Measure","Standard Item description","Prequal Code","Item Use Instructions","Section","Section Code #","Item Construction Sequence","Measurement System\nEnglish, Metric, Common"]
["0001","L.S.","MOBILIZATION","A1","STANDARD ITEM","PREPARATION",1,1,"C"]
["0002","L.S.","MOBILIZATION","A1","REQUIRES SPECIAL PROV.","PREPARATION",1,2,"C"]
["0003","ACRE","TEST","A1","STANDARD ITEM","PREPARATION",1,86,"E"]
["0025","ACRE","CLEARING AND GRUBBING","D6","STANDARD ITEM","PREPARATION",1,3,"E"]
["0030","ACRE","CLEARING AND GRUBBING - SITE","D6","STANDARD ITEM","PREPARATION",1,5,"E"]
["0035","L.S.","CLEARING AND GRUBBING","D6","STD. ITEM, GSP REQUIRED","PREPARATION",1,7,"C"]
["0038","EST.","ARCHAEOLOGICAL AND HISTORICAL SALVAGE","A1","GSP ITEM","PREPARATION",1,13,"C"]
["0040","L.S.","CLEARING AND GRUBBING - SITE","D6","STD. ITEM, GSP REQUIRED","PREPARATION",1,8,"C"]
["0044","C.Y.","STRIPPING INCL. HAUL","D6","STANDARD ITEM","PREPARATION",1,11,"E"]
["0045","C.Y.","STRIPPING INCL. HAUL - SITE","D6","STANDARD ITEM","PREPARATION",1,12,"E"]
["0047","EACH","REMOVING MANHOLE","G2","REQUIRES SPECIAL PROV.","PREPARATION",1,14,"C"]
["0049","EACH","REMOVING DRAINAGE STRUCTURE","G2","REQUIRES SPECIAL PROV.","PREPARATION",1,15,"C"]
["0050","L.S.","REMOVAL OF STRUCTURE AND OBSTRUCTION","F8","STD. ITEM, GSP REQUIRED","PREPARATION",1,16,"C"]
["0060","L.S.","REMOVING PORTION OF EXISTING STRUCTURE","F8","REQUIRES SPECIAL PROV.","PREPARATION",1,23,"C"]
["0061","L.S.","REMOVING PORTION OF EXISTING BRIDGE","F8","GSP ITEM","PREPARATION",1,24,"C"]
["0062","L.S.","REMOVING PORTION OF CONC. BOX CULV.","F8","REQUIRES SPECIAL PROV.","PREPARATION",1,25,"C"]
["0070","L.S.","REMOVING EXISTING STRUCTURE","F8","GSP ITEM","PREPARATION",1,26,"C"]
["0071","L.S.","REMOVING EXISTING BRIDGE","F8","GSP ITEM","PREPARATION",1,27,"C"]
["0080","S.Y.","REMOVING BITUMINOUS PAVEMENT","D6","REQUIRES SPECIAL PROV.","PREPARATION",1,29,"E"]
["0090","S.Y.","REMOVING CEMENT CONC. PAVEMENT","D6","GSP ITEM","PREPARATION",1,31,"E"]
["0100","S.Y.","REMOVING CEMENT CONC. SIDEWALK","D6","REQUIRES SPECIAL PROV.","PREPARATION",1,33,"E"]
["0108","L.F.","REMOVING CEMENT CONC. CURB AND GUTTER","D6","REQUIRES SPECIAL PROV.","PREPARATION",1,35,"E"]
["0110","L.F.","REMOVING CEMENT CONC. CURB","D6","GSP ITEM","PREPARATION",1,37,"E"]
["0114","L.F.","REMOVING CEMENT CONC. GUTTER","D6","REQUIRES SPECIAL PROV.","PREPARATION",1,39,"E"]
["0116","EACH","REMOVING CONC. INLET","D6","REQUIRES SPECIAL PROV.","PREPARATION",1,28,"C"]
["0120","S.Y.","REMOVING ASPHALT CONC. PAVEMENT","D6","GSP ITEM","PREPARATION",1,41,"E"]
["0130","S.Y.","REMOVING ASPHALT CONC. SIDEWALK","D6","GSP ITEM","PREPARATION",1,43,"E"]
["0140","L.F.","REMOVING ASPHALT CONC. CURB","D6","GSP ITEM","PREPARATION",1,45,"E"]
["0145","L.F.","REMOVING CONC. BARRIER","N0","REQUIRES SPECIAL PROV.","PREPARATION",1,47,"E"]
["0150","S.Y.","REMOVING TRAFFIC ISLAND","D6","REQUIRES SPECIAL PROV.","PREPARATION",1,49,"E"]
["0160","L.F.","REMOVING TRAFFIC CURB","D6","REQUIRES SPECIAL PROV.","PREPARATION",1,51,"E"]
["0170","L.F.","REMOVING GUARDRAIL","K2","STANDARD ITEM","PREPARATION",1,53,"E"]
["0180","EACH","REMOVING CONC. SPOT POST","A1","REQUIRES SPECIAL PROV.","PREPARATION",1,56,"C"]
["0182","EACH","REMOVING GUARDRAIL ANCHOR","K2","STANDARD ITEM","PREPARATION",1,55,"C"]
["0185","EACH","REMOVING GUIDE POST","K6","REQUIRES SPECIAL PROV.","PREPARATION",1,57,"C"]
["0187","L.F.","REMOVING PAINT LINE","Q2","STANDARD ITEM","PREPARATION",1,60,"E"]
["0188","L.F.","REMOVING TEMPORARY PAVEMENT MARKING","Q2","STANDARD ITEM","PREPARATION",1,58,"E"]
["0190","L.F.","REMOVING PLASTIC LINE","Q2","STANDARD ITEM","PREPARATION",1,61,"E"]
["0199","EACH","REMOVING PAINTED TRAFFIC MARKING","Q2","STANDARD ITEM","PREPARATION",1,64,"C"]
["0200","EACH","REMOVING PLASTIC TRAFFIC MARKING","Q2","STANDARD ITEM","PREPARATION",1,65,"C"]
["0201","EACH","REMOVING TRAFFIC BUTTON","Q2","REQUIRES SPECIAL PROV.","PREPARATION",1,70,"C"]
["0203","S.F.","REMOVING PAINTED CROSSWALK LINE","Q2","STANDARD ITEM","PREPARATION",1,66,"E"]
["0204","S.F.","REMOVING PLASTIC CROSSWALK LINE","Q2","STANDARD ITEM","PREPARATION",1,67,"E"]
["0208","HUND","REMOVING RAISED PAVEMENT MARKER","Q2","REQUIRES SPECIAL PROV.","PREPARATION",1,71,"C"]
["0209","L.S.","REMOVING RAISED PAVEMENT MARKER","Q2","REQUIRES SPECIAL PROV.","PREPARATION",1,72,"C"]
["0213","L.F.","REMOVING DELINEATION LIGHT","H2","REQUIRES SPECIAL PROV.","PREPARATION",1,73,"E"]
["0215","L.S.","REMOVING MISCELLANEOUS TRAFFIC ITEM","Q2","GSP ITEM","PREPARATION",1,75,"C"]
["0220","L.F.","REMOVING CHAIN LINK FENCE","I8","REQUIRES SPECIAL PROV.","PREPARATION",1,76,"E"]
["0230","L.F.","REMOVING WIRE FENCE","I8","REQUIRES SPECIAL PROV.","PREPARATION",1,78,"E"]
["0240","EST.","VOLCANIC ASH REMOVAL","A1","REQUIRES SPECIAL PROV.","PREPARATION",1,80,"C"]
["0250","L.S.","REMOVAL AND DISPOSAL OF ASBESTOS MATERIAL","A3","GSP ITEM","PREPARATION",1,81,"C"]
["0251","C.Y.","HAZARDOUS MATERIAL EXCAVATION","A1","GSP ITEM","PREPARATION",1,82,"E"]
["0252","EST.","REMOVING NOISE BARRIER WALL SHAFT OBSTRUCTIONS","T0","AMENDMENT ITEM","PREPARATION",1,17,"C"]
["0254","EST.","REMOVING SOLDIER PILE SHAFT OBSTRUCTIONS","T0","AMENDMENT ITEM","PREPARATION",1,18,"C"]
["0256","EST.","REMOVING SHAFT OBSTRUCTIONS","T0","STANDARD ITEM","PREPARATION",1,19,"C"]
["0257","EST.","REMOVING TRAFFIC SIGNAL SHAFT OBSTRUCTIONS","T0","BSP ITEM","PREPARATION",1,20,"C"]
["0258","EST.","REMOVING SIGN STRUCTURE SHAFT OBSTRUCTIONS","T0","BSP ITEM","PREPARATION",1,21,"C"]
["0259","L.S.","WORK ACCESS","B0","BSP ITEM","PREPARATION",1,22,"C"]
["0260","EST.","HAZARDOUS MATERIAL HANDLING AND DISPOSAL","A1","GSP ITEM","PREPARATION",1,83,"C"]
["0261","C.Y.","HAZARDOUS MATERIAL EXCAVATION INCL. HAUL","A1","GSP ITEM","PREPARATION",1,84,"E"]
["0280","ha","CLEARING AND GRUBBING","D6","STANDARD ITEM","PREPARATION",1,4,"M"]
["0283","ha","CLEARING AND GRUBBING - SITE","D6","STANDARD ITEM","PREPARATION",1,6,"M"]
["0292","m3","STRIPPING INCL. HAUL","D1","STANDARD ITEM","PREPARATION",1,9,"M"]
["0295","m3","STRIPPING INCL. HAUL - SITE","D6","STANDARD ITEM","PREPARATION",1,10,"M"]
["0300","C.Y.","ROADWAY EXCAVATION","J6","STANDARD ITEM","GRADING",2,87,"E"]
["0310","C.Y.","ROADWAY EXCAVATION INCL. HAUL","J6","STANDARD ITEM","GRADING",2,89,"E"]
["0320","C.Y.","ROADWAY EXCAVATION - AREA","J6","STANDARD ITEM","GRADING",2,91,"E"]
["0330","C.Y.","ROADWAY EXCAVATION INCL. HAUL - AREA","J6","STANDARD ITEM","GRADING",2,93,"E"]
["0332","S.Y.","PAVEMENT REPAIR EXCAVATION INCL. HAUL","J6","STANDARD ITEM","GRADING",2,95,"E"]
["0340","C.Y.","UNSUITABLE FOUNDATION EXCAVATION","J6","STANDARD ITEM","GRADING",2,97,"E"]
["0350","C.Y.","UNSUITABLE FOUNDATION EXCAVATION INCL. HAUL","J6","STANDARD ITEM","GRADING",2,99,"E"]
["0370","L.F.","CONTROLLED BLASTING OF ROCK FACE","G8","STANDARD ITEM","GRADING",2,101,"E"]
["0380","CRHR","ROCK SLOPE SCALING","X0","GSP ITEM","GRADING",2,103,"C"]
["0390","C.Y.","ROCK SLOPE SCALING DEBRIS REMOVAL INCL. HAUL","K8","GSP ITEM","GRADING",2,104,"E"]
["0400","UNIT","HAUL","K8","STANDARD ITEM","GRADING",2,105,"C"]
["0405","C.Y.","COMMON BORROW INCL. HAUL","J6","STANDARD ITEM","GRADING",2,106,"E"]
["0408","TON","SELECT BORROW INCL. HAUL","J6","STANDARD ITEM","GRADING",2,107,"E"]
["0409","C.Y.","SELECT BORROW INCL. HAUL","J6","STANDARD ITEM","GRADING",2,108,"E"]
["0421","C.Y.","GRAVEL BORROW INCL. HAUL","J6","STANDARD ITEM","GRADING",2,111,"E"]
["0431","TON","GRAVEL BORROW INCL. HAUL","J6","STANDARD ITEM","GRADING",2,115,"E"]
["0440","TON","SAND DRAINAGE BLANKET","J6","STANDARD ITEM","GRADING",2,117,"E"]
["0455","L.F.","PREFABRICATED VERTICAL DRAIN","L4","STANDARD ITEM","GRADING",2,119,"E"]
["0460","C.Y.","EMBANKMENT IN PLACE","J6","REQ. SPECIAL & HQ APPROV.","GRADING",2,121,"E"]
["0470","C.Y.","EMBANKMENT COMPACTION","J6","STANDARD ITEM","GRADING",2,123,"E"]
["0480","HR","COMPACTOR UNIT","J6","REQUIRES SPECIAL PROV.","GRADING",2,124,"M"]
["0490","EST.","AERATION","J6","STD. ITEM REQ. HQ APPROV.","GRADING",2,125,"C"]
["0500","L.F.","SETTLEMENT INDICATING DEVICE","T6","REQUIRES SPECIAL PROV.","GRADING",2,126,"E"]
["0502","EACH","SETTLEMENT INDICATING DEVICE","T6","REQUIRES SPECIAL PROV.","GRADING",2,128,"C"]
["0505","EACH","PORE PRESSURE DETECTION DEVICE","R4","REQUIRES SPECIAL PROV.","GRADING",2,129,"C"]
["0530","m2","REMOVING BITUMINOUS PAVEMENT","D6","REQUIRES SPECIAL PROV.","PREPARATION",1,30,"M"]
["0535","m2","REMOVING CEMENT CONC. PAVEMENT","D6","GSP ITEM","PREPARATION",1,32,"M"]
["0540","m2","REMOVING CEMENT CONC. SIDEWALK","D6","REQUIRES SPECIAL PROV.","PREPARATION",1,34,"M"]
["0545","m","REMOVING CEMENT CONC. CURB AND GUTTER","D6","REQUIRES SPECIAL PROV.","PREPARATION",1,36,"M"]
["0550","m","REMOVING CEMENT CONC. CURB","D6","REQUIRES SPECIAL PROV.","PREPARATION",1,38,"M"]
["0555","m","REMOVING CEMENT CONC. GUTTER","D6","REQUIRES SPECIAL PROV.","PREPARATION",1,40,"M"]
["0565","m2","REMOVING ASPHALT CONC. PAVEMENT","D6","GSP ITEM","PREPARATION",1,42,"M"]
["0570","m2","REMOVING ASPHALT CONC. SIDEWALK","D6","GSP ITEM","PREPARATION",1,44,"M"]
["0575","m","REMOVING ASPHALT CONC. CURB","D6","GSP ITEM","PREPARATION",1,46,"M"]
["0580","m","REMOVING CONC. BARRIER","N0","REQUIRES SPECIAL PROV.","PREPARATION",1,48,"M"]
["0585","m2","REMOVING TRAFFIC ISLAND","D6","REQUIRES SPECIAL PROV.","PREPARATION",1,50,"M"]
["0590","m","REMOVING TRAFFIC CURB","D6","REQUIRES SPECIAL PROV.","PREPARATION",1,52,"M"]
["0595","m","REMOVING GUARDRAIL","K2","STANDARD ITEM","PREPARATION",1,54,"M"]
["0600","C.Y.","BALLAST IN STOCKPILE","F6","STANDARD ITEM","STOCKPILING",3,130,"E"]
["0610","TON","BALLAST IN STOCKPILE","F6","STANDARD ITEM","STOCKPILING",3,132,"E"]
["0620","C.Y.","PERMEABLE BALLAST IN STOCKPILE","F6","STANDARD ITEM","STOCKPILING",3,134,"E"]
["0630","TON","PERMEABLE BALLAST IN STOCKPILE","F6","STANDARD ITEM","STOCKPILING",3,136,"E"]
["0640","C.Y.","CRUSHED SURFACING BASE COURSE IN STOCKPILE","F6","STANDARD ITEM","STOCKPILING",3,138,"E"]
["0650","TON","CRUSHED SURFACING BASE COURSE IN STOCKPILE","F6","STANDARD ITEM","STOCKPILING",3,140,"E"]
["0660","C.Y.","CRUSHED SURFACING TOP COURSE IN STOCKPILE","F6","STANDARD ITEM","STOCKPILING",3,142,"E"]
["0670","TON","CRUSHED SURFACING TOP COURSE IN STOCKPILE","F6","STANDARD ITEM","STOCKPILING",3,144,"E"]
["0690","TON","CRUSHED COVER STONE IN STOCKPILE","F6","STANDARD ITEM","STOCKPILING",3,146,"E"]
["0695","C.Y.","CRUSHED COVER STONE IN STOCKPILE","F6","STANDARD ITEM","STOCKPILING",3,148,"E"]
["0700","TON","SCREENED COVER STONE IN STOCKPILE","F6","STANDARD ITEM","STOCKPILING",3,150,"E"]
["0710","TON","CRUSHED SCREENING 5/8  TO 1/4  IN STOCKPILE","F6","STANDARD ITEM","STOCKPILING",3,152,"E"]
["0711","C.Y.","CRUSHED SCREENING 5/8  TO 1/4  IN STOCKPILE","F6","STANDARD ITEM","STOCKPILING",3,154,"E"]
["0720","TON","CRUSHED SCREENING 1/2  TO 1/4  IN STOCKPILE","F6","STANDARD ITEM","STOCKPILING",3,156,"E"]
["0721","C.Y.","CRUSHED SCREENING 1/2  TO 1/4  IN STOCKPILE","F6","STANDARD ITEM","STOCKPILING",3,158,"E"]
["0725","TON","CRUSHED SCREENING 3/8  TO NO. 10  IN STOCKPILE","F6","STANDARD ITEM","STOCKPILING",3,160,"E"]
["0726","C.Y.","CRUSHED SCREENING 3/8  TO NO. 10  IN STOCKPILE","F6","STANDARD ITEM","STOCKPILING",3,162,"E"]
["0730","TON","CRUSHED SCREENING 1/4  TO 0  IN STOCKPILE","F6","STANDARD ITEM","STOCKPILING",3,164,"E"]
["0731","C.Y.","CRUSHED SCREENING 1/4  TO 0  IN STOCKPILE","F6","STANDARD ITEM","STOCKPILING",3,166,"E"]
["0740","TON","AGG. FOR ACP CL. B 5/8 IN. TO 1/4 IN. IN STOCKPILE","F6","STANDARD ITEM","STOCKPILING",3,168,"E"]
["0750","TON","AGG. FOR ACP CL. B 1/4 IN. TO 0 IN. IN STOCKPILE","F6","STANDARD ITEM","STOCKPILING",3,170,"E"]
["0790","TON","AGG. FOR ACP CL. F 3/4 IN. TO 1/4 IN. IN STOCKPILE","F6","STANDARD ITEM","STOCKPILING",3,172,"E"]
["0800","TON","AGG. FOR ACP CL. F 1/4 IN. TO 0 IN. IN STOCKPILE","F6","STANDARD ITEM","STOCKPILING",3,174,"E"]
["0820","C.Y.","MAINTENANCE ROCK 1/2 IN. MINUS IN STOCKPILE","F6","STANDARD ITEM","STOCKPILING",3,176,"E"]
["0830","TON","MAINTENANCE ROCK 1/2 IN. MINUS IN STOCKPILE","F6","STANDARD ITEM","STOCKPILING",3,178,"E"]
["0840","C.Y.","MAINTENANCE SAND 3/8 IN. MINUS IN STOCKPILE","F6","REQUIRES SPECIAL PROV.","STOCKPILING",3,180,"E"]
["0850","TON","MAINTENANCE SAND 3/8 IN. MINUS IN STOCKPILE","F6","REQUIRES SPECIAL PROV.","STOCKPILING",3,182,"E"]
["0860","C.Y.","MAINTENANCE SAND 1/4 IN. MINUS IN STOCKPILE","F6","REQUIRES SPECIAL PROV.","STOCKPILING",3,184,"E"]
["0870","TON","MAINTENANCE SAND 1/4 IN. MINUS IN STOCKPILE","F6","REQUIRES SPECIAL PROV.","STOCKPILING",3,186,"E"]
["0887","m","REMOVING PAINT LINE","Q2","STANDARD ITEM","PREPARATION",1,62,"M"]
["0888","m","REMOVING PLASTIC LINE","Q2","STANDARD ITEM","PREPARATION",1,63,"M"]
["0900","m","REMOVING TEMPORARY PAVEMENT MARKING","Q2","STANDARD ITEM","PREPARATION",1,59,"M"]
["0909","m2","REMOVING PAINTED CROSSWALK LINE","Q2","STANDARD ITEM","PREPARATION",1,68,"M"]
["0910","m2","REMOVING PLASTIC CROSSWALK LINE","Q2","STANDARD ITEM","PREPARATION",1,69,"M"]
["0920","m","REMOVING DELINEATION LIGHT","H2","REQUIRES SPECIAL PROV.","PREPARATION",1,74,"M"]
["0930","m","REMOVING CHAIN LINK FENCE","I8","REQUIRES SPECIAL PROV.","PREPARATION",1,77,"M"]
["0935","m","REMOVING WIRE FENCE","I8","REQUIRES SPECIAL PROV.","PREPARATION",1,79,"M"]
["0940","L.S.","DISPOSAL OF CREOSOTED MATERIAL","F8","WSF ITEM REQ. SPECIAL PROV.","PREPARATION",1,85,"C"]
["0966","EACH","TAPERED END SECTION WITH TYPE 4 SAFETY BARS 21 IN. SPAN","G2","STANDARD ITEM","DRAINAGE",4,278,"C"]
["0967","EACH","TAPERED END SECTION WITH TYPE 4 SAFETY BARS 15 IN. DIAM.","G2","STANDARD ITEM","DRAINAGE",4,246,"C"]
["0968","EACH","TAPERED END SECTION WITH TYPE 4 SAFETY BARS 18 IN. DIAM.","G2","STANDARD ITEM","DRAINAGE",4,248,"C"]
["0969","EACH","TAPERED END SECTION WITH TYPE 4 SAFETY BARS 21 IN. DIAM.","G2","STANDARD ITEM","DRAINAGE",4,250,"C"]
["0970","EACH","TAPERED END SECTION WITH TYPE 4 SAFETY BARS 24 IN. DIAM.","G2","STANDARD ITEM","DRAINAGE",4,252,"C"]
["0971","EACH","TAPERED END SECTION WITH TYPE 4 SAFETY BARS 30 IN. DIAM.","G2","STANDARD ITEM","DRAINAGE",4,254,"C"]
["0972","EACH","TAPERED END SECTION WITH TYPE 3 SAFETY BARS 36 IN. DIAM.","G2","STANDARD ITEM","DRAINAGE",4,256,"C"]
["0973","EACH","TAPERED END SECTION WITH TYPE 4 SAFETY BARS 36 IN. DIAM.","G2","STANDARD ITEM","DRAINAGE",4,258,"C"]
["0974","EACH","TAPERED END SECTION WITH TYPE 3 SAFETY BARS 42 IN. DIAM.","G2","STANDARD ITEM","DRAINAGE",4,260,"C"]
["0975","EACH","TAPERED END SECTION WITH TYPE 4 SAFETY BARS 42 IN. DIAM.","G2","STANDARD ITEM","DRAINAGE",4,262,"C"]
["0976","EACH","TAPERED END SECTION WITH TYPE 3 SAFETY BARS 48 IN. DIAM.","G2","STANDARD ITEM","DRAINAGE",4,264,"C"]
["0977","EACH","TAPERED END SECTION WITH TYPE 4 SAFETY BARS 48 IN. DIAM.","G2","STANDARD ITEM","DRAINAGE",4,272,"C"]
["0978","EACH","TAPERED END SECTION WITH TYPE 3 SAFETY BARS 54 IN. DIAM.","G2","STANDARD ITEM","DRAINAGE",4,274,"C"]
["0979","EACH","TAPERED END SECTION WITH TYPE 4 SAFETY BARS 54 IN. DIAM.","G2","STANDARD ITEM","DRAINAGE",4,276,"C"]
["0989","EACH","TAPERED END SECTION WITH TYPE 4 SAFETY BARS 24 IN. SPAN","G2","STANDARD ITEM","DRAINAGE",4,280,"C"]
["0990","EACH","TAPERED END SECTION WITH TYPE 4 SAFETY BARS 28 IN. SPAN","G2","STANDARD ITEM","DRAINAGE",4,282,"C"]
["0991","EACH","TAPERED END SECTION WITH TYPE 3 SAFETY BARS 35 IN. SPAN","G2","STANDARD ITEM","DRAINAGE",4,284,"C"]
["0992","EACH","TAPERED END SECTION WITH TYPE 4 SAFETY BARS 35 IN. SPAN","G2","STANDARD ITEM","DRAINAGE",4,286,"C"]
["0993","EACH","TAPERED END SECTION WITH TYPE 3 SAFETY BARS 42 IN. SPAN","G2","STANDARD ITEM","DRAINAGE",4,288,"C"]
["0994","EACH","TAPERED END SECTION WITH TYPE 4 SAFETY BARS 42 IN. SPAN","G2","STANDARD ITEM","DRAINAGE",4,290,"C"]
["0995","EACH","TAPERED END SECTION WITH TYPE 3 SAFETY BARS 49 IN. SPAN","G2","STANDARD ITEM","DRAINAGE",4,292,"C"]
["0996","EACH","TAPERED END SECTION WITH TYPE 4 SAFETY BARS 49 IN. SPAN","G2","STANDARD ITEM","DRAINAGE",4,293,"C"]
["0997","EACH","TAPERED END SECTION WITH TYPE 3 SAFETY BARS 57 IN. SPAN","G2","STANDARD ITEM","DRAINAGE",4,294,"C"]
["0998","EACH","TAPERED END SECTION WITH TYPE 4 SAFETY BARS 57 IN. SPAN","G2","STANDARD ITEM","DRAINAGE",4,295,"C"]
["0999","EACH","TAPERED END SECTION WITH TYPE 3 SAFETY BARS 64 IN. SPAN","G2","STANDARD ITEM","DRAINAGE",4,296,"C"]
["1000","EACH","TAPERED END SECTION WITH TYPE 4 SAFETY BARS 64 IN. SPAN","G2","STANDARD ITEM","DRAINAGE",4,297,"C"]
["1025","C.Y.","DITCH EXCAVATION","G2","STANDARD ITEM","DRAINAGE",4,188,"E"]
["1030","C.Y.","DITCH EXCAVATION INCL. HAUL","G2","STANDARD ITEM","DRAINAGE",4,190,"E"]
["1035","C.Y.","CHANNEL EXCAVATION","J6","STANDARD ITEM","DRAINAGE",4,192,"E"]
["1040","C.Y.","CHANNEL EXCAVATION INCL. HAUL","J6","STANDARD ITEM","DRAINAGE",4,193,"E"]
["1046","EACH","CONCRETE INLET","G2","STANDARD ITEM","DRAINAGE",4,194,"C"]
["1052","EACH","FRAME AND VANED GRATES FOR GRATE INLET TYPE 2","G2","STANDARD ITEM","DRAINAGE",4,197,"C"]
["1053","EACH","GRATE INLET TYPE 1","G2","STANDARD ITEM","DRAINAGE",4,195,"C"]
["1054","EACH","GRATE INLET TYPE 2","G2","STANDARD ITEM","DRAINAGE",4,196,"C"]
["1058","EACH","DROP INLET TYPE 1","G2","STANDARD ITEM","DRAINAGE",4,198,"C"]
["1059","EACH","DROP INLET TYPE 2","G2","STANDARD ITEM","DRAINAGE",4,199,"C"]
["1062","EACH","PRECAST CONCRETE DRYWELL","G2","STANDARD ITEM","DRAINAGE",4,200,"C"]
["1063","EACH","COMBINATION INLET","G2","STANDARD ITEM","DRAINAGE",4,201,"C"]
["1065","L.F.","CEMENT CONC. GUTTER","C8","STANDARD ITEM","DRAINAGE",4,202,"E"]
["1066","L.F.","ASPHALT CONC. GUTTER","A2","STANDARD ITEM","DRAINAGE",4,204,"E"]
["1068","TON","FILTER BLANKET","G2","STANDARD ITEM","DRAINAGE",4,212,"E"]
["1069","C.Y.","FILTER BLANKET","G2","STANDARD ITEM","DRAINAGE",4,210,"E"]
["1070","L.F.","CEMENT CONC. SPILLWAY","C8","STANDARD ITEM","DRAINAGE",4,206,"E"]
["1071","L.F.","ASPHALT CONC. SPILLWAY","A2","STANDARD ITEM","DRAINAGE",4,208,"E"]
["1072","C.Y.","HAND PLACED RIPRAP","R0","STANDARD ITEM","DRAINAGE",4,224,"E"]
["1073","TON","LIGHT LOOSE RIPRAP","R0","STANDARD ITEM","DRAINAGE",4,226,"E"]
["1074","C.Y.","LIGHT LOOSE RIPRAP","R0","STANDARD ITEM","DRAINAGE",4,228,"E"]
["1075","TON","HEAVY LOOSE RIPRAP","R0","STANDARD ITEM","DRAINAGE",4,230,"E"]
["1076","C.Y.","HEAVY LOOSE RIPRAP","R0","STANDARD ITEM","DRAINAGE",4,232,"E"]
["1077","TON","8 IN. QUARRY ROCK","R0","REQUIRES SPECIAL PROV.","DRAINAGE",4,214,"E"]
["1080","L.F.","RELAYING","G2","STANDARD ITEM","DRAINAGE",4,240,"E"]
["1085","C.Y.","QUARRY SPALLS","R0","STANDARD ITEM","DRAINAGE",4,236,"E"]
["1086","TON","QUARRY SPALLS","R0","STANDARD ITEM","DRAINAGE",4,238,"E"]
["1091","L.F.","SAFETY BARS FOR CULVERT PIPE TYPE 1","G2","STANDARD ITEM","DRAINAGE",4,242,"E"]
["1092","L.F.","SAFETY BARS FOR CULVERT PIPE TYPE 2","G2","STANDARD ITEM","DRAINAGE",4,244,"E"]
["1093","TON","STREAMBED SEDIMENT","G2","GSP ITEM","DRAINAGE",4,217,"E"]
["1094","TON","STREAMBED COBBLES","G2","GSP ITEM","DRAINAGE",4,218,"E"]
["1095","C.Y.","STREAMBED SEDIMENT","G2","GSP ITEM","DRAINAGE",4,219,"E"]
["1096","C.Y.","STREAMBED COBBLES","G2","GSP ITEM","DRAINAGE",4,220,"E"]
["1097","EACH","STREAMBED BOULDER","R0","GSP ITEM","DRAINAGE",4,221,"C"]
["1098","EACH","HABITAT BOULDER","R0","GSP ITEM","DRAINAGE",4,222,"C"]
["1100","EACH","FLARED END SECTION 12 IN. DIAM.","G2","STANDARD ITEM","DRAINAGE",4,304,"C"]
["1101","EACH","FLARED END SECTION 15 IN. DIAM.","G2","STANDARD ITEM","DRAINAGE",4,306,"C"]
["1102","EACH","FLARED END SECTION 18 IN. DIAM.","G2","STANDARD ITEM","DRAINAGE",4,308,"C"]
["1104","EACH","FLARED END SECTION 24 IN. DIAM.","G2","STANDARD ITEM","DRAINAGE",4,310,"C"]
["1105","EACH","FLARED END SECTION 30 IN. DIAM.","G2","STANDARD ITEM","DRAINAGE",4,312,"C"]
["1106","EACH","FLARED END SECTION 36 IN. DIAM.","G2","STANDARD ITEM","DRAINAGE",4,314,"C"]
["1107","EACH","FLARED END SECTION 42 IN. DIAM.","G2","STANDARD ITEM","DRAINAGE",4,316,"C"]
["1108","EACH","FLARED END SECTION 48 IN. DIAM.","G2","STANDARD ITEM","DRAINAGE",4,318,"C"]
["1109","EACH","FLARED END SECTION 54 IN. DIAM.","G2","STANDARD ITEM","DRAINAGE",4,320,"C"]
["1110","EACH","FLARED END SECTION 60 IN. DIAM.","G2","STANDARD ITEM","DRAINAGE",4,322,"C"]
["1112","EACH","FLARED END SECTION 72 IN. DIAM.","G2","STANDARD ITEM","DRAINAGE",4,324,"C"]
["1113","EACH","FLARED END SECTION 78 IN. DIAM.","G2","STANDARD ITEM","DRAINAGE",4,326,"C"]
["1114","EACH","FLARED END SECTION 84 IN. DIAM.","G2","STANDARD ITEM","DRAINAGE",4,328,"C"]
["1120","EACH","FLARED END SECTION 17 IN. SPAN","G2","STANDARD ITEM","DRAINAGE",4,330,"C"]
["1121","EACH","FLARED END SECTION 21 IN. SPAN","G2","STANDARD ITEM","DRAINAGE",4,332,"C"]
["1122","EACH","FLARED END SECTION 24 IN. SPAN","G2","STANDARD ITEM","DRAINAGE",4,334,"C"]
["1123","EACH","FLARED END SECTION 28 IN. SPAN","G2","STANDARD ITEM","DRAINAGE",4,336,"C"]
["1124","EACH","FLARED END SECTION 35 IN. SPAN","G2","STANDARD ITEM","DRAINAGE",4,338,"C"]
["1125","EACH","FLARED END SECTION 42 IN. SPAN","G2","STANDARD ITEM","DRAINAGE",4,340,"C"]
["1126","EACH","FLARED END SECTION 49 IN. SPAN","G2","STANDARD ITEM","DRAINAGE",4,342,"C"]
["1127","EACH","FLARED END SECTION 57 IN. SPAN","G2","STANDARD ITEM","DRAINAGE",4,343,"C"]
["1128","EACH","FLARED END SECTION 64 IN. SPAN","G2","STANDARD ITEM","DRAINAGE",4,344,"C"]
["1129","EACH","FLARED END SECTION 71 IN. SPAN","G2","STANDARD ITEM","DRAINAGE",4,345,"C"]
["1130","EACH","FLARED END SECTION 77 IN. SPAN","G2","STANDARD ITEM","DRAINAGE",4,346,"C"]
["1131","EACH","FLARED END SECTION 83 IN. SPAN","G2","STANDARD ITEM","DRAINAGE",4,347,"C"]
["1135","L.F.","HALF ROUND PLAIN ST. CULV. PIPE 0.064 IN.TH. 12 IN.DIAM.","G2","STANDARD ITEM","DRAINAGE",4,354,"E"]
["1136","L.F.","HALF ROUND PLAIN ST. CULV. PIPE 0.064 IN.TH. 18 IN.DIAM.","G2","STANDARD ITEM","DRAINAGE",4,357,"E"]
["1137","L.F.","HALF ROUND PLAIN ST. CULV. PIPE 0.064 IN.TH. 24 IN.DIAM.","G2","STANDARD ITEM","DRAINAGE",4,358,"E"]
["1138","L.F.","HALF ROUND PLAIN ST. CULV. PIPE 0.064 IN.TH. 30 IN.DIAM.","G2","STANDARD ITEM","DRAINAGE",4,359,"E"]
["1140","L.F.","HALF ROUND TR. 1 ST. CULV. PIPE 0.064 IN.TH. 12 IN.DIAM.","G2","STANDARD ITEM","DRAINAGE",4,360,"E"]
["1142","L.F.","HALF ROUND TR. 1 ST. CULV. PIPE 0.064 IN.TH. 24 IN.DIAM.","G2","STANDARD ITEM","DRAINAGE",4,361,"E"]
["1160","L.F.","UNDERDRAIN PIPE 6 IN. DIAM.","L4","STANDARD ITEM","DRAINAGE",4,369,"E"]
["1161","L.F.","UNDERDRAIN PIPE 8 IN. DIAM.","L4","STANDARD ITEM","DRAINAGE",4,370,"E"]
["1162","L.F.","UNDERDRAIN PIPE 10 IN. DIAM.","L4","STANDARD ITEM","DRAINAGE",4,371,"E"]
["1163","L.F.","UNDERDRAIN PIPE 12 IN. DIAM.","L4","STANDARD ITEM","DRAINAGE",4,372,"E"]
["1164","L.F.","UNDERDRAIN PIPE 15 IN. DIAM.","L4","STANDARD ITEM","DRAINAGE",4,373,"E"]
["1165","L.F.","UNDERDRAIN PIPE 18 IN. DIAM.","L4","STANDARD ITEM","DRAINAGE",4,374,"E"]
["1166","L.F.","UNDERDRAIN PIPE 21 IN. DIAM.","L4","STANDARD ITEM","DRAINAGE",4,375,"E"]
["1170","L.F.","DRAIN PIPE 6 IN. DIAM.","L4","STANDARD ITEM","DRAINAGE",4,383,"E"]
["1171","L.F.","DRAIN PIPE 8 IN. DIAM.","L4","STANDARD ITEM","DRAINAGE",4,384,"E"]
["1172","L.F.","DRAIN PIPE 10 IN. DIAM.","L4","STANDARD ITEM","DRAINAGE",4,385,"E"]
["1173","L.F.","DRAIN PIPE 12 IN. DIAM.","L4","STANDARD ITEM","DRAINAGE",4,386,"E"]
["1174","L.F.","DRAIN PIPE 15 IN. DIAM.","L4","STANDARD ITEM","DRAINAGE",4,387,"E"]
["1175","L.F.","DRAIN PIPE 18 IN. DIAM.","L4","STANDARD ITEM","DRAINAGE",4,388,"E"]
["1176","L.F.","DRAIN PIPE 21 IN. DIAM.","L4","STANDARD ITEM","DRAINAGE",4,389,"E"]
["1180","L.F.","SCHEDULE A CULV. PIPE 12 IN. DIAM.","G2","STANDARD ITEM","DRAINAGE",4,394,"E"]
["1182","L.F.","SCHEDULE A CULV. PIPE 18 IN. DIAM.","G2","STANDARD ITEM","DRAINAGE",4,395,"E"]
["1184","L.F.","SCHEDULE A CULV. PIPE 24 IN. DIAM.","G2","STANDARD ITEM","DRAINAGE",4,396,"E"]
["1186","L.F.","SCHEDULE A CULV. PIPE 30 IN. DIAM.","G2","STANDARD ITEM","DRAINAGE",4,397,"E"]
["1188","L.F.","SCHEDULE B CULV. PIPE 12 IN. DIAM.","G2","STANDARD ITEM","DRAINAGE",4,402,"E"]
["1190","L.F.","SCHEDULE B CULV. PIPE 18 IN. DIAM.","G2","STANDARD ITEM","DRAINAGE",4,403,"E"]
["1192","L.F.","SCHEDULE B CULV. PIPE 24 IN. DIAM.","G2","STANDARD ITEM","DRAINAGE",4,404,"E"]
["1194","L.F.","SCHEDULE B CULV. PIPE 30 IN. DIAM.","G2","STANDARD ITEM","DRAINAGE",4,405,"E"]
["1196","L.F.","SCHEDULE C CULV. PIPE 12 IN. DIAM.","G2","STANDARD ITEM","DRAINAGE",4,410,"E"]
["1198","L.F.","SCHEDULE C CULV. PIPE 18 IN. DIAM.","G2","STANDARD ITEM","DRAINAGE",4,411,"E"]
["1200","L.F.","SCHEDULE C CULV. PIPE 24 IN. DIAM.","G2","STANDARD ITEM","DRAINAGE",4,412,"E"]
["1202","L.F.","SCHEDULE C CULV. PIPE 30 IN. DIAM.","G2","STANDARD ITEM","DRAINAGE",4,413,"E"]
["1204","L.F.","SCHEDULE D CULV. PIPE 12 IN. DIAM.","G2","STANDARD ITEM","DRAINAGE",4,418,"E"]
["1206","L.F.","SCHEDULE D CULV. PIPE 18 IN. DIAM.","G2","STANDARD ITEM","DRAINAGE",4,419,"E"]
["1208","L.F.","SCHEDULE D CULV. PIPE 24 IN. DIAM.","G2","STANDARD ITEM","DRAINAGE",4,420,"E"]
["1210","L.F.","SCHEDULE D CULV. PIPE 30 IN. DIAM.","G2","STANDARD ITEM","DRAINAGE",4,421,"E"]
["1215","L.F.","PLAIN CONC. CULV. PIPE 12 IN. DIAM.","G2","STANDARD ITEM","DRAINAGE",4,425,"E"]
["1216","L.F.","PLAIN CONC. CULV. PIPE 18 IN. DIAM.","G2","STANDARD ITEM","DRAINAGE",4,426,"E"]
["1217","L.F.","PLAIN CONC. CULV. PIPE 24 IN. DIAM.","G2","STANDARD ITEM","DRAINAGE",4,427,"E"]
["1220","L.F.","CL. II REINF. CONC. CULV. PIPE 12 IN. DIAM.","G2","STANDARD ITEM","DRAINAGE",4,474,"E"]
["1221","L.F.","CL. II REINF. CONC. CULV. PIPE 15 IN. DIAM.","G2","STANDARD ITEM","DRAINAGE",4,476,"E"]
["1222","L.F.","CL. II REINF. CONC. CULV. PIPE 18 IN. DIAM.","G2","STANDARD ITEM","DRAINAGE",4,478,"E"]
["1223","L.F.","CL. II REINF. CONC. CULV. PIPE 21 IN. DIAM.","G2","STANDARD ITEM","DRAINAGE",4,480,"E"]
["1224","L.F.","CL. II REINF. CONC. CULV. PIPE 24 IN. DIAM.","G2","STANDARD ITEM","DRAINAGE",4,482,"E"]
["1226","L.F.","CL. II REINF. CONC. CULV. PIPE 30 IN. DIAM.","G2","STANDARD ITEM","DRAINAGE",4,484,"E"]
["1228","L.F.","CL. II REINF. CONC. CULV. PIPE 36 IN. DIAM.","G2","STANDARD ITEM","DRAINAGE",4,486,"E"]
["1229","L.F.","CL. II REINF. CONC. CULV. PIPE 42 IN. DIAM.","G2","STANDARD ITEM","DRAINAGE",4,488,"E"]
["1230","L.F.","CL. II REINF. CONC. CULV. PIPE 48 IN. DIAM.","G2","STANDARD ITEM","DRAINAGE",4,490,"E"]
["1231","L.F.","CL. II REINF. CONC. CULV. PIPE 54 IN. DIAM.","G2","STANDARD ITEM","DRAINAGE",4,491,"E"]
["1232","L.F.","CL. II REINF. CONC. CULV. PIPE 60 IN. DIAM.","G2","STANDARD ITEM","DRAINAGE",4,492,"E"]
["1234","L.F.","CL. II REINF. CONC. CULV. PIPE 72 IN. DIAM.","G2","STANDARD ITEM","DRAINAGE",4,493,"E"]
["1236","L.F.","CL. II REINF. CONC. CULV. PIPE 84 IN. DIAM.","G2","STANDARD ITEM","DRAINAGE",4,494,"E"]
["1238","L.F.","CL. II REINF. CONC. CULV. PIPE 96 IN. DIAM.","G2","STANDARD ITEM","DRAINAGE",4,495,"E"]
["1245","L.F.","CL. III REINF. CONC. CULV. PIPE 12 IN. DIAM.","G2","STANDARD ITEM","DRAINAGE",4,502,"E"]
["1247","L.F.","CL. III REINF. CONC. CULV. PIPE 18 IN. DIAM.","G2","STANDARD ITEM","DRAINAGE",4,504,"E"]
["1248","L.F.","CL. III REINF. CONC. CULV. PIPE 21 IN. DIAM.","G2","STANDARD ITEM","DRAINAGE",4,506,"E"]
["1249","L.F.","CL. III REINF. CONC. CULV. PIPE 24 IN. DIAM.","G2","STANDARD ITEM","DRAINAGE",4,508,"E"]
["1251","L.F.","CL. III REINF. CONC. CULV. PIPE 30 IN. DIAM.","G2","STANDARD ITEM","DRAINAGE",4,510,"E"]
["1253","L.F.","CL. III REINF. CONC. CULV. PIPE 36 IN. DIAM.","G2","STANDARD ITEM","DRAINAGE",4,511,"E"]
["1254","L.F.","CL. III REINF. CONC. CULV. PIPE 42 IN. DIAM.","G2","STANDARD ITEM","DRAINAGE",4,512,"E"]
["1255","L.F.","CL. III REINF. CONC. CULV. PIPE 48 IN. DIAM.","G2","STANDARD ITEM","DRAINAGE",4,513,"E"]
["1256","L.F.","CL. III REINF. CONC. CULV. PIPE 54 IN. DIAM.","G2","STANDARD ITEM","DRAINAGE",4,514,"E"]
["1257","L.F.","CL. III REINF. CONC. CULV. PIPE 60 IN. DIAM.","G2","STANDARD ITEM","DRAINAGE",4,515,"E"]
["1270","L.F.","CL. IV REINF. CONC. CULV. PIPE 12 IN. DIAM.","G2","STANDARD ITEM","DRAINAGE",4,522,"E"]
["1271","L.F.","CL. IV REINF. CONC. CULV. PIPE 15 IN. DIAM.","G2","STANDARD ITEM","DRAINAGE",4,524,"E"]
["1272","L.F.","CL. IV REINF. CONC. CULV. PIPE 18 IN. DIAM.","G2","STANDARD ITEM","DRAINAGE",4,526,"E"]
["1274","L.F.","CL. IV REINF. CONC. CULV. PIPE 24 IN. DIAM.","G2","STANDARD ITEM","DRAINAGE",4,528,"E"]
["1276","L.F.","CL. IV REINF. CONC. CULV. PIPE 30 IN. DIAM.","G2","STANDARD ITEM","DRAINAGE",4,530,"E"]
["1278","L.F.","CL. IV REINF. CONC. CULV. PIPE 36 IN. DIAM.","G2","STANDARD ITEM","DRAINAGE",4,532,"E"]
["1279","L.F.","CL. IV REINF. CONC. CULV. PIPE 42 IN. DIAM.","G2","STANDARD ITEM","DRAINAGE",4,533,"E"]
["1280","L.F.","CL. IV REINF. CONC. CULV. PIPE 48 IN. DIAM.","G2","STANDARD ITEM","DRAINAGE",4,534,"E"]
["1281","L.F.","CL. IV REINF. CONC. CULV. PIPE 54 IN. DIAM.","G2","STANDARD ITEM","DRAINAGE",4,535,"E"]
["1282","L.F.","CL. IV REINF. CONC. CULV. PIPE 60 IN. DIAM.","G2","STANDARD ITEM","DRAINAGE",4,536,"E"]
["1284","L.F.","CL. IV REINF. CONC. CULV. PIPE 72 IN. DIAM.","G2","STANDARD ITEM","DRAINAGE",4,537,"E"]
["1290","L.F.","CL. V REINF. CONC. CULV. PIPE 12 IN. DIAM.","G2","STANDARD ITEM","DRAINAGE",4,544,"E"]
["1292","L.F.","CL. V REINF. CONC. CULV. PIPE 18 IN. DIAM.","G2","STANDARD ITEM","DRAINAGE",4,546,"E"]
["1294","L.F.","CL. V REINF. CONC. CULV. PIPE 24 IN. DIAM.","G2","STANDARD ITEM","DRAINAGE",4,547,"E"]
["1296","L.F.","CL. V REINF. CONC. CULV. PIPE 30 IN. DIAM.","G2","STANDARD ITEM","DRAINAGE",4,548,"E"]
["1298","L.F.","CL. V REINF. CONC. CULV. PIPE 36 IN. DIAM.","G2","STANDARD ITEM","DRAINAGE",4,549,"E"]
["1299","L.F.","CL. V REINF. CONC. CULV. PIPE 42 IN. DIAM.","G2","STANDARD ITEM","DRAINAGE",4,550,"E"]
["1302","L.F.","CL. V REINF. CONC. CULV. PIPE 60 IN. DIAM.","G2","STANDARD ITEM","DRAINAGE",4,551,"E"]
["1310","L.F.","PLAIN ST. CULV. PIPE 0.064 IN. TH. 8 IN. DIAM.","G2","STANDARD ITEM","DRAINAGE",4,558,"E"]
["1311","L.F.","PLAIN ST. CULV. PIPE 0.064 IN. TH. 10 IN. DIAM.","G2","STANDARD ITEM","DRAINAGE",4,560,"E"]
["1312","L.F.","PLAIN ST. CULV. PIPE 0.064 IN. TH. 12 IN. DIAM.","G2","STANDARD ITEM","DRAINAGE",4,562,"E"]
["1313","L.F.","PLAIN ST. CULV. PIPE 0.064 IN. TH. 18 IN. DIAM.","G2","STANDARD ITEM","DRAINAGE",4,566,"E"]
["1314","L.F.","PLAIN ST. CULV. PIPE 0.064 IN. TH. 24 IN. DIAM.","G2","STANDARD ITEM","DRAINAGE",4,568,"E"]
["1315","L.F.","PLAIN ST. CULV. PIPE 0.064 IN. TH. 30 IN. DIAM.","G2","STANDARD ITEM","DRAINAGE",4,570,"E"]
["1316","L.F.","PLAIN ST. CULV. PIPE 0.064 IN. TH. 36 IN. DIAM.","G2","STANDARD ITEM","DRAINAGE",4,572,"E"]
["1317","L.F.","PLAIN ST. CULV. PIPE 0.064 IN. TH. 42 IN. DIAM.","G2","STANDARD ITEM","DRAINAGE",4,574,"E"]
["1318","L.F.","PLAIN ST. CULV. PIPE 0.064 IN. TH. 48 IN. DIAM.","G2","STANDARD ITEM","DRAINAGE",4,576,"E"]
["1319","L.F.","PLAIN ST. CULV. PIPE 0.064 IN. TH. 15 IN. DIAM.","G2","STANDARD ITEM","DRAINAGE",4,564,"E"]
["1320","L.F.","PLAIN ST. CULV. PIPE 0.079 IN. TH. 18 IN. DIAM.","G2","STANDARD ITEM","DRAINAGE",4,578,"E"]
["1321","L.F.","PLAIN ST. CULV. PIPE 0.079 IN. TH. 24 IN. DIAM.","G2","STANDARD ITEM","DRAINAGE",4,580,"E"]
["1322","L.F.","PLAIN ST. CULV. PIPE 0.079 IN. TH. 30 IN. DIAM.","G2","STANDARD ITEM","DRAINAGE",4,582,"E"]
["1323","L.F.","PLAIN ST. CULV. PIPE 0.079 IN. TH. 36 IN. DIAM.","G2","STANDARD ITEM","DRAINAGE",4,584,"E"]
["1324","L.F.","PLAIN ST. CULV. PIPE 0.079 IN. TH. 42 IN. DIAM.","G2","STANDARD ITEM","DRAINAGE",4,586,"E"]
["1325","L.F.","PLAIN ST. CULV. PIPE 0.079 IN. TH. 48 IN. DIAM.","G2","STANDARD ITEM","DRAINAGE",4,588,"E"]
["1326","L.F.","PLAIN ST. CULV. PIPE 0.079 IN. TH. 54 IN. DIAM.","G2","STANDARD ITEM","DRAINAGE",4,590,"E"]
["1327","L.F.","PLAIN ST. CULV. PIPE 0.109 IN. TH. 18 IN. DIAM.","G2","STANDARD ITEM","DRAINAGE",4,592,"E"]
["1328","L.F.","PLAIN ST. CULV. PIPE 0.109 IN. TH. 24 IN. DIAM.","G2","STANDARD ITEM","DRAINAGE",4,594,"E"]
["1329","L.F.","PLAIN ST. CULV. PIPE 0.109 IN. TH. 30 IN. DIAM.","G2","STANDARD ITEM","DRAINAGE",4,596,"E"]
["1330","L.F.","PLAIN ST. CULV. PIPE 0.109 IN. TH. 36 IN. DIAM.","G2","STANDARD ITEM","DRAINAGE",4,598,"E"]
["1331","L.F.","PLAIN ST. CULV. PIPE 0.109 IN. TH. 42 IN. DIAM.","G2","STANDARD ITEM","DRAINAGE",4,600,"E"]
["1332","L.F.","PLAIN ST. CULV. PIPE 0.109 IN. TH. 48 IN. DIAM.","G2","STANDARD ITEM","DRAINAGE",4,602,"E"]
["1333","L.F.","PLAIN ST. CULV. PIPE 0.109 IN. TH. 54 IN. DIAM.","G2","STANDARD ITEM","DRAINAGE",4,604,"E"]
["1334","L.F.","PLAIN ST. CULV. PIPE 0.109 IN. TH. 60 IN. DIAM.","G2","STANDARD ITEM","DRAINAGE",4,606,"E"]
["1336","L.F.","PLAIN ST. CULV. PIPE 0.138 IN. TH. 30 IN. DIAM.","G2","STANDARD ITEM","DRAINAGE",4,608,"E"]
["1338","L.F.","PLAIN ST. CULV. PIPE 0.138 IN. TH. 42 IN. DIAM.","G2","STANDARD ITEM","DRAINAGE",4,610,"E"]
["1340","L.F.","PLAIN ST. CULV. PIPE 0.138 IN. TH. 54 IN. DIAM.","G2","STANDARD ITEM","DRAINAGE",4,612,"E"]
["1341","L.F.","PLAIN ST. CULV. PIPE 0.138 IN. TH. 60 IN. DIAM.","G2","STANDARD ITEM","DRAINAGE",4,614,"E"]
["1343","L.F.","PLAIN ST. CULV. PIPE 0.138 IN. TH. 72 IN. DIAM.","G2","STANDARD ITEM","DRAINAGE",4,616,"E"]
["1345","L.F.","PLAIN ST. CULV. PIPE 0.168 IN. TH. 36 IN. DIAM.","G2","STANDARD ITEM","DRAINAGE",4,617,"E"]
["1349","L.F.","PLAIN ST. CULV. PIPE 0.168 IN. TH. 60 IN. DIAM.","G2","STANDARD ITEM","DRAINAGE",4,618,"E"]
["1351","L.F.","PLAIN ST. CULV. PIPE 0.168 IN. TH. 72 IN. DIAM.","G2","STANDARD ITEM","DRAINAGE",4,619,"E"]
["1352","L.F.","PLAIN ST. CULV. PIPE 0.168 IN. TH. 78 IN. DIAM.","G2","STANDARD ITEM","DRAINAGE",4,620,"E"]
["1353","L.F.","PLAIN ST. CULV. PIPE 0.168 IN. TH. 84 IN. DIAM.","G2","STANDARD ITEM","DRAINAGE",4,621,"E"]
["1360","L.F.","TR. 1 ST. CULV. PIPE 0.064 IN. TH. 8 IN. DIAM.","G2","STANDARD ITEM","DRAINAGE",4,628,"E"]
["1362","L.F.","TR. 1 ST. CULV. PIPE 0.064 IN. TH. 12 IN. DIAM.","G2","STANDARD ITEM","DRAINAGE",4,630,"E"]
["1363","L.F.","TR. 1 ST. CULV. PIPE 0.064 IN. TH. 18 IN. DIAM.","G2","STANDARD ITEM","DRAINAGE",4,632,"E"]
["1364","L.F.","TR. 1 ST. CULV. PIPE 0.064 IN. TH. 24 IN. DIAM.","G2","STANDARD ITEM","DRAINAGE",4,634,"E"]
["1365","L.F.","TR. 1 ST. CULV. PIPE 0.064 IN. TH. 30 IN. DIAM.","G2","STANDARD ITEM","DRAINAGE",4,636,"E"]
["1366","L.F.","TR. 1 ST. CULV. PIPE 0.064 IN. TH. 36 IN. DIAM.","G2","STANDARD ITEM","DRAINAGE",4,638,"E"]
["1368","L.F.","TR. 1 ST. CULV. PIPE 0.064 IN. TH. 48 IN. DIAM.","G2","STANDARD ITEM","DRAINAGE",4,640,"E"]
["1371","L.F.","TR. 1 ST. CULV. PIPE 0.079 IN. TH. 24 IN. DIAM.","G2","STANDARD ITEM","DRAINAGE",4,642,"E"]
["1372","L.F.","TR. 1 ST. CULV. PIPE 0.079 IN. TH. 30 IN. DIAM.","G2","STANDARD ITEM","DRAINAGE",4,644,"E"]
["1375","L.F.","TR. 1 ST. CULV. PIPE 0.079 IN. TH. 48 IN. DIAM.","G2","STANDARD ITEM","DRAINAGE",4,646,"E"]
["1378","L.F.","TR. 1 ST. CULV. PIPE 0.109 IN. TH. 24 IN. DIAM.","G2","STANDARD ITEM","DRAINAGE",4,648,"E"]
["1379","L.F.","TR. 1 ST. CULV. PIPE 0.109 IN. TH. 30 IN. DIAM.","G2","STANDARD ITEM","DRAINAGE",4,650,"E"]
["1380","L.F.","TR. 1 ST. CULV. PIPE 0.109 IN. TH. 36 IN. DIAM.","G2","STANDARD ITEM","DRAINAGE",4,652,"E"]
["1381","L.F.","TR. 1 ST. CULV. PIPE 0.109 IN. TH. 42 IN. DIAM.","G2","STANDARD ITEM","DRAINAGE",4,654,"E"]
["1384","L.F.","TR. 1 ST. CULV. PIPE 0.109 IN. TH. 60 IN. DIAM.","G2","STANDARD ITEM","DRAINAGE",4,656,"E"]
["1387","L.F.","TR. 1 ST. CULV. PIPE 0.138 IN. TH. 36 IN. DIAM.","G2","STANDARD ITEM","DRAINAGE",4,658,"E"]
["1389","L.F.","TR. 1 ST. CULV. PIPE 0.138 IN. TH. 48 IN. DIAM.","G2","STANDARD ITEM","DRAINAGE",4,660,"E"]
["1390","L.F.","TR. 1 ST. CULV. PIPE 0.138 IN. TH. 54 IN. DIAM.","G2","STANDARD ITEM","DRAINAGE",4,661,"E"]
["1393","L.F.","TR. 1 ST. CULV. PIPE 0.138 IN. TH. 72 IN. DIAM.","G2","STANDARD ITEM","DRAINAGE",4,662,"E"]
["1399","L.F.","TR. 1 ST. CULV. PIPE 0.168 IN. TH. 60 IN. DIAM.","G2","STANDARD ITEM","DRAINAGE",4,663,"E"]
["1400","L.F.","TR. 1 ST. CULV. PIPE 0.168 IN. TH. 66 IN. DIAM.","G2","STANDARD ITEM","DRAINAGE",4,664,"E"]
["1403","L.F.","TR. 1 ST. CULV. PIPE 0.168 IN. TH. 84 IN. DIAM.","G2","STANDARD ITEM","DRAINAGE",4,670,"E"]
["1410","L.F.","TR. 2 ST. CULV. PIPE 0.064 IN. TH. 8 IN. DIAM.","G2","STANDARD ITEM","DRAINAGE",4,672,"E"]
["1412","L.F.","TR. 2 ST. CULV. PIPE 0.064 IN. TH. 12 IN. DIAM.","G2","STANDARD ITEM","DRAINAGE",4,674,"E"]
["1413","L.F.","TR. 2 ST. CULV. PIPE 0.064 IN. TH. 18 IN. DIAM.","G2","STANDARD ITEM","DRAINAGE",4,676,"E"]
["1414","L.F.","TR. 2 ST. CULV. PIPE 0.064 IN. TH. 24 IN. DIAM.","G2","STANDARD ITEM","DRAINAGE",4,678,"E"]
["1415","L.F.","TR. 2 ST. CULV. PIPE 0.064 IN. TH. 30 IN. DIAM.","G2","STANDARD ITEM","DRAINAGE",4,680,"E"]
["1416","L.F.","TR. 2 ST. CULV. PIPE 0.064 IN. TH. 36 IN. DIAM.","G2","STANDARD ITEM","DRAINAGE",4,682,"E"]
["1417","L.F.","TR. 2 ST. CULV. PIPE 0.064 IN. TH. 42 IN. DIAM.","G2","STANDARD ITEM","DRAINAGE",4,684,"E"]
["1418","L.F.","TR. 2 ST. CULV. PIPE 0.064 IN. TH. 48 IN. DIAM.","G2","STANDARD ITEM","DRAINAGE",4,686,"E"]
["1419","L.F.","TR. 2 ST. CULV. PIPE 0.079 IN. TH. 12 IN. DIAM.","G2","STANDARD ITEM","DRAINAGE",4,688,"E"]
["1420","L.F.","TR. 2 ST. CULV. PIPE 0.079 IN. TH. 18 IN. DIAM.","G2","STANDARD ITEM","DRAINAGE",4,690,"E"]
["1421","L.F.","TR. 2 ST. CULV. PIPE 0.079 IN. TH. 24 IN. DIAM.","G2","STANDARD ITEM","DRAINAGE",4,692,"E"]
["1422","L.F.","TR. 2 ST. CULV. PIPE 0.079 IN. TH. 30 IN. DIAM.","G2","STANDARD ITEM","DRAINAGE",4,694,"E"]
["1423","L.F.","TR. 2 ST. CULV. PIPE 0.079 IN. TH. 36 IN. DIAM.","G2","STANDARD ITEM","DRAINAGE",4,696,"E"]
["1424","L.F.","TR. 2 ST. CULV. PIPE 0.079 IN. TH. 42 IN. DIAM.","G2","STANDARD ITEM","DRAINAGE",4,698,"E"]
["1425","L.F.","TR. 2 ST. CULV. PIPE 0.079 IN. TH. 48 IN. DIAM.","G2","STANDARD ITEM","DRAINAGE",4,700,"E"]
["1426","L.F.","TR. 2 ST. CULV. PIPE 0.079 IN. TH. 54 IN. DIAM.","G2","STANDARD ITEM","DRAINAGE",4,702,"E"]
["1427","L.F.","TR. 2 ST. CULV. PIPE 0.109 IN. TH. 18 IN. DIAM.","G2","STANDARD ITEM","DRAINAGE",4,704,"E"]
["1428","L.F.","TR. 2 ST. CULV. PIPE 0.109 IN. TH. 24 IN. DIAM.","G2","STANDARD ITEM","DRAINAGE",4,706,"E"]
["1429","L.F.","TR. 2 ST. CULV. PIPE 0.109 IN. TH. 30 IN. DIAM.","G2","STANDARD ITEM","DRAINAGE",4,708,"E"]
["1430","L.F.","TR. 2 ST. CULV. PIPE 0.109 IN. TH. 36 IN. DIAM.","G2","STANDARD ITEM","DRAINAGE",4,710,"E"]
["1432","L.F.","TR. 2 ST. CULV. PIPE 0.109 IN. TH. 48 IN. DIAM.","G2","STANDARD ITEM","DRAINAGE",4,712,"E"]
["1433","L.F.","TR. 2 ST. CULV. PIPE 0.109 IN. TH. 54 IN. DIAM.","G2","STANDARD ITEM","DRAINAGE",4,714,"E"]
["1434","L.F.","TR. 2 ST. CULV. PIPE 0.109 IN. TH. 60 IN. DIAM.","G2","STANDARD ITEM","DRAINAGE",4,716,"E"]
["1435","L.F.","TR. 2 ST. CULV. PIPE 0.109 IN. TH. 66 IN. DIAM.","G2","STANDARD ITEM","DRAINAGE",4,718,"E"]
["1437","L.F.","TR. 2 ST. CULV. PIPE 0.138 IN. TH. 36 IN. DIAM.","G2","STANDARD ITEM","DRAINAGE",4,720,"E"]
["1438","L.F.","TR. 2 ST. CULV. PIPE 0.138 IN. TH. 42 IN. DIAM.","G2","STANDARD ITEM","DRAINAGE",4,722,"E"]
["1441","L.F.","TR. 2 ST. CULV. PIPE 0.138 IN. TH. 60 IN. DIAM.","G2","STANDARD ITEM","DRAINAGE",4,724,"E"]
["1443","L.F.","TR. 2 ST. CULV. PIPE 0.138 IN. TH. 72 IN. DIAM.","G2","STANDARD ITEM","DRAINAGE",4,726,"E"]
["1445","L.F.","TR. 2 ST. CULV. PIPE 0.168 IN. TH. 36 IN. DIAM.","G2","STANDARD ITEM","DRAINAGE",4,728,"E"]
["1447","L.F.","TR. 2 ST. CULV. PIPE 0.168 IN. TH. 48 IN. DIAM.","G2","STANDARD ITEM","DRAINAGE",4,729,"E"]
["1449","L.F.","TR. 2 ST. CULV. PIPE 0.168 IN. TH. 60 IN. DIAM.","G2","STANDARD ITEM","DRAINAGE",4,730,"E"]
["1450","L.F.","TR. 2 ST. CULV. PIPE 0.168 IN. TH. 66 IN. DIAM.","G2","STANDARD ITEM","DRAINAGE",4,731,"E"]
["1451","L.F.","TR. 2 ST. CULV. PIPE 0.168 IN. TH. 72 IN. DIAM.","G2","STANDARD ITEM","DRAINAGE",4,732,"E"]
["1453","L.F.","TR. 2 ST. CULV. PIPE 0.168 IN. TH. 84 IN. DIAM.","G2","STANDARD ITEM","DRAINAGE",4,733,"E"]
["1462","L.F.","TR. 3 ST. CULV. PIPE 0.064 IN. TH. 12 IN. DIAM.","G2","STANDARD ITEM","DRAINAGE",4,736,"E"]
["1463","L.F.","TR. 3 ST. CULV. PIPE 0.064 IN. TH. 18 IN. DIAM.","G2","STANDARD ITEM","DRAINAGE",4,737,"E"]
["1513","L.F.","TR. 4 ST. CULV. PIPE 0.064 IN. TH. 18 IN. DIAM.","G2","STANDARD ITEM","DRAINAGE",4,744,"E"]
["1514","L.F.","TR. 4 ST. CULV. PIPE 0.064 IN. TH. 24 IN. DIAM.","G2","STANDARD ITEM","DRAINAGE",4,746,"E"]
["1516","L.F.","TR. 4 ST. CULV. PIPE 0.064 IN. TH. 36 IN. DIAM.","G2","STANDARD ITEM","DRAINAGE",4,748,"E"]
["1534","L.F.","TR. 4 ST. CULV. PIPE 0.109 IN. TH. 60 IN. DIAM.","G2","STANDARD ITEM","DRAINAGE",4,749,"E"]
["1539","L.F.","TR. 4 ST. CULV. PIPE 0.138 IN. TH. 48 IN. DIAM.","G2","STANDARD ITEM","DRAINAGE",4,750,"E"]
["1545","L.F.","TR. 4 ST. CULV. PIPE 0.168 IN. TH. 36 IN. DIAM.","G2","STANDARD ITEM","DRAINAGE",4,751,"E"]
["1547","L.F.","TR. 4 ST. CULV. PIPE 0.168 IN. TH. 48 IN. DIAM.","G2","STANDARD ITEM","DRAINAGE",4,752,"E"]
["1553","L.F.","TR. 4 ST. CULV. PIPE 0.168 IN. TH. 84 IN. DIAM.","G2","STANDARD ITEM","DRAINAGE",4,753,"E"]
["1562","L.F.","TR. 5 ST. CULV. PIPE 0.064 IN. TH. 12 IN. DIAM.","G2","STANDARD ITEM","DRAINAGE",4,760,"E"]
["1563","L.F.","TR. 5 ST. CULV. PIPE 0.064 IN. TH. 18 IN. DIAM.","G2","STANDARD ITEM","DRAINAGE",4,762,"E"]
["1564","L.F.","TR. 5 ST. CULV. PIPE 0.064 IN. TH. 24 IN. DIAM.","G2","STANDARD ITEM","DRAINAGE",4,764,"E"]
["1565","L.F.","TR. 5 ST. CULV. PIPE 0.064 IN. TH. 30 IN. DIAM.","G2","STANDARD ITEM","DRAINAGE",4,765,"E"]
["1567","L.F.","TR. 5 ST. CULV. PIPE 0.064 IN. TH. 42 IN. DIAM.","G2","STANDARD ITEM","DRAINAGE",4,766,"E"]
["1571","L.F.","TR. 5 ST. CULV. PIPE 0.079 IN. TH. 24 IN. DIAM.","G2","STANDARD ITEM","DRAINAGE",4,767,"E"]
["1580","L.F.","TR. 5 ST. CULV. PIPE 0.109 IN. TH. 36 IN. DIAM.","G2","STANDARD ITEM","DRAINAGE",4,768,"E"]
["1600","L.F.","TR. 5 ST. CULV. PIPE 0.168 IN. TH. 66 IN. DIAM.","G2","STANDARD ITEM","DRAINAGE",4,769,"E"]
["1612","L.F.","TR. 6 ST. CULV. PIPE 0.064 IN. TH. 12 IN. DIAM.","G2","STANDARD ITEM","DRAINAGE",4,773,"E"]
["1630","L.F.","TR. 6 ST. CULV. PIPE 0.109 IN. TH. 36 IN. DIAM.","G2","STANDARD ITEM","DRAINAGE",4,774,"E"]
["1632","L.F.","TR. 6 ST. CULV. PIPE 0.109 IN. TH. 48 IN. DIAM.","G2","STANDARD ITEM","DRAINAGE",4,775,"E"]
["1660","L.F.","PLAIN NESTABLE ST. PIPE 0.064 IN. TH. 12 IN. DIAM.","G2","STANDARD ITEM","DRAINAGE",4,782,"E"]
["1661","L.F.","PLAIN NESTABLE ST. PIPE 0.064 IN. TH. 18 IN. DIAM.","G2","STANDARD ITEM","DRAINAGE",4,783,"E"]
["1663","L.F.","PLAIN NESTABLE ST. PIPE 0.064 IN. TH. 30 IN. DIAM.","G2","STANDARD ITEM","DRAINAGE",4,784,"E"]
["1664","L.F.","PLAIN NESTABLE ST. PIPE 0.064 IN. TH. 36 IN. DIAM.","G2","STANDARD ITEM","DRAINAGE",4,785,"E"]
["1665","L.F.","PLAIN NESTABLE ST. PIPE 0.064 IN. TH. 42 IN. DIAM.","G2","STANDARD ITEM","DRAINAGE",4,786,"E"]
["1681","L.F.","PLAIN NESTABLE ST. PIPE 0.109 IN. TH. 60 IN. DIAM.","G2","STANDARD ITEM","DRAINAGE",4,787,"E"]
["1700","L.F.","TR. 1 NESTABLE ST. PIPE 0.064 IN. TH. 12 IN. DIAM.","G2","STANDARD ITEM","DRAINAGE",4,794,"E"]
["1701","L.F.","TR. 1 NESTABLE ST. PIPE 0.064 IN. TH. 18 IN. DIAM.","G2","STANDARD ITEM","DRAINAGE",4,795,"E"]
["1702","L.F.","TR. 1 NESTABLE ST. PIPE 0.064 IN. TH. 24 IN. DIAM.","G2","STANDARD ITEM","DRAINAGE",4,796,"E"]
["1709","L.F.","TR. 1 NESTABLE ST. PIPE 0.079 IN. TH. 30 IN. DIAM.","G2","STANDARD ITEM","DRAINAGE",4,797,"E"]
["1716","L.F.","TR. 1 NESTABLE ST. PIPE 0.109 IN. TH. 30 IN. DIAM.","G2","STANDARD ITEM","DRAINAGE",4,798,"E"]
["1800","L.F.","TR. 3 NESTABLE ST. PIPE 0.109 IN. TH. 54 IN. DIAM.","G2","STANDARD ITEM","DRAINAGE",4,799,"E"]
["1905","L.S.","MARINE SURVEYING","V3","WSF ITEM REQ. SPECIAL PROV.","OTHER ITEMS",19,2477,"C"]
["1910","L.S.","FURNISH BUBBLE CURTAIN SYSTEM","Q4","WSF ITEM REQ. SPECIAL PROV.","OTHER ITEMS",19,2478,"C"]
["1915","EACH","BUBBLE CURTAIN","Q4","WSF ITEM REQ. SPECIAL PROV.","OTHER ITEMS",19,2479,"C"]
["1920","EACH","MARINE LANTERN","N4","WSF ITEM REQ. SPECIAL PROV.","OTHER ITEMS",19,2480,"C"]
["1925","EACH","REFLECTIVE TRIANGLE","N4","WSF ITEM REQ. SPECIAL PROV.","OTHER ITEMS",19,2481,"C"]
["1930","EACH","RUBBER END LIP","N4","WSF ITEM REQ. SPECIAL PROV.","OTHER ITEMS",19,2482,"C"]
["1935","EACH","LIFE RING AND ENCLOSURE BOX","A1","WSF ITEM REQ. SPECIAL PROV.","OTHER ITEMS",19,2483,"C"]
["1940","L.S.","BIRD DETERRENT SYSTEM","A1","WSF ITEM REQ. SPECIAL PROV.","OTHER ITEMS",19,2484,"C"]
["1950","L.F.","PLAIN AL. CULV. PIPE 0.060 IN. TH. 12 IN. DIAM.","G2","STANDARD ITEM","DRAINAGE",4,806,"E"]
["1951","L.F.","PLAIN AL. CULV. PIPE 0.060 IN. TH. 18 IN. DIAM.","G2","STANDARD ITEM","DRAINAGE",4,808,"E"]
["1952","L.F.","PLAIN AL. CULV. PIPE 0.060 IN. TH. 24 IN. DIAM.","G2","STANDARD ITEM","DRAINAGE",4,810,"E"]
["1953","L.F.","PLAIN AL. CULV. PIPE 0.060 IN. TH. 30 IN. DIAM.","G2","STANDARD ITEM","DRAINAGE",4,811,"E"]
["1954","L.F.","PLAIN AL. CULV. PIPE 0.060 IN. TH. 36 IN. DIAM.","G2","STANDARD ITEM","DRAINAGE",4,812,"E"]
["1962","L.F.","PLAIN AL. CULV. PIPE 0.075 IN. TH. 48 IN. DIAM.","G2","STANDARD ITEM","DRAINAGE",4,813,"E"]
["1967","L.F.","PLAIN AL. CULV. PIPE 0.105 IN. TH. 36 IN. DIAM.","G2","STANDARD ITEM","DRAINAGE",4,814,"E"]
["1991","L.F.","PLAIN AL. CULV. PIPE 0.164 IN. TH. 72 IN. DIAM.","G2","STANDARD ITEM","DRAINAGE",4,815,"E"]
["2002","L.F.","ST. STR. PLATE PIPE 12 GAGE 72 IN. DIAM.","V4","STANDARD ITEM","DRAINAGE",4,822,"E"]
["2005","L.F.","ST. STR. PLATE PIPE 12 GAGE 90 IN. DIAM.","V4","STANDARD ITEM","DRAINAGE",4,824,"E"]
["2006","L.F.","ST. STR. PLATE PIPE 12 GAGE 96 IN. DIAM.","V4","STANDARD ITEM","DRAINAGE",4,826,"E"]
["2007","L.F.","ST. STR. PLATE PIPE 12 GAGE 102 IN. DIAM.","V4","STANDARD ITEM","DRAINAGE",4,828,"E"]
["2008","L.F.","ST. STR. PLATE PIPE 12 GAGE 108 IN. DIAM.","V4","STANDARD ITEM","DRAINAGE",4,830,"E"]
["2012","L.F.","ST. STR. PLATE PIPE 12 GAGE 132 IN. DIAM.","V4","STANDARD ITEM","DRAINAGE",4,832,"E"]
["2025","L.F.","ST. STR. PLATE PIPE 10 GAGE 84 IN. DIAM.","V4","STANDARD ITEM","DRAINAGE",4,834,"E"]
["2037","L.F.","ST. STR. PLATE PIPE 10 GAGE 156 IN. DIAM.","V4","STANDARD ITEM","DRAINAGE",4,836,"E"]
["2039","L.F.","ST. STR. PLATE PIPE 10 GAGE 168 IN. DIAM.","V4","STANDARD ITEM","DRAINAGE",4,838,"E"]
["2044","L.F.","ST. STR. PLATE PIPE 8 GAGE 72 IN. DIAM.","V4","STANDARD ITEM","DRAINAGE",4,840,"E"]
["2046","L.F.","ST. STR. PLATE PIPE 8 GAGE 84 IN. DIAM.","V4","STANDARD ITEM","DRAINAGE",4,842,"E"]
["2048","L.F.","ST. STR. PLATE PIPE 8 GAGE 96 IN. DIAM.","V4","STANDARD ITEM","DRAINAGE",4,844,"E"]
["2052","L.F.","ST. STR. PLATE PIPE 8 GAGE 120 IN. DIAM.","V4","STANDARD ITEM","DRAINAGE",4,846,"E"]
["2053","L.F.","ST. STR. PLATE PIPE 8 GAGE 126 IN. DIAM.","V4","STANDARD ITEM","DRAINAGE",4,848,"E"]
["2054","L.F.","ST. STR. PLATE PIPE 8 GAGE 132 IN. DIAM.","V4","STANDARD ITEM","DRAINAGE",4,850,"E"]
["2063","L.F.","ST. STR. PLATE PIPE 7 GAGE 60 IN. DIAM.","V4","STANDARD ITEM","DRAINAGE",4,852,"E"]
["2080","L.F.","ST. STR. PLATE PIPE 7 GAGE 162 IN. DIAM.","V4","STANDARD ITEM","DRAINAGE",4,854,"E"]
["2092","L.F.","ST. STR. PLATE PIPE 5 GAGE 108 IN. DIAM.","V4","STANDARD ITEM","DRAINAGE",4,856,"E"]
["2097","L.F.","ST. STR. PLATE PIPE 5 GAGE 138 IN. DIAM.","V4","STANDARD ITEM","DRAINAGE",4,858,"E"]
["2098","L.F.","ST. STR. PLATE PIPE 5 GAGE 144 IN. DIAM.","V4","STANDARD ITEM","DRAINAGE",4,860,"E"]
["2100","L.F.","ST. STR. PLATE PIPE 5 GAGE 156 IN. DIAM.","V4","STANDARD ITEM","DRAINAGE",4,861,"E"]
["2104","L.F.","ST. STR. PLATE PIPE 5 GAGE 180 IN. DIAM.","V4","STANDARD ITEM","DRAINAGE",4,862,"E"]
["2109","L.F.","ST. STR. PLATE PIPE 3 GAGE 84 IN. DIAM.","V4","STANDARD ITEM","DRAINAGE",4,863,"E"]
["2126","L.F.","ST. STR. PLATE PIPE 1 GAGE 60 IN. DIAM.","V4","STANDARD ITEM","DRAINAGE",4,864,"E"]
["2132","L.F.","ST. STR. PLATE PIPE 1 GAGE 96 IN. DIAM.","V4","STANDARD ITEM","DRAINAGE",4,865,"E"]
["2263","L.F.","AL. STR. PLATE PIPE 0.250 IN. TH. 102 IN. DIAM.","V4","STANDARD ITEM","DRAINAGE",4,867,"E"]
["2279","L.F.","PLAIN ST. CULV. PIPE ARCH 0.064 IN. TH. 35 IN. SPAN","G2","STANDARD ITEM","DRAINAGE",4,880,"E"]
["2280","L.F.","PLAIN ST. CULV. PIPE ARCH 0.064 IN. TH. 17 IN. SPAN","G2","STANDARD ITEM","DRAINAGE",4,874,"E"]
["2281","L.F.","PLAIN ST. CULV. PIPE ARCH 0.064 IN. TH. 21 IN. SPAN","G2","STANDARD ITEM","DRAINAGE",4,876,"E"]
["2283","L.F.","PLAIN ST. CULV. PIPE ARCH 0.064 IN. TH. 28 IN. SPAN","G2","STANDARD ITEM","DRAINAGE",4,878,"E"]
["2285","L.F.","PLAIN ST. CULV. PIPE ARCH 0.064 IN. TH. 42 IN. SPAN","G2","STANDARD ITEM","DRAINAGE",4,882,"E"]
["2286","L.F.","PLAIN ST. CULV. PIPE ARCH 0.079 IN. TH. 49 IN. SPAN","G2","STANDARD ITEM","DRAINAGE",4,884,"E"]
["2287","L.F.","PLAIN ST. CULV. PIPE ARCH 0.109 IN. TH. 57 IN. SPAN","G2","STANDARD ITEM","DRAINAGE",4,885,"E"]
["2288","L.F.","PLAIN ST. CULV. PIPE ARCH 0.109 IN. TH. 64 IN. SPAN","G2","STANDARD ITEM","DRAINAGE",4,886,"E"]
["2289","L.F.","PLAIN ST. CULV. PIPE ARCH 0.138 IN. TH. 71 IN. SPAN","G2","STANDARD ITEM","DRAINAGE",4,887,"E"]
["2290","L.F.","PLAIN ST. CULV. PIPE ARCH 0.168 IN. TH. 77 IN. SPAN","G2","STANDARD ITEM","DRAINAGE",4,888,"E"]
["2291","L.F.","PLAIN ST. CULV. PIPE ARCH 0.168 IN. TH. 83 IN. SPAN","G2","STANDARD ITEM","DRAINAGE",4,889,"E"]
["2305","L.F.","TR. 2 ST. CULV. PIPE ARCH 0.064 IN. TH. 21 IN. SPAN","G2","STANDARD ITEM","DRAINAGE",4,896,"E"]
["2310","L.F.","TR. 2 ST. CULV. PIPE ARCH 0.079 IN. TH. 49 IN. SPAN","G2","STANDARD ITEM","DRAINAGE",4,898,"E"]
["2311","L.F.","TR. 2 ST. CULV. PIPE ARCH 0.109 IN. TH. 57 IN. SPAN","G2","STANDARD ITEM","DRAINAGE",4,900,"E"]
["2312","L.F.","TR. 2 ST. CULV. PIPE ARCH 0.109 IN. TH. 64 IN. SPAN","G2","STANDARD ITEM","DRAINAGE",4,902,"E"]
["2313","L.F.","TR. 2 ST. CULV. PIPE ARCH 0.138 IN. TH. 71 IN. SPAN","G2","STANDARD ITEM","DRAINAGE",4,905,"E"]
["2314","L.F.","TR. 2 ST. CULV. PIPE ARCH 0.168 IN. TH. 77 IN. SPAN","G2","STANDARD ITEM","DRAINAGE",4,906,"E"]
["2317","L.F.","TR. 3 ST. CULV. PIPE ARCH 0.064 IN. TH. 21 IN. SPAN","G2","STANDARD ITEM","DRAINAGE",4,907,"E"]
["2344","L.F.","TR. 5 ST. CULV. PIPE ARCH 0.064 IN. TH. 35 IN. SPAN","G2","STANDARD ITEM","DRAINAGE",4,908,"E"]
["2345","L.F.","TR. 5 ST. CULV. PIPE ARCH 0.064 IN. TH. 42 IN. SPAN","G2","STANDARD ITEM","DRAINAGE",4,909,"E"]
["2347","L.F.","TR. 5 ST. CULV. PIPE ARCH 0.109 IN. TH. 57 IN. SPAN","G2","STANDARD ITEM","DRAINAGE",4,910,"E"]
["2417","L.F.","PLAIN AL. CULV. PIPE ARCH 0.135 IN. TH. 57 IN. SPAN","G2","STANDARD ITEM","DRAINAGE",4,915,"E"]
["2430","L.F.","ST. STR. PLATE PIPE ARCH 12 GAGE 6 FT. 1 IN. SPAN","V4","STANDARD ITEM","DRAINAGE",4,918,"E"]
["2431","L.F.","ST. STR. PLATE PIPE ARCH 12 GAGE 6 FT. 4 IN. SPAN","V4","STANDARD ITEM","DRAINAGE",4,920,"E"]
["2432","L.F.","ST. STR. PLATE PIPE ARCH 12 GAGE 6 FT. 9 IN. SPAN","V4","STANDARD ITEM","DRAINAGE",4,922,"E"]
["2433","L.F.","ST. STR. PLATE PIPE ARCH 12 GAGE 7 FT. 0 IN. SPAN","V4","STANDARD ITEM","DRAINAGE",4,924,"E"]
["2435","L.F.","ST. STR. PLATE PIPE ARCH 12 GAGE 7 FT. 8 IN. SPAN","V4","STANDARD ITEM","DRAINAGE",4,926,"E"]
["2437","L.F.","ST. STR. PLATE PIPE ARCH 12 GAGE 8 FT. 2 IN. SPAN","V4","STANDARD ITEM","DRAINAGE",4,928,"E"]
["2438","L.F.","ST. STR. PLATE PIPE ARCH 12 GAGE 8 FT. 7 IN. SPAN","V4","STANDARD ITEM","DRAINAGE",4,930,"E"]
["2439","L.F.","ST. STR. PLATE PIPE ARCH 12 GAGE 8 FT. 10 IN. SPAN","V4","STANDARD ITEM","DRAINAGE",4,932,"E"]
["2441","L.F.","ST. STR. PLATE PIPE ARCH 12 GAGE 9 FT. 6 IN. SPAN","V4","STANDARD ITEM","DRAINAGE",4,934,"E"]
["2443","L.F.","ST. STR. PLATE PIPE ARCH 12 GAGE 10 FT. 3 IN. SPAN","V4","STANDARD ITEM","DRAINAGE",4,936,"E"]
["2448","L.F.","ST. STR. PLATE PIPE ARCH 12 GAGE 11 FT. 10 IN. SPAN","V4","STANDARD ITEM","DRAINAGE",4,938,"E"]
["2450","L.F.","ST. STR. PLATE PIPE ARCH 12 GAGE 12 FT. 6 IN. SPAN","V4","STANDARD ITEM","DRAINAGE",4,939,"E"]
["2451","L.F.","ST. STR. PLATE PIPE ARCH 12 GAGE 12 FT. 8 IN. SPAN","V4","STANDARD ITEM","DRAINAGE",4,940,"E"]
["2452","L.F.","ST. STR. PLATE PIPE ARCH 12 GAGE 12 FT. 10 IN. SPAN","V4","STANDARD ITEM","DRAINAGE",4,941,"E"]
["2455","L.F.","ST. STR. PLATE PIPE ARCH 12 GAGE 14 FT. 1 IN. SPAN","V4","STANDARD ITEM","DRAINAGE",4,942,"E"]
["2461","L.F.","ST. STR. PLATE PIPE ARCH 12 GAGE 15 FT. 10 IN. SPAN","V4","STANDARD ITEM","DRAINAGE",4,943,"E"]
["2504","L.F.","ST. STR. PLATE ARCH 12 GAGE 10 FT. 0 IN. SPAN","V4","STANDARD ITEM","DRAINAGE",4,948,"E"]
["2522","L.F.","ST. STR. PLATE ARCH 10 GAGE 10 FT. 0 IN. SPAN","V4","STANDARD ITEM","DRAINAGE",4,949,"E"]
["2550","L.F.","ST. STR. PLATE ARCH 8 GAGE 20 FT. 0 IN. SPAN","V4","STANDARD ITEM","DRAINAGE",4,950,"E"]
["2586","L.F.","ST. STR. PLATE ARCH 5 GAGE 20 FT. 0 IN. SPAN","V4","STANDARD ITEM","DRAINAGE",4,951,"E"]
["2900","L.F.","DESIGN 1 ST. UNDERPASS 12 GAGE 6 FT. 8 IN. SPAN","V4","STANDARD ITEM","DRAINAGE",4,958,"E"]
["2901","L.F.","DESIGN 1 ST. UNDERPASS 12 GAGE 6 FT. 10 IN. SPAN","V4","STANDARD ITEM","DRAINAGE",4,960,"E"]
["2909","L.F.","DESIGN 2 ST. UNDERPASS 12 GAGE 14 FT. 10 IN. SPAN","V4","STANDARD ITEM","DRAINAGE",4,961,"E"]
["2911","L.F.","DESIGN 2 ST. UNDERPASS 10 GAGE 12 FT. 2 IN. SPAN","V4","STANDARD ITEM","DRAINAGE",4,962,"E"]
["2917","L.F.","DESIGN 2 ST. UNDERPASS 10 GAGE 14 FT. 10 IN. SPAN","V4","STANDARD ITEM","DRAINAGE",4,963,"E"]
["2924","L.F.","DESIGN 2 ST. UNDERPASS 10 GAGE 18 FT. 4 IN. SPAN","V4","STANDARD ITEM","DRAINAGE",4,964,"E"]
["2938","L.F.","DESIGN 2 ST. UNDERPASS 8 GAGE 18 FT. 4 IN. SPAN","V4","STANDARD ITEM","DRAINAGE",4,965,"E"]
["2940","m3","ROADWAY EXCAVATION","J6","STANDARD ITEM","GRADING",2,88,"M"]
["2945","m3","ROADWAY EXCAVATION INCL. HAUL","J6","STANDARD ITEM","GRADING",2,90,"M"]
["2950","m3","ROADWAY EXCAVATION - AREA","J6","STANDARD ITEM","GRADING",2,92,"M"]
["2955","m3","ROADWAY EXCAVATION INCL. HAUL - AREA","J6","STANDARD ITEM","GRADING",2,94,"M"]
["2957","m2","PAVEMENT REPAIR EXCAVATION INCL. HAUL","J6","STANDARD ITEM","GRADING",2,96,"M"]
["2963","m3","UNSUITABLE FOUNDATION EXCAVATION","J6","STANDARD ITEM","GRADING",2,98,"M"]
["2965","m3","UNSUITABLE FOUNDATION EXCAVATION INCL. HAUL","J6","STANDARD ITEM","GRADING",2,100,"M"]
["2970","m","CONTROLLED BLASTING OF ROCK FACE","G8","STANDARD ITEM","GRADING",2,102,"M"]
["2972","m3","COMMON BORROW INCL. HAUL","J6","STANDARD ITEM","GRADING",2,109,"M"]
["2974","t","SELECT BORROW INCL. HAUL","J6","STANDARD ITEM","GRADING",2,110,"M"]
["2975","m3","SELECT BORROW INCL. HAUL","J6","STANDARD ITEM","GRADING",2,112,"M"]
["2977","m3","GRAVEL BORROW INCL. HAUL","J6","STANDARD ITEM","GRADING",2,113,"M"]
["2979","t","GRAVEL BORROW INCL. HAUL","J6","STANDARD ITEM","GRADING",2,114,"M"]
["2981","t","SAND DRAINAGE BLANKET","J6","STANDARD ITEM","GRADING",2,116,"M"]
["2985","m","PREFABRICATED VERTICAL DRAIN","O6","STANDARD ITEM","GRADING",2,118,"M"]
["2987","m3","EMBANKMENT IN PLACE","J6","REQ. SPECIAL & HQ APPROV.","GRADING",2,120,"M"]
["2990","m3","EMBANKMENT COMPACTION","D6","STANDARD ITEM","GRADING",2,122,"M"]
["2992","L.F.","SOLID WALL PVC CULV. PIPE 12 IN. DIAM.","G2","STANDARD ITEM","DRAINAGE",4,433,"E"]
["2993","L.F.","SOLID WALL PVC CULV. PIPE 15 IN. DIAM.","G2","STANDARD ITEM","DRAINAGE",4,434,"E"]
["2994","L.F.","SOLID WALL PVC CULV. PIPE 18 IN. DIAM.","G2","STANDARD ITEM","DRAINAGE",4,435,"E"]
["2995","L.F.","SOLID WALL PVC CULV. PIPE 24 IN. DIAM.","G2","STANDARD ITEM","DRAINAGE",4,436,"E"]
["2996","L.F.","SOLID WALL PVC CULV. PIPE 36 IN. DIAM.","G2","STANDARD ITEM","DRAINAGE",4,437,"E"]
["2997","L.F.","PROFILE WALL PVC CULV. PIPE 12 IN. DIAM.","G2","STANDARD ITEM","DRAINAGE",4,443,"E"]
["2998","L.F.","PROFILE WALL PVC CULV. PIPE 15 IN. DIAM.","G2","STANDARD ITEM","DRAINAGE",4,444,"E"]
["2999","L.F.","PROFILE WALL PVC CULV. PIPE 18 IN. DIAM.","G2","STANDARD ITEM","DRAINAGE",4,445,"E"]
["3000","L.F.","PROFILE WALL PVC CULV. PIPE 24 IN. DIAM.","G2","STANDARD ITEM","DRAINAGE",4,446,"E"]
["3001","L.F.","PROFILE WALL PVC CULV. PIPE 36 IN. DIAM.","G2","STANDARD ITEM","DRAINAGE",4,447,"E"]
["3005","m","SETTLEMENT INDICATING DEVICE","T6","REQUIRES SPECIAL PROV.","GRADING",2,127,"M"]
["3008","L.F.","CORRUGATED POLYETHYLENE CULV. PIPE 12 IN. DIAM.","G2","STANDARD ITEM","DRAINAGE",4,453,"E"]
["3009","L.F.","CORRUGATED POLYETHYLENE CULV. PIPE 15 IN. DIAM.","G2","STANDARD ITEM","DRAINAGE",4,454,"E"]
["3010","L.F.","CORRUGATED POLYETHYLENE CULV. PIPE 18 IN. DIAM.","G2","STANDARD ITEM","DRAINAGE",4,455,"E"]
["3011","L.F.","CORRUGATED POLYETHYLENE CULV. PIPE 24 IN. DIAM.","G2","STANDARD ITEM","DRAINAGE",4,456,"E"]
["3012","L.F.","CORRUGATED POLYETHYLENE CULV. PIPE 36 IN. DIAM.","G2","STANDARD ITEM","DRAINAGE",4,457,"E"]
["3013","L.F.","STEEL RIB REINFORCED POLYETHYLENE CULVERT PIPE 24IN DIA","G2","STANDARD ITEM","DRAINAGE",4,458,"E"]
["3014","L.F.","STEEL RIB REINFORCED POLYETHYLENE CULVERT PIPE 30IN DIA","G2","STANDARD ITEM","DRAINAGE",4,459,"E"]
["3015","L.F.","STEEL RIB REINFORCED POLYETHYLENE CULVERT PIPE 36IN DIA","G2","STANDARD ITEM","DRAINAGE",4,460,"E"]
["3016","L.F.","HIGH DENSITY POLYETHYLENE (HDPE) PIPE 12 IN. DIAM.","G2","STANDARD ITEM","DRAINAGE",4,461,"E"]
["3017","L.F.","HIGH DENSITY POLYETHYLENE (HDPE) PIPE 18 IN. DIAM.","G2","STANDARD ITEM","DRAINAGE",4,462,"E"]
["3018","L.F.","HIGH DENSITY POLYETHYLENE (HDPE) PIPE 24 IN. DIAM.","G2","STANDARD ITEM","DRAINAGE",4,463,"E"]
["3019","L.F.","HIGH DENSITY POLYETHYLENE (HDPE) PIPE 30 IN. DIAM.","G2","STANDARD ITEM","DRAINAGE",4,464,"E"]
["3025","L.S.","PRECAST REINF. CONC. BOX CULVERT NO.","E0","GSP ITEM","DRAINAGE",4,966,"C"]
["3026","L.S.","PRECAST REINF. CONC. SPLIT BOX CULVERT NO.","E0","GSP ITEM","DRAINAGE",4,967,"C"]
["3050","L.F.","POLYPROPYLENE CULVERT PIPE 12 IN. DIAM.","T8","STANDARD ITEM","DRAINAGE",4,465,"E"]
["3052","L.F.","POLYPROPYLENE CULVERT PIPE 18 IN. DIAM.","T8","STANDARD ITEM","DRAINAGE",4,466,"E"]
["3054","L.F.","POLYPROPYLENE CULVERT PIPE 24 IN. DIAM.","T8","STANDARD ITEM","DRAINAGE",4,467,"E"]
["3063","EACH","DROP MANHOLE CONNECTION","T8","STANDARD ITEM","OTHER ITEMS",19,2430,"C"]
["3080","EACH","ADJUST MANHOLE","T8","STANDARD ITEM","OTHER ITEMS",19,2410,"C"]
["3090","EACH","CATCH BASIN TYPE","T8","STANDARD ITEM","STORM SEWER",5,974,"C"]
["3091","EACH","CATCH BASIN TYPE 1","T8","STANDARD ITEM","STORM SEWER",5,975,"C"]
["3093","EACH","CATCH BASIN TYPE 3","T8","STANDARD ITEM","STORM SEWER",5,986,"C"]
["3100","EACH","ADJUST CATCH BASIN","T8","STANDARD ITEM","OTHER ITEMS",19,2431,"C"]
["3104","EACH","CATCH BASIN TYPE 2 84 IN. DIAM.","T8","STANDARD ITEM","STORM SEWER",5,984,"C"]
["3105","EACH","CATCH BASIN TYPE 2 48 IN. DIAM.","T8","STANDARD ITEM","STORM SEWER",5,978,"C"]
["3106","EACH","CATCH BASIN TYPE 2 54 IN. DIAM.","T8","STANDARD ITEM","STORM SEWER",5,980,"C"]
["3107","EACH","CATCH BASIN TYPE 2 72 IN. DIAM.","T8","STANDARD ITEM","STORM SEWER",5,983,"C"]
["3108","EACH","CATCH BASIN TYPE 2 96 IN. DIAM.","T8","STANDARD ITEM","STORM SEWER",5,985,"C"]
["3109","EACH","CATCH BASIN TYPE 2 60 IN. DIAM.","T8","STANDARD ITEM","STORM SEWER",5,981,"C"]
["3110","EACH","LOCKING SOLID METAL COVER AND FRAME FOR CATCH BASIN","T8","REQUIRES SPECIAL PROV.","OTHER ITEMS",19,2432,"C"]
["3151","L.F.","TESTING STORM SEWER PIPE","T8","STANDARD ITEM","STORM SEWER",5,988,"E"]
["3152","L.F.","TESTING SEWER PIPE","T8","STANDARD ITEM","SANITARY SEWER",6,1167,"E"]
["3390","L.F.","PLAIN CONC. STORM SEWER PIPE 4 IN. DIAM.","T8","STANDARD ITEM","STORM SEWER",5,992,"E"]
["3391","L.F.","PLAIN CONC. STORM SEWER PIPE 6 IN. DIAM.","T8","STANDARD ITEM","STORM SEWER",5,994,"E"]
["3392","L.F.","PLAIN CONC. STORM SEWER PIPE 8 IN. DIAM.","T8","STANDARD ITEM","STORM SEWER",5,996,"E"]
["3393","L.F.","PLAIN CONC. STORM SEWER PIPE 10 IN. DIAM.","T8","STANDARD ITEM","STORM SEWER",5,998,"E"]
["3394","L.F.","PLAIN CONC. STORM SEWER PIPE 12 IN. DIAM.","T8","STANDARD ITEM","STORM SEWER",5,1000,"E"]
["3395","L.F.","PLAIN CONC. STORM SEWER PIPE 15 IN. DIAM.","T8","STANDARD ITEM","STORM SEWER",5,1002,"E"]
["3396","L.F.","PLAIN CONC. STORM SEWER PIPE 18 IN. DIAM.","T8","STANDARD ITEM","STORM SEWER",5,1004,"E"]
["3397","L.F.","PLAIN CONC. STORM SEWER PIPE 21 IN. DIAM.","T8","STANDARD ITEM","STORM SEWER",5,1005,"E"]
["3398","L.F.","PLAIN CONC. STORM SEWER PIPE 24 IN. DIAM.","T8","STANDARD ITEM","STORM SEWER",5,1006,"E"]
["3405","L.F.","CL. II REINF. CONC. STORM SEWER PIPE 12 IN. DIAM.","T8","STANDARD ITEM","STORM SEWER",5,1010,"E"]
["3407","L.F.","CL. II REINF. CONC. STORM SEWER PIPE 18 IN. DIAM.","T8","STANDARD ITEM","STORM SEWER",5,1012,"E"]
["3408","L.F.","CL. II REINF. CONC. STORM SEWER PIPE 21 IN. DIAM.","T8","STANDARD ITEM","STORM SEWER",5,1014,"E"]
["3409","L.F.","CL. II REINF. CONC. STORM SEWER PIPE 24 IN. DIAM.","T8","STANDARD ITEM","STORM SEWER",5,1016,"E"]
["3411","L.F.","CL. II REINF. CONC. STORM SEWER PIPE 30 IN. DIAM.","T8","STANDARD ITEM","STORM SEWER",5,1018,"E"]
["3413","L.F.","CL. II REINF. CONC. STORM SEWER PIPE 36 IN. DIAM.","T8","STANDARD ITEM","STORM SEWER",5,1020,"E"]
["3414","L.F.","CL. II REINF. CONC. STORM SEWER PIPE 42 IN. DIAM.","T8","STANDARD ITEM","STORM SEWER",5,1022,"E"]
["3415","L.F.","CL. II REINF. CONC. STORM SEWER PIPE 48 IN. DIAM.","T8","STANDARD ITEM","STORM SEWER",5,1024,"E"]
["3416","L.F.","CL. II REINF. CONC. STORM SEWER PIPE 54 IN. DIAM.","T8","STANDARD ITEM","STORM SEWER",5,1026,"E"]
["3417","L.F.","CL. II REINF. CONC. STORM SEWER PIPE 60 IN. DIAM.","T8","STANDARD ITEM","STORM SEWER",5,1028,"E"]
["3419","L.F.","CL. II REINF. CONC. STORM SEWER PIPE 72 IN. DIAM.","T8","STANDARD ITEM","STORM SEWER",5,1030,"E"]
["3430","L.F.","CL. III REINF. CONC. STORM SEWER PIPE 12 IN. DIAM.","T8","STANDARD ITEM","STORM SEWER",5,1032,"E"]
["3432","L.F.","CL. III REINF. CONC. STORM SEWER PIPE 18 IN. DIAM.","T8","STANDARD ITEM","STORM SEWER",5,1034,"E"]
["3434","L.F.","CL. III REINF. CONC. STORM SEWER PIPE 24 IN. DIAM.","T8","STANDARD ITEM","STORM SEWER",5,1036,"E"]
["3436","L.F.","CL. III REINF. CONC. STORM SEWER PIPE 30 IN. DIAM.","T8","STANDARD ITEM","STORM SEWER",5,1038,"E"]
["3438","L.F.","CL. III REINF. CONC. STORM SEWER PIPE 36 IN. DIAM.","T8","STANDARD ITEM","STORM SEWER",5,1040,"E"]
["3439","L.F.","CL. III REINF. CONC. STORM SEWER PIPE 42 IN. DIAM.","T8","STANDARD ITEM","STORM SEWER",5,1042,"E"]
["3455","L.F.","CL. IV REINF. CONC. STORM SEWER PIPE 12 IN. DIAM.","T8","STANDARD ITEM","STORM SEWER",5,1044,"E"]
["3456","L.F.","CL. IV REINF. CONC. STORM SEWER PIPE 15 IN. DIAM.","T8","STANDARD ITEM","STORM SEWER",5,1046,"E"]
["3457","L.F.","CL. IV REINF. CONC. STORM SEWER PIPE 18 IN. DIAM.","T8","STANDARD ITEM","STORM SEWER",5,1048,"E"]
["3458","L.F.","CL. IV REINF. CONC. STORM SEWER PIPE 21 IN. DIAM.","T8","STANDARD ITEM","STORM SEWER",5,1050,"E"]
["3459","L.F.","CL. IV REINF. CONC. STORM SEWER PIPE 24 IN. DIAM.","T8","STANDARD ITEM","STORM SEWER",5,1052,"E"]
["3461","L.F.","CL. IV REINF. CONC. STORM SEWER PIPE 30 IN. DIAM.","T8","STANDARD ITEM","STORM SEWER",5,1054,"E"]
["3463","L.F.","CL. IV REINF. CONC. STORM SEWER PIPE 36 IN. DIAM.","T8","STANDARD ITEM","STORM SEWER",5,1056,"E"]
["3464","L.F.","CL. IV REINF. CONC. STORM SEWER PIPE 42 IN. DIAM.","T8","STANDARD ITEM","STORM SEWER",5,1058,"E"]
["3465","L.F.","CL. IV REINF. CONC. STORM SEWER PIPE 48 IN. DIAM.","T8","STANDARD ITEM","STORM SEWER",5,1060,"E"]
["3467","L.F.","CL. IV REINF. CONC. STORM SEWER PIPE 60 IN. DIAM.","T8","STANDARD ITEM","STORM SEWER",5,1062,"E"]
["3469","L.F.","CL. IV REINF. CONC. STORM SEWER PIPE 72 IN. DIAM.","T8","STANDARD ITEM","STORM SEWER",5,1064,"E"]
["3471","L.F.","CL. IV REINF. CONC. STORM SEWER PIPE 84 IN. DIAM.","T8","STANDARD ITEM","STORM SEWER",5,1066,"E"]
["3480","L.F.","CL. V REINF. CONC. STORM SEWER PIPE 12 IN. DIAM.","T8","STANDARD ITEM","STORM SEWER",5,1068,"E"]
["3482","L.F.","CL. V REINF. CONC. STORM SEWER PIPE 18 IN. DIAM.","T8","STANDARD ITEM","STORM SEWER",5,1070,"E"]
["3483","L.F.","CL. V REINF. CONC. STORM SEWER PIPE 21 IN. DIAM.","T8","STANDARD ITEM","STORM SEWER",5,1072,"E"]
["3484","L.F.","CL. V REINF. CONC. STORM SEWER PIPE 24 IN. DIAM.","T8","STANDARD ITEM","STORM SEWER",5,1074,"E"]
["3486","L.F.","CL. V REINF. CONC. STORM SEWER PIPE 30 IN. DIAM.","T8","STANDARD ITEM","STORM SEWER",5,1076,"E"]
["3488","L.F.","CL. V REINF. CONC. STORM SEWER PIPE 36 IN. DIAM.","T8","STANDARD ITEM","STORM SEWER",5,1092,"E"]
["3490","L.F.","CL. V REINF. CONC. STORM SEWER PIPE 48 IN. DIAM.","T8","STANDARD ITEM","STORM SEWER",5,1094,"E"]
["3494","L.F.","CL. V REINF. CONC. STORM SEWER PIPE 72 IN. DIAM.","T8","STANDARD ITEM","STORM SEWER",5,1096,"E"]
["3502","L.F.","TR. 5 ST. STORM SEWER PIPE 0.064 IN. TH. 12 IN. DIAM.","T8","STANDARD ITEM","STORM SEWER",5,1112,"E"]
["3503","L.F.","TR. 5 ST. STORM SEWER PIPE 0.064 IN. TH. 15 IN. DIAM.","T8","STANDARD ITEM","STORM SEWER",5,1114,"E"]
["3504","L.F.","TR. 5 ST. STORM SEWER PIPE 0.064 IN. TH. 18 IN. DIAM.","T8","STANDARD ITEM","STORM SEWER",5,1116,"E"]
["3506","L.F.","TR. 5 ST. STORM SEWER PIPE 0.064 IN. TH. 24 IN. DIAM.","T8","STANDARD ITEM","STORM SEWER",5,1118,"E"]
["3507","L.F.","TR. 5 ST. STORM SEWER PIPE 0.064 IN. TH. 30 IN. DIAM.","T8","STANDARD ITEM","STORM SEWER",5,1120,"E"]
["3508","L.F.","TR. 5 ST. STORM SEWER PIPE 0.064 IN. TH. 36 IN. DIAM.","T8","STANDARD ITEM","STORM SEWER",5,1122,"E"]
["3510","L.F.","TR. 5 ST. STORM SEWER PIPE 0.064 IN. TH. 48 IN. DIAM.","T8","STANDARD ITEM","STORM SEWER",5,1124,"E"]
["3519","L.F.","TR. 5 ST. STORM SEWER PIPE 0.079 IN. TH. 24 IN. DIAM.","T8","STANDARD ITEM","STORM SEWER",5,1126,"E"]
["3530","L.F.","TR. 5 ST. STORM SEWER PIPE 0.109 IN. TH. 18 IN. DIAM.","T8","STANDARD ITEM","STORM SEWER",5,1128,"E"]
["3532","L.F.","TR. 5 ST. STORM SEWER PIPE 0.109 IN. TH. 30 IN. DIAM.","T8","STANDARD ITEM","STORM SEWER",5,1130,"E"]
["3533","L.F.","TR. 5 ST. STORM SEWER PIPE 0.109 IN. TH. 36 IN. DIAM.","T8","STANDARD ITEM","STORM SEWER",5,1132,"E"]
["3537","L.F.","TR. 5 ST. STORM SEWER PIPE 0.109 IN. TH. 60 IN. DIAM.","T8","STANDARD ITEM","STORM SEWER",5,1134,"E"]
["3541","L.F.","SCHEDULE A STORM SEWER PIPE 12 IN. DIAM.","T8","STANDARD ITEM","STORM SEWER",5,1097,"E"]
["3542","L.F.","SCHEDULE A STORM SEWER PIPE 18 IN. DIAM.","T8","STANDARD ITEM","STORM SEWER",5,1098,"E"]
["3543","L.F.","SCHEDULE A STORM SEWER PIPE 24 IN. DIAM.","T8","STANDARD ITEM","STORM SEWER",5,1099,"E"]
["3544","L.F.","SCHEDULE A STORM SEWER PIPE 30 IN. DIAM.","T8","STANDARD ITEM","STORM SEWER",5,1100,"E"]
["3545","L.F.","SCHEDULE A STORM SEWER PIPE 36 IN. DIAM.","T8","STANDARD ITEM","STORM SEWER",5,1101,"E"]
["3546","L.F.","SCHEDULE A STORM SEWER PIPE 42 IN. DIAM.","T8","STANDARD ITEM","STORM SEWER",5,1102,"E"]
["3547","L.F.","SCHEDULE A STORM SEWER PIPE 48 IN. DIAM.","T8","STANDARD ITEM","STORM SEWER",5,1103,"E"]
["3550","L.F.","SCHEDULE B STORM SEWER PIPE 12 IN. DIAM.","T8","STANDARD ITEM","STORM SEWER",5,1104,"E"]
["3551","L.F.","SCHEDULE B STORM SEWER PIPE 18 IN. DIAM.","T8","STANDARD ITEM","STORM SEWER",5,1105,"E"]
["3552","L.F.","SCHEDULE B STORM SEWER PIPE 24 IN. DIAM.","T8","STANDARD ITEM","STORM SEWER",5,1106,"E"]
["3553","L.F.","SCHEDULE B STORM SEWER PIPE 30 IN. DIAM.","T8","STANDARD ITEM","STORM SEWER",5,1107,"E"]
["3554","L.F.","SCHEDULE B STORM SEWER PIPE 36 IN. DIAM.","T8","STANDARD ITEM","STORM SEWER",5,1108,"E"]
["3555","L.F.","SCHEDULE B STORM SEWER PIPE 42 IN. DIAM.","T8","STANDARD ITEM","STORM SEWER",5,1109,"E"]
["3556","L.F.","SCHEDULE B STORM SEWER PIPE 48 IN. DIAM.","T8","STANDARD ITEM","STORM SEWER",5,1110,"E"]
["3560","L.F.","POLYPROPYLENE STORM SEWER PIPE 12 IN. DIAM.","T8","STANDARD ITEM","DRAINAGE",4,968,"E"]
["3562","L.F.","POLYPROPYLENE STORM SEWER PIPE 18 IN. DIAM.","T8","STANDARD ITEM","DRAINAGE",4,969,"E"]
["3564","L.F.","POLYPROPYLENE STORM SEWER PIPE 24 IN. DIAM.","T8","STANDARD ITEM","DRAINAGE",4,970,"E"]
["3575","L.F.","TR. 5 AL. STORM SEWER PIPE 0.075 IN. TH. 12 IN. DIAM.","T8","STANDARD ITEM","STORM SEWER",5,1136,"E"]
["3577","L.F.","SOLID WALL PVC STORM SEWER PIPE 12 IN. DIAM.","T8","STANDARD ITEM","STORM SEWER",5,1138,"E"]
["3578","L.F.","SOLID WALL PVC STORM SEWER PIPE 15 IN. DIAM.","T8","STANDARD ITEM","STORM SEWER",5,1140,"E"]
["3579","L.F.","SOLID WALL PVC STORM SEWER PIPE 18 IN. DIAM.","T8","STANDARD ITEM","STORM SEWER",5,1142,"E"]
["3580","m3","BALLAST IN STOCKPILE","F6","STANDARD ITEM","STOCKPILING",3,131,"M"]
["3582","L.F.","SOLID WALL PVC STORM SEWER PIPE 24 IN. DIAM.","T8","STANDARD ITEM","STORM SEWER",5,1144,"E"]
["3583","L.F.","SOLID WALL PVC STORM SEWER PIPE 36 IN. DIAM.","T8","STANDARD ITEM","STORM SEWER",5,1146,"E"]
["3585","t","BALLAST IN STOCKPILE","F6","STANDARD ITEM","STOCKPILING",3,133,"M"]
["3590","m3","SHOULDER BALLAST IN STOCKPILE","F6","STANDARD ITEM","STOCKPILING",3,135,"M"]
["3592","L.F.","PROFILE WALL PVC STORM SEWER PIPE 12 IN. DIAM.","T8","STANDARD ITEM","STORM SEWER",5,1148,"E"]
["3593","L.F.","PROFILE WALL PVC STORM SEWER PIPE 15 IN. DIAM.","T8","STANDARD ITEM","STORM SEWER",5,1150,"E"]
["3594","L.F.","PROFILE WALL PVC STORM SEWER PIPE 18 IN. DIAM.","T8","STANDARD ITEM","STORM SEWER",5,1152,"E"]
["3595","t","SHOULDER BALLAST IN STOCKPILE","F6","STANDARD ITEM","STOCKPILING",3,137,"M"]
["3597","L.F.","PROFILE WALL PVC STORM SEWER PIPE 24 IN. DIAM.","T8","STANDARD ITEM","STORM SEWER",5,1154,"E"]
["3598","L.F.","PROFILE WALL PVC STORM SEWER PIPE 36 IN. DIAM.","T8","STANDARD ITEM","STORM SEWER",5,1156,"E"]
["3600","m3","CRUSHED SURFACING BASE COURSE IN STOCKPILE","F6","STANDARD ITEM","STOCKPILING",3,139,"M"]
["3602","L.F.","CORRUGATED POLYETHYLENE STORM SEWER PIPE 12 IN. DIAM.","T8","STANDARD ITEM","STORM SEWER",5,1158,"E"]
["3603","L.F.","CORRUGATED POLYETHYLENE STORM SEWER PIPE 15 IN. DIAM.","T8","STANDARD ITEM","STORM SEWER",5,1160,"E"]
["3605","t","CRUSHED SURFACING BASE COURSE IN STOCKPILE","F6","STANDARD ITEM","STOCKPILING",3,141,"M"]
["3607","L.F.","CORRUGATED POLYETHYLENE STORM SEWER PIPE 18 IN. DIAM.","T8","STANDARD ITEM","STORM SEWER",5,1162,"E"]
["3608","L.F.","CORRUGATED POLYETHYLENE STORM SEWER PIPE 24 IN. DIAM.","T8","STANDARD ITEM","STORM SEWER",5,1163,"E"]
["3609","L.F.","CORRUGATED POLYETHYLENE STORM SEWER PIPE 36 IN. DIAM.","T8","STANDARD ITEM","STORM SEWER",5,1164,"E"]
["3610","m3","CRUSHED SURFACING TOP COURSE IN STOCKPILE","F6","STANDARD ITEM","STOCKPILING",3,143,"M"]
["3615","t","CRUSHED SURFACING TOP COURSE IN STOCKPILE","F6","STANDARD ITEM","STOCKPILING",3,145,"M"]
["3620","t","CRUSHED COVER STONE IN STOCKPILE","F6","STANDARD ITEM","STOCKPILING",3,147,"M"]
["3625","m3","CRUSHED COVER STONE IN STOCKPILE","F6","STANDARD ITEM","STOCKPILING",3,149,"M"]
["3630","t","SCREENED COVER STONE IN STOCKPILE","F6","STANDARD ITEM","STOCKPILING",3,151,"M"]
["3640","EACH","SEWER CLEANOUT","T8","STANDARD ITEM","SANITARY SEWER",6,1165,"C"]
["3651","L.F.","PLAIN CONC. OR V.C. SEWER PIPE 6 IN. DIAM.","T8","STANDARD ITEM","SANITARY SEWER",6,1170,"E"]
["3654","L.F.","PLAIN CONC. OR V.C. SEWER PIPE 12 IN. DIAM.","T8","STANDARD ITEM","SANITARY SEWER",6,1172,"E"]
["3655","L.F.","PLAIN CONC. OR V.C. SEWER PIPE 15 IN. DIAM.","T8","STANDARD ITEM","SANITARY SEWER",6,1174,"E"]
["3657","L.F.","PLAIN CONC. OR V.C. SEWER PIPE 21 IN. DIAM.","T8","STANDARD ITEM","SANITARY SEWER",6,1176,"E"]
["3706","L.F.","CL. IV REINF. CONC. SEWER PIPE 15 IN. DIAM.","T8","STANDARD ITEM","SANITARY SEWER",6,1178,"E"]
["3715","L.F.","CL. IV REINF. CONC. SEWER PIPE 48 IN. DIAM.","T8","STANDARD ITEM","SANITARY SEWER",6,1180,"E"]
["3725","L.F.","CL. V REINF. CONC. SEWER PIPE 12 IN. DIAM.","T8","STANDARD ITEM","SANITARY SEWER",6,1182,"E"]
["3727","L.F.","CL. V REINF. CONC. SEWER PIPE 18 IN. DIAM.","T8","STANDARD ITEM","SANITARY SEWER",6,1184,"E"]
["3729","L.F.","CL. V REINF. CONC. SEWER PIPE 24 IN. DIAM.","T8","STANDARD ITEM","SANITARY SEWER",6,1186,"E"]
["3731","L.F.","CL. V REINF. CONC. SEWER PIPE 30 IN. DIAM.","T8","STANDARD ITEM","SANITARY SEWER",6,1188,"E"]
["3735","L.F.","CL. V REINF. CONC. SEWER PIPE 48 IN. DIAM.","T8","STANDARD ITEM","SANITARY SEWER",6,1190,"E"]
["3765","L.F.","PVC SANITARY SEWER PIPE 4 IN. DIAM.","T8","STANDARD ITEM","SANITARY SEWER",6,1192,"E"]
["3766","L.F.","PVC SANITARY SEWER PIPE 6 IN. DIAM.","T8","STANDARD ITEM","SANITARY SEWER",6,1194,"E"]
["3767","L.F.","PVC SANITARY SEWER PIPE 8 IN. DIAM.","T8","STANDARD ITEM","SANITARY SEWER",6,1196,"E"]
["3768","L.F.","PVC SANITARY SEWER PIPE 10 IN. DIAM.","T8","STANDARD ITEM","SANITARY SEWER",6,1198,"E"]
["3769","L.F.","PVC SANITARY SEWER PIPE 12 IN. DIAM.","T8","STANDARD ITEM","SANITARY SEWER",6,1200,"E"]
["3770","L.F.","DUCTILE IRON SEWER PIPE 4 IN. DIAM.","T8","STANDARD ITEM","SANITARY SEWER",6,1202,"E"]
["3771","L.F.","DUCTILE IRON SEWER PIPE 6 IN. DIAM.","T8","STANDARD ITEM","SANITARY SEWER",6,1204,"E"]
["3772","L.F.","DUCTILE IRON SEWER PIPE 8 IN. DIAM.","T8","STANDARD ITEM","SANITARY SEWER",6,1206,"E"]
["3773","L.F.","DUCTILE IRON SEWER PIPE 10 IN. DIAM.","T8","STANDARD ITEM","SANITARY SEWER",6,1208,"E"]
["3774","L.F.","DUCTILE IRON SEWER PIPE 12 IN. DIAM.","T8","STANDARD ITEM","SANITARY SEWER",6,1210,"E"]
["3776","L.F.","DUCTILE IRON SEWER PIPE 24 IN. DIAM.","T8","STANDARD ITEM","SANITARY SEWER",6,1212,"E"]
["3781","L.F.","ABS COMPOSITE SEWER PIPE","T8","STANDARD ITEM","SANITARY SEWER",6,1214,"E"]
["3785","t","CRUSHED SCREENING 16.0 TO 6.30 MM IN STOCKPILE","F6","STANDARD ITEM","STOCKPILING",3,153,"M"]
["3786","m3","CRUSHED SCREENING 16.0 TO 6.30 MM IN STOCKPILE","F6","STANDARD ITEM","STOCKPILING",3,155,"M"]
["3787","t","CRUSHED SCREENING 12.5 TO 6.30 MM IN STOCKPILE","F6","STANDARD ITEM","STOCKPILING",3,157,"M"]
["3788","m3","CRUSHED SCREENING 12.5 TO 6.30 MM IN STOCKPILE","F6","STANDARD ITEM","STOCKPILING",3,159,"M"]
["3789","t","CRUSHED SCREENING 9.50 TO 2.00 MM IN STOCKPILE","F6","STANDARD ITEM","STOCKPILING",3,161,"M"]
["3790","m3","CRUSHED SCREENING 9.50 TO 2.00 MM IN STOCKPILE","F6","STANDARD ITEM","STOCKPILING",3,163,"M"]
["3791","t","CRUSHED SCREENING 6.30 TO 0 MM IN STOCKPILE","F6","STANDARD ITEM","STOCKPILING",3,165,"M"]
["3792","m3","CRUSHED SCREENING 6.30 TO 0 MM IN STOCKPILE","F6","STANDARD ITEM","STOCKPILING",3,167,"M"]
["3794","L.F.","POLYPROPYLENE SEWER PIPE 12 IN. DIAM.","T8","STANDARD ITEM","DRAINAGE",4,971,"E"]
["3796","L.F.","POLYPROPYLENE SEWER PIPE 18 IN. DIAM.","T8","STANDARD ITEM","DRAINAGE",4,972,"E"]
["3798","L.F.","POLYPROPYLENE SEWER PIPE 24 IN. DIAM.","T8","STANDARD ITEM","DRAINAGE",4,973,"E"]
["3800","C.Y.","ROCK EXCAVATION","X2","STANDARD ITEM","WATER LINES",7,1215,"E"]
["3806","C.Y.","EXTRA TRENCH EXCAVATION","X2","STANDARD ITEM","WATER LINES",7,1217,"E"]
["3810","C.Y.","REMOVAL AND REPLACEMENT OF UNSUITABLE MATERIAL","X2","STANDARD ITEM","WATER LINES",7,1219,"E"]
["3815","C.Y.","BANK RUN GRAVEL FOR TRENCH BACKFILL","X2","STANDARD ITEM","WATER LINES",7,1221,"E"]
["3820","EACH","BUTTERFLY VALVE 12 IN.","X2","STANDARD ITEM","WATER LINES",7,1236,"C"]
["3821","EACH","BUTTERFLY VALVE 14 IN.","X2","STANDARD ITEM","WATER LINES",7,1238,"C"]
["3822","EACH","BUTTERFLY VALVE 16 IN.","X2","STANDARD ITEM","WATER LINES",7,1240,"C"]
["3823","EACH","BUTTERFLY VALVE 18 IN.","X2","STANDARD ITEM","WATER LINES",7,1242,"C"]
["3825","EACH","BUTTERFLY VALVE 24 IN.","X2","STANDARD ITEM","WATER LINES",7,1246,"C"]
["3827","EACH","BUTTERFLY VALVE 36 IN.","X2","STANDARD ITEM","WATER LINES",7,1247,"C"]
["3835","EACH","COMB. AIR RELEASE/AIR VACUUM VALVE ASSEMBLY 1 IN.","X2","STANDARD ITEM","WATER LINES",7,1248,"C"]
["3837","EACH","COMB. AIR RELEASE/AIR VACUUM VALVE ASSEMBLY 2 IN.","X2","STANDARD ITEM","WATER LINES",7,1249,"C"]
["3838","EACH","BLOWOFF ASSEMBLY","X2","STANDARD ITEM","WATER LINES",7,1250,"C"]
["3842","EACH","TAPPING SLEEVE AND VALVE ASSEMBLY 6 IN.","X2","STANDARD ITEM","WATER LINES",7,1253,"C"]
["3843","EACH","TAPPING SLEEVE AND VALVE ASSEMBLY 8 IN.","X2","STANDARD ITEM","WATER LINES",7,1254,"C"]
["3846","EACH","HYDRANT ASSEMBLY","X2","STANDARD ITEM","WATER LINES",7,1255,"C"]
["3848","EACH","RESETTING EXISTING HYDRANTS","X2","STANDARD ITEM","WATER LINES",7,1256,"C"]
["3850","EACH","MOVING EXISTING HYDRANTS","X2","STANDARD ITEM","WATER LINES",7,1257,"C"]
["3852","EACH","RECONNECTING EXISTING HYDRANTS","X2","STANDARD ITEM","WATER LINES",7,1258,"C"]
["3854","L.F.","HYDRANT EXTENSIONS","X2","STANDARD ITEM","WATER LINES",7,1259,"E"]
["3857","EACH","SERVICE CONNECTION 3/4 IN. DIAM.","X2","STANDARD ITEM","WATER LINES",7,1265,"C"]
["3858","EACH","SERVICE CONNECTION 1 IN. DIAM.","X2","STANDARD ITEM","WATER LINES",7,1266,"C"]
["3859","EACH","SERVICE CONNECTION 1-1/4 IN. DIAM.","X2","STANDARD ITEM","WATER LINES",7,1267,"C"]
["3861","EACH","SERVICE CONNECTION 2 IN. DIAM.","X2","STANDARD ITEM","WATER LINES",7,1268,"C"]
["3865","L.F.","DUCTILE IRON PIPE FOR WATER MAIN 4 IN. DIAM.","X2","STANDARD ITEM","WATER LINES",7,1277,"E"]
["3866","L.F.","DUCTILE IRON PIPE FOR WATER MAIN 6 IN. DIAM.","X2","STANDARD ITEM","WATER LINES",7,1279,"E"]
["3867","L.F.","DUCTILE IRON PIPE FOR WATER MAIN 8 IN. DIAM.","X2","STANDARD ITEM","WATER LINES",7,1281,"E"]
["3868","L.F.","DUCTILE IRON PIPE FOR WATER MAIN 10 IN. DIAM.","X2","STANDARD ITEM","WATER LINES",7,1283,"E"]
["3869","L.F.","DUCTILE IRON PIPE FOR WATER MAIN 12 IN. DIAM.","X2","STANDARD ITEM","WATER LINES",7,1284,"E"]
["3870","L.F.","DUCTILE IRON PIPE FOR WATER MAIN 14 IN. DIAM.","X2","STANDARD ITEM","WATER LINES",7,1285,"E"]
["3871","L.F.","DUCTILE IRON PIPE FOR WATER MAIN 16 IN. DIAM.","X2","STANDARD ITEM","WATER LINES",7,1286,"E"]
["3872","L.F.","DUCTILE IRON PIPE FOR WATER MAIN 18 IN. DIAM.","X2","STANDARD ITEM","WATER LINES",7,1287,"E"]
["3874","L.F.","DUCTILE IRON PIPE FOR WATER MAIN 24 IN. DIAM.","X2","STANDARD ITEM","WATER LINES",7,1288,"E"]
["3875","L.F.","DUCTILE IRON PIPE FOR WATER MAIN 30 IN. DIAM.","X2","STANDARD ITEM","WATER LINES",7,1289,"E"]
["3876","L.F.","DUCTILE IRON PIPE FOR WATER MAIN 36 IN. DIAM.","X2","STANDARD ITEM","WATER LINES",7,1290,"E"]
["3901","L.F.","CONC. CYLINDER PIPE FOR WATER MAIN 36 IN. DIAM.","X2","STANDARD ITEM","WATER LINES",7,1292,"E"]
["3910","L.F.","ST. PIPE FOR WATER MAIN 4 IN. DIAM.","X2","STANDARD ITEM","WATER LINES",7,1295,"E"]
["3911","L.F.","ST. PIPE FOR WATER MAIN 6 IN. DIAM.","X2","STANDARD ITEM","WATER LINES",7,1296,"E"]
["3932","L.F.","PVC PIPE FOR WATER MAIN 3 IN. DIAM.","X2","STANDARD ITEM","WATER LINES",7,1300,"E"]
["3933","L.F.","PVC PIPE FOR WATER MAIN 4 IN. DIAM.","X2","STANDARD ITEM","WATER LINES",7,1301,"E"]
["3934","L.F.","PVC PIPE FOR WATER MAIN 6 IN. DIAM","X2","STANDARD ITEM","WATER LINES",7,1302,"E"]
["3935","L.F.","PVC PIPE FOR WATER MAIN 8 IN. DIAM","X2","STANDARD ITEM","WATER LINES",7,1303,"E"]
["3937","L.F.","PVC PIPE FOR WATER MAIN 12 IN. DIAM.","X2","STANDARD ITEM","WATER LINES",7,1304,"E"]
["3940","t","AGG. FOR ACP CL. B 16.0 TO 6.30 MM IN STOCKPILE","F6","STANDARD ITEM","STOCKPILING",3,169,"M"]
["3945","t","AGG. FOR ACP CL. B 6.30 TO 0 MM IN STOCKPILE","F6","STANDARD ITEM","STOCKPILING",3,171,"M"]
["3950","t","AGG. FOR ACP CL. F 19.0 TO 6.30 MM IN STOCKPILE","F6","STANDARD ITEM","STOCKPILING",3,173,"M"]
["3955","t","STANDARD SPECIFICATIONS, DIVISION 3-02","F6","STANDARD ITEM","STOCKPILING",3,175,"M"]
["3960","m3","MAINTENANCE ROCK 12.5 MM MINUS IN STOCKPILE","F6","STANDARD ITEM","STOCKPILING",3,177,"M"]
["3965","t","MAINTENANCE ROCK 12.5 MM MINUS IN STOCKPILE","F6","STANDARD ITEM","STOCKPILING",3,179,"M"]
["3975","m3","MAINTENANCE SAND 9.50 MM MINUS IN STOCKPILE","F6","REQUIRES SPECIAL PROV.","STOCKPILING",3,181,"M"]
["3980","t","MAINTENANCE SAND 9.50 MM MINUS IN STOCKPILE","F6","REQUIRES SPECIAL PROV.","STOCKPILING",3,183,"M"]
["3985","m3","MAINTENANCE SAND 6.30 MM MINUS IN STOCKPILE","F6","REQUIRES SPECIAL PROV.","STOCKPILING",3,185,"M"]
["3990","t","MAINTENANCE SAND 6.30 MM MINUS IN STOCKPILE","F6","REQUIRES SPECIAL PROV.","STOCKPILING",3,187,"M"]
["4001","L.S.","TEMPORARY BRIDGE","B0","BSP ITEM","STRUCTURE",8,1305,"C"]
["4005","C.Y.","STRUCTURE EXCAVATION CLASS A","I2","STANDARD ITEM","STRUCTURE",8,1306,"E"]
["4006","C.Y.","STRUCTURE EXCAVATION CLASS A INCL. HAUL","I2","STANDARD ITEM","STRUCTURE",8,1308,"E"]
["4007","C.Y.","SOIL EXCAVATION FOR SHAFT INCLUDING HAUL","T0","STANDARD ITEM","STRUCTURE",8,1310,"E"]
["4008","C.Y.","ROCK EXCAVATION FOR SHAFT INCLUDING HAUL","T0","STANDARD ITEM","STRUCTURE",8,1312,"E"]
["4010","C.Y.","SPECIAL EXCAVATION","I2","REQUIRES SPECIAL PROV.","STRUCTURE",8,1314,"E"]
["4011","L.F.","FURNISHING & PLACING TEMP. CASING FOR 4'-0\" DIA. SHAFT","T0","STANDARD ITEM","STRUCTURE",8,1319,"E"]
["4013","L.S.","SHORING OR EXTRA EXCAVATION CL. A","I2","STANDARD ITEM","STRUCTURE",8,1316,"C"]
["4017","L.F.","FURNISHING & PLACING TEMP. CASING FOR 5'-0\" DIA. SHAFT","T0","STANDARD ITEM","STRUCTURE",8,1321,"E"]
["4018","L.F.","FURNISHING & PLACING TEMP. CASING FOR 6'-0\" DIA. SHAFT","T0","STANDARD ITEM","STRUCTURE",8,1323,"E"]
["4019","L.F.","FURNISHING & PLACING TEMP. CASING FOR 7'-0\" DIA. SHAFT","T0","STANDARD ITEM","STRUCTURE",8,1325,"E"]
["4020","L.F.","FURNISHING & PLACING TEMP. CASING FOR 8'-0\" DIA. SHAFT","T0","STANDARD ITEM","STRUCTURE",8,1327,"E"]
["4021","L.F.","FURNISHING & PLACING TEMP. CASING FOR 10'-0\" DIA. SHAFT","T0","STANDARD ITEM","STRUCTURE",8,1329,"E"]
["4022","L.F.","FURNISHING PERMANENT CASING FOR 4'-0\" DIAM. SHAFT","T0","STANDARD ITEM","STRUCTURE",8,1331,"E"]
["4023","L.F.","FURNISHING PERMANENT CASING FOR 5'-0\" DIAM. SHAFT","T0","STANDARD ITEM","STRUCTURE",8,1333,"E"]
["4024","L.F.","FURNISHING PERMANENT CASING FOR 6'-0\" DIAM. SHAFT","T0","STANDARD ITEM","STRUCTURE",8,1335,"E"]
["4025","C.Y.","GRAVEL BACKFILL FOR WALL","I2","STANDARD ITEM","STRUCTURE",8,1318,"E"]
["4026","L.F.","FURNISHING PERMANENT CASING FOR 7'-0\" DIAM. SHAFT","T0","STANDARD ITEM","STRUCTURE",8,1337,"E"]
["4027","L.F.","FURNISHING PERMANENT CASING FOR 8'-0\" DIAM. SHAFT","T0","STANDARD ITEM","STRUCTURE",8,1339,"E"]
["4028","L.F.","FURNISHING PERMANENT CASING FOR 10'-0\" DIAM. SHAFT","T0","STANDARD ITEM","STRUCTURE",8,1341,"E"]
["4029","EACH","PLACING PERMANENT CASING FOR 4'-0\" DIAM. SHAFT","T0","STANDARD ITEM","STRUCTURE",8,1343,"C"]
["4031","EACH","PLACING PERMANENT CASING FOR 5'-0\" DIAM. SHAFT","T0","STANDARD ITEM","STRUCTURE",8,1345,"C"]
["4032","EACH","PLACING PERMANENT CASING FOR 6'-0\" DIAM. SHAFT","T0","STANDARD ITEM","STRUCTURE",8,1347,"C"]
["4033","EACH","PLACING PERMANENT CASING FOR 7'-0\" DIAM. SHAFT","T0","STANDARD ITEM","STRUCTURE",8,1349,"C"]
["4034","EACH","PLACING PERMANENT CASING FOR 8'-0\" DIAM. SHAFT","T0","STANDARD ITEM","STRUCTURE",8,1351,"C"]
["4037","EACH","PLACING PERMANENT CASING FOR 10'-0\" DIAM. SHAFT","T0","STANDARD ITEM","STRUCTURE",8,1353,"C"]
["4039","L.F.","CASING SHORING","T0","STANDARD ITEM","STRUCTURE",8,1355,"E"]
["4046","MGAL","FRESH WATER FOR SHAFT SLURRY","A1","GSP ITEM","STRUCTURE",8,1357,"E"]
["4047","L.F.","SHAFT - 24 IN. DIAMETER","T0","STANDARD ITEM","STRUCTURE",8,1358,"E"]
["4048","L.F.","SHAFT - 30 IN. DIAMETER","T0","STANDARD ITEM","STRUCTURE",8,1360,"E"]
["4049","L.F.","SHAFT - 36 IN. DIAMETER","T0","STANDARD ITEM","STRUCTURE",8,1362,"E"]
["4050","L.F.","SHAFT - 42 IN. DIAMETER","T0","STANDARD ITEM","STRUCTURE",8,1364,"E"]
["4053","L.F.","FURNISHING SOLDIER PILE","T0","STANDARD ITEM","STRUCTURE",8,1366,"E"]
["4054","L.F.","PREBORING FOR 12 IN. DIAM. CONC. PILE","Q4","GSP ITEM","STRUCTURE",8,1368,"E"]
["4056","L.F.","PREBORING FOR 14 IN. DIAM. CONC. PILE","Q4","GSP ITEM","STRUCTURE",8,1370,"E"]
["4057","L.F.","PREBORING FOR 16 IN. DIAM. CONC. PILE","Q4","GSP ITEM","STRUCTURE",8,1372,"E"]
["4058","L.F.","PREBORING FOR 18 IN. DIAM. CONC. PILE","Q4","GSP ITEM","STRUCTURE",8,1374,"E"]
["4059","L.F.","PREBORING FOR 20 IN. DIAM. CONC. PILE","Q4","GSP ITEM","STRUCTURE",8,1376,"E"]
["4060","EACH","FURNISHING AND DRIVING CONCRETE TEST PILE","Q4","STANDARD ITEM","STRUCTURE",8,1386,"C"]
["4061","L.F.","PREBORING FOR 24 IN. DIAM. CONC. PILE","Q4","GSP ITEM","STRUCTURE",8,1378,"E"]
["4062","L.F.","PREBORING FOR 30 IN. DIAM. CONC. PILE","Q4","GSP ITEM","STRUCTURE",8,1380,"E"]
["4063","L.F.","PREBORING FOR ST. PILE","Q4","GSP ITEM","STRUCTURE",8,1382,"E"]
["4064","L.F.","PREBORING FOR TIMBER PILE","Q4","GSP ITEM","STRUCTURE",8,1384,"E"]
["4070","L.F.","FURNISHING CONC. PILING","Q4","STANDARD ITEM","STRUCTURE",8,1388,"E"]
["4080","EACH","DRIVING CONC. PILE","Q4","STANDARD ITEM","STRUCTURE",8,1389,"C"]
["4085","EACH","FURNISHING AND DRIVING STEEL TEST PILE","Q4","STANDARD ITEM","STRUCTURE",8,1390,"C"]
["4090","L.F.","FURNISHING ST. PILING","Q4","STANDARD ITEM","STRUCTURE",8,1391,"E"]
["4095","EACH","DRIVING ST. PILE","Q4","STANDARD ITEM","STRUCTURE",8,1393,"C"]
["4100","EACH","FURNISHING AND DRIVING TIMBER TEST PILE","Q4","STANDARD ITEM","STRUCTURE",8,1396,"C"]
["4105","L.F.","FURNISHING TIMBER PILING - UNTREATED","Q4","STANDARD ITEM","STRUCTURE",8,1397,"E"]
["4107","L.F.","FURNISHING TIMBER PILING","Q4","STANDARD ITEM","STRUCTURE",8,1400,"E"]
["4108","EACH","DRIVING TIMBER PILE - UNTREATED","Q4","STANDARD ITEM","STRUCTURE",8,1401,"C"]
["4111","EACH","DRIVING TIMBER PILE ","Q4","STANDARD ITEM","STRUCTURE",8,1402,"C"]
["4114","L.F.","TRAFFIC PEDESTRIAN BARRIER","D0","STANDARD ITEM","STRUCTURE",8,1585,"E"]
["4115","EACH","DRIVING TIMBER COMPOSITE PILE","Q4","REQUIRES SPECIAL PROV.","STRUCTURE",8,1404,"C"]
["4116","EACH","PILE SPLICE - TIMBER","Q4","REQUIRES SPECIAL PROV.","STRUCTURE",8,1403,"C"]
["4117","L.F.","PEDESTRIAN BARRIER","D0","STANDARD ITEM","STRUCTURE",8,1586,"E"]
["4119","L.F.","SEW TRAFFIC BARRIER","D0","STANDARD ITEM","STRUCTURE",8,1589,"E"]
["4120","L.F.","SEW PEDESTRIAN BARRIER","D0","STANDARD ITEM","STRUCTURE",8,1591,"E"]
["4121","L.F.","GEOSYNTHETIC WALL SINGLE SLOPE TRAFFIC BARRIER","D0","STANDARD ITEM","STRUCTURE",8,1593,"E"]
["4122","L.F.","GEOSYNTHETIC WALL F - SHAPE TRAFFIC BARRIER","D0","STANDARD ITEM","STRUCTURE",8,1594,"E"]
["4123","L.F.","GEOSYNTHETIC RETAINING WALL PEDESTRIAN BARRIER","D0","STANDARD ITEM","STRUCTURE",8,1597,"E"]
["4130","EACH","PLACING PRESTRESSED HOLLOW CONC. PILE","Q4","STANDARD ITEM","STRUCTURE",8,1406,"C"]
["4139","C.Y.","CONC. CLASS 4000 FOR RETAINING WALL","B0","STANDARD ITEM","STRUCTURE",8,1460,"E"]
["4140","EACH","DRIVING PRESTRESSED HOLLOW CONC. PILE","Q4","STANDARD ITEM","STRUCTURE",8,1407,"C"]
[4157,"EACH","MICROPILE","V7","BSP ITEM","STRUCTURE",8,1407]
[4193,"EACH","MICROPILE VERIFICATION LOAD TESTING","V8","BSP ITEM","STRUCTURE",8,1408]
[4194,"EACH","MICROPILE PROOF LOAD TESTING","V9","BSP ITEM","STRUCTURE",8,1409]
["4141","LB.","EPOXY-COATED ST. REINF. BAR FOR RETAINING WALL","U0","STANDARD ITEM","STRUCTURE",8,1416,"E"]
["4142","LB.","EPOXY-COATED ST. REINF. BAR - SUPERSTR.","U0","STANDARD ITEM","STRUCTURE",8,1412,"E"]
["4143","LB.","EPOXY-COATED ST. REINF. BAR - SUPERSTR. INCL. TRAF. BAR.","U0","STANDARD ITEM","STRUCTURE",8,1414,"E"]
["4144","LB.","EPOXY-COATED ST. REINF. BAR","U0","AMENDMENT ITEM","STRUCTURE",8,1418,"E"]
["4145","LB.","ST. REINF. BAR - SUPERSTR.","U0","STANDARD ITEM","STRUCTURE",8,1422,"E"]
["4146","LB.","ST. REINF. BAR - SUPERSTR. INCL. TRAF. BAR.","U0","STANDARD ITEM","STRUCTURE",8,1424,"E"]
["4147","LB.","EPOXY-COATED ST. REINF. BAR","U0","STANDARD ITEM","STRUCTURE",8,1408,"E"]
["4148","LB.","EPOXY-COATED ST. REINF. BAR FOR BRIDGE","U0","STANDARD ITEM","STRUCTURE",8,1410,"E"]
["4149","LB.","ST. REINF. BAR FOR BRIDGE","U0","STANDARD ITEM","STRUCTURE",8,1420,"E"]
["4150","LB.","ST. REINF. BAR FOR RETAINING WALL","U0","STANDARD ITEM","STRUCTURE",8,1426,"E"]
["4151","LB.","ST. REINF. BAR","U0","AMENDMENT ITEM","STRUCTURE",8,1428,"E"]
["4152","LB.","ST. REINF. BAR FOR SHAFT","U0","STANDARD ITEM","STRUCTURE",8,1430,"E"]
["4153","C.Y.","CONC. CLASS 4000 - SUPERSTR.","B0","STANDARD ITEM","STRUCTURE",8,1454,"E"]
["4155","C.Y.","CONC. CLASS 4000 TRAFFIC BARRIER - SUPERSTR.","B0","STANDARD ITEM","STRUCTURE",8,1457,"E"]
["4156","C.Y.","CONC. CLASS 4000 - SUPERSTR. INCL. TRAF. BAR.","B0","STANDARD ITEM","STRUCTURE",8,1459,"E"]
["4158","C.Y.","CONC. CLASS 5000 - SUPERSTR.","B0","STANDARD ITEM","STRUCTURE",8,1470,"E"]
["4160","EACH","CSL TEST","T0","GSP ITEM","STRUCTURE",8,1432,"C"]
["4161","C.Y.","CONC. CLASS 4000 - BOX GIRDER - SUPERSTR.","B0","STANDARD ITEM","STRUCTURE",8,1474,"E"]
["4162","C.Y.","CONC. CLASS 5000 - BOX GIRDER - SUPERSTR.","B0","STANDARD ITEM","STRUCTURE",8,1475,"E"]
["4164","L.F.","CSL ACCESS TUBE","U0","STANDARD ITEM","STRUCTURE",8,1433,"E"]
["4166","C.Y.","LEAN CONCRETE","E0","STANDARD ITEM","STRUCTURE",8,1435,"E"]
["4168","C.Y.","CONC. CLASS 4000P FOR SHAFT","B0","STANDARD ITEM","STRUCTURE",8,1463,"E"]
["4195","S.Y.","EXPOSED AGG. FINISH","B0","REQUIRES SPECIAL PROV.","STRUCTURE",8,1490,"E"]
["4196","S.Y.","PERMEON TREATMENT","B0","BSP ITEM","STRUCTURE",8,1492,"E"]
["4200","C.Y.","CONC. CLASS 3000 FOR","E0","STANDARD ITEM","STRUCTURE",8,1446,"E"]
["4202","C.Y.","CONC. CLASS 4000 FOR","E0","STANDARD ITEM","STRUCTURE",8,1451,"E"]
["4204","C.Y.","CONC. CLASS 4000W FOR","E0","STANDARD ITEM","STRUCTURE",8,1461,"E"]
["4205","C.Y.","CONC. CLASS 5000 FOR","E0","STANDARD ITEM","STRUCTURE",8,1468,"E"]
["4207","C.Y.","CONC. CLASS 6000 FOR","E0","STANDARD ITEM","STRUCTURE",8,1471,"E"]
["4219","CALC","DEFICIENT STRENGTH CONC. PRICE ADJUSTMENT","B0","STANDARD ITEM","STRUCTURE",8,1483,"C"]
["4230","L.S.","STRUCTURAL CARBON STEEL","H8","STANDARD ITEM","STRUCTURE",8,1494,"C"]
["4232","C.F.","MODIFIED CONC. OVERLAY","B0","STANDARD ITEM","STRUCTURE",8,1486,"E"]
["4233","S.Y.","FINISHING AND CURING MODIFIED CONC. OVERLAY","B0","STANDARD ITEM","STRUCTURE",8,1488,"E"]
["4234","L.S.","RAPID SET LATEX MODIFIED CONCRETE TRIAL OVERLAY","B0","BSP ITEM","STRUCTURE",8,1484,"C"]
["4235","L.S.","STRUCTURAL LOW ALLOY STEEL","H8","STANDARD ITEM","STRUCTURE",8,1497,"C"]
["4236","L.S.","POLYESTER CONCRETE TRIAL OVERLAY","B0","BSP ITEM","STRUCTURE",8,1485,"C"]
["4240","L.S.","STRUCTURAL HIGH STRENGTH STEEL","H8","STANDARD ITEM","STRUCTURE",8,1498,"C"]
["4245","L.S.","CAST STEEL","H8","STANDARD ITEM","STRUCTURE",8,1501,"C"]
["4246","LB.","CAST STEEL","H8","STANDARD ITEM","STRUCTURE",8,1504,"E"]
["4250","L.S.","FORGED STEEL","H8","STANDARD ITEM","STRUCTURE",8,1506,"C"]
["4251","LB.","FORGED STEEL","H8","STANDARD ITEM","STRUCTURE",8,1508,"E"]
["4255","L.S.","CAST IRON","M2","STANDARD ITEM","STRUCTURE",8,1511,"C"]
["4256","LB.","CAST IRON","M2","STANDARD ITEM","STRUCTURE",8,1512,"E"]
["4260","L.S.","MALLEABLE IRON","M2","STANDARD ITEM","STRUCTURE",8,1516,"C"]
["4261","LB.","MALLEABLE IRON","M2","STANDARD ITEM","STRUCTURE",8,1517,"E"]
["4264","L.S.","DUCTILE IRON","M2","STANDARD ITEM","STRUCTURE",8,1521,"C"]
["4267","LB.","DUCTILE IRON","M2","STANDARD ITEM","STRUCTURE",8,1522,"E"]
["4269","L.F.","PRESTRESSED CONC. GIRDER","R8","BSP ITEM","STRUCTURE",8,1477,"E"]
["4270","L.S.","CAST BRONZE","M2","STANDARD ITEM","STRUCTURE",8,1526,"C"]
["4271","LB.","CAST BRONZE","M2","STANDARD ITEM","STRUCTURE",8,1527,"E"]
["4278","LB.","PRESTRESSING BAR - SUPERSTR.","B0","REQUIRES SPECIAL PROV.","STRUCTURE",8,1479,"E"]
["4279","LB.","PRESTRESSING STRAND - SUPERSTR.","B0","REQUIRES SPECIAL PROV.","STRUCTURE",8,1481,"E"]
["4280","MBM","TIMBER AND LUMBER - UNTREATED","V0","STANDARD ITEM","STRUCTURE",8,1540,"E"]
["4282","mBm","TIMBER AND LUMBER - CREOSOTE TREATED","V0","STANDARD ITEM","STRUCTURE",8,1542,"E"]
["4284","MBM","TIMBER AND LUMBER - SALTS TREATED","V0","STANDARD ITEM","STRUCTURE",8,1544,"E"]
["4286","LB.","STRUCTURAL CARBON STEEL - SUPERSTR.","H8","STANDARD ITEM","STRUCTURE",8,1495,"E"]
["4288","LB.","STRUCTURAL HIGH STRENGTH STEEL - SUPERSTR.","H8","STANDARD ITEM","STRUCTURE",8,1499,"E"]
["4290","L.S.","STRUCTURAL METAL","H8","STANDARD ITEM","STRUCTURE",8,1548,"C"]
["4292","LB.","CAST STEEL - SUPERSTR.","H8","STANDARD ITEM","STRUCTURE",8,1505,"E"]
["4293","LB.","FORGED STEEL - SUPERSTR.","H8","STANDARD ITEM","STRUCTURE",8,1507,"E"]
["4294","LB.","CAST IRON - SUPERSTR.","M2","STANDARD ITEM","STRUCTURE",8,1513,"E"]
["4295","LB.","MALLEABLE IRON - SUPERSTR.","M2","STANDARD ITEM","STRUCTURE",8,1518,"E"]
["4296","LB.","DUCTILE IRON - SUPERSTR.","M2","STANDARD ITEM","STRUCTURE",8,1523,"E"]
["4297","LB.","CAST BRONZE - SUPERSTR.","M2","STANDARD ITEM","STRUCTURE",8,1528,"E"]
["4299","S.F.","LAGGING","V0","STANDARD ITEM","STRUCTURE",8,1539,"E"]
["4300","L.S.","SUPERSTRUCTURE","B0","STANDARD ITEM","STRUCTURE",8,1562,"C"]
["4302","mBm","TIMBER AND LUMBER - UNTREATED - SUPERSTR.","V0","STANDARD ITEM","STRUCTURE",8,1541,"E"]
["4303","mBm","TIMBER AND LUMBER - CREOSOTE TREATED - SUPERSTR.","V0","STANDARD ITEM","STRUCTURE",8,1543,"E"]
["4304","mBm","TIMBER AND LUMBER - SALTS TREATED - SUPERSTR.","V0","STANDARD ITEM","STRUCTURE",8,1545,"E"]
["4305","mBm","GLULAM DECK PANELS - SUPERSTR.","V0","REQUIRES SPECIAL PROV.","STRUCTURE",8,1546,"E"]
["4306","EACH","ELASTOMERIC BEARING PAD - SUPERSTR.","H8","REQUIRES SPECIAL PROV.","STRUCTURE",8,1549,"C"]
["4307","EACH","FABRIC PAD BEARING - SUPERSTR.","H8","GSP ITEM","STRUCTURE",8,1550,"C"]
["4308","EACH","PIN BEARING - SUPERSTR.","H8","BSP ITEM","STRUCTURE",8,1551,"C"]
["4309","EACH","HIGH-LOAD ELASTOMERIC BEARING PAD","H8","BSP ITEM","STRUCTURE",8,1552,"C"]
["4312","EACH","DISC BEARING - SUPERSTR.","H8","BSP ITEM","STRUCTURE",8,1554,"C"]
["4313","EACH","SPHERICAL BEARING - SUPERSTR.","H8","BSP ITEM","STRUCTURE",8,1555,"C"]
["4314","EACH","CYLINDRICAL BEARING - SUPERSTR.","H8","BSP ITEM","STRUCTURE",8,1556,"C"]
["4315","EACH","POT BEARING - SUPERSTR.","H8","REQUIRES SPECIAL PROV.","STRUCTURE",8,1557,"C"]
["4316","EACH","ROCKER BEARING - SUPERSTR.","H8","REQUIRES SPECIAL PROV.","STRUCTURE",8,1558,"C"]
["4319","EACH","TRANSVERSE STOP BEARING","H8","BSP ITEM","STRUCTURE",8,1553,"C"]
["4322","C.Y.","CONC. CLASS 4000 FOR BRIDGE","B0","STANDARD ITEM","STRUCTURE",8,1453,"E"]
["4324","C.Y.","CONC. CLASS 4000W FOR BRIDGE","B0","STANDARD ITEM","STRUCTURE",8,1462,"E"]
["4325","C.Y.","CONC. CLASS 5000 FOR BRIDGE","B0","STANDARD ITEM","STRUCTURE",8,1469,"E"]
["4327","C.Y.","CONC. CLASS 6000 FOR BRIDGE","B0","STANDARD ITEM","STRUCTURE",8,1472,"E"]
["4329","L.S.","BRIDGE DECK","B0","GSP ITEM","STRUCTURE",8,1563,"C"]
["4330","L.S.","SEISMIC RETROFIT","B0","BSP ITEM","STRUCTURE",8,1559,"C"]
["4331","L.S.","COLUMN JACKETING","B0","BSP ITEM","STRUCTURE",8,1560,"C"]
["4333","EACH","LONGITUDINAL SEISMIC RESTRAINER","B0","BSP ITEM","STRUCTURE",8,1561,"C"]
["4337","EACH","PLUGGING EXISTING BRIDGE DRAIN - SUPERSTR.","B0","REQUIRES SPECIAL PROV.","STRUCTURE",8,1602,"C"]
["4338","L.F.","EXPANSION JOINT SYSTEM COMPRESSION SEAL - SUPERSTR.","B0","GSP ITEM","STRUCTURE",8,1603,"E"]
["4339","L.F.","EXPANSION JOINT SYSTEM STRIP SEAL - SUPERSTR.","B0","GSP ITEM","STRUCTURE",8,1606,"E"]
["4341","L.S.","MODULAR EXPANSION JOINT SYSTEM - SUPERSTR.","B0","GSP ITEM","STRUCTURE",8,1607,"C"]
["4345","L.S.","PRECAST REINF. CONC. THREE SIDED STRUCTURE NO.","B0","GSP ITEM","STRUCTURE",8,1564,"C"]
["4355","L.F.","STEEL HANDRAIL - SUPERSTR.","M2","REQUIRES SPECIAL PROV.","STRUCTURE",8,1568,"E"]
["4357","L.F.","BRIDGE RAIL LOW FENCE TYPE - SUPERSTR.","I6","REQUIRES SPECIAL PROV.","STRUCTURE",8,1577,"E"]
["4360","L.F.","BRIDGE RAILING TYPE BP - SUPERSTR.","B0","STANDARD ITEM","STRUCTURE",8,1571,"E"]
["4361","L.F.","BRIDGE RAILING TYPE BP-B - SUPERSTR.","B0","STANDARD ITEM","STRUCTURE",8,1573,"E"]
["4365","L.F.","TRAFFIC BARRIER - SUPERSTR.","D0","REQUIRES SPECIAL PROV.","STRUCTURE",8,1581,"E"]
["4370","C.Y.","CONC. CLASS 6000 - SUPERSTR.","B0","STANDARD ITEM","STRUCTURE",8,1473,"E"]
["4375","C.Y.","CONC. CLASS 6000 - BOX GIRDER - SUPERSTR.","B0","STANDARD ITEM","STRUCTURE",8,1476,"E"]
["4380","C.Y.","CONC. CLASS 4000D FOR BRIDGE","B0","STANDARD ITEM","STRUCTURE",8,1465,"E"]
["4400","L.F.","ST. HAND RAIL","M2","REQUIRES SPECIAL PROV.","STRUCTURE",8,1565,"E"]
["4410","L.F.","BRIDGE RAILING TYPE","B0","STANDARD ITEM","STRUCTURE",8,1570,"E"]
["4412","L.F.","BRIDGE RAILING TYPE CHAIN LINK FENCE","I6","STANDARD ITEM","STRUCTURE",8,1575,"E"]
["4415","L.F.","TRAFFIC BARRIER","D0","STANDARD ITEM","STRUCTURE",8,1579,"E"]
["4416","L.F.","BARRIER","D0","REQUIRES SPECIAL PROV.","STRUCTURE",8,1584,"E"]
["4420","EACH","BRIDGE GRATE INLET","B0","GSP ITEM","STRUCTURE",8,1599,"C"]
["4433","EACH","MODIFY BRIDGE DRAIN","B0","GSP ITEM","STRUCTURE",8,1600,"C"]
["4434","EACH","PLUGGING EXISTING BRIDGE DRAIN","B0","GSP ITEM","STRUCTURE",8,1601,"C"]
["4441","L.S.","MODULAR EXPANSION JOINT SYSTEM","B0","GSP ITEM","STRUCTURE",8,1608,"C"]
["4442","L.S.","EXPANSION JOINT MODIFICATION","B0","BSP ITEM","STRUCTURE",8,1609,"C"]
["4443","L.S.","EXPANSION JOINT MODIFICATION","B0","REQUIRES SPECIAL PROV.","STRUCTURE",8,1610,"C"]
["4444","L.F.","EXPANSION JOINT MODIFICATION","B0","BSP ITEM","STRUCTURE",8,1611,"E"]
["4445","EST.","BRIDGE DECK REPAIR","B6","GSP ITEM","STRUCTURE",8,1613,"C"]
["4446","C.F.","BRIDGE DECK REPAIR","B6","GSP ITEM","STRUCTURE",8,1614,"E"]
["4447","GAL.","EPOXY RESIN","H6","GSP ITEM","STRUCTURE",8,1618,"E"]
["4449","L.F.","EPOXY CRACK SEALING","H6","GSP ITEM","STRUCTURE",8,1620,"E"]
["4450","S.Y.","WATERPROOFING","O8","STANDARD ITEM","STRUCTURE",8,1622,"E"]
["4451","S.F.","BRIDGE DECK REPAIR","B6","BSP ITEM","STRUCTURE",8,1616,"E"]
["4455","S.Y.","MEMBRANE WATERPROOFING (DECK SEAL)","X4","GSP ITEM","STRUCTURE",8,1624,"E"]
["4456","S.Y.","SCARIFYING CONC. SURFACE","B0","STANDARD ITEM","STRUCTURE",8,1626,"E"]
["4458","S.Y.","REMOVING EXISTING CONCRETE OVERLAY","B0","REQUIRES SPECIAL PROV.","STRUCTURE",8,1628,"E"]
["4463","EST.","FORCE ACCOUNT FORMS FOR FULL DEPTH DECK REPAIR","B0","BSP ITEM","STRUCTURE",8,1630,"C"]
["4464","C.F.","FURTHER DECK PREPARATION","B0","STANDARD ITEM","STRUCTURE",8,1632,"E"]
["4465","S.F.","FURTHER DECK PREPARATION FOR TYPE 1 DECK REPAIR","B0","BSP ITEM","STRUCTURE",8,1634,"E"]
["4466","EST.","FURTHER DECK PREPARATION","B0","STANDARD ITEM","STRUCTURE",8,1633,"C"]
["4467","S.F.","FURTHER DECK PREPARATION FOR TYPE 2 DECK REPAIR","B0","BSP ITEM","STRUCTURE",8,1636,"E"]
["4468","L.S.","CLEANING AND PAINTING","P4","STANDARD ITEM","STRUCTURE",8,1638,"C"]
["4469","L.S.","CONTAINMENT OF ABRASIVES","P4","STANDARD ITEM","STRUCTURE",8,1643,"C"]
["4470","EST.","TESTING AND DISPOSAL OF CONTAINMENT WASTE","P4","STANDARD ITEM","STRUCTURE",8,1644,"C"]
["4472","S.F.","NOISE BARRIER WALL TYPE","E0","STANDARD ITEM","STRUCTURE",8,1645,"E"]
["4473","EACH","NOISE BARRIER WALL ACCESS DOOR","F0","STANDARD ITEM","STRUCTURE",8,1647,"C"]
["4474","S.F.","CONCRETE FASCIA PANEL","B0","STANDARD ITEM","STRUCTURE",8,1648,"E"]
["4475","m3","DITCH EXCAVATION","G2","STANDARD ITEM","DRAINAGE",4,189,"M"]
["4476","m3","DITCH EXCAVATION INCL. HAUL","G2","STANDARD ITEM","DRAINAGE",4,191,"M"]
["4478","EACH","SOIL NAIL - EPOXY COATED","V7","STANDARD ITEM","STRUCTURE",8,1650,"C"]
["4479","EACH","SOIL NAIL - ENCAPSULATED","V7","STANDARD ITEM","STRUCTURE",8,1651,"C"]
["4482","S.Y.","PREFABRICATED DRAINAGE MAT","G2","STANDARD ITEM","STRUCTURE",8,1653,"E"]
["4483","EACH","PERMANENT GROUND ANCHOR","V7","STANDARD ITEM","STRUCTURE",8,1655,"C"]
["4484","EACH","PERMANENT GROUND ANCHOR PERFORMANCE TEST","V7","STANDARD ITEM","STRUCTURE",8,1656,"C"]
["4485","L.S.","PERMANENT GROUND ANCHOR VERIFICATION TEST","V7","STANDARD ITEM","STRUCTURE",8,1657,"C"]
["4486","EACH","SOIL NAIL VERIFICATION TEST AND SOIL NAIL PROOF TEST","V7","STANDARD ITEM","STRUCTURE",8,1652,"C"]
["4487","L.F.","CLEANING, SEALING AND CAULKING PACK RUST","P4","STANDARD ITEM","STRUCTURE",8,1639,"E"]
["4488","S.F.","SPOT ABRASIVE BLAST CLEANING","P4","STANDARD ITEM","STRUCTURE",8,1641,"E"]
["4490","m","CEMENT CONC. GUTTER","C8","STANDARD ITEM","DRAINAGE",4,203,"M"]
["4491","m","ASPHALT CONC. GUTTER","A2","STANDARD ITEM","DRAINAGE",4,205,"M"]
["4495","m","CEMENT CONCRETE SPILLWAY","C8","STANDARD ITEM","DRAINAGE",4,207,"M"]
["4496","m","ASPHALT CONC. SPILLWAY","A2","STANDARD ITEM","DRAINAGE",4,209,"M"]
["4500","m3","FILTER BLANKET","G2","STANDARD ITEM","DRAINAGE",4,211,"M"]
["4501","t","FILTER BLANKET","G2","STANDARD ITEM","DRAINAGE",4,213,"M"]
["4502","t","200 MM QUARRY ROCK","R0","REQUIRES SPECIAL PROV.","DRAINAGE",4,215,"M"]
["4503","m3","STREAMBED GRAVEL","G2","GSP ITEM","DRAINAGE",4,216,"M"]
["4504","t","STREAMBED GRAVEL","G2","GSP ITEM","DRAINAGE",4,223,"M"]
["4505","m3","HAND PLACED RIPRAP","R0","STANDARD ITEM","DRAINAGE",4,225,"M"]
["4510","t","LIGHT LOOSE RIPRAP","R0","STANDARD ITEM","DRAINAGE",4,227,"M"]
["4511","m3","LIGHT LOOSE RIPRAP","R0","STANDARD ITEM","DRAINAGE",4,229,"M"]
["4512","t","HEAVY LOOSE RIPRAP","R0","STANDARD ITEM","DRAINAGE",4,231,"M"]
["4513","m3","HEAVY LOOSE RIPRAP","R0","STANDARD ITEM","DRAINAGE",4,233,"M"]
["4515","m3","SACK RIPRAP","R0","STANDARD ITEM","DRAINAGE",4,234,"M"]
["4516","m3","CONC. SLAB RIPRAP","R0","STANDARD ITEM","DRAINAGE",4,235,"M"]
["4520","m3","QUARRY SPALLS","R0","STANDARD ITEM","DRAINAGE",4,237,"M"]
["4521","t","QUARRY SPALLS","R0","STANDARD ITEM","DRAINAGE",4,239,"M"]
["4525","m","RELAYING","G2","STANDARD ITEM","DRAINAGE",4,241,"M"]
["4526","m","SAFETY BARS FOR CULVERT PIPE TYPE 1","G2","STANDARD ITEM","DRAINAGE",4,243,"M"]
["4527","m","SAFETY BARS FOR CULVERT PIPE TYPE 2","G2","STANDARD ITEM","DRAINAGE",4,245,"M"]
["4528","EACH","TAPERED END SECT. WITH TYPE 4 SAFETY BARS 375 MM DIAM.","G2","STANDARD ITEM","DRAINAGE",4,247,"C"]
["4529","EACH","TAPERED END SECT. WITH TYPE 4 SAFETY BARS 450 MM DIAM.","G2","STANDARD ITEM","DRAINAGE",4,249,"C"]
["4530","EACH","TAPERED END SECT. WITH TYPE 4 SAFETY BARS 525 MM DIAM.","G2","STANDARD ITEM","DRAINAGE",4,251,"C"]
["4531","EACH","TAPERED END SECT. WITH TYPE 4 SAFETY BARS 600 MM DIAM.","G2","STANDARD ITEM","DRAINAGE",4,253,"C"]
["4532","EACH","TAPERED END SECT. WITH TYPE 4 SAFETY BARS 750 MM DIAM.","G2","STANDARD ITEM","DRAINAGE",4,255,"C"]
["4533","EACH","TAPERED END SECT. WITH TYPE 3 SAFETY BARS 900 MM DIAM.","G2","STANDARD ITEM","DRAINAGE",4,257,"C"]
["4534","EACH","TAPERED END SECT. WITH TYPE 4 SAFETY BARS 900 MM DIAM.","G2","STANDARD ITEM","DRAINAGE",4,259,"C"]
["4535","EACH","TAPERED END SECT. WITH TYPE 3 SAFETY BARS 1050 MM DIAM.","G2","STANDARD ITEM","DRAINAGE",4,261,"C"]
["4536","EACH","TAPERED END SECT. WITH TYPE 4 SAFETY BARS 1050 MM DIAM.","G2","STANDARD ITEM","DRAINAGE",4,263,"C"]
["4537","EACH","TAPERED END SECT. WITH TYPE 3 SAFETY BARS 1200 MM DIAM.","G2","STANDARD ITEM","DRAINAGE",4,265,"C"]
["4538","EACH","TAPERED END SECT. WITH TYPE 4 SAFETY BARS 1200 MM DIAM.","G2","STANDARD ITEM","DRAINAGE",4,266,"C"]
["4539","EACH","TAPERED END SECT. WITH TYPE 3 SAFETY BARS 1350 MM DIAM.","G2","STANDARD ITEM","DRAINAGE",4,267,"C"]
["4540","EACH","TAPERED END SECT. WITH TYPE 4 SAFETY BARS 1350 MM DIAM.","G2","STANDARD ITEM","DRAINAGE",4,268,"C"]
["4550","EACH","TAPERED END SECT. WITH TYPE 4 SAFETY BARS 525 MM DIAM.","G2","STANDARD ITEM","DRAINAGE",4,269,"C"]
["4551","EACH","TAPERED END SECT. WITH TYPE 4 SAFETY BARS 600 MM DIAM.","G2","STANDARD ITEM","DRAINAGE",4,270,"C"]
["4552","EACH","TAPERED END SECT. WITH TYPE 4 SAFETY BARS 700 MM DIAM.","G2","STANDARD ITEM","DRAINAGE",4,271,"C"]
["4553","EACH","TAPERED END SECT. WITH TYPE 3 SAFETY BARS 875 MM DIAM.","G2","STANDARD ITEM","DRAINAGE",4,273,"C"]
["4554","EACH","TAPERED END SECT. WITH TYPE 4 SAFETY BARS 875 MM DIAM.","G2","STANDARD ITEM","DRAINAGE",4,275,"C"]
["4555","EACH","TAPERED END SECT. WITH TYPE 3 SAFETY BARS 1050 MM DIAM.","G2","STANDARD ITEM","DRAINAGE",4,277,"C"]
["4556","EACH","TAPERED END SECT. WITH TYPE 4 SAFETY BARS 1050 MM DIAM.","G2","STANDARD ITEM","DRAINAGE",4,279,"C"]
["4557","EACH","TAPERED END SECT. WITH TYPE 3 SAFETY BARS 1225 MM DIAM.","G2","STANDARD ITEM","DRAINAGE",4,281,"C"]
["4558","EACH","TAPERED END SECT. WITH TYPE 4 SAFETY BARS 1225 MM DIAM.","G2","STANDARD ITEM","DRAINAGE",4,283,"C"]
["4559","EACH","TAPERED END SECT. WITH TYPE 3 SAFETY BARS 1425 MM DIAM.","G2","STANDARD ITEM","DRAINAGE",4,285,"C"]
["4560","EACH","TAPERED END SECT. WITH TYPE 4 SAFETY BARS 1425 MM DIAM.","G2","STANDARD ITEM","DRAINAGE",4,287,"C"]
["4561","EACH","TAPERED END SECT. WITH TYPE 3 SAFETY BARS 1600 MM DIAM.","G2","STANDARD ITEM","DRAINAGE",4,289,"C"]
["4562","EACH","TAPERED END SECT. WITH TYPE 4 SAFETY BARS 1600 MM DIAM.","G2","STANDARD ITEM","DRAINAGE",4,291,"C"]
["4565","EACH","FLARED END SECTION 300 MM DIAM.","G2","STANDARD ITEM","DRAINAGE",4,298,"C"]
["4566","EACH","FLARED END SECTION 375 MM DIAM.","G2","STANDARD ITEM","DRAINAGE",4,299,"C"]
["4567","EACH","FLARED END SECTION 450 MM DIAM.","G2","STANDARD ITEM","DRAINAGE",4,300,"C"]
["4568","EACH","FLARED END SECTION 600 MM DIAM","G2","STANDARD ITEM","DRAINAGE",4,301,"C"]
["4569","EACH","FLARED END SECTION 750 MM DIAM","G2","STANDARD ITEM","DRAINAGE",4,302,"C"]
["4570","EACH","FLARED END SECTION 900 MM DIAM","G2","STANDARD ITEM","DRAINAGE",4,303,"C"]
["4571","EACH","FLARED END SECTION 1050 MM DIAM.","G2","STANDARD ITEM","DRAINAGE",4,305,"C"]
["4572","EACH","FLARED END SECTION 1200 MM DIAM.","G2","STANDARD ITEM","DRAINAGE",4,307,"C"]
["4573","EACH","FLARED END SECTION 1350 MM DIAM.","G2","STANDARD ITEM","DRAINAGE",4,309,"C"]
["4574","EACH","FLARED END SECTION 1500 MM DIAM.","G2","STANDARD ITEM","DRAINAGE",4,311,"C"]
["4575","EACH","FLARED END SECTION 1800 MM DIAM.","G2","STANDARD ITEM","DRAINAGE",4,313,"C"]
["4576","EACH","FLARED END SECTION 1950 MM DIAM.","G2","STANDARD ITEM","DRAINAGE",4,315,"C"]
["4577","EACH","FLARED END SECTION 2100 MM DIAM.","G2","STANDARD ITEM","DRAINAGE",4,317,"C"]
["4588","EACH","FLARED END SECTION 425 MM SPAN","G2","STANDARD ITEM","DRAINAGE",4,319,"C"]
["4589","EACH","FLARED END SECTION 525 MM SPAN","G2","STANDARD ITEM","DRAINAGE",4,321,"C"]
["4590","EACH","FLARED END SECTION 600 MM SPAN","G2","STANDARD ITEM","DRAINAGE",4,323,"C"]
["4591","EACH","FLARED END SECTION 700 MM SPAN","G2","STANDARD ITEM","DRAINAGE",4,325,"C"]
["4592","EACH","FLARED END SECTION 875 MM SPAN","G2","STANDARD ITEM","DRAINAGE",4,327,"C"]
["4593","EACH","FLARED END SECTION 1050 MM SPAN","G2","STANDARD ITEM","DRAINAGE",4,329,"C"]
["4594","EACH","FLARED END SECTION 1225 MM SPAN","G2","STANDARD ITEM","DRAINAGE",4,331,"C"]
["4595","EACH","FLARED END SECTION 1425 MM SPAN","G2","STANDARD ITEM","DRAINAGE",4,333,"C"]
["4596","EACH","FLARED END SECTION 1600 MM SPAN","G2","STANDARD ITEM","DRAINAGE",4,335,"C"]
["4597","EACH","FLARED END SECTION 1725 MM SPAN","G2","STANDARD ITEM","DRAINAGE",4,337,"C"]
["4598","EACH","FLARED END SECTION 1925 MM SPAN","G2","STANDARD ITEM","DRAINAGE",4,339,"C"]
["4599","EACH","FLARED END SECTION 2075 MM SPAN","G2","STANDARD ITEM","DRAINAGE",4,341,"C"]
["4610","m","HALF ROUND PLAIN ST. CULV. PIPE 1.6 MM TH. 300 MM DIAM.","G2","STANDARD ITEM","DRAINAGE",4,348,"M"]
["4611","m","HALF ROUND PLAIN ST. CULV. PIPE 1.6 MM TH. 450 MM DIAM.","G2","STANDARD ITEM","DRAINAGE",4,349,"M"]
["4612","m","HALF ROUND PLAIN ST. CULV. PIPE 1.6 MM TH. 600 MM DIAM.","G2","STANDARD ITEM","DRAINAGE",4,350,"M"]
["4613","m","HALF ROUND PLAIN ST. CULV. PIPE 1.6 MM TH. 750 MM DIAM.","G2","STANDARD ITEM","DRAINAGE",4,351,"M"]
["4614","m","HALF ROUND TR. 1 ST. CULV. PIPE 1.6 MM TH. 300 MM DIAM.","G2","STANDARD ITEM","DRAINAGE",4,352,"M"]
["4615","m","HALF ROUND TR. 1 ST. CULV. PIPE 1.6 MM TH. 600 MM DIAM.","G2","STANDARD ITEM","DRAINAGE",4,353,"M"]
["4617","m","HALF ROUND PLAIN AL. CULV. PIPE 0.000 MM TH. 00 MM DIAM.","G2","STANDARD ITEM","DRAINAGE",4,355,"M"]
["4618","m","HALF ROUND TR. 1 AL. CULV. PIPE 0.000 MM TH. 00 MM DIAM.","G2","STANDARD ITEM","DRAINAGE",4,356,"M"]
["4620","m","UNDERDRAIN PIPE 150 MM DIAM.","L4","STANDARD ITEM","DRAINAGE",4,362,"M"]
["4621","m","UNDERDRAIN PIPE 200 MM DIAM.","L4","STANDARD ITEM","DRAINAGE",4,363,"M"]
["4622","m","UNDERDRAIN PIPE 250 MM DIAM.","L4","STANDARD ITEM","DRAINAGE",4,364,"M"]
["4623","m","UNDERDRAIN PIPE 300 MM DIAM.","L4","STANDARD ITEM","DRAINAGE",4,365,"M"]
["4624","m","UNDERDRAIN PIPE 375 MM DIAM.","L4","STANDARD ITEM","DRAINAGE",4,366,"M"]
["4625","m","UNDERDRAIN PIPE 450 MM DIAM.","L4","STANDARD ITEM","DRAINAGE",4,367,"M"]
["4626","m","UNDERDRAIN PIPE 525 MM DIAM.","L4","STANDARD ITEM","DRAINAGE",4,368,"M"]
["4630","m","SOLID WALL PVC CULV. PIPE 300 MM DIAM.","G2","STANDARD ITEM","DRAINAGE",4,428,"M"]
["4631","m","SOLID WALL PVC CULV. PIPE 375 MM DIAM.","G2","STANDARD ITEM","DRAINAGE",4,429,"M"]
["4632","m","SOLID WALL PVC CULV. PIPE 450 MM DIAM.","G2","STANDARD ITEM","DRAINAGE",4,430,"M"]
["4633","m","SOLID WALL PVC CULV. PIPE 600 MM DIAM.","G2","STANDARD ITEM","DRAINAGE",4,431,"M"]
["4634","m","SOLID WALL PVC CULV. PIPE 900 MM DIAM.","G2","STANDARD ITEM","DRAINAGE",4,432,"M"]
["4635","m","PROFILE WALL PVC CULV. PIPE 300 MM DIAM.","G2","STANDARD ITEM","DRAINAGE",4,438,"M"]
["4636","m","PROFILE WALL PVC CULV. PIPE 375 MM DIAM.","G2","STANDARD ITEM","DRAINAGE",4,439,"M"]
["4637","m","PROFILE WALL PVC CULV. PIPE 450 MM DIAM.","G2","STANDARD ITEM","DRAINAGE",4,440,"M"]
["4638","m","PROFILE WALL PVC CULV. PIPE 600 MM DIAM.","G2","STANDARD ITEM","DRAINAGE",4,441,"M"]
["4640","m","DRAIN PIPE 150 MM DIAM.","L4","STANDARD ITEM","DRAINAGE",4,376,"M"]
["4641","m","DRAIN PIPE 200 MM DIAM.","L4","STANDARD ITEM","DRAINAGE",4,377,"M"]
["4642","m","DRAIN PIPE 250 MM DIAM.","L4","STANDARD ITEM","DRAINAGE",4,378,"M"]
["4643","m","DRAIN PIPE 300 MM DIAM.","L4","STANDARD ITEM","DRAINAGE",4,379,"M"]
["4644","m","DRAIN PIPE 375 MM DIAM.","L4","STANDARD ITEM","DRAINAGE",4,380,"M"]
["4645","m","DRAIN PIPE 450 MM DIAM.","L4","STANDARD ITEM","DRAINAGE",4,381,"M"]
["4646","m","DRAIN PIPE 525 MM DIAM.","L4","STANDARD ITEM","DRAINAGE",4,382,"M"]
["4655","m","SCHEDULE A CULV. PIPE 300 MM DIAM.","G2","STANDARD ITEM","DRAINAGE",4,390,"M"]
["4656","m","SCHEDULE A CULV. PIPE 450 MM DIAM.","G2","STANDARD ITEM","DRAINAGE",4,391,"M"]
["4657","m","SCHEDULE A CULV. PIPE 600 MM DIAM.","G2","STANDARD ITEM","DRAINAGE",4,392,"M"]
["4658","m","SCHEDULE A CULV. PIPE 750 MM DIAM.","G2","STANDARD ITEM","DRAINAGE",4,393,"M"]
["4659","m","SCHEDULE B CULV. PIPE 300 MM DIAM.","G2","STANDARD ITEM","DRAINAGE",4,398,"M"]
["4660","m","SCHEDULE B CULV. PIPE 450 MM DIAM.","G2","STANDARD ITEM","DRAINAGE",4,399,"M"]
["4661","m","SCHEDULE B CULV. PIPE 600 MM DIAM.","G2","STANDARD ITEM","DRAINAGE",4,400,"M"]
["4662","m","SCHEDULE B CULV. PIPE 750 MM DIAM.","G2","STANDARD ITEM","DRAINAGE",4,401,"M"]
["4663","m","SCHEDULE C CULV. PIPE 300 MM DIAM.","G2","STANDARD ITEM","DRAINAGE",4,406,"M"]
["4664","m","SCHEDULE C CULV. PIPE 450 MM DIAM.","G2","STANDARD ITEM","DRAINAGE",4,407,"M"]
["4665","m","SCHEDULE C CULV. PIPE 600 MM DIAM.","G2","STANDARD ITEM","DRAINAGE",4,408,"M"]
["4666","m","SCHEDULE C CULV. PIPE 750 MM DIAM.","G2","STANDARD ITEM","DRAINAGE",4,409,"M"]
["4667","m","SCHEDULE D CULV. PIPE 300 MM DIAM.","G2","STANDARD ITEM","DRAINAGE",4,414,"M"]
["4668","m","SCHEDULE D CULV. PIPE 450 MM DIAM.","G2","STANDARD ITEM","DRAINAGE",4,415,"M"]
["4669","m","SCHEDULE D CULV. PIPE 600 MM DIAM.","G2","STANDARD ITEM","DRAINAGE",4,416,"M"]
["4670","m","SCHEDULE D CULV. PIPE 750 MM DIAM.","G2","STANDARD ITEM","DRAINAGE",4,417,"M"]
["4671","m","PLAIN CONC. CULV. PIPE 300 MM DIAM.","G2","STANDARD ITEM","DRAINAGE",4,422,"M"]
["4672","m","PLAIN CONC. CULV. PIPE 450 MM DIAM.","G2","STANDARD ITEM","DRAINAGE",4,423,"M"]
["4673","m","PLAIN CONC. CULV. PIPE 600 MM DIAM.","G2","STANDARD ITEM","DRAINAGE",4,424,"M"]
["4674","m","PROFILE WALL PVC CULV. PIPE 900 MM DIAM.","G2","STANDARD ITEM","DRAINAGE",4,442,"M"]
["4675","m","CORRUGATED POLYETHYLENE CULV. PIPE 300 MM DIAM.","G2","STANDARD ITEM","DRAINAGE",4,448,"M"]
["4676","m","CORRUGATED POLYETHYLENE CULV. PIPE 375 MM DIAM.","G2","STANDARD ITEM","DRAINAGE",4,449,"M"]
["4677","m","CORRUGATED POLYETHYLENE CULV. PIPE 450 MM DIAM.","G2","STANDARD ITEM","DRAINAGE",4,450,"M"]
["4678","m","CORRUGATED POLYETHYLENE CULV. PIPE 600 MM DIAM.","G2","STANDARD ITEM","DRAINAGE",4,451,"M"]
["4679","m","CORRUGATED POLYETHYLENE CULV. PIPE 900 MM DIAM.","G2","STANDARD ITEM","DRAINAGE",4,452,"M"]
["4680","m","CL. II REINF. CONC. CULV. PIPE 300 MM DIAM.","G2","STANDARD ITEM","DRAINAGE",4,468,"M"]
["4681","m","CL. II REINF. CONC. CULV. PIPE 375 MM DIAM.","G2","STANDARD ITEM","DRAINAGE",4,469,"M"]
["4682","m","CL. II REINF. CONC. CULV. PIPE 450 MM DIAM.","G2","STANDARD ITEM","DRAINAGE",4,470,"M"]
["4683","m","CL. II REINF. CONC. CULV. PIPE 525 MM DIAM.","G2","STANDARD ITEM","DRAINAGE",4,471,"M"]
["4684","m","CL. II REINF. CONC. CULV. PIPE 600 MM DIAM.","G2","STANDARD ITEM","DRAINAGE",4,472,"M"]
["4685","m","CL. II REINF. CONC. CULV. PIPE 750 MM DIAM.","G2","STANDARD ITEM","DRAINAGE",4,473,"M"]
["4686","m","CL. II REINF. CONC. CULV. PIPE 900 MM DIAM.","G2","STANDARD ITEM","DRAINAGE",4,475,"M"]
["4687","m","CL. II REINF. CONC. CULV. PIPE 1050 MM DIAM.","G2","STANDARD ITEM","DRAINAGE",4,477,"M"]
["4688","m","CL. II REINF. CONC. CULV. PIPE 1200 MM DIAM.","G2","STANDARD ITEM","DRAINAGE",4,479,"M"]
["4689","m","CL. II REINF. CONC. CULV. PIPE 1350 MM DIAM.","G2","STANDARD ITEM","DRAINAGE",4,481,"M"]
["4690","m","CL. II REINF. CONC. CULV. PIPE 1500 MM DIAM.","G2","STANDARD ITEM","DRAINAGE",4,483,"M"]
["4691","m","CL. II REINF. CONC. CULV. PIPE 1800 MM DIAM.","G2","STANDARD ITEM","DRAINAGE",4,485,"M"]
["4692","m","CL. II REINF. CONC. CULV. PIPE 2100 MM DIAM.","G2","STANDARD ITEM","DRAINAGE",4,487,"M"]
["4693","m","CL. II REINF. CONC. CULV. PIPE 2400 MM DIAM.","G2","STANDARD ITEM","DRAINAGE",4,489,"M"]
["4700","m","CL. III REINF. CONC. CULV. PIPE 300 MM DIAM.","G2","STANDARD ITEM","DRAINAGE",4,496,"M"]
["4701","m","CL. III REINF. CONC. CULV. PIPE 450 MM DIAM.","G2","STANDARD ITEM","DRAINAGE",4,497,"M"]
["4702","m","CL. III REINF. CONC. CULV. PIPE 525 MM DIAM.","G2","STANDARD ITEM","DRAINAGE",4,498,"M"]
["4703","m","CL. III REINF. CONC. CULV. PIPE 600 MM DIAM.","G2","STANDARD ITEM","DRAINAGE",4,499,"M"]
["4704","m","CL. III REINF. CONC. CULV. PIPE 750 MM DIAM.","G2","STANDARD ITEM","DRAINAGE",4,500,"M"]
["4705","m","CL. III REINF. CONC. CULV. PIPE 900 MM DIAM.","G2","STANDARD ITEM","DRAINAGE",4,501,"M"]
["4706","m","CL. III REINF. CONC. CULV. PIPE 1050 MM DIAM.","G2","STANDARD ITEM","DRAINAGE",4,503,"M"]
["4707","m","CL. III REINF. CONC. CULV. PIPE 1200 MM DIAM.","G2","STANDARD ITEM","DRAINAGE",4,505,"M"]
["4708","m","CL. III REINF. CONC. CULV. PIPE 1350 MM DIAM.","G2","STANDARD ITEM","DRAINAGE",4,507,"M"]
["4709","m","CL. III REINF. CONC. CULV. PIPE 1500 MM DIAM.","G2","STANDARD ITEM","DRAINAGE",4,509,"M"]
["4720","m","CL. IV REINF. CONC. CULV. PIPE 300 MM DIAM.","G2","STANDARD ITEM","DRAINAGE",4,516,"M"]
["4721","m","CL. IV REINF. CONC. CULV. PIPE 375 MM DIAM.","G2","STANDARD ITEM","DRAINAGE",4,517,"M"]
["4722","m","CL. IV REINF. CONC. CULV. PIPE 450 MM DIAM.","G2","STANDARD ITEM","DRAINAGE",4,518,"M"]
["4723","m","CL. IV REINF. CONC. CULV. PIPE 600 MM DIAM.","G2","STANDARD ITEM","DRAINAGE",4,519,"M"]
["4724","m","CL. IV REINF. CONC. CULV. PIPE 750 MM DIAM.","G2","STANDARD ITEM","DRAINAGE",4,520,"M"]
["4725","m","CL. IV REINF. CONC. CULV. PIPE 900 MM DIAM.","G2","STANDARD ITEM","DRAINAGE",4,521,"M"]
["4726","m","CL. IV REINF. CONC. CULV. PIPE 1050 MM DIAM.","G2","STANDARD ITEM","DRAINAGE",4,523,"M"]
["4727","m","CL. IV REINF. CONC. CULV. PIPE 1200 MM DIAM.","G2","STANDARD ITEM","DRAINAGE",4,525,"M"]
["4728","m","CL. IV REINF. CONC. CULV. PIPE 1350 MM DIAM.","G2","STANDARD ITEM","DRAINAGE",4,527,"M"]
["4729","m","CL. IV REINF. CONC. CULV. PIPE 1500 MM DIAM.","G2","STANDARD ITEM","DRAINAGE",4,529,"M"]
["4730","m","CL. IV REINF. CONC. CULV. PIPE 1800 MM DIAM.","G2","STANDARD ITEM","DRAINAGE",4,531,"M"]
["4740","m","CL. V REINF. CONC. CULV. PIPE 300 MM DIAM.","G2","STANDARD ITEM","DRAINAGE",4,538,"M"]
["4741","m","CL. V REINF. CONC. CULV. PIPE 450 MM DIAM.","G2","STANDARD ITEM","DRAINAGE",4,539,"M"]
["4742","m","CL. V REINF. CONC. CULV. PIPE 600 MM DIAM.","G2","STANDARD ITEM","DRAINAGE",4,540,"M"]
["4743","m","CL. V REINF. CONC. CULV. PIPE 750 MM DIAM.","G2","STANDARD ITEM","DRAINAGE",4,541,"M"]
["4744","m","CL. V REINF. CONC. CULV. PIPE 900 MM DIAM.","G2","STANDARD ITEM","DRAINAGE",4,542,"M"]
["4745","m","CL. V REINF. CONC. CULV. PIPE 1050 MM DIAM.","G2","STANDARD ITEM","DRAINAGE",4,543,"M"]
["4746","m","CL. V REINF. CONC. CULV. PIPE 1500 MM DIAM.","G2","STANDARD ITEM","DRAINAGE",4,545,"M"]
["4755","m","PLAIN ST. CULV. PIPE 1.6 MM TH. 200 MM DIAM.","G2","STANDARD ITEM","DRAINAGE",4,552,"M"]
["4756","m","PLAIN ST. CULV. PIPE 1.6 MM TH. 250 MM DIAM.","G2","STANDARD ITEM","DRAINAGE",4,553,"M"]
["4757","m","PLAIN ST. CULV. PIPE 1.6 MM TH. 300 MM DIAM.","G2","STANDARD ITEM","DRAINAGE",4,554,"M"]
["4758","m","PLAIN ST. CULV. PIPE 1.6 MM TH. 375 MM DIAM.","G2","STANDARD ITEM","DRAINAGE",4,555,"M"]
["4759","m","PLAIN ST. CULV. PIPE 1.6 MM TH. 450 MM DIAM.","G2","STANDARD ITEM","DRAINAGE",4,556,"M"]
["4760","m","PLAIN ST. CULV. PIPE 1.6 MM TH. 600 MM DIAM.","G2","STANDARD ITEM","DRAINAGE",4,557,"M"]
["4761","m","PLAIN ST. CULV. PIPE 1.6 MM TH. 750 MM DIAM.","G2","STANDARD ITEM","DRAINAGE",4,559,"M"]
["4762","m","PLAIN ST. CULV. PIPE 1.6 MM TH. 900 MM DIAM.","G2","STANDARD ITEM","DRAINAGE",4,561,"M"]
["4763","m","PLAIN ST. CULV. PIPE 1.6 MM TH. 1050 MM DIAM.","G2","STANDARD ITEM","DRAINAGE",4,563,"M"]
["4764","m","PLAIN ST. CULV. PIPE 1.6 MM TH. 1200 MM DIAM.","G2","STANDARD ITEM","DRAINAGE",4,565,"M"]
["4765","m","PLAIN ST. CULV. PIPE 2.0 MM TH. 450 MM DIAM.","G2","STANDARD ITEM","DRAINAGE",4,567,"M"]
["4766","m","PLAIN ST. CULV. PIPE 2.0 MM TH. 600 MM DIAM.","G2","STANDARD ITEM","DRAINAGE",4,569,"M"]
["4767","m","PLAIN ST. CULV. PIPE 2.0 MM TH. 750 MM DIAM.","G2","STANDARD ITEM","DRAINAGE",4,571,"M"]
["4768","m","PLAIN ST. CULV. PIPE 2.0 MM TH. 900 MM DIAM.","G2","STANDARD ITEM","DRAINAGE",4,573,"M"]
["4769","m","PLAIN ST. CULV. PIPE 2.0 MM TH. 1050 MM DIAM.","G2","STANDARD ITEM","DRAINAGE",4,575,"M"]
["4770","m","PLAIN ST. CULV. PIPE 2.0 MM TH. 1200 MM DIAM.","G2","STANDARD ITEM","DRAINAGE",4,577,"M"]
["4771","m","PLAIN ST. CULV. PIPE 2.0 MM TH. 1350 MM DIAM.","G2","STANDARD ITEM","DRAINAGE",4,579,"M"]
["4772","m","PLAIN ST. CULV. PIPE 2.8 MM TH. 450 MM DIAM.","G2","STANDARD ITEM","DRAINAGE",4,581,"M"]
["4773","m","PLAIN ST. CULV. PIPE 2.8 MM TH. 600 MM DIAM.","G2","STANDARD ITEM","DRAINAGE",4,583,"M"]
["4774","m","PLAIN ST. CULV. PIPE 2.8 MM TH. 750 MM DIAM.","G2","STANDARD ITEM","DRAINAGE",4,585,"M"]
["4775","m","PLAIN ST. CULV. PIPE 2.8 MM TH. 900 MM DIAM.","G2","STANDARD ITEM","DRAINAGE",4,587,"M"]
["4776","m","PLAIN ST. CULV. PIPE 2.8 MM TH. 1050 MM DIAM.","G2","STANDARD ITEM","DRAINAGE",4,589,"M"]
["4777","m","PLAIN ST. CULV. PIPE 2.8 MM TH. 1200 MM DIAM.","G2","STANDARD ITEM","DRAINAGE",4,591,"M"]
["4778","m","PLAIN ST. CULV. PIPE 2.8 MM TH. 1350 MM DIAM.","G2","STANDARD ITEM","DRAINAGE",4,593,"M"]
["4779","m","PLAIN ST. CULV. PIPE 2.8 MM TH. 1500 MM DIAM.","G2","STANDARD ITEM","DRAINAGE",4,595,"M"]
["4780","m","PLAIN ST. CULV. PIPE 3.5 MM TH. 750 MM DIAM.","G2","STANDARD ITEM","DRAINAGE",4,597,"M"]
["4781","m","PLAIN ST. CULV. PIPE 3.5 MM TH. 1050 MM DIAM.","G2","STANDARD ITEM","DRAINAGE",4,599,"M"]
["4782","m","PLAIN ST. CULV. PIPE 3.5 MM TH. 1350 MM DIAM.","G2","STANDARD ITEM","DRAINAGE",4,601,"M"]
["4783","m","PLAIN ST. CULV. PIPE 3.5 MM TH. 1500 MM DIAM.","G2","STANDARD ITEM","DRAINAGE",4,603,"M"]
["4784","m","PLAIN ST. CULV. PIPE 3.5 MM TH. 1800 MM DIAM.","G2","STANDARD ITEM","DRAINAGE",4,605,"M"]
["4785","m","PLAIN ST. CULV. PIPE 4.3 MM TH. 900 MM DIAM.","G2","STANDARD ITEM","DRAINAGE",4,607,"M"]
["4786","m","PLAIN ST. CULV. PIPE 4.3 MM TH. 1500 MM DIAM.","G2","STANDARD ITEM","DRAINAGE",4,609,"M"]
["4787","m","PLAIN ST. CULV. PIPE 4.3 MM TH. 1800 MM DIAM.","G2","STANDARD ITEM","DRAINAGE",4,611,"M"]
["4788","m","PLAIN ST. CULV. PIPE 4.3 MM TH. 1950 MM DIAM.","G2","STANDARD ITEM","DRAINAGE",4,613,"M"]
["4789","m","PLAIN ST. CULV. PIPE 4.3 MM TH. 2100 MM DIAM.","G2","STANDARD ITEM","DRAINAGE",4,615,"M"]
["4800","m","TR. 1 ST. CULV. PIPE 1.6 MM TH. 200 MM DIAM.","G2","STANDARD ITEM","DRAINAGE",4,622,"M"]
["4801","m","TR. 1 ST. CULV. PIPE 1.6 MM TH. 300 MM DIAM.","G2","STANDARD ITEM","DRAINAGE",4,623,"M"]
["4802","m","TR. 1 ST. CULV. PIPE 1.6 MM TH. 450 MM DIAM.","G2","STANDARD ITEM","DRAINAGE",4,624,"M"]
["4803","m","TR. 1 ST. CULV. PIPE 1.6 MM TH. 600 MM DIAM.","G2","STANDARD ITEM","DRAINAGE",4,625,"M"]
["4804","m","TR. 1 ST. CULV. PIPE 1.6 MM TH. 750 MM DIAM.","G2","STANDARD ITEM","DRAINAGE",4,626,"M"]
["4805","m","TR. 1 ST. CULV. PIPE 1.6 MM TH. 900 MM DIAM.","G2","STANDARD ITEM","DRAINAGE",4,627,"M"]
["4806","m","TR. 1 ST. CULV. PIPE 1.6 MM TH. 1200 MM DIAM.","G2","STANDARD ITEM","DRAINAGE",4,629,"M"]
["4807","m","TR. 1 ST. CULV. PIPE 2.0 MM TH. 600 MM DIAM.","G2","STANDARD ITEM","DRAINAGE",4,631,"M"]
["4808","m","TR. 1 ST. CULV. PIPE 2.0 MM TH. 750 MM DIAM.","G2","STANDARD ITEM","DRAINAGE",4,633,"M"]
["4809","m","TR. 1 ST. CULV. PIPE 2.0 MM TH. 1200 MM DIAM.","G2","STANDARD ITEM","DRAINAGE",4,635,"M"]
["4810","m","TR. 1 ST. CULV. PIPE 2.8 MM TH. 600 MM DIAM.","G2","STANDARD ITEM","DRAINAGE",4,637,"M"]
["4811","m","TR. 1 ST. CULV. PIPE 2.8 MM TH. 750 MM DIAM.","G2","STANDARD ITEM","DRAINAGE",4,639,"M"]
["4812","m","TR. 1 ST. CULV. PIPE 2.8 MM TH. 900 MM DIAM.","G2","STANDARD ITEM","DRAINAGE",4,641,"M"]
["4813","m","TR. 1 ST. CULV. PIPE 2.8 MM TH. 1050 MM DIAM.","G2","STANDARD ITEM","DRAINAGE",4,643,"M"]
["4814","m","TR. 1 ST. CULV. PIPE 2.8 MM TH. 1500 MM DIAM.","G2","STANDARD ITEM","DRAINAGE",4,645,"M"]
["4815","m","TR. 1 ST. CULV. PIPE 3.5 MM TH. 900 MM DIAM.","G2","STANDARD ITEM","DRAINAGE",4,647,"M"]
["4816","m","TR. 1 ST. CULV. PIPE 3.5 MM TH. 1200 MM DIAM.","G2","STANDARD ITEM","DRAINAGE",4,649,"M"]
["4817","m","TR. 1 ST. CULV. PIPE 3.5 MM TH. 1350 MM DIAM.","G2","STANDARD ITEM","DRAINAGE",4,651,"M"]
["4818","m","TR. 1 ST. CULV. PIPE 3.5 MM TH. 1800 MM DIAM.","G2","STANDARD ITEM","DRAINAGE",4,653,"M"]
["4819","m","TR. 1 ST. CULV. PIPE 4.3 MM TH. 1500 MM DIAM.","G2","STANDARD ITEM","DRAINAGE",4,655,"M"]
["4820","m","TR. 1 ST. CULV. PIPE 4.3 MM TH. 1650 MM DIAM.","G2","STANDARD ITEM","DRAINAGE",4,657,"M"]
["4821","m","TR. 1 ST. CULV. PIPE 4.3 MM TH. 2100 MM DIAM.","G2","STANDARD ITEM","DRAINAGE",4,659,"M"]
["4830","m","TR. 2 ST. CULV. PIPE 1.6 MM TH. 200 MM DIAM.","G2","STANDARD ITEM","DRAINAGE",4,665,"M"]
["4831","m","TR. 2 ST. CULV. PIPE 1.6 MM TH. 300 MM DIAM.","G2","STANDARD ITEM","DRAINAGE",4,666,"M"]
["4832","m","TR. 2 ST. CULV. PIPE 1.6 MM TH. 450 MM DIAM.","G2","STANDARD ITEM","DRAINAGE",4,667,"M"]
["4833","m","TR. 2 ST. CULV. PIPE 1.6 MM TH. 600 MM DIAM.","G2","STANDARD ITEM","DRAINAGE",4,668,"M"]
["4834","m","TR. 2 ST. CULV. PIPE 1.6 MM TH. 750 MM DIAM.","G2","STANDARD ITEM","DRAINAGE",4,669,"M"]
["4835","m","TR. 2 ST. CULV. PIPE 1.6 MM TH. 900 MM DIAM.","G2","STANDARD ITEM","DRAINAGE",4,671,"M"]
["4836","m","TR. 2 ST. CULV. PIPE 1.6 MM TH. 1050 MM DIAM.","G2","STANDARD ITEM","DRAINAGE",4,673,"M"]
["4837","m","TR. 2 ST. CULV. PIPE 1.6 MM TH. 1200 MM DIAM.","G2","STANDARD ITEM","DRAINAGE",4,675,"M"]
["4838","m","TR. 2 ST. CULV. PIPE 2.0 MM TH. 300 MM DIAM.","G2","STANDARD ITEM","DRAINAGE",4,677,"M"]
["4839","m","TR. 2 ST. CULV. PIPE 2.0 MM TH. 450 MM DIAM.","G2","STANDARD ITEM","DRAINAGE",4,679,"M"]
["4840","m","TR. 2 ST. CULV. PIPE 2.0 MM TH. 600 MM DIAM.","G2","STANDARD ITEM","DRAINAGE",4,681,"M"]
["4841","m","TR. 2 ST. CULV. PIPE 2.0 MM TH. 750 MM DIAM.","G2","STANDARD ITEM","DRAINAGE",4,683,"M"]
["4842","m","TR. 2 ST. CULV. PIPE 2.0 MM TH. 900 MM DIAM.","G2","STANDARD ITEM","DRAINAGE",4,685,"M"]
["4843","m","TR. 2 ST. CULV. PIPE 2.0 MM TH. 1050 MM DIAM.","G2","STANDARD ITEM","DRAINAGE",4,687,"M"]
["4844","m","TR. 2 ST. CULV. PIPE 2.0 MM TH. 1200 MM DIAM.","G2","STANDARD ITEM","DRAINAGE",4,689,"M"]
["4845","m","TR. 2 ST. CULV. PIPE 2.0 MM TH. 1350 MM DIAM.","G2","STANDARD ITEM","DRAINAGE",4,691,"M"]
["4846","m","TR. 2 ST. CULV. PIPE 2.8 MM TH. 450 MM DIAM.","G2","STANDARD ITEM","DRAINAGE",4,693,"M"]
["4847","m","TR. 2 ST. CULV. PIPE 2.8 MM TH. 600 MM DIAM.","G2","STANDARD ITEM","DRAINAGE",4,695,"M"]
["4848","m","TR. 2 ST. CULV. PIPE 2.8 MM TH. 750 MM DIAM.","G2","STANDARD ITEM","DRAINAGE",4,697,"M"]
["4849","m","TR. 2 ST. CULV. PIPE 2.8 MM TH. 900 MM DIAM.","G2","STANDARD ITEM","DRAINAGE",4,699,"M"]
["4850","m","TR. 2 ST. CULV. PIPE 2.8 MM TH. 1200 MM DIAM","G2","STANDARD ITEM","DRAINAGE",4,701,"M"]
["4851","m","TR. 2 ST. CULV. PIPE 2.8 MM TH. 1350 MM DIAM.","G2","STANDARD ITEM","DRAINAGE",4,703,"M"]
["4852","m","TR. 2 ST. CULV. PIPE 2.8 MM TH. 1500 MM DIAM.","G2","STANDARD ITEM","DRAINAGE",4,705,"M"]
["4853","m","TR. 2 ST. CULV. PIPE 2.8 MM TH. 1650 MM DIAM.","G2","STANDARD ITEM","DRAINAGE",4,707,"M"]
["4854","m","TR. 2 ST. CULV. PIPE 3.5 MM TH. 900 MM DIAM.","G2","STANDARD ITEM","DRAINAGE",4,709,"M"]
["4855","m","TR. 2 ST. CULV. PIPE 3.5 MM TH. 1050 MM DIAM.","G2","STANDARD ITEM","DRAINAGE",4,711,"M"]
["4856","m","TR. 2 ST. CULV. PIPE 3.5 MM TH. 1500 MM DIAM.","G2","STANDARD ITEM","DRAINAGE",4,713,"M"]
["4857","m","TR. 2 ST. CULV. PIPE 3.5 MM TH. 1800 MM DIAM.","G2","STANDARD ITEM","DRAINAGE",4,715,"M"]
["4858","m","TR. 2 ST. CULV. PIPE 4.3 MM TH. 900 MM DIAM.","G2","STANDARD ITEM","DRAINAGE",4,717,"M"]
["4859","m","TR. 2 ST. CULV. PIPE 4.3 MM TH. 1200 MM DIAM.","G2","STANDARD ITEM","DRAINAGE",4,719,"M"]
["4860","m","TR. 2 ST. CULV. PIPE 4.3 MM TH. 1500 MM DIAM.","G2","STANDARD ITEM","DRAINAGE",4,721,"M"]
["4861","m","TR. 2 ST. CULV. PIPE 4.3 MM TH. 1650 MM DIAM.","G2","STANDARD ITEM","DRAINAGE",4,723,"M"]
["4862","m","TR. 2 ST. CULV. PIPE 4.3 MM TH. 1800 MM DIAM.","G2","STANDARD ITEM","DRAINAGE",4,725,"M"]
["4863","m","TR. 2 ST. CULV. PIPE 4.3 MM TH. 2100 MM DIAM.","G2","STANDARD ITEM","DRAINAGE",4,727,"M"]
["4870","m","TR. 3 ST. CULV. PIPE 1.6 MM TH. 300 MM DIAM.","G2","STANDARD ITEM","DRAINAGE",4,734,"M"]
["4871","m","TR. 3 ST. CULV. PIPE 1.6 MM TH. 450 MM DIAM.","G2","STANDARD ITEM","DRAINAGE",4,735,"M"]
["4880","m","TR. 4 ST. CULV. PIPE 1.6 MM TH. 450 MM DIAM.","G2","STANDARD ITEM","DRAINAGE",4,738,"M"]
["4881","m","TR. 4 ST. CULV. PIPE 1.6 MM TH. 600 MM DIAM.","G2","STANDARD ITEM","DRAINAGE",4,739,"M"]
["4882","m","TR. 4 ST. CULV. PIPE 1.6 MM TH. 900 MM DIAM.","G2","STANDARD ITEM","DRAINAGE",4,740,"M"]
["4883","m","TR. 4 ST. CULV. PIPE 2.8 MM TH. 1500 MM DIAM.","G2","STANDARD ITEM","DRAINAGE",4,741,"M"]
["4884","m","TR. 4 ST. CULV. PIPE 3.5 MM TH. 1200 MM DIAM.","G2","STANDARD ITEM","DRAINAGE",4,742,"M"]
["4885","m","TR. 4 ST. CULV. PIPE 4.3 MM TH. 900 MM DIAM.","G2","STANDARD ITEM","DRAINAGE",4,743,"M"]
["4886","m","TR. 4 ST. CULV. PIPE 4.3 MM TH. 1200 MM DIAM.","G2","STANDARD ITEM","DRAINAGE",4,745,"M"]
["4887","m","TR. 4 ST. CULV. PIPE 4.3 MM TH. 2100 MM DIAM.","G2","STANDARD ITEM","DRAINAGE",4,747,"M"]
["4890","m","TR. 5 ST. CULV. PIPE 1.6 MM TH. 300 MM DIAM.","G2","STANDARD ITEM","DRAINAGE",4,754,"M"]
["4891","m","TR. 5 ST. CULV. PIPE 1.6 MM TH. 450 MM DIAM.","G2","STANDARD ITEM","DRAINAGE",4,755,"M"]
["4892","m","TR. 5 ST. CULV. PIPE 1.6 MM TH. 600 MM DIAM.","G2","STANDARD ITEM","DRAINAGE",4,756,"M"]
["4893","m","TR. 5 ST. CULV. PIPE 1.6 MM TH. 750 MM DIAM.","G2","STANDARD ITEM","DRAINAGE",4,757,"M"]
["4894","m","TR. 5 ST. CULV. PIPE 1.6 MM TH. 1050 MM DIAM.","G2","STANDARD ITEM","DRAINAGE",4,758,"M"]
["4895","m","TR. 5 ST. CULV. PIPE 2.0 MM TH. 600 MM DIAM.","G2","STANDARD ITEM","DRAINAGE",4,759,"M"]
["4896","m","TR. 5 ST. CULV. PIPE 2.8 MM TH. 900 MM DIAM.","G2","STANDARD ITEM","DRAINAGE",4,761,"M"]
["4897","m","TR. 5 ST. CULV. PIPE 4.3 MM TH. 1650 MM DIAM.","G2","STANDARD ITEM","DRAINAGE",4,763,"M"]
["4900","m","TR. 6 ST. CULV. PIPE 1.6 MM TH. 300 MM DIAM.","G2","STANDARD ITEM","DRAINAGE",4,770,"M"]
["4901","m","TR. 6 ST. CULV. PIPE 2.8 MM TH. 900 MM DIAM.","G2","STANDARD ITEM","DRAINAGE",4,771,"M"]
["4902","m","TR. 6 ST. CULV. PIPE 2.8 MM TH. 1200 MM DIAM.","G2","STANDARD ITEM","DRAINAGE",4,772,"M"]
["4905","m","PLAIN NESTABLE ST. PIPE 1.6 MM TH. 300 MM DIAM.","G2","STANDARD ITEM","DRAINAGE",4,776,"M"]
["4906","m","PLAIN NESTABLE ST. PIPE 1.6 MM TH. 450 MM DIAM.","G2","STANDARD ITEM","DRAINAGE",4,777,"M"]
["4907","m","PLAIN NESTABLE ST. PIPE 1.6 MM TH. 750 MM DIAM.","G2","STANDARD ITEM","DRAINAGE",4,778,"M"]
["4908","m","PLAIN NESTABLE ST. PIPE 1.6 MM TH. 900 MM DIAM.","G2","STANDARD ITEM","DRAINAGE",4,779,"M"]
["4909","m","PLAIN NESTABLE ST. PIPE 1.6 MM TH. 1050 MM DIAM.","G2","STANDARD ITEM","DRAINAGE",4,780,"M"]
["4910","m","PLAIN NESTABLE ST. PIPE 2.8 MM TH. 1500 MM DIAM.","G2","STANDARD ITEM","DRAINAGE",4,781,"M"]
["4911","m","TR. 1 NESTABLE ST. PIPE 1.6 MM TH. 300 MM DIAM.","G2","STANDARD ITEM","DRAINAGE",4,788,"M"]
["4912","m","TR. 1 NESTABLE ST. PIPE 1.6 MM TH. 450 MM DIAM.","G2","STANDARD ITEM","DRAINAGE",4,789,"M"]
["4913","m","TR. 1 NESTABLE ST. PIPE 1.6 MM TH. 600 MM DIAM.","G2","STANDARD ITEM","DRAINAGE",4,790,"M"]
["4914","m","TR. 1 NESTABLE ST. PIPE 2.0 MM TH. 750 MM DIAM.","G2","STANDARD ITEM","DRAINAGE",4,791,"M"]
["4915","m","TR. 1 NESTABLE ST. PIPE 2.8 MM TH. 750 MM DIAM.","G2","STANDARD ITEM","DRAINAGE",4,792,"M"]
["4916","m","TR. 3 NESTABLE ST. PIPE 2.8 MM TH. 1350 MM DIAM.","G2","STANDARD ITEM","DRAINAGE",4,793,"M"]
["4920","m","PLAIN AL. CULV. PIPE 1.52 MM TH. 300 MM DIAM.","G2","STANDARD ITEM","DRAINAGE",4,800,"M"]
["4921","m","PLAIN AL. CULV. PIPE 1.52 MM TH. 450 MM DIAM.","G2","STANDARD ITEM","DRAINAGE",4,801,"M"]
["4922","m","PLAIN AL. CULV. PIPE 1.52 MM TH. 600 MM DIAM.","G2","STANDARD ITEM","DRAINAGE",4,802,"M"]
["4923","m","PLAIN AL. CULV. PIPE 1.52 MM TH. 750 MM DIAM.","G2","STANDARD ITEM","DRAINAGE",4,803,"M"]
["4924","m","PLAIN AL. CULV. PIPE 1.52 MM TH. 900 MM DIAM.","G2","STANDARD ITEM","DRAINAGE",4,804,"M"]
["4925","m","PLAIN AL. CULV. PIPE 1.91 MM TH. 1200 MM DIAM.","G2","STANDARD ITEM","DRAINAGE",4,805,"M"]
["4926","m","PLAIN AL. CULV. PIPE 2.67 MM TH. 900 MM DIAM.","G2","STANDARD ITEM","DRAINAGE",4,807,"M"]
["4927","m","PLAIN AL. CULV. PIPE 4.17 MM TH. 1800 MM DIAM.","G2","STANDARD ITEM","DRAINAGE",4,809,"M"]
["4940","m","ST. STR. PLATE PIPE 12 GAGE 1800 MM DIAM.","V4","STANDARD ITEM","DRAINAGE",4,816,"M"]
["4941","m","ST. STR. PLATE PIPE 12 GAGE 2250 MM DIAM.","V4","STANDARD ITEM","DRAINAGE",4,817,"M"]
["4942","m","ST. STR. PLATE PIPE 12 GAGE 2400 MM DIAM.","V4","STANDARD ITEM","DRAINAGE",4,818,"M"]
["4943","m","ST. STR. PLATE PIPE 12 GAGE 2550 MM DIAM.","V4","STANDARD ITEM","DRAINAGE",4,819,"M"]
["4944","m","ST. STR. PLATE PIPE 12 GAGE 2700 MM DIAM.","V4","STANDARD ITEM","DRAINAGE",4,820,"M"]
["4945","m","ST. STR. PLATE PIPE 12 GAGE 3300 MM DIAM.","V4","STANDARD ITEM","DRAINAGE",4,821,"M"]
["4950","m","ST. STR. PLATE PIPE 10 GAGE 2100 MM DIAM.","V4","STANDARD ITEM","DRAINAGE",4,823,"M"]
["4951","m","ST. STR. PLATE PIPE 10 GAGE 3900 MM DIAM.","V4","STANDARD ITEM","DRAINAGE",4,825,"M"]
["4952","m","ST. STR. PLATE PIPE 10 GAGE 4200 MM DIAM.","V4","STANDARD ITEM","DRAINAGE",4,827,"M"]
["4960","m","ST. STR. PLATE PIPE 8 GAGE 1800 MM DIAM.","V4","STANDARD ITEM","DRAINAGE",4,829,"M"]
["4961","m","ST. STR. PLATE PIPE 8 GAGE 2100 MM DIAM.","V4","STANDARD ITEM","DRAINAGE",4,831,"M"]
["4962","m","ST. STR. PLATE PIPE 8 GAGE 2400 MM DIAM.","V4","STANDARD ITEM","DRAINAGE",4,833,"M"]
["4963","m","ST. STR. PLATE PIPE 8 GAGE 3000 MM DIAM.","V4","STANDARD ITEM","DRAINAGE",4,835,"M"]
["4964","m","ST. STR. PLATE PIPE 8 GAGE 3150 MM DIAM.","V4","STANDARD ITEM","DRAINAGE",4,837,"M"]
["4965","m","ST. STR. PLATE PIPE 8 GAGE 3300 MM DIAM.","V4","STANDARD ITEM","DRAINAGE",4,839,"M"]
["4970","m","ST. STR. PLATE PIPE 7 GAGE 1500 MM DIAM.","V4","STANDARD ITEM","DRAINAGE",4,841,"M"]
["4971","m","ST. STR. PLATE PIPE 7 GAGE 4050 MM DIAM.","V4","STANDARD ITEM","DRAINAGE",4,843,"M"]
["4975","m","ST. STR. PLATE PIPE 5 GAGE 2700 MM DIAM.","V4","STANDARD ITEM","DRAINAGE",4,845,"M"]
["4976","m","ST. STR. PLATE PIPE 5 GAGE 3450 MM DIAM.","V4","STANDARD ITEM","DRAINAGE",4,847,"M"]
["4977","m","ST. STR. PLATE PIPE 5 GAGE 3600 MM DIAM.","V4","STANDARD ITEM","DRAINAGE",4,849,"M"]
["4978","m","ST. STR. PLATE PIPE 5 GAGE 3900 MM DIAM.","V4","STANDARD ITEM","DRAINAGE",4,851,"M"]
["4979","m","ST. STR. PLATE PIPE 5 GAGE 4500 MM DIAM.","V4","STANDARD ITEM","DRAINAGE",4,853,"M"]
["4980","m","ST. STR. PLATE PIPE 3 GAGE 2100 MM DIAM.","V4","STANDARD ITEM","DRAINAGE",4,855,"M"]
["4981","m","ST. STR. PLATE PIPE 1 GAGE 1500 MM DIAM.","V4","STANDARD ITEM","DRAINAGE",4,857,"M"]
["4982","m","ST. STR. PLATE PIPE 1 GAGE 2400 MM DIAM.","V4","STANDARD ITEM","DRAINAGE",4,859,"M"]
["4983","m","AL.STR. PLATE PIPE 6.35 MM TH. 2550 MM DIAM.","V4","STANDARD ITEM","DRAINAGE",4,866,"M"]
["4985","m","PLAIN ST. CULV. PIPE ARCH 1.6 MM TH. 425 MM SPAN","G2","STANDARD ITEM","DRAINAGE",4,868,"M"]
["4986","m","PLAIN ST. CULV. PIPE ARCH 1.6 MM TH. 525 MM SPAN","G2","STANDARD ITEM","DRAINAGE",4,869,"M"]
["4987","m","PLAIN ST. CULV. PIPE ARCH 1.6 MM TH. 700 MM SPAN","G2","STANDARD ITEM","DRAINAGE",4,870,"M"]
["4988","m","PLAIN ST. CULV. PIPE ARCH 1.6 MM TH. 875 MM SPAN","G2","STANDARD ITEM","DRAINAGE",4,871,"M"]
["4989","m","PLAIN ST. CULV. PIPE ARCH 1.6 MM TH. 1050 MM SPAN","G2","STANDARD ITEM","DRAINAGE",4,872,"M"]
["4990","m","PLAIN ST. CULV. PIPE ARCH 2.0 MM TH. 1225 MM SPAN","G2","STANDARD ITEM","DRAINAGE",4,873,"M"]
["4991","m","PLAIN ST. CULV. PIPE ARCH 2.8 MM TH. 1425 MM SPAN","G2","STANDARD ITEM","DRAINAGE",4,875,"M"]
["4992","m","PLAIN ST. CULV. PIPE ARCH 2.8 MM TH. 1600 MM SPAN","G2","STANDARD ITEM","DRAINAGE",4,877,"M"]
["4993","m","PLAIN ST. CULV. PIPE ARCH 3.5 MM TH. 1775 MM SPAN","G2","STANDARD ITEM","DRAINAGE",4,879,"M"]
["4994","m","PLAIN ST. CULV. PIPE ARCH 4.3 MM TH. 1925 MM SPAN","G2","STANDARD ITEM","DRAINAGE",4,881,"M"]
["4995","m","PLAIN ST. CULV. PIPE ARCH 4.3 MM TH. 2075 MM SPAN","G2","STANDARD ITEM","DRAINAGE",4,883,"M"]
["5005","C.Y.","BALLAST FROM STOCKPILE","F4","STANDARD ITEM","SURFACING",9,1696,"E"]
["5010","TON","BALLAST FROM STOCKPILE","F4","STANDARD ITEM","SURFACING",9,1697,"E"]
["5015","C.Y.","BALLAST","F6","STANDARD ITEM","SURFACING",9,1699,"E"]
["5020","TON","BALLAST","F6","STANDARD ITEM","SURFACING",9,1701,"E"]
["5025","C.Y.","SHOULDER BALLAST FROM STOCKPILE","F4","STANDARD ITEM","SURFACING",9,1703,"E"]
["5030","TON","SHOULDER BALLAST FROM STOCKPILE","F4","STANDARD ITEM","SURFACING",9,1705,"E"]
["5035","C.Y.","PERMEABLE BALLAST","F6","STANDARD ITEM","SURFACING",9,1707,"E"]
["5040","TON","PERMEABLE BALLAST","F6","STANDARD ITEM","SURFACING",9,1709,"E"]
["5047","TON","GRAVEL BASE","F6","STANDARD ITEM","SURFACING",9,1711,"E"]
["5057","C.Y.","GRAVEL BASE","F6","STANDARD ITEM","SURFACING",9,1713,"E"]
["5085","C.Y.","CRUSHED SURFACING BASE COURSE FROM STOCKPILE","F4","STANDARD ITEM","SURFACING",9,1715,"E"]
["5090","TON","CRUSHED SURFACING BASE COURSE FROM STOCKPILE","F4","STANDARD ITEM","SURFACING",9,1717,"E"]
["5095","C.Y.","CRUSHED SURFACING BASE COURSE","F6","STANDARD ITEM","SURFACING",9,1719,"E"]
["5100","TON","CRUSHED SURFACING BASE COURSE","F6","STANDARD ITEM","SURFACING",9,1721,"E"]
["5105","C.Y.","CRUSHED SURFACING TOP COURSE FROM STOCKPILE","F4","STANDARD ITEM","SURFACING",9,1723,"E"]
["5110","TON","CRUSHED SURFACING TOP COURSE FROM STOCKPILE","F4","STANDARD ITEM","SURFACING",9,1725,"E"]
["5115","C.Y.","CRUSHED SURFACING TOP COURSE","F6","STANDARD ITEM","SURFACING",9,1727,"E"]
["5120","TON","CRUSHED SURFACING TOP COURSE","F6","STANDARD ITEM","SURFACING",9,1729,"E"]
["5135","m","TR. 2 ST. CULV. PIPE ARCH 1.6 MM TH. 525 MM SPAN","G2","STANDARD ITEM","DRAINAGE",4,890,"M"]
["5136","m","TR. 2 ST. CULV. PIPE ARCH 2.0 MM TH. 1225 MM SPAN","G2","STANDARD ITEM","DRAINAGE",4,891,"M"]
["5137","m","TR. 2 ST. CULV. PIPE ARCH 2.8 MM TH. 1425 MM SPAN","G2","STANDARD ITEM","DRAINAGE",4,892,"M"]
["5138","m","TR. 2 ST. CULV. PIPE ARCH 2.8 MM TH. 1600 MM SPAN","G2","STANDARD ITEM","DRAINAGE",4,893,"M"]
["5139","m","TR. 2 ST. CULV. PIPE ARCH 3.5 MM TH. 1775 MM SPAN","G2","STANDARD ITEM","DRAINAGE",4,894,"M"]
["5140","m","TR. 2 ST. CULV. PIPE ARCH 4.3 MM TH. 1925 MM SPAN","G2","STANDARD ITEM","DRAINAGE",4,895,"M"]
["5150","m","TR. 3 ST. CULV. PIPE ARCH 1.6 MM TH. 525 MM SPAN","G2","STANDARD ITEM","DRAINAGE",4,897,"M"]
["5151","m","TR. 5 ST. CULV. PIPE ARCH 1.6 MM TH. 875 MM SPAN","G2","STANDARD ITEM","DRAINAGE",4,899,"M"]
["5152","m","TR. 5 ST. CULV. PIPE ARCH 1.6 MM TH. 1050 MM SPAN","G2","STANDARD ITEM","DRAINAGE",4,901,"M"]
["5153","m","TR. 5 ST. CULV. PIPE ARCH 2.8 MM TH. 1425 MM SPAN","G2","STANDARD ITEM","DRAINAGE",4,903,"M"]
["5155","m","PLAIN AL. CULV. PIPE ARCH 3.4 MM TH. 1425 MM SPAN","G2","STANDARD ITEM","DRAINAGE",4,904,"M"]
["5160","m","ST. STR. PLATE PIPE ARCH 12 GAGE 1.854 M SPAN","V4","STANDARD ITEM","DRAINAGE",4,911,"M"]
["5161","m","ST. STR. PLATE PIPE ARCH 12 GAGE 1.930 M SPAN","V4","STANDARD ITEM","DRAINAGE",4,912,"M"]
["5162","m","ST. STR. PLATE PIPE ARCH 12 GAGE 2.057 M SPAN","V4","STANDARD ITEM","DRAINAGE",4,913,"M"]
["5163","m","ST. STR. PLATE PIPE ARCH 12 GAGE 2.134 M SPAN","V4","STANDARD ITEM","DRAINAGE",4,914,"M"]
["5164","m","ST. STR. PLATE PIPE ARCH 12 GAGE 2.337 M SPAN","V4","STANDARD ITEM","DRAINAGE",4,916,"M"]
["5165","m","ST. STR. PLATE PIPE ARCH 12 GAGE 2.489 M SPAN","V4","STANDARD ITEM","DRAINAGE",4,917,"M"]
["5166","m","ST. STR. PLATE PIPE ARCH 12 GAGE 2.616 M SPAN","V4","STANDARD ITEM","DRAINAGE",4,919,"M"]
["5167","m","ST. STR. PLATE PIPE ARCH 12 GAGE 2.692 M SPAN","V4","STANDARD ITEM","DRAINAGE",4,921,"M"]
["5168","m","ST. STR. PLATE PIPE ARCH 12 GAGE 2.896 M SPAN","V4","STANDARD ITEM","DRAINAGE",4,923,"M"]
["5169","m","ST. STR. PLATE PIPE ARCH 12 GAGE 3.124 M SPAN","V4","STANDARD ITEM","DRAINAGE",4,925,"M"]
["5170","m","ST. STR. PLATE PIPE ARCH 12 GAGE 3.607 M SPAN","V4","STANDARD ITEM","DRAINAGE",4,927,"M"]
["5171","m","ST. STR. PLATE PIPE ARCH 12 GAGE 3.810 M SPAN","V4","STANDARD ITEM","DRAINAGE",4,929,"M"]
["5172","m","ST. STR. PLATE PIPE ARCH 12 GAGE 3.861 M SPAN","V4","STANDARD ITEM","DRAINAGE",4,931,"M"]
["5173","m","ST. STR. PLATE PIPE ARCH 12 GAGE 3.912 M SPAN","V4","STANDARD ITEM","DRAINAGE",4,933,"M"]
["5174","m","ST. STR. PLATE PIPE ARCH 12 GAGE 4.293 M SPAN","V4","STANDARD ITEM","DRAINAGE",4,935,"M"]
["5175","m","ST. STR. PLATE PIPE ARCH 12 GAGE 4.826 M SPAN","V4","STANDARD ITEM","DRAINAGE",4,937,"M"]
["5180","m","ST. STR. PLATE ARCH 12 GAGE 3.048 M SPAN","V4","STANDARD ITEM","DRAINAGE",4,944,"M"]
["5181","m","ST. STR. PLATE ARCH 10 GAGE 3.048 M SPAN","V4","STANDARD ITEM","DRAINAGE",4,945,"M"]
["5182","m","ST. STR. PLATE ARCH 8 GAGE 6.096 M SPAN","V4","STANDARD ITEM","DRAINAGE",4,946,"M"]
["5183","m","ST. STR. PLATE ARCH 5 GAGE 6.096 M SPAN","V4","STANDARD ITEM","DRAINAGE",4,947,"M"]
["5184","m","DESIGN 1 ST. UNDERPASS 12 GAGE 2.032 M SPAN","V4","STANDARD ITEM","DRAINAGE",4,952,"M"]
["5185","m","DESIGN 1 ST. UNDERPASS 12 GAGE 2.083 M SPAN","V4","STANDARD ITEM","DRAINAGE",4,953,"M"]
["5186","m","DESIGN 2 ST. UNDERPASS 12 GAGE 4.521 M SPAN","V4","STANDARD ITEM","DRAINAGE",4,954,"M"]
["5187","m","DESIGN 2 ST. UNDERPASS 10 GAGE 3.708 M SPAN","V4","STANDARD ITEM","DRAINAGE",4,955,"M"]
["5188","m","DESIGN 2 ST. UNDERPASS 10 GAGE 4.521 M SPAN","V4","STANDARD ITEM","DRAINAGE",4,956,"M"]
["5189","m","DESIGN 2 ST. UNDERPASS 10 GAGE 5.588 M SPAN","V4","STANDARD ITEM","DRAINAGE",4,957,"M"]
["5190","m","DESIGN 2 ST. UNDERPASS 8 GAGE 5.588 M SPAN","V4","STANDARD ITEM","DRAINAGE",4,959,"M"]
["5290","TON","ASPHALT EMULSION CRS-1","B4","STANDARD ITEM","LIQUID ASPHALT",10,1733,"E"]
["5294","CALC","CRS-2P COST PRICE ADJUSTMENT","B4","GSP ITEM","LIQUID ASPHALT",10,1739,"C"]
["5295","TON","ASPHALT EMULSION CRS-2","B4","STANDARD ITEM","LIQUID ASPHALT",10,1735,"E"]
["5296","TON","ASPHALT EMULSION CRS-2P","B4","STANDARD ITEM","LIQUID ASPHALT",10,1737,"E"]
["5297","TON","ASPHALT EMULSION CMS-2","B4","STANDARD ITEM","LIQUID ASPHALT",10,1740,"E"]
["5298","TON","ASPHALT EMULSION CMS-2H","A8","STANDARD ITEM","LIQUID ASPHALT",10,1742,"E"]
["5299","TON","ASPHALT EMULSION CMS-2M","A8","GSP ITEM","LIQUID ASPHALT",10,1744,"E"]
["5300","TON","ASPHALT EMULSION CMS-2S","A8","STANDARD ITEM","LIQUID ASPHALT",10,1746,"E"]
["5305","TON","ASPHALT EMULSION CSS-1","A8","STANDARD ITEM","LIQUID ASPHALT",10,1748,"E"]
["5310","TON","ASPHALT EMULSION CSS-1H","A8","STANDARD ITEM","LIQUID ASPHALT",10,1750,"E"]
["5315","TON","ASPHALT EMULSION STE-1","A8","STANDARD ITEM","LIQUID ASPHALT",10,1752,"E"]
["5334","EST.","ANTI-STRIPPING ADDITIVE","A4","STANDARD ITEM","LIQUID ASPHALT",10,1756,"C"]
["5340","TON","ASPHALT FOR FOG SEAL","B4","STANDARD ITEM","LIQUID ASPHALT",10,1758,"E"]
["5347","EACH","CATCH BASIN TYPE 2 1200 MM DIAM.","T8","STANDARD ITEM","STORM SEWER",5,976,"C"]
["5348","EACH","CATCH BASIN TYPE 2 1350 MM DIAM.","T8","STANDARD ITEM","STORM SEWER",5,977,"C"]
["5349","EACH","CATCH BASIN TYPE 2 1800 MM DIAM.","T8","STANDARD ITEM","STORM SEWER",5,979,"C"]
["5350","EACH","CATCH BASIN TYPE 2 2400 MM DIAM.","T8","STANDARD ITEM","STORM SEWER",5,982,"C"]
["5352","m","TESTING STORM SEWER PIPE","T8","STANDARD ITEM","STORM SEWER",5,987,"M"]
["5360","m","PLAIN CONC. STORM SEWER PIPE 100 MM DIAM.","T8","STANDARD ITEM","STORM SEWER",5,989,"M"]
["5361","m","PLAIN CONC. STORM SEWER PIPE 150 MM DIAM.","T8","STANDARD ITEM","STORM SEWER",5,990,"M"]
["5362","m","PLAIN CONC. STORM SEWER PIPE 200 MM DIAM.","T8","STANDARD ITEM","STORM SEWER",5,991,"M"]
["5363","m","PLAIN CONC. STORM SEWER PIPE 250 MM DIAM.","T8","STANDARD ITEM","STORM SEWER",5,993,"M"]
["5364","m","PLAIN CONC. STORM SEWER PIPE 300 MM DIAM.","T8","STANDARD ITEM","STORM SEWER",5,995,"M"]
["5365","m","PLAIN CONC. STORM SEWER PIPE 375 MM DIAM.","T8","STANDARD ITEM","STORM SEWER",5,997,"M"]
["5366","m","PLAIN CONC. STORM SEWER PIPE 450 MM DIAM.","T8","STANDARD ITEM","STORM SEWER",5,999,"M"]
["5367","m","PLAIN CONC. STORM SEWER PIPE 525 MM DIAM.","T8","STANDARD ITEM","STORM SEWER",5,1001,"M"]
["5368","m","PLAIN CONC. STORM SEWER PIPE 600 MM DIAM.","T8","STANDARD ITEM","STORM SEWER",5,1003,"M"]
["5375","m","CL. II REINF. CONC. STORM SEWER PIPE 300 MM DIAM.","T8","STANDARD ITEM","STORM SEWER",5,1007,"M"]
["5376","m","CL. II REINF. CONC. STORM SEWER PIPE 450 MM DIAM.","T8","STANDARD ITEM","STORM SEWER",5,1008,"M"]
["5377","m","CL. II REINF. CONC. STORM SEWER PIPE 525 MM DIAM.","T8","STANDARD ITEM","STORM SEWER",5,1009,"M"]
["5378","m","CL. II REINF. CONC. STORM SEWER PIPE 600 MM DIAM.","T8","STANDARD ITEM","STORM SEWER",5,1011,"M"]
["5379","m","CL. II REINF. CONC. STORM SEWER PIPE 750 MM DIAM.","T8","STANDARD ITEM","STORM SEWER",5,1013,"M"]
["5380","m","CL. II REINF. CONC. STORM SEWER PIPE 900 MM DIAM.","T8","STANDARD ITEM","STORM SEWER",5,1015,"M"]
["5381","m","CL. II REINF. CONC. STORM SEWER PIPE 1050 MM DIAM.","T8","STANDARD ITEM","STORM SEWER",5,1017,"M"]
["5382","m","CL. II REINF. CONC. STORM SEWER PIPE 1200 MM DIAM.","T8","STANDARD ITEM","STORM SEWER",5,1019,"M"]
["5383","m","CL. II REINF. CONC. STORM SEWER PIPE 1350 MM DIAM.","T8","STANDARD ITEM","STORM SEWER",5,1021,"M"]
["5384","m","CL. II REINF. CONC. STORM SEWER PIPE 1500 MM DIAM.","T8","STANDARD ITEM","STORM SEWER",5,1023,"M"]
["5385","m","CL. II REINF. CONC. STORM SEWER PIPE 1800 MM DIAM.","T8","STANDARD ITEM","STORM SEWER",5,1025,"M"]
["5390","m","CL. III REINF. CONC. STORM SEWER PIPE 300 MM DIAM.","T8","STANDARD ITEM","STORM SEWER",5,1027,"M"]
["5400","MI.","PROCESSING AND FINISHING","B4","REQUIRES SPECIAL PROV.","BITUMINOUS SURFACE TREATMENT",11,1759,"E"]
["5410","C.Y.","AGG. FROM STOCKPILE FOR BST","B4","STANDARD ITEM","BITUMINOUS SURFACE TREATMENT",11,1761,"E"]
["5420","C.Y.","FURNISHING AND PLACING CRUSHED COVER STONE","B4","STANDARD ITEM","BITUMINOUS SURFACE TREATMENT",11,1763,"E"]
["5423","C.Y.","FURNISHING AND PLACING CRUSHED SCREENING 3/4 TO 1/2","B4","STANDARD ITEM","BITUMINOUS SURFACE TREATMENT",11,1765,"E"]
["5424","C.Y.","FURNISHING AND PLACING CRUSHED SCREENING 5/8 TO NO. 4","B4","STANDARD ITEM","BITUMINOUS SURFACE TREATMENT",11,1767,"E"]
["5429","C.Y.","FURNISHING AND PLACING CRUSHED SCREENING 1/2 TO NO. 4","B4","STANDARD ITEM","BITUMINOUS SURFACE TREATMENT",11,1769,"E"]
["5433","C.Y.","FURNISHING AND PLACING CRUSHED SCREENING 3/8 TO NO. 10","B4","STANDARD ITEM","BITUMINOUS SURFACE TREATMENT",11,1771,"E"]
["5434","C.Y.","FURNISHING AND PLACING CRUSHED SCREENING NO. 4 TO 0","B4","STANDARD ITEM","BITUMINOUS SURFACE TREATMENT",11,1773,"E"]
["5436","TON","FURNISHING AND PLACING CRUSHED","B4","STANDARD ITEM","BITUMINOUS SURFACE TREATMENT",11,1774,"E"]
["5455","EACH","BITUMINOUS SURFACE TREATMENT FOR ROAD APPROACH","B4","GSP ITEM","BITUMINOUS SURFACE TREATMENT",11,1776,"C"]
["5460","HR","ADDITIONAL BROOMING","B4","STANDARD ITEM","BITUMINOUS SURFACE TREATMENT",11,1777,"M"]
["5470","m","CL. III REINF. CONC. STORM SEWER PIPE 450 MM DIAM.","T8","STANDARD ITEM","STORM SEWER",5,1029,"M"]
["5472","m","CL. III REINF. CONC. STORM SEWER PIPE 600 MM DIAM.","T8","STANDARD ITEM","STORM SEWER",5,1031,"M"]
["5473","m","CL. III REINF. CONC. STORM SEWER PIPE 750 MM DIAM.","T8","STANDARD ITEM","STORM SEWER",5,1033,"M"]
["5474","m","CL. III REINF. CONC. STORM SEWER PIPE 900 MM DIAM.","T8","STANDARD ITEM","STORM SEWER",5,1035,"M"]
["5475","m","CL. III REINF. CONC. STORM SEWER PIPE 1050 MM DIAM.","T8","STANDARD ITEM","STORM SEWER",5,1037,"M"]
["5510","TON","ASPHALT TREATED BASE","B2","STANDARD ITEM","ASPHALT TREATED BASE",12,1778,"E"]
["5515","TON","ASPHALT TREATED PERMEABLE BASE","B2","STANDARD ITEM","ASPHALT TREATED BASE",12,1780,"E"]
["5520","m","CL. IV REINF. CONC. STORM SEWER PIPE 300 MM DIAM.","T8","STANDARD ITEM","STORM SEWER",5,1039,"M"]
["5521","m","CL. IV REINF. CONC. STORM SEWER PIPE 375 MM DIAM.","T8","STANDARD ITEM","STORM SEWER",5,1041,"M"]
["5522","m","CL. IV REINF. CONC. STORM SEWER PIPE 450 MM DIAM.","T8","STANDARD ITEM","STORM SEWER",5,1043,"M"]
["5523","m","CL. IV REINF. CONC. STORM SEWER PIPE 525 MM DIAM.","T8","STANDARD ITEM","STORM SEWER",5,1045,"M"]
["5524","m","CL. IV REINF. CONC. STORM SEWER PIPE 600 MM DIAM.","T8","STANDARD ITEM","STORM SEWER",5,1047,"M"]
["5525","m","CL. IV REINF. CONC. STORM SEWER PIPE 750 MM DIAM.","T8","STANDARD ITEM","STORM SEWER",5,1049,"M"]
["5526","m","CL. IV REINF. CONC. STORM SEWER PIPE 900 MM DIAM.","T8","STANDARD ITEM","STORM SEWER",5,1051,"M"]
["5527","m","CL. IV REINF. CONC. STORM SEWER PIPE 1050 MM DIAM.","T8","STANDARD ITEM","STORM SEWER",5,1053,"M"]
["5528","m","CL. IV REINF. CONC. STORM SEWER PIPE 1200 MM DIAM.","T8","STANDARD ITEM","STORM SEWER",5,1055,"M"]
["5529","m","CL. IV REINF. CONC. STORM SEWER PIPE 1500 MM DIAM.","T8","STANDARD ITEM","STORM SEWER",5,1057,"M"]
["5530","m","CL. IV REINF. CONC. STORM SEWER PIPE 1800 MM DIAM.","T8","STANDARD ITEM","STORM SEWER",5,1059,"M"]
["5531","m","CL. IV REINF. CONC. STORM SEWER PIPE 2100 MM DIAM.","T8","STANDARD ITEM","STORM SEWER",5,1061,"M"]
["5532","m","CL. V REINF. CONC. STORM SEWER PIPE 300 MM DIAM.","T8","STANDARD ITEM","STORM SEWER",5,1063,"M"]
["5533","m","CL. V REINF. CONC. STORM SEWER PIPE 450 MM DIAM.","T8","STANDARD ITEM","STORM SEWER",5,1065,"M"]
["5534","m","CL. V REINF. CONC. STORM SEWER PIPE 525 MM DIAM.","T8","STANDARD ITEM","STORM SEWER",5,1067,"M"]
["5535","m","CL. V REINF. CONC. STORM SEWER PIPE 600 MM DIAM.","T8","STANDARD ITEM","STORM SEWER",5,1069,"M"]
["5536","m","CL. V REINF. CONC. STORM SEWER PIPE 750 MM DIAM.","T8","STANDARD ITEM","STORM SEWER",5,1071,"M"]
["5537","m","CL. V REINF. CONC. STORM SEWER PIPE 900 MM DIAM.","T8","STANDARD ITEM","STORM SEWER",5,1073,"M"]
["5538","m","CL. V REINF. CONC. STORM SEWER PIPE 1200 MM DIAM.","T8","STANDARD ITEM","STORM SEWER",5,1075,"M"]
["5539","m","CL. V REINF. CONC. STORM SEWER PIPE 1800 MM DIAM.","T8","STANDARD ITEM","STORM SEWER",5,1077,"M"]
["5541","m","SCHEDULE A STORM SEWER PIPE 300 MM DIAM.","T8","STANDARD ITEM","STORM SEWER",5,1078,"M"]
["5542","m","SCHEDULE A STORM SEWER PIPE 450 MM DIAM.","T8","STANDARD ITEM","STORM SEWER",5,1079,"M"]
["5543","m","SCHEDULE A STORM SEWER PIPE 600 MM DIAM.","T8","STANDARD ITEM","STORM SEWER",5,1080,"M"]
["5544","m","SCHEDULE A STORM SEWER PIPE 750 MM DIAM.","T8","STANDARD ITEM","STORM SEWER",5,1081,"M"]
["5545","m","SCHEDULE A STORM SEWER PIPE 900 MM DIAM.","T8","STANDARD ITEM","STORM SEWER",5,1082,"M"]
["5546","m","SCHEDULE A STORM SEWER PIPE 1050 MM DIAM.","T8","STANDARD ITEM","STORM SEWER",5,1083,"M"]
["5547","m","SCHEDULE A STORM SEWER PIPE 1200 MM DIAM.","T8","STANDARD ITEM","STORM SEWER",5,1084,"M"]
["5550","m","SCHEDULE B STORM SEWER PIPE 300 MM DIAM.","T8","STANDARD ITEM","STORM SEWER",5,1085,"M"]
["5551","m","SCHEDULE B STORM SEWER PIPE 450 MM DIAM.","T8","STANDARD ITEM","STORM SEWER",5,1086,"M"]
["5552","m","SCHEDULE B STORM SEWER PIPE 600 MM DIAM.","T8","STANDARD ITEM","STORM SEWER",5,1087,"M"]
["5553","m","SCHEDULE B STORM SEWER PIPE 750 MM DIAM.","T8","STANDARD ITEM","STORM SEWER",5,1088,"M"]
["5554","m","SCHEDULE B STORM SEWER PIPE 900 MM DIAM.","T8","STANDARD ITEM","STORM SEWER",5,1089,"M"]
["5555","m","SCHEDULE B STORM SEWER PIPE 1050 MM DIAM.","T8","STANDARD ITEM","STORM SEWER",5,1090,"M"]
["5556","m","SCHEDULE B STORM SEWER PIPE 1200 MM DIAM.","T8","STANDARD ITEM","STORM SEWER",5,1091,"M"]
["5560","m","TR. 5 ST. STORM SEWER PIPE 1.6 MM TH. 300 MM DIAM.","T8","STANDARD ITEM","STORM SEWER",5,1093,"M"]
["5561","m","TR. 5 ST. STORM SEWER PIPE 1.6 MM TH. 375 MM DIAM.","T8","STANDARD ITEM","STORM SEWER",5,1095,"M"]
["5562","m","TR. 5 ST. STORM SEWER PIPE 1.6 MM TH. 450 MM DIAM.","T8","STANDARD ITEM","STORM SEWER",5,1111,"M"]
["5563","m","TR. 5 ST. STORM SEWER PIPE 1.6 MM TH. 600 MM DIAM.","T8","STANDARD ITEM","STORM SEWER",5,1113,"M"]
["5564","m","TR. 5 ST. STORM SEWER PIPE 1.6 MM TH. 750 MM DIAM.","T8","STANDARD ITEM","STORM SEWER",5,1115,"M"]
["5565","m","TR. 5 ST. STORM SEWER PIPE 1.6 MM TH. 900 MM DIAM.","T8","STANDARD ITEM","STORM SEWER",5,1117,"M"]
["5566","m","TR. 5 ST. STORM SEWER PIPE 1.6 MM TH. 1200 MM DIAM.","T8","STANDARD ITEM","STORM SEWER",5,1119,"M"]
["5567","m","TR. 5 ST. STORM SEWER PIPE 2.0 MM TH. 600 MM DIAM.","T8","STANDARD ITEM","STORM SEWER",5,1121,"M"]
["5568","m","TR. 5 ST. STORM SEWER PIPE 2.8 MM TH. 450 MM DIAM.","T8","STANDARD ITEM","STORM SEWER",5,1123,"M"]
["5569","m","TR. 5 ST. STORM SEWER PIPE 2.8 MM TH. 750 MM DIAM.","T8","STANDARD ITEM","STORM SEWER",5,1125,"M"]
["5570","m","TR. 5 ST. STORM SEWER PIPE 2.8 MM TH. 900 MM DIAM.","T8","STANDARD ITEM","STORM SEWER",5,1127,"M"]
["5571","m","TR. 5 ST. STORM SEWER PIPE 2.8 MM TH. 1500 MM DIAM.","T8","STANDARD ITEM","STORM SEWER",5,1129,"M"]
["5573","m","SOLID WALL PVC STORM SEWER PIPE 300 MM DIAM.","T8","STANDARD ITEM","STORM SEWER",5,1133,"M"]
["5574","m","SOLID WALL PVC STORM SEWER PIPE 375 MM DIAM.","T8","STANDARD ITEM","STORM SEWER",5,1135,"M"]
["5575","m","SOLID WALL PVC STORM SEWER PIPE 450 MM DIAM.","T8","STANDARD ITEM","STORM SEWER",5,1137,"M"]
["5576","m","SOLID WALL PVC STORM SEWER PIPE 600 MM DIAM.","T8","STANDARD ITEM","STORM SEWER",5,1139,"M"]
["5577","m","SOLID WALL PVC STORM SEWER PIPE 900 MM DIAM.","T8","STANDARD ITEM","STORM SEWER",5,1141,"M"]
["5580","m","PROFILE WALL PVC STORM SEWER PIPE 300 MM DIAM.","T8","STANDARD ITEM","STORM SEWER",5,1143,"M"]
["5581","m","PROFILE WALL PVC STORM SEWER PIPE 375 MM DIAM.","T8","STANDARD ITEM","STORM SEWER",5,1145,"M"]
["5582","m","PROFILE WALL PVC STORM SEWER PIPE 450 MM DIAM.","T8","STANDARD ITEM","STORM SEWER",5,1147,"M"]
["5583","m","PROFILE WALL PVC STORM SEWER PIPE 600 MM DIAM.","T8","STANDARD ITEM","STORM SEWER",5,1149,"M"]
["5584","m","PROFILE WALL PVC STORM SEWER PIPE 900 MM DIAM.","T8","STANDARD ITEM","STORM SEWER",5,1151,"M"]
["5588","m","CORRUGATED POLYETHYLENE STORM SEWER PIPE 300 MM DIAM.","T8","STANDARD ITEM","STORM SEWER",5,1153,"M"]
["5589","m","CORRUGATED POLYETHYLENE STORM SEWER PIPE 375 MM DIAM.","T8","STANDARD ITEM","STORM SEWER",5,1155,"M"]
["5590","m","CORRUGATED POLYETHYLENE STORM SEWER PIPE 450 MM DIAM.","T8","STANDARD ITEM","STORM SEWER",5,1157,"M"]
["5591","m","CORRUGATED POLYETHYLENE STORM SEWER PIPE 600 MM DIAM.","T8","STANDARD ITEM","STORM SEWER",5,1159,"M"]
["5592","m","CORRUGATED POLYETHYLENE STORM SEWER PIPE 900 MM DIAM.","T8","STANDARD ITEM","STORM SEWER",5,1161,"M"]
["5595","m","TR. 5 AL. STORM SEWER PIPE 1.91 MM TH. 300 MM DIAM.","T8","STANDARD ITEM","STORM SEWER",5,1131,"M"]
["5625","C.Y.","CEMENT CONC. PAVEMENT","C0","STANDARD ITEM","CEMENT CONCRETE PAVEMENT",13,1783,"E"]
["5637","CALC","RIDE SMOOTHNESS COMPLIANCE ADJUSTMENT","C0","STANDARD ITEM","CEMENT CONCRETE PAVEMENT",13,1784,"C"]
["5638","CALC","PORTLAND CEMENT CONC. COMPLIANCE ADJUSTMENT","C0","STANDARD ITEM","CEMENT CONCRETE PAVEMENT",13,1785,"C"]
["5656","S.Y.","BRIDGE APPROACH SLAB","B0","STD. ITEM, GSP REQUIRED","STRUCTURE",8,1662,"E"]
["5662","S.Y.","REPLACE CEMENT CONCRETE PANEL","D2","STANDARD ITEM","CEMENT CONCRETE PAVEMENT",13,1791,"E"]
["5663","EST.","PARTIAL DEPTH SPALL REPAIR","P8","STANDARD ITEM","CEMENT CONCRETE PAVEMENT",13,1793,"C"]
["5680","EACH","EPOXY-COATED TIE BAR WITH DRILL HOLE","C0","STANDARD ITEM","CEMENT CONCRETE PAVEMENT",13,1788,"C"]
["5681","EACH","RETROFIT DOWEL BARS","C0","STANDARD ITEM","CEMENT CONCRETE PAVEMENT",13,1794,"C"]
["5682","m","TESTING SEWER PIPE","T8","STANDARD ITEM","SANITARY SEWER",6,1166,"M"]
["5683","EACH","TIE BAR WITH DRILL HOLE","C0","STANDARD ITEM","CEMENT CONCRETE PAVEMENT",13,1795,"C"]
["5685","EACH","CORROSION RESISTANT DOWEL BAR","C0","STANDARD ITEM","CEMENT CONCRETE PAVEMENT",13,1789,"C"]
["5687","m3","SEWAGE DISPOSAL","T7","REQUIRES SPECIAL PROV.","SANITARY SEWER",6,1168,"M"]
["5690","m","PLAIN CONC. OR V.C. SEWER PIPE 150 MM DIAM.","T8","STANDARD ITEM","SANITARY SEWER",6,1169,"M"]
["5691","m","PLAIN CONC. OR V.C. SEWER PIPE 300 MM DIAM.","T8","STANDARD ITEM","SANITARY SEWER",6,1171,"M"]
["5692","m","PLAIN CONC. OR V.C. SEWER PIPE 375 MM DIAM.","T8","STANDARD ITEM","SANITARY SEWER",6,1173,"M"]
["5693","m","PLAIN CONC. OR V.C. SEWER PIPE 525 MM DIAM.","T8","STANDARD ITEM","SANITARY SEWER",6,1175,"M"]
["5700","MI.","PREPARATION OF UNTREATED ROADWAY","B4","STANDARD ITEM","HOT MIX ASPHALT",14,1802,"E"]
["5703","EST.","CRACK SEALING","A4","STANDARD ITEM","HOT MIX ASPHALT",14,1804,"C"]
["5704","L.F.","SEALING EXISTING CONCRETE RANDOM CRACK","E7","STANDARD ITEM","CEMENT CONCRETE PAVEMENT",13,1796,"E"]
["5706","L.F.","SEALING TRANSVERSE AND LONGITUDINAL JOINTS","E7","STANDARD ITEM","CEMENT CONCRETE PAVEMENT",13,1797,"E"]
["5708","S.Y.","REMOVING EXISTING OVERLAY FROM BRIDGE DECK","A0","BSP ITEM","HOT MIX ASPHALT",14,1805,"E"]
["5709","EST.","REPLACE UNCOMPACTABLE MATERIAL","C0","STANDARD ITEM","CEMENT CONCRETE PAVEMENT",13,1800,"C"]
["5711","S.Y.","PLANING BITUMINOUS PAVEMENT","A0","STANDARD ITEM","HOT MIX ASPHALT",14,1808,"E"]
["5712","S.Y.","CEMENT CONCRETE PAVEMENT GRINDING","E2","STANDARD ITEM","CEMENT CONCRETE PAVEMENT",13,1799,"E"]
["5713","TON","PRIME COAT AGG. FROM STOCKPILE","B4","REQUIRES SPECIAL PROV.","HOT MIX ASPHALT",14,1811,"E"]
["5714","C.Y.","PRIME COAT AGG. FROM STOCKPILE","B4","REQUIRES SPECIAL PROV.","HOT MIX ASPHALT",14,1813,"E"]
["5715","TON","PRIME COAT AGG.","B4","STANDARD ITEM","HOT MIX ASPHALT",14,1815,"E"]
["5716","TON","HMA FOR PRELEVELING CL. 3/8 IN. PG","A4","STANDARD ITEM","HOT MIX ASPHALT",14,1819,"E"]
["5717","TON","HMA FOR PRELEVELING CL. 1/2 IN. PG","A4","STANDARD ITEM","HOT MIX ASPHALT",14,1821,"E"]
["5718","TON","HMA FOR PRELEVELING CL. 3/4 IN. PG","A4","STANDARD ITEM","HOT MIX ASPHALT",14,1823,"E"]
["5720","C.Y.","PRIME COAT AGG.","B4","STANDARD ITEM","HOT MIX ASPHALT",14,1816,"E"]
["5722","S.Y.","FABRIC REINFORCEMENT","A4","REQUIRES SPECIAL PROV.","HOT MIX ASPHALT",14,1818,"E"]
["5737","TON","ASPHALT CONC. FOR PAVEMENT REPAIR","A4","STANDARD ITEM","HOT MIX ASPHALT",14,1834,"E"]
["5738","TON","HMA FOR PAVEMENT REPAIR CL. 3/8 IN. PG","A4","STANDARD ITEM","HOT MIX ASPHALT",14,1835,"E"]
["5739","TON","HMA FOR PAVEMENT REPAIR CL. 1/2 IN. PG","A4","STANDARD ITEM","HOT MIX ASPHALT",14,1837,"E"]
["5740","TON","HMA FOR PAVEMENT REPAIR CL. 3/4 IN. PG","A3","STANDARD ITEM","HOT MIX ASPHALT",14,1839,"E"]
["5741","TON","ASPHALT CONC. FOR PRELEVELING CL. A PG","A4","STANDARD ITEM","HOT MIX ASPHALT",14,1829,"E"]
["5742","TON","ASPHALT CONC. FOR PRELEVELING CL. B PG","A4","STANDARD ITEM","HOT MIX ASPHALT",14,1830,"E"]
["5743","TON","ASPHALT CONC. FOR PRELEVELING CL. F PG","A4","STANDARD ITEM","HOT MIX ASPHALT",14,1831,"E"]
["5744","TON","ASPHALT CONC. FOR PRELEVELING CL. G PG","A4","STANDARD ITEM","HOT MIX ASPHALT",14,1832,"E"]
["5751","TON","ASPHALT CONC. PAVEMENT CL. A  PG","A4","STANDARD ITEM","HOT MIX ASPHALT",14,1848,"E"]
["5752","TON","ASPHALT CONC. PAVEMENT CL. B  PG","A4","STANDARD ITEM","HOT MIX ASPHALT",14,1849,"E"]
["5753","TON","ASPHALT CONC. PAVEMENT CL. D  PG","A4","STANDARD ITEM","HOT MIX ASPHALT",14,1850,"E"]
["5754","TON","ASPHALT CONC. PAVEMENT CL. E  PG","A4","STANDARD ITEM","HOT MIX ASPHALT",14,1851,"E"]
["5756","TON","ASPHALT CONC. PAVEMENT CL. F  PG","A4","STANDARD ITEM","HOT MIX ASPHALT",14,1852,"E"]
["5757","TON","ASPHALT CONC. PAVEMENT CL. G  PG","A4","STANDARD ITEM","HOT MIX ASPHALT",14,1853,"E"]
["5758","TON","ASPHALT CONC. PAVEMENT CL. MODIFIED D  PG","A4","STANDARD ITEM","HOT MIX ASPHALT",14,1854,"E"]
["5766","TON","HMA CL. 3/8 IN. PG","A4","STANDARD ITEM","HOT MIX ASPHALT",14,1855,"E"]
["5767","TON","HMA CL. 1/2 IN. PG","A4","STANDARD ITEM","HOT MIX ASPHALT",14,1857,"E"]
["5768","TON","HMA CL. 3/4 IN. PG","A4","STANDARD ITEM","HOT MIX ASPHALT",14,1859,"E"]
["5769","TON","HMA CL. 1 IN. PG","A4","STANDARD ITEM","HOT MIX ASPHALT",14,1861,"E"]
["5830","CALC","JOB MIX COMPLIANCE PRICE ADJUSTMENT","A4","STANDARD ITEM","HOT MIX ASPHALT",14,1865,"C"]
["5835","CALC","COMPACTION PRICE ADJUSTMENT","A4","STANDARD ITEM","HOT MIX ASPHALT",14,1866,"C"]
["5837","CALC","ASPHALT COST PRICE ADJUSTMENT","A4","GSP ITEM","HOT MIX ASPHALT",14,1867,"C"]
["5840","S.Y.","PREPARATION OF SURFACE","A4","GSP ITEM","HOT MIX ASPHALT",14,1877,"E"]
["5841","TON","AGGREGATE FOR SEAL COAT","A4","GSP ITEM","HOT MIX ASPHALT",14,1878,"E"]
["5856","GAL.","COAL TAR ASPHALT EMULSION BLENDED SEALER","A4","GSP ITEM","HOT MIX ASPHALT",14,1879,"E"]
["5860","TON","ASPHALT EMULSION","A4","STANDARD ITEM","HOT MIX ASPHALT",14,1880,"E"]
["5872","TON","HMA FOR APPROACH CL. 3/8 IN. PG","A4","STANDARD ITEM","HOT MIX ASPHALT",14,1869,"E"]
["5873","TON","HMA FOR APPROACH CL. 1/2 IN. PG","A4","STANDARD ITEM","HOT MIX ASPHALT",14,1871,"E"]
["5874","TON","HMA FOR APPROACH CL. 3/4 IN. PG","A4","STANDARD ITEM","HOT MIX ASPHALT",14,1873,"E"]
["5875","TON","COMMERCIAL HMA","A4","STANDARD ITEM","HOT MIX ASPHALT",14,1875,"E"]
["6071","L.S.","IRRIGATION SYSTEM","M4","STANDARD ITEM","IRRIGATION AND WATER DISTRIBUTION",16,1901,"C"]
["6150","EACH","GATE VALVE 4 IN.","X2","STANDARD ITEM","WATER LINES",7,1224,"C"]
["6155","EACH","GATE VALVE 6 IN.","X2","STANDARD ITEM","WATER LINES",7,1226,"C"]
["6160","EACH","GATE VALVE 8 IN.","X2","STANDARD ITEM","WATER LINES",7,1228,"C"]
["6162","EACH","GATE VALVE 10 IN.","X2","STANDARD ITEM","WATER LINES",7,1230,"C"]
["6165","EACH","GATE VALVE 12 IN.","X2","STANDARD ITEM","WATER LINES",7,1232,"C"]
["6167","EACH","GATE VALVE","X2","STANDARD ITEM","WATER LINES",7,1233,"C"]
["6243","EACH","ADJUST VALVE BOX","M4","REQUIRES SPECIAL PROV.","OTHER ITEMS",19,2434,"C"]
["6364","m","PVC SANITARY SEWER PIPE 100 MM DIAM.","T8","STANDARD ITEM","SANITARY SEWER",6,1191,"M"]
["6365","m","PVC SANITARY SEWER PIPE 150 MM DIAM.","T8","STANDARD ITEM","SANITARY SEWER",6,1193,"M"]
["6366","m","PVC SANITARY SEWER PIPE 200 MM DIAM.","T8","STANDARD ITEM","SANITARY SEWER",6,1195,"M"]
["6367","m","PVC SANITARY SEWER PIPE 250 MM DIAM.","T8","STANDARD ITEM","SANITARY SEWER",6,1197,"M"]
["6368","m","PVC SANITARY SEWER PIPE 300 MM DIAM.","T8","STANDARD ITEM","SANITARY SEWER",6,1199,"M"]
["6370","m","CL. IV REINF. CONC. SEWER PIPE 375 MM DIAM.","T8","STANDARD ITEM","SANITARY SEWER",6,1177,"M"]
["6371","m","CL. IV REINF. CONC. SEWER PIPE 1200 MM DIAM.","T8","STANDARD ITEM","SANITARY SEWER",6,1179,"M"]
["6373","L.F.","SILT FENCE","H0","STANDARD ITEM","EROSION CNTL AND ROADSIDE RESTORATION",17,1918,"E"]
["6374","L.F.","COMPOST BERM","H0","STANDARD ITEM","EROSION CNTL AND ROADSIDE RESTORATION",17,1922,"E"]
["6375","m","CL. V REINF. CONC. SEWER PIPE 300 MM DIAM.","T8","STANDARD ITEM","SANITARY SEWER",6,1181,"M"]
["6376","m","CL. V REINF. CONC. SEWER PIPE 450 MM DIAM.","T8","STANDARD ITEM","SANITARY SEWER",6,1183,"M"]
["6377","m","CL. V REINF. CONC. SEWER PIPE 600 MM DIAM.","T8","STANDARD ITEM","SANITARY SEWER",6,1185,"M"]
["6378","m","CL. V REINF. CONC. SEWER PIPE 750 MM DIAM.","T8","STANDARD ITEM","SANITARY SEWER",6,1187,"M"]
["6379","m","CL. V REINF. CONC. SEWER PIPE 1200 MM DIAM.","T8","STANDARD ITEM","SANITARY SEWER",6,1189,"M"]
["6385","m","DUCTILE IRON SEWER PIPE 100 MM DIAM.","T8","STANDARD ITEM","SANITARY SEWER",6,1201,"M"]
["6386","m","DUCTILE IRON SEWER PIPE 150 MM DIAM.","T8","STANDARD ITEM","SANITARY SEWER",6,1203,"M"]
["6387","m","DUCTILE IRON SEWER PIPE 200 MM DIAM.","T8","STANDARD ITEM","SANITARY SEWER",6,1205,"M"]
["6388","m","DUCTILE IRON SEWER PIPE 250 MM DIAM.","T8","STANDARD ITEM","SANITARY SEWER",6,1207,"M"]
["6389","m","DUCTILE IRON SEWER PIPE 300 MM DIAM.","T8","STANDARD ITEM","SANITARY SEWER",6,1209,"M"]
["6390","m","DUCTILE IRON SEWER PIPE 600 MM DIAM.","T8","STANDARD ITEM","SANITARY SEWER",6,1211,"M"]
["6395","m","ABS COMPOSITE SEWER PIPE","T8","STANDARD ITEM","SANITARY SEWER",6,1213,"M"]
["6400","C.Y.","TOPSOIL TYPE C","H0","STANDARD ITEM","EROSION CNTL AND ROADSIDE RESTORATION",17,1978,"E"]
["6403","DAY","ESC LEAD","H0","STANDARD ITEM","EROSION CNTL AND ROADSIDE RESTORATION",17,1902,"C"]
["6405","C.Y.","TOPSOIL TYPE A","H0","REQUIRES SPECIAL PROV.","EROSION CNTL AND ROADSIDE RESTORATION",17,1972,"E"]
["6410","C.Y.","TOPSOIL TYPE B","H0","STANDARD ITEM","EROSION CNTL AND ROADSIDE RESTORATION",17,1975,"E"]
["6412","ACRE","SEEDING AND FERTILIZING","T2","STANDARD ITEM","EROSION CNTL AND ROADSIDE RESTORATION",17,1954,"E"]
["6413","L.S.","SEEDING AND FERTILIZING","T2","REQUIRES SPECIAL PROV.","EROSION CNTL AND ROADSIDE RESTORATION",17,1959,"C"]
["6414","ACRE","SEEDING, FERTILIZING, AND MULCHING","T2","STANDARD ITEM","EROSION CNTL AND ROADSIDE RESTORATION",17,1949,"E"]
["6415","ACRE","SEEDING AND FERTILIZING - SITE","T2","STANDARD ITEM","EROSION CNTL AND ROADSIDE RESTORATION",17,1957,"E"]
["6416","L.S.","SEEDING, FERTILIZING, AND MULCHING","T2","REQUIRES SPECIAL PROV.","EROSION CNTL AND ROADSIDE RESTORATION",17,1953,"C"]
["6417","ACRE","SEEDING, FERTILIZING, AND MULCHING - SITE","T2","STANDARD ITEM","EROSION CNTL AND ROADSIDE RESTORATION",17,1951,"E"]
["6418","L.S.","SEEDING","T2","REQUIRES SPECIAL PROV.","EROSION CNTL AND ROADSIDE RESTORATION",17,1948,"C"]
["6419","S.Y.","SEEDING AND FERTILIZING BY HAND","T2","STANDARD ITEM","EROSION CNTL AND ROADSIDE RESTORATION",17,1960,"E"]
["6422","ACRE","SEEDING AND MULCHING","T2","STANDARD ITEM","EROSION CNTL AND ROADSIDE RESTORATION",17,1956,"E"]
["6423","L.S.","FERTILIZING","T2","REQUIRES SPECIAL PROV.","EROSION CNTL AND ROADSIDE RESTORATION",17,1961,"C"]
["6427","ACRE","SECOND APPLICATION OF FERTILIZER","T2","STANDARD ITEM","EROSION CNTL AND ROADSIDE RESTORATION",17,1963,"E"]
["6428","ACRE","SECOND APPLICATION OF FERTILIZER - SITE","T2","STANDARD ITEM","EROSION CNTL AND ROADSIDE RESTORATION",17,1965,"E"]
["6430","ACRE","LIMING","H0","STANDARD ITEM","EROSION CNTL AND ROADSIDE RESTORATION",17,1967,"E"]
["6431","ACRE","LIMING - SITE","H0","STANDARD ITEM","EROSION CNTL AND ROADSIDE RESTORATION",17,1969,"E"]
["6432","ACRE","MOWING","H0","STANDARD ITEM","EROSION CNTL AND ROADSIDE RESTORATION",17,1970,"E"]
["6433","L.S.","MULCHING","T2","REQUIRES SPECIAL PROV.","EROSION CNTL AND ROADSIDE RESTORATION",17,1937,"C"]
["6435","ACRE","MULCHING","T2","STANDARD ITEM","EROSION CNTL AND ROADSIDE RESTORATION",17,1934,"E"]
["6436","ACRE","MULCHING - SITE","T2","STANDARD ITEM","EROSION CNTL AND ROADSIDE RESTORATION",17,1935,"E"]
["6444","ACRE","PAM","H0","REQUIRES SPECIAL PROV.","EROSION CNTL AND ROADSIDE RESTORATION",17,1941,"E"]
["6445","ACRE","SOIL BINDER OR TACKING AGENT","H0","STANDARD ITEM","EROSION CNTL AND ROADSIDE RESTORATION",17,1939,"E"]
["6446","ACRE","SOIL BINDER OR TACKING AGENT - SITE","H0","STANDARD ITEM","EROSION CNTL AND ROADSIDE RESTORATION",17,1940,"E"]
["6447","C.Y.","FINE COMPOST","T2","STANDARD ITEM","EROSION CNTL AND ROADSIDE RESTORATION",17,2002,"E"]
["6448","EST.","REMOVAL OF BURIED MAN-MADE DEBRIS","A1","GSP ITEM","EROSION CNTL AND ROADSIDE RESTORATION",17,1998,"C"]
["6449","C.Y.","COARSE COMPOST","T2","STANDARD ITEM","EROSION CNTL AND ROADSIDE RESTORATION",17,2005,"E"]
["6452","S.Y.","PERMANENT EROSION CONTROL BLANKET","H0","STANDARD ITEM","EROSION CNTL AND ROADSIDE RESTORATION",17,1904,"E"]
["6453","S.Y.","COMPOST BLANKET","H0","STANDARD ITEM","EROSION CNTL AND ROADSIDE RESTORATION",17,1906,"E"]
["6456","EACH","WEED BARRIER MAT","H0","GSP ITEM","EROSION CNTL AND ROADSIDE RESTORATION",17,2001,"C"]
["6457","ACRE","MULCHING WITH LONG TERM MULCH","T2","STANDARD ITEM","EROSION CNTL AND ROADSIDE RESTORATION",17,1943,"E"]
["6458","S.Y.","TEMPORARY EROSION CONTROL BLANKET","H0","STANDARD ITEM","EROSION CNTL AND ROADSIDE RESTORATION",17,1903,"E"]
["6460","ACRE","MOWING","O6","STANDARD ITEM","EROSION CNTL AND ROADSIDE RESTORATION",17,2039,"E"]
["6462","S.Y.","LAWN MOWING","O6","STANDARD ITEM","EROSION CNTL AND ROADSIDE RESTORATION",17,2031,"E"]
["6463","L.F.","CHECK DAM","H0","STANDARD ITEM","EROSION CNTL AND ROADSIDE RESTORATION",17,1909,"E"]
["6464","S.Y.","PLASTIC COVERING","H0","STANDARD ITEM","EROSION CNTL AND ROADSIDE RESTORATION",17,1907,"E"]
["6465","C.Y.","MEDIUM COMPOST","T2","STANDARD ITEM","EROSION CNTL AND ROADSIDE RESTORATION",17,2004,"E"]
["6468","S.Y.","STABILIZED CONSTRUCTION ENTRANCE","H0","STANDARD ITEM","EROSION CNTL AND ROADSIDE RESTORATION",17,1914,"E"]
["6469","EACH","TIRE WASH","H0","STANDARD ITEM","EROSION CNTL AND ROADSIDE RESTORATION",17,1916,"C"]
["6470","HR","STREET CLEANING","H0","STANDARD ITEM","EROSION CNTL AND ROADSIDE RESTORATION",17,1917,"M"]
["6471","EACH","INLET PROTECTION","H0","STANDARD ITEM","EROSION CNTL AND ROADSIDE RESTORATION",17,1911,"C"]
["6472","L.F.","TEMPORARY CURB","H0","STANDARD ITEM","EROSION CNTL AND ROADSIDE RESTORATION",17,1931,"E"]
["6474","L.F.","GRAVEL FILTER BERM","H0","STANDARD ITEM","EROSION CNTL AND ROADSIDE RESTORATION",17,1912,"E"]
["6475","L.F.","WOOD CHIP BERM","H0","STANDARD ITEM","EROSION CNTL AND ROADSIDE RESTORATION",17,1920,"E"]
["6478","EACH","STRAW BALE","H0","STANDARD ITEM","EROSION CNTL AND ROADSIDE RESTORATION",17,1924,"C"]
["6479","L.F.","WATTLE","H0","STANDARD ITEM","EROSION CNTL AND ROADSIDE RESTORATION",17,1925,"E"]
["6486","ACRE","COMPOST","T2","GSP ITEM","EROSION CNTL AND ROADSIDE RESTORATION",17,2007,"E"]
["6490","EST.","EROSION/WATER POLLUTION CONTROL","H0","STANDARD ITEM","EROSION CNTL AND ROADSIDE RESTORATION",17,1930,"C"]
["6491","ACRE","TEMPORARY SEEDING","H0","STANDARD ITEM","EROSION CNTL AND ROADSIDE RESTORATION",17,1946,"E"]
["6496","ACRE","MULCHING WITH PAM","T2","STANDARD ITEM","EROSION CNTL AND ROADSIDE RESTORATION",17,1942,"E"]
["6497","ACRE","MULCHING WITH MODERATE TERM MULCH","T2","STANDARD ITEM","EROSION CNTL AND ROADSIDE RESTORATION",17,1944,"E"]
["6498","ACRE","MULCHING WITH SHORT TERM MULCH","T2","STANDARD ITEM","EROSION CNTL AND ROADSIDE RESTORATION",17,1945,"E"]
["6500","L.F.","COMPOST SOCK","H0","STANDARD ITEM","EROSION CNTL AND ROADSIDE RESTORATION",17,1927,"E"]
["6502","L.F.","COIR LOG","H0","STANDARD ITEM","EROSION CNTL AND ROADSIDE RESTORATION",17,1928,"E"]
["6504","MI.","SHOULDER SLOPE STERILIZATION","L2","REQUIRES SPECIAL PROV.","EROSION CNTL AND ROADSIDE RESTORATION",17,2023,"E"]
["6510","S.Y.","SOIL RESIDUAL HERBICIDE","L2","STANDARD ITEM","HOT MIX ASPHALT",14,1886,"E"]
["6512","MI.","SOIL RESIDUAL HERBICIDE 6 FT. WIDE","L2","STANDARD ITEM","HOT MIX ASPHALT",14,1889,"E"]
["6513","MI.","SOIL RESIDUAL HERBICIDE","L2","STANDARD ITEM","HOT MIX ASPHALT",14,1891,"E"]
["6514","L.F.","LONGITUDINAL JOINT SEAL","A4","STANDARD ITEM","HOT MIX ASPHALT",14,1893,"E"]
["6515","GAL.","HERBICIDE APPLIED IN LIQUID FORM","L2","REQUIRES SPECIAL PROV.","EROSION CNTL AND ROADSIDE RESTORATION",17,2021,"E"]
["6516","CALC","CYCLIC DENSITY PRICE ADJUSTMENT","A4","STANDARD ITEM","HOT MIX ASPHALT",14,1897,"C"]
["6517","L.F.","BRIDGE TRANSVERSE JOINT SEAL","A4","GSP ITEM","HOT MIX ASPHALT",14,1894,"E"]
["6518","CALC","SMOOTHNESS COMPLIANCE ADJUSTMENT","A4","GSP ITEM","HOT MIX ASPHALT",14,1899,"C"]
["6520","CALC","ASPHALT BINDER REVISION","A4","STANDARD ITEM","HOT MIX ASPHALT",14,1898,"C"]
["6522","CALC","LONGITUDINAL JOINT DENSITY PRICE ADJUSTMENT","A4","STANDARD ITEM","HOT MIX ASPHALT",14,1896,"C"]
["6530","C.Y.","SOIL AMENDMENT","H0","STANDARD ITEM","EROSION CNTL AND ROADSIDE RESTORATION",17,2019,"E"]
["6531","C.Y.","SPECIAL SOIL MIX","M8","REQUIRES SPECIAL PROV.","EROSION CNTL AND ROADSIDE RESTORATION",17,1981,"E"]
["6535","S.Y.","PREPARATION FOR PLANTING","M8","REQUIRES SPECIAL PROV.","EROSION CNTL AND ROADSIDE RESTORATION",17,1983,"E"]
["6537","EST.","PLANTING AREA WEED CONTROL AND PREPARATION","M8","REQUIRES SPECIAL PROV.","EROSION CNTL AND ROADSIDE RESTORATION",17,2017,"C"]
["6545","EST.","WEED AND PEST CONTROL","M8","STANDARD ITEM","EROSION CNTL AND ROADSIDE RESTORATION",17,2016,"C"]
["6550","EACH","PLANT SELECTION","M8","STANDARD ITEM","EROSION CNTL AND ROADSIDE RESTORATION",17,1985,"C"]
["6552","EACH","PSIPE","M8","STANDARD ITEM","EROSION CNTL AND ROADSIDE RESTORATION",17,1986,"C"]
["6553","L.F.","FASCINES","M8","STANDARD ITEM","EROSION CNTL AND ROADSIDE RESTORATION",17,1999,"E"]
["6554","EACH","LIVE POLE","M8","STANDARD ITEM","EROSION CNTL AND ROADSIDE RESTORATION",17,1987,"C"]
["6555","S.Y.","SOD INSTALLATION","M8","STANDARD ITEM","EROSION CNTL AND ROADSIDE RESTORATION",17,2029,"E"]
["6556","L.F.","LIVE STAKE ROW","M8","STANDARD ITEM","EROSION CNTL AND ROADSIDE RESTORATION",17,1988,"E"]
["6557","S.Y.","LIVE BRUSH MATTRESS","M8","STANDARD ITEM","EROSION CNTL AND ROADSIDE RESTORATION",17,1990,"E"]
["6558","L.F.","BRUSH LAYER","H0","STANDARD ITEM","EROSION CNTL AND ROADSIDE RESTORATION",17,1996,"E"]
["6560","S.Y.","SEEDED LAWN INSTALLATION","M8","STANDARD ITEM","EROSION CNTL AND ROADSIDE RESTORATION",17,2027,"E"]
["6569","LB.","FERTILIZER","M8","STANDARD ITEM","EROSION CNTL AND ROADSIDE RESTORATION",17,2010,"E"]
["6571","LB.","FERTILIZER - TABLET","M8","REQUIRES SPECIAL PROV.","EROSION CNTL AND ROADSIDE RESTORATION",17,2012,"E"]
["6572","LB.","FERTILIZER - GRANULAR","M8","REQUIRES SPECIAL PROV.","EROSION CNTL AND ROADSIDE RESTORATION",17,2014,"E"]
["6580","C.Y.","BARK OR WOOD CHIP MULCH","M8","STANDARD ITEM","EROSION CNTL AND ROADSIDE RESTORATION",17,2025,"E"]
["6606","EST.","PLANT ESTABLISHMENT - SECOND YEAR","M8","STANDARD ITEM","EROSION CNTL AND ROADSIDE RESTORATION",17,1992,"C"]
["6608","EST.","PLANT ESTABLISHMENT - THIRD YEAR","M8","STANDARD ITEM","EROSION CNTL AND ROADSIDE RESTORATION",17,1993,"C"]
["6609","EST.","PLANT ESTABLISHMENT - FOURTH YEAR","M8","STANDARD ITEM","EROSION CNTL AND ROADSIDE RESTORATION",17,1994,"C"]
["6610","EST.","PLANT ESTABLISHMENT - FIFTH YEAR","M8","STANDARD ITEM","EROSION CNTL AND ROADSIDE RESTORATION",17,1995,"C"]
["6612","EST.","PESTICIDE APPLICATION","L8","STANDARD ITEM","EROSION CNTL AND ROADSIDE RESTORATION",17,2018,"C"]
["6620","ACRE","GRASS MOWING","O6","REQUIRES SPECIAL PROV.","EROSION CNTL AND ROADSIDE RESTORATION",17,2033,"E"]
["6625","ACRE","VEGETATIVE CONTROL MOWING","O6","REQUIRES SPECIAL PROV.","EROSION CNTL AND ROADSIDE RESTORATION",17,2035,"E"]
["6626","ACRE","VEGETATIVE CONTROL MOWING - SITE","O6","REQUIRES SPECIAL PROV.","EROSION CNTL AND ROADSIDE RESTORATION",17,2037,"E"]
["6630","L.F.","HIGH VISIBILITY FENCE","H0","STANDARD ITEM","EROSION CNTL AND ROADSIDE RESTORATION",17,2040,"E"]
["6700","L.F.","CEMENT CONC. TRAFFIC CURB AND GUTTER","C8","STANDARD ITEM","TRAFFIC",18,2041,"E"]
["6701","L.F.","CEMENT CONC. TRAFFIC CURB","C8","STANDARD ITEM","TRAFFIC",18,2043,"E"]
["6702","L.F.","MOUNTABLE CEMENT CONC. TRAFFIC CURB","C8","STANDARD ITEM","TRAFFIC",18,2045,"E"]
["6703","L.F.","ROUNDABOUT TRUCK APRON CEMENT CONCRETE CURB","C8","STANDARD ITEM","TRAFFIC",18,2051,"E"]
["6705","L.F.","DUAL-FACED CEMENT CONC. TRAFFIC CURB AND GUTTER","C8","STANDARD ITEM","TRAFFIC",18,2052,"E"]
["6706","L.F.","DUAL-FACED CEMENT CONC. TRAFFIC CURB","C8","STANDARD ITEM","TRAFFIC",18,2053,"E"]
["6707","L.F.","CEMENT CONC. PEDESTRIAN CURB","C8","STANDARD ITEM","TRAFFIC",18,2055,"E"]
["6708","L.F.","ROUNDABOUT CENTRAL ISLAND CEMENT CONCRETE CURB","C8","STANDARD ITEM","TRAFFIC",18,2047,"E"]
["6709","L.F.","ROUNDABOUT TRUCK APRON CEM. CONC. CURB AND GUTTER","C8","STANDARD ITEM","TRAFFIC",18,2049,"E"]
["6711","L.F.","BEAM GUARDRAIL TYPE 31 - 8 FT. LONG POST","J0","STANDARD ITEM","TRAFFIC",18,2078,"E"]
["6712","L.F.","BEAM GUARDRAIL TYPE 31 - 9 FT. LONG POST","J0","STANDARD ITEM","TRAFFIC",18,2079,"E"]
["6713","L.F.","BEAM GUARDRAIL TYPE 31 - 11 FT. LONG POST","J0","STANDARD ITEM","TRAFFIC",18,2080,"E"]
["6716","EACH","BEAM GUARDRAIL FLARED TERMINAL","J0","STANDARD ITEM","TRAFFIC",18,2097,"C"]
["6717","EACH","BEAM GUARDRAIL NON-FLARED TERMINAL","J0","STANDARD ITEM","TRAFFIC",18,2098,"C"]
["6719","EACH","BEAM GUARDRAIL TYPE 31 NON-FLARED TERMINAL","J0","STANDARD ITEM","TRAFFIC",18,2099,"C"]
["6727","L.F.","EXTRUDED CURB","A2","STANDARD ITEM","TRAFFIC",18,2057,"E"]
["6730","L.F.","TYPE A PRECAST TRAFFIC CURB","W4","STANDARD ITEM","TRAFFIC",18,2059,"E"]
["6731","EACH","BEAM GUARDRAIL BURIED TERMINAL TYPE 1","J0","STANDARD ITEM","TRAFFIC",18,2100,"C"]
["6732","L.F.","TYPE C PRECAST TRAFFIC CURB","W4","STANDARD ITEM","TRAFFIC",18,2061,"E"]
["6733","L.F.","BEAM GUARDRAIL BURIED TERMINAL TYPE 2","J0","STANDARD ITEM","TRAFFIC",18,2101,"E"]
["6734","L.F.","TYPE A BLOCK TRAFFIC CURB","W4","STANDARD ITEM","TRAFFIC",18,2063,"E"]
["6736","L.F.","TYPE C BLOCK TRAFFIC CURB","W4","STANDARD ITEM","TRAFFIC",18,2065,"E"]
["6737","EACH","BEAM GUARDRAIL BULL NOSE TERMINAL","J0","STANDARD ITEM","TRAFFIC",18,2102,"C"]
["6739","EACH","BEAM GUARDRAIL PLACEMENT - 25' SPAN","J0","STANDARD ITEM","TRAFFIC",18,2104,"C"]
["6745","EACH","BOX CULVERT GUARDRAIL STEEL POST TYPE 1","J0","GSP ITEM","TRAFFIC",18,2069,"C"]
["6746","EACH","BOX CULVERT GUARDRAIL STEEL POST TYPE 2","J0","GSP ITEM","TRAFFIC",18,2070,"C"]
["6747","L.F.","BEAM GUARDRAIL TYPE 1 - 9 FT. LONG POST","J0","STANDARD ITEM","TRAFFIC",18,2076,"E"]
["6748","L.F.","BEAM GUARDRAIL TYPE 1 - 8 FT. LONG POST","J0","STANDARD ITEM","TRAFFIC",18,2075,"E"]
["6749","L.F.","BEAM GUARDRAIL TYPE 1 - 11 FT. LONG POST","J0","STANDARD ITEM","TRAFFIC",18,2077,"E"]
["6750","EACH","BEAM GUARDRAIL POST","J0","STANDARD ITEM","TRAFFIC",18,2082,"C"]
["6751","L.F.","BEAM GUARDRAIL TYPE 1","J0","STANDARD ITEM","TRAFFIC",18,2085,"E"]
["6752","L.F.","BEAM GUARDRAIL TYPE 2","J0","STANDARD ITEM","TRAFFIC",18,2087,"E"]
["6753","L.F.","BEAM GUARDRAIL TYPE 3","J0","STANDARD ITEM","TRAFFIC",18,2089,"E"]
["6754","L.F.","BEAM GUARDRAIL TYPE 4","J0","STANDARD ITEM","TRAFFIC",18,2091,"E"]
["6755","EACH","BEAM GUARDRAIL BLOCK","J0","STANDARD ITEM","TRAFFIC",18,2083,"C"]
["6756","L.F.","BEAM GUARDRAIL TYPE","J0","STANDARD ITEM","TRAFFIC",18,2092,"E"]
["6757","L.F.","BEAM GUARDRAIL TYPE 31","J0","STANDARD ITEM","TRAFFIC",18,2094,"E"]
["6758","L.F.","BEAM GUARDRAIL TYPE 31NB","J0","STANDARD ITEM","TRAFFIC",18,2095,"E"]
["6759","L.F.","BEAM GUARDRAIL TYPE 10","J0","STANDARD ITEM","TRAFFIC",18,2093,"E"]
["6760","EACH","BEAM GUARDRAIL TRANSITION SECTION TYPE","J0","STANDARD ITEM","TRAFFIC",18,2096,"C"]
["6761","L.F.","WEATHERING ST. BEAM GUARDRAIL TYPE 1","J0","STANDARD ITEM","TRAFFIC",18,2109,"E"]
["6762","L.F.","WEATHERING ST. BEAM GUARDRAIL TYPE 2","J0","STANDARD ITEM","TRAFFIC",18,2110,"E"]
["6763","L.F.","SINGLE SLOPE CONCRETE BARRIER","D0","STANDARD ITEM","TRAFFIC",18,2129,"E"]
["6764","EACH","SINGLE SLOPE CONC. BARRIER LIGHT STANDARD FOUNDATION","D0","STANDARD ITEM","TRAFFIC",18,2130,"C"]
["6765","EACH","BEAM GUARDRAIL ANCHOR TYPE 7","J0","STANDARD ITEM","TRAFFIC",18,2116,"C"]
["6766","EACH","BEAM GUARDRAIL ANCHOR TYPE 10","J0","STANDARD ITEM","TRAFFIC",18,2117,"C"]
["6768","L.F.","WEATHERING ST. BEAM GUARDRAIL TYPE","J0","STANDARD ITEM","TRAFFIC",18,2112,"E"]
["6769","L.F.","WEATHERING ST. BEAM GUARDRAIL TYPE 10","J0","STANDARD ITEM","TRAFFIC",18,2111,"E"]
["6770","EACH","BEAM GUARDRAIL ANCHOR TYPE 5","J0","STANDARD ITEM","TRAFFIC",18,2115,"C"]
["6771","EACH","BEAM GUARDRAIL ANCHOR TYPE 1","J0","STANDARD ITEM","TRAFFIC",18,2113,"C"]
["6774","EACH","BEAM GUARDRAIL ANCHOR TYPE 4","J0","STANDARD ITEM","TRAFFIC",18,2114,"C"]
["6775","L.F.","PRECAST CONC. BARRIER FROM STOCKPILE","N0","REQUIRES SPECIAL PROV.","TRAFFIC",18,2125,"E"]
["6776","L.F.","PRECAST CONC. BARRIER TYPE","N0","STANDARD ITEM","TRAFFIC",18,2126,"E"]
["6777","L.F.","CAST-IN-PLACE CONC. BARRIER","D0","STANDARD ITEM","TRAFFIC",18,2131,"E"]
["6779","EACH","CAST-IN-PLACE CONC. BARRIER LIGHT STANDARD SECTION","D0","STANDARD ITEM","TRAFFIC",18,2132,"C"]
["6780","L.F.","REMOVING AND RESETTING BEAM GUARDRAIL","J0","STANDARD ITEM","TRAFFIC",18,2119,"E"]
["6781","L.F.","TEMPORARY CONC. BARRIER","N0","STANDARD ITEM","TRAFFIC",18,2135,"E"]
["6783","L.F.","RAISING EXISTING BEAM GUARDRAIL","J0","STANDARD ITEM","TRAFFIC",18,2121,"E"]
["6784","L.F.","REMOVING AND RESETTING EXISTING PERMANENT BARRIER","N0","STANDARD ITEM","TRAFFIC",18,2136,"E"]
["6790","L.F.","CONC. BARRIER TRANSITION TYPE 2 TO BRIDGE F-SHAPE","D0","STANDARD ITEM","TRAFFIC",18,2127,"E"]
["6795","C.Y.","CONC. CLASS 4000 FOR BARRIER","D0","STANDARD ITEM","TRAFFIC",18,2139,"E"]
["6799","LB.","ST. REINF. BAR FOR BARRIER","D0","REQUIRES SPECIAL PROV.","TRAFFIC",18,2141,"E"]
["6806","L.F.","PAINT LINE","P6","STANDARD ITEM","TRAFFIC",18,2158,"E"]
["6807","L.F.","PLASTIC LINE","V6","STANDARD ITEM","TRAFFIC",18,2159,"E"]
["6808","L.F.","EMBOSSED PLASTIC LINE","V6","STANDARD ITEM","TRAFFIC",18,2160,"E"]
["6809","L.F.","PROFILED PLASTIC LINE","V6","STANDARD ITEM","TRAFFIC",18,2161,"E"]
["6810","L.F.","PROFILED EMBOSSED PLASTIC LINE","P6","STANDARD ITEM","TRAFFIC",18,2162,"E"]
["6813","L.F.","GROOVED PLASTIC LINE","V6","STANDARD ITEM","TRAFFIC",18,2163,"E"]
["6817","L.F.","PAINTED WIDE LINE","P6","STANDARD ITEM","TRAFFIC",18,2164,"E"]
["6818","L.F.","PLASTIC WIDE LINE","V6","STANDARD ITEM","TRAFFIC",18,2167,"E"]
["6827","L.F.","PAINTED WIDE LANE LINE","P6","STANDARD ITEM","TRAFFIC",18,2166,"E"]
["6828","L.F.","PLASTIC WIDE LANE LINE","V6","STANDARD ITEM","TRAFFIC",18,2168,"E"]
["6830","EACH","BARRIER DELINEATOR","K4","GSP ITEM","TRAFFIC",18,2153,"C"]
["6832","EACH","FLEXIBLE GUIDE POST","K4","STANDARD ITEM","TRAFFIC",18,2152,"C"]
["6833","EACH","PLASTIC TRAFFIC ARROW","V6","STANDARD ITEM","TRAFFIC",18,2188,"C"]
["6835","EACH","REMOVING AND RESETTING GUIDE POST","K4","REQUIRES SPECIAL PROV.","TRAFFIC",18,2154,"C"]
["6840","L.F.","PRECAST SLOPED MOUNTABLE CURB","W4","STANDARD ITEM","TRAFFIC",18,2067,"E"]
["6841","L.F.","PRECAST DUAL FACED SLOPED MOUNTABLE CURB","W4","STANDARD ITEM","TRAFFIC",18,2068,"E"]
["6845","L.F.","PROFILED PLASTIC WIDE LANE LINE","V6","STANDARD ITEM","TRAFFIC",18,2165,"E"]
["6854","L.F.","PAINTED BARRIER CENTER LINE","P6","STANDARD ITEM","TRAFFIC",18,2169,"E"]
["6855","L.F.","PLASTIC BARRIER CENTER LINE","V6","STANDARD ITEM","TRAFFIC",18,2170,"E"]
["6856","S.F.","PAINTED CROSSWALK LINE","P6","STANDARD ITEM","TRAFFIC",18,2171,"E"]
["6857","S.F.","PLASTIC CROSSWALK LINE","V6","STANDARD ITEM","TRAFFIC",18,2172,"E"]
["6858","L.F.","PAINTED STOP LINE","P6","STANDARD ITEM","TRAFFIC",18,2173,"E"]
["6859","L.F.","PLASTIC STOP LINE","V6","STANDARD ITEM","TRAFFIC",18,2174,"E"]
["6860","EACH","PAINTED TRAFFIC ARROW","P0","STANDARD ITEM","TRAFFIC",18,2187,"C"]
["6862","EACH","PAINTED ACCESS PARKING SPACE SYMBOL","P0","STANDARD ITEM","TRAFFIC",18,2191,"C"]
["6863","EACH","PLASTIC ACCESS PARKING SPACE SYMBOL","V6","STANDARD ITEM","TRAFFIC",18,2192,"C"]
["6864","EACH","PAINTED HOV LANE SYMBOL","P0","STANDARD ITEM","TRAFFIC",18,2266,"C"]
["6865","EACH","PLASTIC HOV LANE SYMBOL","V6","STANDARD ITEM","TRAFFIC",18,2267,"C"]
["6866","EACH","PAINTED BICYCLE LANE SYMBOL","P0","STANDARD ITEM","TRAFFIC",18,2199,"C"]
["6867","EACH","PLASTIC BICYCLE LANE SYMBOL","V6","STANDARD ITEM","TRAFFIC",18,2200,"C"]
["6869","L.S.","PEDESTRIAN TRAFFIC CONTROL","A1","STANDARD ITEM","TRAFFIC",18,2268,"C"]
["6870","EACH","PAINTED TRAFFIC LETTER","P0","STANDARD ITEM","TRAFFIC",18,2189,"C"]
["6871","EACH","PLASTIC TRAFFIC LETTER","V6","STANDARD ITEM","TRAFFIC",18,2190,"C"]
["6874","EACH","PAINTED JUNCTION BOX MARKING","P0","STANDARD ITEM","TRAFFIC",18,2203,"C"]
["6875","EACH","PLASTIC JUNCTION BOX MARKING","V6","STANDARD ITEM","TRAFFIC",18,2204,"C"]
["6878","EACH","PAINTED RAILROAD CROSSING SYMBOL","P0","STANDARD ITEM","TRAFFIC",18,2197,"C"]
["6879","EACH","PLASTIC RAILROAD CROSSING SYMBOL","V6","STANDARD ITEM","TRAFFIC",18,2198,"C"]
["6880","EACH","PAINTED DRAINAGE MARKING","P0","STANDARD ITEM","TRAFFIC",18,2201,"C"]
["6881","EACH","PLASTIC DRAINAGE MARKING","V6","STANDARD ITEM","TRAFFIC",18,2202,"C"]
["6882","HUND","RAISED PAVEMENT MARKER TYPE 1","N2","STANDARD ITEM","TRAFFIC",18,2222,"C"]
["6884","HUND","RAISED PAVEMENT MARKER TYPE 2","N2","STANDARD ITEM","TRAFFIC",18,2223,"C"]
["6886","HUND","RAISED PAVEMENT MARKER TYPE 3","N2","STANDARD ITEM","TRAFFIC",18,2224,"C"]
["6887","EACH","WHITE PLASTIC RUMBLE BAR","N2","REQUIRES SPECIAL PROV.","TRAFFIC",18,2228,"C"]
["6888","L.F.","TEMPORARY PAVEMENT MARKING","N2","STANDARD ITEM","TRAFFIC",18,2227,"E"]
["6889","HUND","RECESSED PAVEMENT MARKER","N2","STANDARD ITEM","TRAFFIC",18,2225,"C"]
["6890","L.S.","PERMANENT SIGNING","U4","STANDARD ITEM","TRAFFIC",18,2229,"C"]
["6892","MI.","SHOULDER RUMBLE STRIP TYPE","E6","STANDARD ITEM","TRAFFIC",18,2220,"E"]
["6893","MI.","CENTERLINE RUMBLE STRIP","E6","STANDARD ITEM","TRAFFIC",18,2219,"E"]
["6897","L.S.","SIGN BRIDGE NO.","U8","STANDARD ITEM","TRAFFIC",18,2230,"C"]
["6898","L.S.","CANTILEVER SIGN STRUCTURE NO.","U8","STANDARD ITEM","TRAFFIC",18,2231,"C"]
["6899","L.S.","BRIDGE MOUNTED SIGN BRACKET NO.","U8","STANDARD ITEM","TRAFFIC",18,2232,"C"]
["6902","S.F.","SIGN COVERING","U4","STANDARD ITEM","TRAFFIC",18,2234,"E"]
["6903","L.S.","TEMPORARY ILLUMINATION SYSTEM","H2","REQUIRES SPECIAL PROV.","TRAFFIC",18,2235,"C"]
["6904","L.S.","ILLUMINATION SYSTEM","H2","STANDARD ITEM","TRAFFIC",18,2236,"C"]
["6912","L.S.","TRAFFIC SIGNAL SYSTEM","W6","STANDARD ITEM","TRAFFIC",18,2237,"C"]
["6913","L.S.","PORTABLE TEMPORARY TRAFFIC CONTROL SIGNAL","W6","STANDARD ITEM","TRAFFIC",18,2239,"C"]
["6914","L.S.","ITS","H4","STANDARD ITEM","TRAFFIC",18,2238,"C"]
["6915","L.F.","CASING","H2","STANDARD ITEM","TRAFFIC",18,2240,"E"]
["6917","L.F.","DIRECTIONAL BORING","H2","STANDARD ITEM","TRAFFIC",18,2241,"E"]
["6942","L.F.","CONDUIT PIPE 1 IN. DIAM.","H2","STANDARD ITEM","TRAFFIC",18,2242,"E"]
["6943","L.F.","CONDUIT PIPE 1-1/4 IN. DIAM.","H2","STANDARD ITEM","TRAFFIC",18,2243,"E"]
["6944","L.F.","CONDUIT PIPE 1-1/2 IN. DIAM.","H2","STANDARD ITEM","TRAFFIC",18,2244,"E"]
["6945","L.F.","CONDUIT PIPE 2 IN. DIAM.","H2","STANDARD ITEM","TRAFFIC",18,2245,"E"]
["6946","L.F.","CONDUIT PIPE 2-1/2 IN. DIAM.","H2","STANDARD ITEM","TRAFFIC",18,2246,"E"]
["6947","L.F.","CONDUIT PIPE 3 IN. DIAM.","H2","STANDARD ITEM","TRAFFIC",18,2247,"E"]
["6948","L.F.","CONDUIT PIPE 3-1/2 IN. DIAM.","H2","STANDARD ITEM","TRAFFIC",18,2248,"E"]
["6949","L.F.","CONDUIT PIPE 4 IN. DIAM.","B0","STANDARD ITEM","TRAFFIC",18,2249,"E"]
["6956","HR","SEQUENTIAL ARROW SIGN","W3","STANDARD ITEM","TRAFFIC",18,2257,"M"]
["6971","L.S.","PROJECT TEMPORARY TRAFFIC CONTROL","W3","GSP ITEM","TRAFFIC",18,2259,"C"]
["6973","L.S.","OTHER TEMPORARY TRAFFIC CONTROL","W3","STANDARD ITEM","TRAFFIC",18,2260,"C"]
["6974","L.S.","TRAFFIC CONTROL SUPERVISOR","W3","GSP ITEM","TRAFFIC",18,2263,"C"]
["6980","HR","FLAGGERS AND SPOTTERS","W3","STANDARD ITEM","TRAFFIC",18,2261,"M"]
["6982","S.F.","CONSTRUCTION SIGNS CLASS A","W3","STANDARD ITEM","TRAFFIC",18,2265,"E"]
["6992","HR","OTHER TRAFFIC CONTROL LABOR","W3","STANDARD ITEM","TRAFFIC",18,2262,"M"]
["6993","HR","PORTABLE CHANGEABLE MESSAGE SIGN","W3","STANDARD ITEM","TRAFFIC",18,2258,"M"]
["7000","EACH","SCHEDULE UPDATE","A1","GSP ITEM","OTHER ITEMS",19,2274,"C"]
["7001","EST.","TAX INCREASE PER SEC. 1-07.1","A1","HEADQUARTERS USE ONLY","OTHER ITEMS",19,2270,"C"]
["7002","EST.","INCENTIVE EARLY COMPL.","A1","HEADQUARTERS USE ONLY","OTHER ITEMS",19,2271,"C"]
["7003","L.S.","TYPE B PROGRESS SCHEDULE","A1","GSP ITEM","OTHER ITEMS",19,2272,"C"]
["7004","L.S.","TYPE C PROGRESS SCHEDULE","A1","GSP ITEM","OTHER ITEMS",19,2273,"C"]
["7005","C.Y.","STRUCTURE EXCAVATION CLASS B","I2","STANDARD ITEM","OTHER ITEMS",19,2277,"E"]
["7006","C.Y.","STRUCTURE EXCAVATION CLASS B INCL. HAUL","I2","STANDARD ITEM","OTHER ITEMS",19,2278,"E"]
["7007","S.F.","SHORING OR EXTRA EXCAVATION TRENCH","I2","STANDARD ITEM","OTHER ITEMS",19,2279,"E"]
["7008","S.F.","SHORING OR EXTRA EXCAVATION CLASS B","I2","STANDARD ITEM","OTHER ITEMS",19,2280,"E"]
["7011","C.Y.","GRAVEL BACKFILL FOR FOUNDATION CLASS A","F6","STANDARD ITEM","OTHER ITEMS",19,2288,"E"]
["7012","C.Y.","GRAVEL BACKFILL FOR FOUNDATION CLASS B","F6","STANDARD ITEM","OTHER ITEMS",19,2289,"E"]
["7013","C.Y.","GRAVEL BACKFILL FOR PIPE BEDDING","F6","REQUIRES SPECIAL PROV.","OTHER ITEMS",19,2290,"E"]
["7014","C.Y.","GRAVEL BACKFILL FOR DRAIN","F6","STANDARD ITEM","OTHER ITEMS",19,2292,"E"]
["7015","C.Y.","CONTROLLED DENSITY FILL","F6","STANDARD ITEM","OTHER ITEMS",19,2293,"E"]
["7016","C.Y.","DESIGN C TRENCH CONSTRUCTION","I2","STANDARD ITEM","OTHER ITEMS",19,2294,"E"]
["7017","C.Y.","GRAVEL BACKFILL FOR PIPE ZONE BEDDING","F6","STANDARD ITEM","OTHER ITEMS",19,2291,"E"]
["7018","MGAL","WATER","A1","STANDARD ITEM","OTHER ITEMS",19,2298,"E"]
["7024","C.Y.","CONC. CLASS 3000","E0","STANDARD ITEM","OTHER ITEMS",19,2300,"E"]
["7027","C.Y.","COMMERCIAL CONCRETE","E0","STANDARD ITEM","OTHER ITEMS",19,2301,"E"]
["7028","L.S.","CURE BOX","A1","STANDARD ITEM","OTHER ITEMS",19,2302,"C"]
["7029","EACH","PLUGGING EXISTING PIPE","G2","STANDARD ITEM","OTHER ITEMS",19,2304,"C"]
["7030","LB.","ST. REINF. BAR","U0","STANDARD ITEM","OTHER ITEMS",19,2306,"E"]
["7035","EACH","MILEPOST","U4","REQUIRES SPECIAL PROV.","OTHER ITEMS",19,2310,"C"]
["7037","L.S.","STRUCTURE SURVEYING","V3","GSP ITEM","OTHER ITEMS",19,2307,"C"]
["7038","L.S.","ROADWAY SURVEYING","V3","GSP ITEM","OTHER ITEMS",19,2308,"C"]
["7040","EST.","LICENSED SURVEYING","V3","GSP ITEM","OTHER ITEMS",19,2309,"C"]
["7041","EACH","BOLLARD TYPE","J0","GSP ITEM","OTHER ITEMS",19,2311,"C"]
["7043","EACH","ADJUST JUNCTION BOX","H2","REQUIRES SPECIAL PROV.","OTHER ITEMS",19,2435,"C"]
["7045","EACH","MONUMENT CASE AND COVER","O4","STANDARD ITEM","OTHER ITEMS",19,2312,"C"]
["7047","EACH","MONUMENT CASE, COVER, AND PIPE","O4","GSP ITEM","OTHER ITEMS",19,2313,"C"]
["7052","EACH","BRIDGE END SIDEWALK RAMP","A2","REQUIRES SPECIAL PROV.","OTHER ITEMS",19,2315,"C"]
["7054","S.F.","DETECTABLE WARNING SURFACE","C8","STANDARD ITEM","OTHER ITEMS",19,2321,"E"]
["7055","S.Y.","CEMENT CONC. SIDEWALK","C8","STANDARD ITEM","OTHER ITEMS",19,2316,"E"]
["7056","S.Y.","CEMENT CONC. SIDEWALK WITH RAISED EDGE","C8","STANDARD ITEM","OTHER ITEMS",19,2325,"E"]
["7057","S.Y.","MONOLITHIC CEMENT CONC. CURB AND SIDEWALK","C8","STANDARD ITEM","OTHER ITEMS",19,2323,"E"]
["7058","EACH","CEMENT CONC. CURB RAMP TYPE","C8","STANDARD ITEM","OTHER ITEMS",19,2320,"C"]
["7059","S.Y.","CEMENT CONC. DRIVEWAY ENTRANCE TYPE","C8","STANDARD ITEM","OTHER ITEMS",19,2318,"E"]
["7060","S.Y.","ASPHALT CONC. SIDEWALK","A2","REQUIRES SPECIAL PROV.","OTHER ITEMS",19,2317,"E"]
["7065","S.Y.","CONC. SLOPE PROTECTION","E8","STANDARD ITEM","OTHER ITEMS",19,2326,"E"]
["7066","S.Y.","SEMI-OPEN CONC. MASONRY SLOPE PROTECTION","E8","GSP ITEM","OTHER ITEMS",19,2331,"E"]
["7070","L.F.","ROCK BOLT","V7","GSP ITEM","OTHER ITEMS",19,2485,"E"]
["7071","L.F.","ROCK DOWEL TYPE","V7","GSP ITEM","OTHER ITEMS",19,2487,"E"]
["7072","L.F.","GALVANIZED WIRE ROPE","X0","STANDARD ITEM","OTHER ITEMS",19,2335,"E"]
["7073","EST.","FORCE ACCOUNT ROCK BOLT & ROCK DOWEL GROUT EXCEEDANCE","A1","GSP ITEM","OTHER ITEMS",19,2489,"C"]
["7074","EACH","WIRE MESH SLOPE PROTECTION ANCHOR","X0","STANDARD ITEM","OTHER ITEMS",19,2332,"C"]
["7076","S.F.","GALVANIZED WIRE MESH","X0","STANDARD ITEM","OTHER ITEMS",19,2337,"E"]
["7078","S.F.","CABLE NET SLOPE PROTECTION TYPE","X0","GSP ITEM","OTHER ITEMS",19,2338,"E"]
["7080","L.F.","CABLE FENCE","I6","BSP ITEM","OTHER ITEMS",19,2347,"E"]
["7083","L.F.","CHAIN LINK FENCE TYPE 3","I6","STANDARD ITEM","OTHER ITEMS",19,2348,"E"]
["7084","L.F.","CHAIN LINK FENCE TYPE 4","I6","STANDARD ITEM","OTHER ITEMS",19,2350,"E"]
["7085","L.F.","COATED CHAIN LINK FENCE TYPE 3","I6","GSP ITEM","OTHER ITEMS",19,2349,"E"]
["7086","L.F.","CHAIN LINK FENCE TYPE 6","I6","STANDARD ITEM","OTHER ITEMS",19,2352,"E"]
["7088","L.F.","COATED CHAIN LINK FENCE TYPE 4","I6","GSP ITEM","OTHER ITEMS",19,2351,"E"]
["7089","L.F.","COATED CHAIN LINK FENCE TYPE 6","I6","GSP ITEM","OTHER ITEMS",19,2353,"E"]
["7097","EACH","END, GATE, CORNER, AND PULL POST FOR CHAIN LINK FENCE","I6","STANDARD ITEM","OTHER ITEMS",19,2354,"C"]
["7098","EACH","COATED END, GATE, CORNER, PULLPOST FOR CHAIN LINK FENCE","I6","GSP ITEM","OTHER ITEMS",19,2355,"C"]
["7100","EACH","SINGLE 6 FT. CHAIN LINK GATE","I6","STANDARD ITEM","OTHER ITEMS",19,2356,"C"]
["7101","EACH","SINGLE 6 FT. COATED CHAIN LINK GATE","I6","GSP ITEM","OTHER ITEMS",19,2357,"C"]
["7102","EACH","DOUBLE 14 FT. CHAIN LINK GATE","I6","STANDARD ITEM","OTHER ITEMS",19,2358,"C"]
["7103","EACH","DOUBLE 14 FT. COATED CHAIN LINK GATE","I6","GSP ITEM","OTHER ITEMS",19,2359,"C"]
["7104","EACH","DOUBLE 20 FT. CHAIN LINK GATE","I6","STANDARD ITEM","OTHER ITEMS",19,2360,"C"]
["7106","EACH","DOUBLE 20 FT. COATED CHAIN LINK GATE","I6","GSP ITEM","OTHER ITEMS",19,2361,"C"]
["7110","L.F.","WIRE FENCE TYPE 1","I6","STANDARD ITEM","OTHER ITEMS",19,2370,"E"]
["7111","L.F.","WIRE FENCE TYPE 2","I6","STANDARD ITEM","OTHER ITEMS",19,2371,"E"]
["7114","L.F.","REMOVING AND RESETTING WIRE FENCE","I6","REQUIRES SPECIAL PROV.","OTHER ITEMS",19,2373,"E"]
["7116","EACH","SINGLE WIRE GATE 14 FT. WIDE","I6","STANDARD ITEM","OTHER ITEMS",19,2374,"C"]
["7118","EACH","DOUBLE WIRE GATE 20 FT. WIDE","I6","STANDARD ITEM","OTHER ITEMS",19,2377,"C"]
["7119","L.F.","GAME FENCE","I6","REQUIRES SPECIAL PROV.","OTHER ITEMS",19,2379,"E"]
["7130","L.F.","GLARE SCREEN TYPE 1 DESIGN A","I6","STANDARD ITEM","OTHER ITEMS",19,2385,"E"]
["7132","L.F.","GLARE SCREEN TYPE 1 DESIGN B","I6","STANDARD ITEM","OTHER ITEMS",19,2386,"E"]
["7135","L.F.","GLARE SCREEN TYPE 2","I6","STANDARD ITEM","OTHER ITEMS",19,2387,"E"]
["7136","L.F.","BARRIER GLARE SCREEN","I6","GSP ITEM","OTHER ITEMS",19,2388,"E"]
["7137","L.F.","TEMPORARY BARRIER GLARE SCREEN","I6","GSP ITEM","OTHER ITEMS",19,2389,"E"]
["7145","EACH","ACCESS CONTROL GATE","I6","STANDARD ITEM","OTHER ITEMS",19,2390,"C"]
["7150","C.Y.","GABION CRIBBING","J2","STANDARD ITEM","OTHER ITEMS",19,2391,"E"]
["7160","TON","ROCK RETAINING WALL","S4","REQUIRES SPECIAL PROV.","OTHER ITEMS",19,2392,"E"]
["7164","S.F.","GRAVITY BLOCK WALL","S4","GSP ITEM","OTHER ITEMS",19,2393,"E"]
["7166","TON","ROCK FOR ROCK WALL","S4","STANDARD ITEM","OTHER ITEMS",19,2394,"E"]
["7167","TON","BACKFILL FOR ROCK WALL","S4","STANDARD ITEM","OTHER ITEMS",19,2395,"E"]
["7169","S.F.","STRUCTURAL EARTH WALL","E0","STANDARD ITEM","STRUCTURE",8,1658,"E"]
["7170","C.Y.","BACKFILL FOR STRUCTURAL EARTH WALL INCL. HAUL","I2","STANDARD ITEM","STRUCTURE",8,1659,"E"]
["7173","S.F.","FIBER BONDED METAL CRIBBING TYPE 0 DESIGN 0","O2","STANDARD ITEM","OTHER ITEMS",19,2402,"E"]
["7180","S.Y.","WATERPROOF STRESS MEMBRANE","A4","WSF ITEM REQ. SPECIAL PROV.","HOT MIX ASPHALT",14,1900,"E"]
["7200","L.S.","CLEANING AND PAINTING","P4","REQUIRES SPECIAL PROV.","OTHER ITEMS",19,2403,"C"]
["7220","L.F.","PAINTING CURB","P6","WSF ITEM REQ. SPECIAL PROV.","TRAFFIC",18,2269,"E"]
["7300","L.S.","NAVIGATION LIGHTING SYSTEM","H2","GSP ITEM","OTHER ITEMS",19,2404,"C"]
["7315","L.F.","TEMPORARY PIPE SLOPE DRAIN","G2","STANDARD ITEM","EROSION CNTL AND ROADSIDE RESTORATION",17,1933,"E"]
["7330","EACH","AREA INLET","G2","STANDARD ITEM","OTHER ITEMS",19,2405,"C"]
["7342","EACH","ADJUST BRIDGE DRAIN","G2","REQUIRES SPECIAL PROV.","OTHER ITEMS",19,2407,"C"]
["7345","EACH","ABANDON EXISTING MANHOLE","T8","STANDARD ITEM","OTHER ITEMS",19,2408,"C"]
["7350","L.S.","CLEANING EXISTING DRAINAGE STRUCTURE","A1","STANDARD ITEM","OTHER ITEMS",19,2433,"C"]
["7360","EACH","MANHOLE 48 IN. DIAM. TYPE","T8","STANDARD ITEM","OTHER ITEMS",19,2419,"C"]
["7363","EACH","MANHOLE 54 IN. DIAM. TYPE","T8","STANDARD ITEM","OTHER ITEMS",19,2420,"C"]
["7364","EACH","MANHOLE 60 IN. DIAM. TYPE","T8","STANDARD ITEM","OTHER ITEMS",19,2421,"C"]
["7365","EACH","MANHOLE 72 IN. DIAM. TYPE","T8","STANDARD ITEM","OTHER ITEMS",19,2422,"C"]
["7366","EACH","MANHOLE 84 IN. DIAM. TYPE","T8","STANDARD ITEM","OTHER ITEMS",19,2423,"C"]
["7367","EACH","MANHOLE 96 IN. DIAM. TYPE","T8","STANDARD ITEM","OTHER ITEMS",19,2424,"C"]
["7369","L.F.","MANHOLE ADDITIONAL HEIGHT 48 IN. DIAM. TYPE","T8","STANDARD ITEM","OTHER ITEMS",19,2425,"E"]
["7371","L.F.","MANHOLE ADDITIONAL HEIGHT 54 IN. DIAM. TYPE","T8","STANDARD ITEM","OTHER ITEMS",19,2426,"E"]
["7372","L.F.","MANHOLE ADDITIONAL HEIGHT 60 IN. DIAM. TYPE","T8","STANDARD ITEM","OTHER ITEMS",19,2427,"E"]
["7373","L.F.","MANHOLE ADDITIONAL HEIGHT 72 IN. DIAM. TYPE","T8","STANDARD ITEM","OTHER ITEMS",19,2428,"E"]
["7375","L.F.","MANHOLE ADDITIONAL HEIGHT 96 IN. DIAM. TYPE","T8","STANDARD ITEM","OTHER ITEMS",19,2429,"E"]
["7380","EACH","ADJUST MONUMENT CASE AND COVER","O4","REQUIRES SPECIAL PROV.","OTHER ITEMS",19,2314,"C"]
["7400","HR","TRAINING","A1","GSP ITEM","OTHER ITEMS",19,2437,"M"]
["7431","L.F.","HIGH-TENSION CABLE BARRIER SYSTEM (3 CABLE)","J0","GSP ITEM","TRAFFIC",18,2143,"E"]
["7432","L.F.","HIGH-TENSION CABLE BARRIER SYSTEM (4 CABLE)","J0","GSP ITEM","TRAFFIC",18,2144,"E"]
["7434","L.S.","ADDITIONAL HIGH-TENSION CABLE BARRIER COMPONENTS","J0","GSP ITEM","TRAFFIC",18,2145,"C"]
["7440","EACH","TEMPORARY IMPACT ATTENUATOR","L6","STANDARD ITEM","TRAFFIC",18,2146,"C"]
["7442","EACH","PERMANENT IMPACT ATTENUATOR","L6","STANDARD ITEM","TRAFFIC",18,2147,"C"]
["7445","EACH","RESETTING IMPACT ATTENUATOR","L6","STANDARD ITEM","TRAFFIC",18,2148,"C"]
["7447","EACH","TRANSPORTABLE ATTENUATOR(S)","L6","STANDARD ITEM","TRAFFIC",18,2149,"C"]
["7449","HR","OPERATION OF TRANSPORTABLE ATTENUATOR(S)","L6","STANDARD ITEM","TRAFFIC",18,2150,"M"]
["7450","EST.","REPAIR TRANSPORTABLE ATTENUATOR(S)","L6","STANDARD ITEM","TRAFFIC",18,2151,"C"]
["7480","EST.","ROADSIDE CLEANUP","A1","STANDARD ITEM","OTHER ITEMS",19,2438,"C"]
["7490","L.S.","TRIMMING AND CLEANUP","A1","STANDARD ITEM","OTHER ITEMS",19,2439,"C"]
["7491","L.S.","TRIMMING AND CLEANUP","A1","REQUIRES SPECIAL PROV.","OTHER ITEMS",19,2440,"C"]
["7500","L.S.","FIELD OFFICE BUILDING","A1","GSP ITEM","OTHER ITEMS",19,2448,"C"]
["7530","S.Y.","CONSTRUCTION GEOTEXTILE FOR SEPARATION","G2","STANDARD ITEM","OTHER ITEMS",19,2449,"E"]
["7535","S.Y.","CONSTRUCTION GEOTEXTILE FOR DITCH LINING","G2","STANDARD ITEM","OTHER ITEMS",19,2450,"E"]
["7550","S.Y.","CONSTRUCTION GEOTEXTILE FOR UNDERGROUND DRAINAGE","G2","STANDARD ITEM","OTHER ITEMS",19,2451,"E"]
["7552","S.Y.","CONSTRUCTION GEOTEXTILE FOR SOIL STABILIZATION","G2","STANDARD ITEM","OTHER ITEMS",19,2452,"E"]
["7554","S.Y.","CONSTRUCTION GEOTEXTILE FOR PERMANENT EROSION CONTROL","G2","STANDARD ITEM","OTHER ITEMS",19,2453,"E"]
["7558","S.F.","GEOTEXTILE RETAINING WALL","G2","REQUIRES SPECIAL PROV.","OTHER ITEMS",19,2454,"E"]
["7559","S.F.","GEOSYNTHETIC RETAINING WALL","G2","STANDARD ITEM","OTHER ITEMS",19,2455,"E"]
["7561","S.F.","SHOTCRETE FACING","E4","STANDARD ITEM","OTHER ITEMS",19,2472,"E"]
["7562","EACH","MAILBOX SUPPORT TYPE","U8","STANDARD ITEM","OTHER ITEMS",19,2474,"C"]
["7563","C.Y.","SHOTCRETE FACING FOR ROCK/SOIL SLOPE STABILIZATION","E4","GSP ITEM","OTHER ITEMS",19,2473,"E"]
["7565","S.F.","TEMPORARY GEOSYNTHETIC RETAINING WALL","G2","GSP ITEM","OTHER ITEMS",19,2456,"E"]
["7567","C.Y.","GRAVEL BORROW FOR GEOSYNTHETIC RET. WALL INCL. HAUL","I2","STANDARD ITEM","OTHER ITEMS",19,2457,"E"]
["7568","TON","GRAVEL BORROW FOR GEOSYNTHETIC RET. WALL INCL. HAUL","I2","STANDARD ITEM","OTHER ITEMS",19,2458,"E"]
["7569","EACH","NO TRESPASSING SIGN","A1","GSP ITEM","OTHER ITEMS",19,2459,"C"]
["7570","L.S.","HEALTH AND SAFETY PLAN","A1","GSP ITEM","OTHER ITEMS",19,2460,"C"]
["7571","EST.","FA-SITE CLEANUP OF  BIO.  AND PHYSICAL HAZARDS","A1","GSP ITEM","OTHER ITEMS",19,2476,"C"]
["7715","EST.","FORCE ACCOUNT","A1","REQUIRES SPECIAL PROV.","OTHER ITEMS",19,2436,"C"]
["7725","EST.","REIMBURSEMENT FOR THIRD PARTY DAMAGE","A1","STANDARD ITEM","OTHER ITEMS",19,2441,"C"]
["7728","CALC","MINOR CHANGE","A1","STANDARD ITEM","OTHER ITEMS",19,2442,"C"]
["7730","CALC","FUEL COST ADJUSTMENT","A1","GSP ITEM","OTHER ITEMS",19,2443,"C"]
["7731","CALC","STEEL COST ADJUSTMENT","A1","STANDARD ITEM","OTHER ITEMS",19,2444,"C"]
["7732","CALC","AGGREGATE COMPLIANCE PRICE ADJUSTMENT","A1","GSP ITEM","OTHER ITEMS",19,2445,"C"]
["7733","L.S.","CONFIRMATION SCALE","A1","GSP ITEM","OTHER ITEMS",19,2446,"C"]
["7736","L.S.","SPCC PLAN","A1","STANDARD ITEM","OTHER ITEMS",19,2447,"C"]
["7800","EACH","DELETED ITEM","A0","STANDARD ITEM","OTHER ITEMS",19,2475,"C"]
["7810","m3","ROCK EXCAVATION","X2","STANDARD ITEM","WATER LINES",7,1216,"M"]
["7815","m3","EXTRA TRENCH EXCAVATION","X2","STANDARD ITEM","WATER LINES",7,1218,"M"]
["7820","m3","REMOVAL AND REPLACEMENT OF UNSUITABLE MATERIAL","X2","STANDARD ITEM","WATER LINES",7,1220,"M"]
["7825","m3","BANK RUN GRAVEL FOR TRENCH BACKFILL","X2","STANDARD ITEM","WATER LINES",7,1222,"M"]
["7831","EACH","GATE VALVE 100 MM","X2","STANDARD ITEM","WATER LINES",7,1223,"C"]
["7833","EACH","GATE VALVE 150 MM","X2","STANDARD ITEM","WATER LINES",7,1225,"C"]
["7834","EACH","GATE VALVE 200 MM","X2","STANDARD ITEM","WATER LINES",7,1227,"C"]
["7835","EACH","GATE VALVE 250 MM","X2","STANDARD ITEM","WATER LINES",7,1229,"C"]
["7836","EACH","GATE VALVE 300 MM","X2","STANDARD ITEM","WATER LINES",7,1231,"C"]
["7840","EACH","BUTTERFLY VALVE 300 MM","X2","STANDARD ITEM","WATER LINES",7,1234,"C"]
["7841","EACH","BUTTERFLY VALVE 350 MM","X2","STANDARD ITEM","WATER LINES",7,1235,"C"]
["7842","EACH","BUTTERFLY VALVE 400 MM","X2","STANDARD ITEM","WATER LINES",7,1237,"C"]
["7843","EACH","BUTTERFLY VALVE 450 MM","X2","STANDARD ITEM","WATER LINES",7,1239,"C"]
["7844","EACH","BUTTERFLY VALVE 600 MM","X2","STANDARD ITEM","WATER LINES",7,1241,"C"]
["7845","EACH","BUTTERFLY VALVE 900 MM","X2","STANDARD ITEM","WATER LINES",7,1243,"C"]
["7847","EACH","COMB. AIR RELEASE/AIR VACUUM VALVE ASSEMBLY 25 MM","X2","STANDARD ITEM","WATER LINES",7,1244,"C"]
["7848","EACH","COMB. AIR RELEASE/AIR VACUUM VALVE ASSEMBLY 50 MM","X2","STANDARD ITEM","WATER LINES",7,1245,"C"]
["7850","EACH","TAPPING SLEEVE AND VALVE ASSEMBLY 150 MM","X2","STANDARD ITEM","WATER LINES",7,1251,"C"]
["7851","EACH","TAPPING SLEEVE AND VALVE ASSEMBLY 200 MM","X2","STANDARD ITEM","WATER LINES",7,1252,"C"]
["7860","EACH","SERVICE CONNECTION 20 MM DIAM.","X2","STANDARD ITEM","WATER LINES",7,1261,"C"]
["7861","EACH","SERVICE CONNECTION 25 MM DIAM.","X2","STANDARD ITEM","WATER LINES",7,1262,"C"]
["7862","EACH","SERVICE CONNECTION 32 MM DIAM.","X2","STANDARD ITEM","WATER LINES",7,1263,"C"]
["7863","EACH","SERVICE CONNECTION 50 MM DIAM.","X2","STANDARD ITEM","WATER LINES",7,1264,"C"]
["7864","m","HYDRANT EXTENSIONS","X2","STANDARD ITEM","WATER LINES",7,1260,"M"]
["7890","m","DUCTILE IRON PIPE FOR WATER MAIN 100 MM DIAM.","X2","STANDARD ITEM","WATER LINES",7,1269,"M"]
["7891","m","DUCTILE IRON PIPE FOR WATER MAIN 150 MM DIAM.","X2","STANDARD ITEM","WATER LINES",7,1270,"M"]
["7892","m","DUCTILE IRON PIPE FOR WATER MAIN 200 MM DIAM.","X2","STANDARD ITEM","WATER LINES",7,1271,"M"]
["7893","m","DUCTILE IRON PIPE FOR WATER MAIN 250 MM DIAM.","X2","STANDARD ITEM","WATER LINES",7,1272,"M"]
["7894","m","DUCTILE IRON PIPE FOR WATER MAIN 300 MM DIAM.","X2","STANDARD ITEM","WATER LINES",7,1273,"M"]
["7895","m","DUCTILE IRON PIPE FOR WATER MAIN 350 MM DIAM.","X2","STANDARD ITEM","WATER LINES",7,1274,"M"]
["7896","m","DUCTILE IRON PIPE FOR WATER MAIN 400 MM DIAM.","X2","STANDARD ITEM","WATER LINES",7,1275,"M"]
["7897","m","DUCTILE IRON PIPE FOR WATER MAIN 450 MM DIAM.","X2","STANDARD ITEM","WATER LINES",7,1276,"M"]
["7898","m","DUCTILE IRON PIPE FOR WATER MAIN 600 MM DIAM.","X2","STANDARD ITEM","WATER LINES",7,1278,"M"]
["7899","m","DUCTILE IRON PIPE FOR WATER MAIN 750 MM DIAM.","X2","STANDARD ITEM","WATER LINES",7,1280,"M"]
["7900","m","DUCTILE IRON PIPE FOR WATER MAIN 900 MM DIAM.","X2","STANDARD ITEM","WATER LINES",7,1282,"M"]
["7925","m","CONC. CYLINDER PIPE FOR WATER MAIN 900 MM DIAM.","X2","STANDARD ITEM","WATER LINES",7,1291,"M"]
["7926","m","ST. PIPE FOR WATER MAIN 100 MM DIAM.","X2","STANDARD ITEM","WATER LINES",7,1293,"M"]
["7927","m","ST. PIPE FOR WATER MAIN 150 MM DIAM.","X2","STANDARD ITEM","WATER LINES",7,1294,"M"]
["7993","m","PVC PIPE FOR WATER MAIN 80 MM DIAM.","X2","STANDARD ITEM","WATER LINES",7,1297,"M"]
["7994","m","PVC PIPE FOR WATER MAIN 100 MM DIAM.","X2","STANDARD ITEM","WATER LINES",7,1298,"M"]
["7995","m","PVC PIPE FOR WATER MAIN 300 MM DIAM.","X2","STANDARD ITEM","WATER LINES",7,1299,"M"]
["8330","m3","STRUCTURE EXCAVATION CLASS A","I2","STANDARD ITEM","STRUCTURE",8,1307,"M"]
["8331","m3","STRUCTURE EXCAVATION CLASS A INCL. HAUL","I2","STANDARD ITEM","STRUCTURE",8,1309,"M"]
["8332","m3","SOIL EXCAVATION FOR SHAFT INCLUDING HAUL","T0","STANDARD ITEM","STRUCTURE",8,1311,"M"]
["8333","m3","ROCK EXCAVATION FOR SHAFT INCLUDING HAUL","T0","STANDARD ITEM","STRUCTURE",8,1313,"M"]
["8335","m3","SPECIAL EXCAVATION","I2","REQUIRES SPECIAL PROV.","STRUCTURE",8,1315,"M"]
["8340","m3","GRAVEL BACKFILL FOR WALL","I2","STANDARD ITEM","STRUCTURE",8,1317,"M"]
["8344","m","CASING SHORING","T0","STANDARD ITEM","STRUCTURE",8,1356,"M"]
["8348","m","SHAFT - 610 MM DIAMETER","T0","STANDARD ITEM","STRUCTURE",8,1359,"M"]
["8349","m","SHAFT - 760 MM DIAMETER","T0","STANDARD ITEM","STRUCTURE",8,1361,"M"]
["8350","m","SHAFT - 915 MM DIAMETER","T0","STANDARD ITEM","STRUCTURE",8,1363,"M"]
["8351","m","SHAFT - 1070 MM DIAMETER","T0","STANDARD ITEM","STRUCTURE",8,1365,"M"]
["8353","m","FURNISHING SOLDIER PILE","T0","STANDARD ITEM","STRUCTURE",8,1367,"M"]
["8356","m","PREBORING FOR 300MM DIAM. CONC. PILE","Q4","GSP ITEM","STRUCTURE",8,1369,"M"]
["8357","m","PREBORING FOR 350MM DIAM. CONC. PILE","Q4","GSP ITEM","STRUCTURE",8,1371,"M"]
["8363","m","FURNISHING CONC. PILING","Q4","STANDARD ITEM","STRUCTURE",8,1387,"M"]
["8364","m","PREBORING FOR 400MM DIAM. CONC. PILE","Q4","GSP ITEM","STRUCTURE",8,1373,"M"]
["8366","m","PREBORING FOR 450MM DIAM. CONC. PILE","Q4","GSP ITEM","STRUCTURE",8,1375,"M"]
["8368","m","PREBORING FOR 500MM DIAM. CONC. PILE","Q4","GSP ITEM","STRUCTURE",8,1377,"M"]
["8370","m","PREBORING FOR 600MM DIAM. CONC. PILE","Q4","GSP ITEM","STRUCTURE",8,1379,"M"]
["8372","m","PREBORING FOR 750MM DIAM. CONC. PILE","Q4","GSP ITEM","STRUCTURE",8,1381,"M"]
["8373","m","FURNISHING ST. PILING","Q4","STANDARD ITEM","STRUCTURE",8,1392,"M"]
["8375","m","PREBORING FOR ST. PILE","Q4","GSP ITEM","STRUCTURE",8,1383,"M"]
["8376","EACH","FURNISHING STEEL PILE TIP OR SHOE","Q4","STANDARD ITEM","STRUCTURE",8,1394,"C"]
["8377","m","PREBORING FOR TIMBER PILE","Q4","GSP ITEM","STRUCTURE",8,1385,"M"]
["8378","EACH","PRECAST CONCRETE PILE BUILDUP","Q4","STANDARD ITEM","STRUCTURE",8,1395,"C"]
["8381","m","FURNISHING TIMBER PILING - UNTREATED","Q4","STANDARD ITEM","STRUCTURE",8,1398,"M"]
["8384","m","FURNISHING TIMBER PILING ","Q4","STANDARD ITEM","STRUCTURE",8,1399,"M"]
["8393","m","FURNISHING PRESTRESSED HOLLOW CONC. PILING","Q4","STANDARD ITEM","STRUCTURE",8,1405,"M"]
["8410","kg","EPOXY-COATED ST. REINF. BAR","U0","STANDARD ITEM","STRUCTURE",8,1409,"M"]
["8412","kg","EPOXY-COATED ST. REINF. BAR FOR BRIDGE","U0","STANDARD ITEM","STRUCTURE",8,1411,"M"]
["8414","kg","EPOXY-COATED ST. REINF. BAR - SUPERSTR.","U0","STANDARD ITEM","STRUCTURE",8,1413,"M"]
["8416","kg","EPOXY-COATED ST. REINF. BAR - SUPERSTR. INCL. TRAF. BAR.","U0","STANDARD ITEM","STRUCTURE",8,1415,"M"]
["8417","kg","EPOXY-COATED ST. REINF. BAR FOR RETAINING WALL","U0","STANDARD ITEM","STRUCTURE",8,1417,"M"]
["8418","kg","EPOXY-COATED ST. REINF. BAR FOR","U0","STANDARD ITEM","STRUCTURE",8,1419,"M"]
["8420","kg","ST. REINF. BAR FOR BRIDGE","U0","STANDARD ITEM","STRUCTURE",8,1421,"M"]
["8422","kg","ST. REINF. BAR - SUPERSTR.","U0","STANDARD ITEM","STRUCTURE",8,1423,"M"]
["8424","kg","ST. REINF. BAR - SUPERSTR. INCL. TRAF. BAR.","U0","STANDARD ITEM","STRUCTURE",8,1425,"M"]
["8425","kg","ST. REINF. BAR FOR RETAINING WALL","U0","STANDARD ITEM","STRUCTURE",8,1427,"M"]
["8426","kg","ST. REINF. BAR FOR","U0","STANDARD ITEM","STRUCTURE",8,1429,"M"]
["8427","kg","ST. REINF. BAR FOR SHAFT","U0","REQUIRES SPECIAL PROV.","STRUCTURE",8,1431,"M"]
["8429","m","CSL ACCESS TUBE","U0","REQUIRES SPECIAL PROV.","STRUCTURE",8,1434,"M"]
["8430","m3","LEAN CONCRETE","E0","STANDARD ITEM","STRUCTURE",8,1436,"M"]
["8440","m3","CONC. CLASS 20 FOR","E0","STANDARD ITEM","STRUCTURE",8,1437,"M"]
["8442","m3","CONC. CLASS 28 FOR","E0","STANDARD ITEM","STRUCTURE",8,1438,"M"]
["8452","m3","CONC. CLASS 28 FOR BRIDGE","B0","STANDARD ITEM","STRUCTURE",8,1439,"M"]
["8454","m3","CONC. CLASS 28 - SUPERSTR.","B0","STANDARD ITEM","STRUCTURE",8,1440,"M"]
["8462","m3","CONC. CLASS 28 TRAFFIC BARRIER - SUPERSTR.","B0","STANDARD ITEM","STRUCTURE",8,1441,"M"]
["8464","m3","CONC. CLASS 28 - SUPERSTR. INCL. TRAF. BAR.","B0","STANDARD ITEM","STRUCTURE",8,1442,"M"]
["8465","m3","CONC. CLASS 28 FOR RETAINING WALL","B0","STANDARD ITEM","STRUCTURE",8,1443,"M"]
["8466","m3","CONC. CLASS 28W FOR","E0","STANDARD ITEM","STRUCTURE",8,1444,"M"]
["8468","m3","CONC. CLASS 28W FOR BRIDGE","B0","STANDARD ITEM","STRUCTURE",8,1445,"M"]
["8469","m3","CONC. CLASS 28P FOR SHAFT","B0","REQUIRES SPECIAL PROV.","STRUCTURE",8,1447,"M"]
["8470","m3","CONC. CLASS 28D FOR BRIDGE","B0","STANDARD ITEM","STRUCTURE",8,1448,"M"]
["8475","m3","CONC. CLASS 35 FOR","E0","STANDARD ITEM","STRUCTURE",8,1449,"M"]
["8477","m3","CONC. CLASS 35 FOR BRIDGE","B0","STANDARD ITEM","STRUCTURE",8,1450,"M"]
["8479","m3","CONC. CLASS 35 - SUPERSTR.","B0","STANDARD ITEM","STRUCTURE",8,1452,"M"]
["8490","m3","CONC. CLASS 43 FOR","E0","STANDARD ITEM","STRUCTURE",8,1455,"M"]
["8491","m3","CONC. CLASS 43 FOR BRIDGE","B0","STANDARD ITEM","STRUCTURE",8,1456,"M"]
["8492","m3","CONC. CLASS 43 - SUPERSTR.","B0","STANDARD ITEM","STRUCTURE",8,1458,"M"]
["8496","m3","CONC. CLASS 28 - BOX GIRDER - SUPERSTR.","B0","STANDARD ITEM","STRUCTURE",8,1464,"M"]
["8498","m3","CONC. CLASS 35 - BOX GIRDER - SUPERSTR.","B0","STANDARD ITEM","STRUCTURE",8,1466,"M"]
["8499","m3","CONC. CLASS 43 - BOX GIRDER - SUPERSTR.","B0","STANDARD ITEM","STRUCTURE",8,1467,"M"]
["8500","m","PRESTRESSED CONC. GIRDER","R8","BSP ITEM","STRUCTURE",8,1478,"M"]
["8511","kg","PRESTRESSING BAR - SUPERSTR.","B0","REQUIRES SPECIAL PROV.","STRUCTURE",8,1480,"M"]
["8512","kg","PRESTRESSING STRAND - SUPERSTR.","B0","REQUIRES SPECIAL PROV.","STRUCTURE",8,1482,"M"]
["8515","m3","MODIFIED CONC. OVERLAY","B0","STANDARD ITEM","STRUCTURE",8,1487,"M"]
["8516","m2","FINISHING AND CURING MODIFIED CONC. OVERLAY","E0","STANDARD ITEM","STRUCTURE",8,1489,"M"]
["8517","m2","EXPOSED AGG. FINISH","B0","REQUIRES SPECIAL PROV.","STRUCTURE",8,1491,"M"]
["8518","m2","PERMEON TREATMENT","B0","BSP ITEM","STRUCTURE",8,1493,"M"]
["8526","kg","STRUCTURAL CARBON STEEL - SUPERSTR.","H8","STANDARD ITEM","STRUCTURE",8,1496,"M"]
["8530","kg","STRUCTURAL HIGH STRENGTH STEEL - SUPERSTR.","H8","STANDARD ITEM","STRUCTURE",8,1500,"M"]
["8536","kg","CAST STEEL","H8","STANDARD ITEM","STRUCTURE",8,1502,"M"]
["8537","kg","CAST STEEL - SUPERSTR.","H8","STANDARD ITEM","STRUCTURE",8,1503,"M"]
["8539","kg","FORGED STEEL - SUPERSTR.","H8","STANDARD ITEM","STRUCTURE",8,1509,"M"]
["8540","kg","FORGED STEEL","H8","STANDARD ITEM","STRUCTURE",8,1510,"M"]
["8546","kg","CAST IRON","M2","STANDARD ITEM","STRUCTURE",8,1514,"M"]
["8547","kg","CAST IRON - SUPERSTR.","M2","STANDARD ITEM","STRUCTURE",8,1515,"M"]
["8549","kg","MALLEABLE IRON","M2","STANDARD ITEM","STRUCTURE",8,1519,"M"]
["8550","kg","MALLEABLE IRON - SUPERSTR.","M2","STANDARD ITEM","STRUCTURE",8,1520,"M"]
["8552","kg","DUCTILE IRON","M2","STANDARD ITEM","STRUCTURE",8,1524,"M"]
["8553","kg","DUCTILE IRON - SUPERSTR.","M2","STANDARD ITEM","STRUCTURE",8,1525,"M"]
["8555","kg","CAST BRONZE","M2","STANDARD ITEM","STRUCTURE",8,1529,"M"]
["8556","kg","CAST BRONZE - SUPERSTR.","M2","STANDARD ITEM","STRUCTURE",8,1530,"M"]
["8557","m2","LAGGING","V0","STANDARD ITEM","STRUCTURE",8,1531,"M"]
["8558","m3","TIMBER LAGGING","V0","STANDARD ITEM","STRUCTURE",8,1532,"M"]
["8560","m3","TIMBER AND LUMBER - UNTREATED","V0","STANDARD ITEM","STRUCTURE",8,1533,"M"]
["8561","m3","TIMBER AND LUMBER - UNTREATED - SUPERSTR.","V0","STANDARD ITEM","STRUCTURE",8,1534,"M"]
["8562","m3","TIMBER AND LUMBER - CRESOTE TREATED","V0","STANDARD ITEM","STRUCTURE",8,1535,"M"]
["8563","m3","TIMBER AND LUMBER - CRESOTE TREATED - SUPERSTR.","V0","STANDARD ITEM","STRUCTURE",8,1536,"M"]
["8564","m3","TIMBER AND LUMBER - SALTS TREATED","V0","STANDARD ITEM","STRUCTURE",8,1537,"M"]
["8565","m3","TIMBER AND LUMBER - SALTS TREATED - SUPERSTR.","V0","STANDARD ITEM","STRUCTURE",8,1538,"M"]
["8566","m3","GLULAM DECK PANELS - SUPERSTR.","V0","REQUIRES SPECIAL PROV.","STRUCTURE",8,1547,"M"]
["8573","m","FURNISHING & PLACING TEMP. CASING FOR 1220MM DIA. SHAFT","T0","STANDARD ITEM","STRUCTURE",8,1320,"M"]
["8574","m","FURNISHING & PLACING TEMP. CASING FOR 1520MM DIA. SHAFT","T0","STANDARD ITEM","STRUCTURE",8,1322,"M"]
["8575","m","FURNISHING & PLACING TEMP. CASING FOR 1830MM DIA. SHAFT","T0","STANDARD ITEM","STRUCTURE",8,1324,"M"]
["8576","m","FURNISHING & PLACING TEMP. CASING FOR 2130MM DIA. SHAFT","T0","STANDARD ITEM","STRUCTURE",8,1326,"M"]
["8577","m","FURNISHING & PLACING TEMP. CASING FOR 2440MM DIA. SHAFT","T0","STANDARD ITEM","STRUCTURE",8,1328,"M"]
["8578","m","FURNISHING & PLACING TEMP. CASING FOR 3050MM DIA. SHAFT","T0","STANDARD ITEM","STRUCTURE",8,1330,"M"]
["8579","m","FURNISHING PERMANENT CASING FOR 1220 MM DIAM. SHAFT","T0","STANDARD ITEM","STRUCTURE",8,1332,"M"]
["8580","m","FURNISHING PERMANENT CASING FOR 1520 MM DIAM. SHAFT","T0","STANDARD ITEM","STRUCTURE",8,1334,"M"]
["8581","m","FURNISHING PERMANENT CASING FOR 1830 MM DIAM. SHAFT","T0","STANDARD ITEM","STRUCTURE",8,1336,"M"]
["8582","m","FURNISHING PERMANENT CASING FOR 2130 MM DIAM. SHAFT","T0","STANDARD ITEM","STRUCTURE",8,1338,"M"]
["8583","m","FURNISHING PERMANENT CASING FOR 2440 MM DIAM. SHAFT","T0","STANDARD ITEM","STRUCTURE",8,1340,"M"]
["8584","m","FURNISHING PERMANENT CASING FOR 3050 MM DIAM. SHAFT","T0","STANDARD ITEM","STRUCTURE",8,1342,"M"]
["8585","EACH","PLACING PERMANENT CASING FOR 1220 MM DIAM. SHAFT","T0","STANDARD ITEM","STRUCTURE",8,1344,"C"]
["8586","EACH","PLACING PERMANENT CASING FOR 1520 MM DIAM. SHAFT","T0","STANDARD ITEM","STRUCTURE",8,1346,"C"]
["8587","EACH","PLACING PERMANENT CASING FOR 1830 MM DIAM. SHAFT","T0","STANDARD ITEM","STRUCTURE",8,1348,"C"]
["8588","EACH","PLACING PERMANENT CASING FOR 2130 MM DIAM. SHAFT","T0","STANDARD ITEM","STRUCTURE",8,1350,"C"]
["8589","EACH","PLACING PERMANENT CASING FOR 2440 MM DIAM. SHAFT","T0","STANDARD ITEM","STRUCTURE",8,1352,"C"]
["8590","EACH","PLACING PERMANENT CASING FOR 3050 MM DIAM. SHAFT","T0","STANDARD ITEM","STRUCTURE",8,1354,"C"]
["8600","m","ST. HAND RAIL","M2","REQUIRES SPECIAL PROV.","STRUCTURE",8,1566,"M"]
["8601","m","STEEL HANDRAIL - SUPERSTR.","M2","REQUIRES SPECIAL PROV.","STRUCTURE",8,1567,"M"]
["8605","m","BRIDGE RAILING TYPE","B0","STANDARD ITEM","STRUCTURE",8,1569,"M"]
["8606","m","BRIDGE RAILING TYPE BP - SUPERSTR.","B0","STANDARD ITEM","STRUCTURE",8,1572,"M"]
["8607","m","BRIDGE RAILING TYPE BP-B - SUPERSTR.","B0","STANDARD ITEM","STRUCTURE",8,1574,"M"]
["8608","m","BRIDGE RAILING TYPE CHAIN LINK FENCE","I6","STANDARD ITEM","STRUCTURE",8,1576,"M"]
["8609","m","BRIDGE RAIL LOW FENCE TYPE - SUPERSTR.","I6","REQUIRES SPECIAL PROV.","STRUCTURE",8,1578,"M"]
["8615","m","TRAFFIC BARRIER","D0","STANDARD ITEM","STRUCTURE",8,1580,"M"]
["8616","m","TRAFFIC BARRIER - SUPERSTR.","D0","REQUIRES SPECIAL PROV.","STRUCTURE",8,1582,"M"]
["8617","m","BARRIER","D0","GSP ITEM","STRUCTURE",8,1583,"M"]
["8618","m","PEDESTRIAN BARRIER","D0","STANDARD ITEM","STRUCTURE",8,1588,"M"]
["8619","m","TRAFFIC PEDESTRIAN BARRIER","D0","STANDARD ITEM","STRUCTURE",8,1587,"M"]
["8621","m","SEW TRAFFIC BARRIER","D0","STANDARD ITEM","STRUCTURE",8,1590,"M"]
["8622","m","SEW PEDESTRIAN BARRIER","D0","STANDARD ITEM","STRUCTURE",8,1592,"M"]
["8623","m","GEOSYNTHIC WALL F - SHAPE TRAFFIC BARRIER","D0","STANDARD ITEM","STRUCTURE",8,1596,"M"]
["8624","m","GEOSYNTHIC RETAINING WALL PEDESTRIAN BARRIER","D0","STANDARD ITEM","STRUCTURE",8,1598,"M"]
["8625","m","GEOSYNTHIC WALL SINGLE SLOPE TRAFFIC BARRIER","D0","STANDARD ITEM","STRUCTURE",8,1595,"M"]
["8630","m","EXPANSION JOINT SYSTEM COMPRESSION SEAL - SUPERSTR.","B0","GSP ITEM","STRUCTURE",8,1604,"M"]
["8631","m","EXPANSION JOINT SYSTEM STRIP SEAL - SUPERSTR.","B0","GSP ITEM","STRUCTURE",8,1605,"M"]
["8634","m","EXPANSION JOINT MODIFICATION","B0","BSP ITEM","STRUCTURE",8,1612,"M"]
["8636","m3","BRIDGE DECK REPAIR","B6","GSP ITEM","STRUCTURE",8,1615,"M"]
["8638","m2","BRIDGE DECK REPAIR","B6","BSP ITEM","STRUCTURE",8,1617,"M"]
["8640","L","EPOXY RESIN","H6","REQUIRES SPECIAL PROV.","STRUCTURE",8,1619,"M"]
["8641","m","EPOXY CRACK SEALING","H6","GSP ITEM","STRUCTURE",8,1621,"M"]
["8642","m2","WATERPROOFING","O8","STANDARD ITEM","STRUCTURE",8,1623,"M"]
["8643","m2","MEMBRANE WATERPROOFING (DECK SEAL)","X4","GSP ITEM","STRUCTURE",8,1625,"M"]
["8644","m2","SCARIFYING CONC. SURFACE","B0","STANDARD ITEM","STRUCTURE",8,1627,"M"]
["8646","m2","REMOVING EXISTING CONCRETE OVERLAY","B0","REQUIRES SPECIAL PROV.","STRUCTURE",8,1629,"M"]
["8648","m2","FURTHER DECK PREPARATION FOR TYPE 1 DECK REPAIR","B0","BSP ITEM","STRUCTURE",8,1635,"M"]
["8649","m3","FURTHER DECK PREPARATION","B0","STANDARD ITEM","STRUCTURE",8,1631,"M"]
["8650","m2","FURTHER DECK PREPARATION FOR TYPE 2 DECK REPAIR","B0","BSP ITEM","STRUCTURE",8,1637,"M"]
["8651","m2","NOISE BARRIER WALL TYPE","B0","STANDARD ITEM","STRUCTURE",8,1646,"M"]
["8652","m2","CONCRETE FASCIA PANEL","B0","STANDARD ITEM","STRUCTURE",8,1649,"M"]
["8653","m2","PREFABRICATED DRAINAGE MAT","G2","STANDARD ITEM","STRUCTURE",8,1654,"M"]
["8654","m","CLEANING, SEALING AND CAULKING PACK RUST","P4","STANDARD ITEM","STRUCTURE",8,1640,"M"]
["8655","m3","BALLAST FROM STOCKPILE","F4","STANDARD ITEM","SURFACING",9,1698,"M"]
["8656","t","BALLAST FROM STOCKPILE","F4","STANDARD ITEM","SURFACING",9,1700,"M"]
["8657","m3","BALLAST","F6","STANDARD ITEM","SURFACING",9,1702,"M"]
["8658","t","BALLAST","F6","STANDARD ITEM","SURFACING",9,1704,"M"]
["8659","m3","SHOULDER BALLAST FROM STOCKPILE","F4","STANDARD ITEM","SURFACING",9,1706,"M"]
["8660","t","SHOULDER BALLAST FROM STOCKPILE","F4","STANDARD ITEM","SURFACING",9,1708,"M"]
["8661","m3","SHOULDER BALLAST","F6","STANDARD ITEM","SURFACING",9,1710,"M"]
["8662","t","SHOULDER BALLAST","F6","STANDARD ITEM","SURFACING",9,1712,"M"]
["8663","m2","SPOT ABRASIVE BLAST CLEANING","P4","STANDARD ITEM","STRUCTURE",8,1642,"M"]
["8665","t","GRAVEL BASE","F6","STANDARD ITEM","SURFACING",9,1714,"M"]
["8666","m3","GRAVEL BASE","F6","STANDARD ITEM","SURFACING",9,1716,"M"]
["8670","m3","CRUSHED SURFACING BASE COURSE FROM STOCKPILE","F4","STANDARD ITEM","SURFACING",9,1718,"M"]
["8671","t","CRUSHED SURFACING BASE COURSE FROM STOCKPILE","F4","STANDARD ITEM","SURFACING",9,1720,"M"]
["8672","m3","CRUSHED SURFACING BASE COURSE","F6","STANDARD ITEM","SURFACING",9,1722,"M"]
["8673","t","CRUSHED SURFACING BASE COURSE","F6","STANDARD ITEM","SURFACING",9,1724,"M"]
["8674","m3","CRUSHED SURFACING TOP COURSE FROM STOCKPILE","F4","STANDARD ITEM","SURFACING",9,1726,"M"]
["8675","t","CRUSHED SURFACING TOP COURSE FROM STOCKPILE","F4","STANDARD ITEM","SURFACING",9,1728,"M"]
["8676","m3","CRUSHED SURFACING TOP COURSE","F6","STANDARD ITEM","SURFACING",9,1730,"M"]
["8677","t","CRUSHED SURFACING TOP COURSE","F6","STANDARD ITEM","SURFACING",9,1731,"M"]
["8680","t","AGG. GRADING C","F6","REQUIRES SPECIAL PROV.","SURFACING",9,1732,"M"]
["8704","t","ASPHALT EMULSION CRS-2P","B4","STANDARD ITEM","LIQUID ASPHALT",10,1738,"M"]
["8705","t","ASPHALT EMULSION CRS-1","B4","STANDARD ITEM","LIQUID ASPHALT",10,1734,"M"]
["8706","t","ASPHALT EMULSION CRS-2","B4","STANDARD ITEM","LIQUID ASPHALT",10,1736,"M"]
["8707","t","ASPHALT EMULSION CMS-2","B4","STANDARD ITEM","LIQUID ASPHALT",10,1741,"M"]
["8708","t","ASPHALT EMULSION CMS-2H","A8","STANDARD ITEM","LIQUID ASPHALT",10,1743,"M"]
["8709","t","ASPHALT EMULSION CMS-2M","A8","GSP ITEM","LIQUID ASPHALT",10,1745,"M"]
["8710","t","ASPHALT EMULSION CMS-2S","A8","STANDARD ITEM","LIQUID ASPHALT",10,1747,"M"]
["8711","t","ASPHALT EMULSION CSS-1","A8","STANDARD ITEM","LIQUID ASPHALT",10,1749,"M"]
["8712","t","ASPHALT EMULSION CSS-1H","A8","STANDARD ITEM","LIQUID ASPHALT",10,1751,"M"]
["8713","t","ASPHALT EMULSION STE-1","A8","STANDARD ITEM","LIQUID ASPHALT",10,1753,"M"]
["8720","t","PAVING ASPHALT AR-4000W","A4","STANDARD ITEM","LIQUID ASPHALT",10,1754,"M"]
["8724","t","PLASTICIZING AGENT","A4","REQUIRES SPECIAL PROV.","LIQUID ASPHALT",10,1755,"M"]
["8730","t","ASPHALT FOR FOG SEAL","B4","STANDARD ITEM","LIQUID ASPHALT",10,1757,"M"]
["8735","km","PROCESSING AND FINISHING","B4","STANDARD ITEM","BITUMINOUS SURFACE TREATMENT",11,1760,"M"]
["8740","m3","AGG. FROM STOCKPILE FOR BST","B4","STANDARD ITEM","BITUMINOUS SURFACE TREATMENT",11,1762,"M"]
["8742","m3","FURNISHING AND PLACING CRUSHED COVER STONE","B4","STANDARD ITEM","BITUMINOUS SURFACE TREATMENT",11,1764,"M"]
["8743","m3","FURNISHING AND PLACING CRUSHED SCREENING 19.0 TO 12.5 MM","B4","STANDARD ITEM","BITUMINOUS SURFACE TREATMENT",11,1766,"M"]
["8744","m3","FURNISHING AND PLACING CRUSHED SCREENING 16.0 TO 6.30 MM","B4","STANDARD ITEM","BITUMINOUS SURFACE TREATMENT",11,1768,"M"]
["8745","m3","FURNISHING AND PLACING CRUSHED SCREENING 12.5 TO 6.30 MM","B4","STANDARD ITEM","BITUMINOUS SURFACE TREATMENT",11,1770,"M"]
["8746","m3","FURNISHING AND PLACING CRUSHED SCREENING 9.50 TO 2.00 MM","B4","STANDARD ITEM","BITUMINOUS SURFACE TREATMENT",11,1772,"M"]
["8747","m3","FURNISHING AND PLACING CRUSHED SCREENING 6.30 TO 0 MM","B4","STANDARD ITEM","BITUMINOUS SURFACE TREATMENT",11,1775,"M"]
["8765","t","ASPHALT TREATED BASE","B2","STANDARD ITEM","ASPHALT TREATED BASE",12,1779,"M"]
["8770","t","ASPHALT TREATED PERMEABLE BASE","B2","GSP ITEM","ASPHALT TREATED BASE",12,1781,"M"]
["8793","m3","CEMENT CONC. PAVEMENT","C0","STANDARD ITEM","CEMENT CONCRETE PAVEMENT",13,1782,"M"]
["8812","m2","BRIDGE APPROACH SLAB","D2","STD. ITEM, GSP REQUIRED","CEMENT CONCRETE PAVEMENT",13,1786,"M"]
["8815","m3","CEMENT CONC. PAVEMENT - INCLUDING DOWELS","C0","STANDARD ITEM","CEMENT CONCRETE PAVEMENT",13,1787,"M"]
["8818","m","SEALING TRANSVERSE AND LONGITUDINAL JOINTS","E7","STANDARD ITEM","CEMENT CONCRETE PAVEMENT",13,1798,"M"]
["8819","m2","CEMENT CONCRETE PAVEMENT GRINDING","E2","STANDARD ITEM","CEMENT CONCRETE PAVEMENT",13,1801,"M"]
["8822","t","ASPHALT CONC. PAVEMENT CL. A PG","A4","STANDARD ITEM","HOT MIX ASPHALT",14,1841,"M"]
["8823","t","ASPHALT CONC. PAVEMENT CL. B PG","A4","STANDARD ITEM","HOT MIX ASPHALT",14,1842,"M"]
["8824","t","ASPHALT CONC. PAVEMENT CL. D PG","A4","STANDARD ITEM","HOT MIX ASPHALT",14,1843,"M"]
["8825","t","ASPHALT CONC. PAVEMENT  CL. E PG","A4","STANDARD ITEM","HOT MIX ASPHALT",14,1844,"M"]
["8826","t","ASPHALT CONC. PAVEMENT CL. F PG","A4","STANDARD ITEM","HOT MIX ASPHALT",14,1845,"M"]
["8827","t","ASPHALT CONC. PAVEMENT CL. G PG","A4","STANDARD ITEM","HOT MIX ASPHALT",14,1846,"M"]
["8828","t","ASPHALT CONC. PAVEMENT CL. MODIFIED D PG","A4","STANDARD ITEM","HOT MIX ASPHALT",14,1847,"M"]
["8830","m3","PAVEMENT SUBSEAL","E4","STANDARD ITEM","CEMENT CONCRETE PAVEMENT",13,1790,"M"]
["8832","m2","REPLACE CEMENT CONCRETE PANEL","D2","STANDARD ITEM","CEMENT CONCRETE PAVEMENT",13,1792,"M"]
["8835","km","PREPARATION OF UNTREATED ROADWAY","B4","STANDARD ITEM","HOT MIX ASPHALT",14,1803,"M"]
["8838","m2","REMOVING EXISTING OVERLAY FROM BRIDGE DECK","A0","BSP ITEM","HOT MIX ASPHALT",14,1806,"M"]
["8840","m2","PLANING BITUMINOUS PAVEMENT","A0","STANDARD ITEM","HOT MIX ASPHALT",14,1807,"M"]
["8841","t","HMA CL. 9.5 MM PG","A4","STANDARD ITEM","HOT MIX ASPHALT",14,1856,"M"]
["8842","t","HMA CL. 12.5 MM PG","A4","STANDARD ITEM","HOT MIX ASPHALT",14,1858,"M"]
["8843","t","HMA CL. 19MM PG","A4","STANDARD ITEM","HOT MIX ASPHALT",14,1860,"M"]
["8845","t","PRIME COAT AGG. FROM STOCKPILE","B4","REQUIRES SPECIAL PROV.","HOT MIX ASPHALT",14,1809,"M"]
["8846","m3","PRIME COAT AGG. FROM STOCKPILE","B4","REQUIRES SPECIAL PROV.","HOT MIX ASPHALT",14,1810,"M"]
["8847","t","PRIME COAT AGG.","B4","STANDARD ITEM","HOT MIX ASPHALT",14,1812,"M"]
["8848","m3","PRIME COAT AGG.","B4","STANDARD ITEM","HOT MIX ASPHALT",14,1814,"M"]
["8850","m2","FABRIC REINFORCEMENT","A4","REQUIRES SPECIAL PROV.","HOT MIX ASPHALT",14,1817,"M"]
["8851","t","HMA FOR PRELEVELING CL.  9.5MM PG","A4","STANDARD ITEM","HOT MIX ASPHALT",14,1820,"M"]
["8852","t","HMA FOR PRELEVELING CL. 12.5MM  PG","A4","STANDARD ITEM","HOT MIX ASPHALT",14,1822,"M"]
["8853","t","HMA FOR PRELEVELING CL. 19MM  PG","A4","STANDARD ITEM","HOT MIX ASPHALT",14,1824,"M"]
["8861","t","ASPHALT CONC. FOR PRELEVELING CL. A PG","A4","STANDARD ITEM","HOT MIX ASPHALT",14,1825,"M"]
["8862","t","ASPHALT CONC. FOR PRELEVELING CL. B PG","A4","STANDARD ITEM","HOT MIX ASPHALT",14,1826,"M"]
["8863","t","ASPHALT CONC. FOR PRELEVELING CL. F PG","A4","STANDARD ITEM","HOT MIX ASPHALT",14,1827,"M"]
["8864","t","ASPHALT CONC. FOR PRELEVELING CL. G PG","A4","STANDARD ITEM","HOT MIX ASPHALT",14,1828,"M"]
["8865","t","ASPHALT CONC. FOR PAVEMENT REPAIR","A4","STANDARD ITEM","HOT MIX ASPHALT",14,1833,"M"]
["8866","t","HMA FOR PAVEMENT REPAIR CL. 9.5MM PG","A4","STANDARD ITEM","HOT MIX ASPHALT",14,1836,"M"]
["8867","t","HMA FOR PAVEMENT REPAIR CL. 12.5MM PG","A4","STANDARD ITEM","HOT MIX ASPHALT",14,1838,"M"]
["8868","t","HMA FOR PAVEMENT REPAIR CL. 19MM PG","A4","STANDARD ITEM","HOT MIX ASPHALT",14,1840,"M"]
["8880","t","POLYMER MODIFIED ASPHALT CONC. PAVEMENT CL. D","A4","GSP ITEM","HOT MIX ASPHALT",14,1862,"M"]
["8881","t","HMA FOR APPROACH CL. 9.5 MM PG","A4","STANDARD ITEM","HOT MIX ASPHALT",14,1870,"M"]
["8882","t","HMA FOR APPROACH CL. 12.5 MM PG","A4","STANDARD ITEM","HOT MIX ASPHALT",14,1872,"M"]
["8883","t","HMA FOR APPROACH CL. 19 MM PG","A4","STANDARD ITEM","HOT MIX ASPHALT",14,1874,"M"]
["8884","t","COMMERCIAL HMA","A4","STANDARD ITEM","HOT MIX ASPHALT",14,1876,"M"]
["8885","t","POLYMER MODIFIED ASPHALT CONC. PAVEMENT CL. G","A4","GSP ITEM","HOT MIX ASPHALT",14,1863,"M"]
["8887","t","MODIFIED ASPHALT CONC. PAVEMENT CL.","A4","GSP ITEM","HOT MIX ASPHALT",14,1864,"M"]
["8888","t","ASPHALT CONC. APPROACH CL.","A4","STANDARD ITEM","HOT MIX ASPHALT",14,1868,"M"]
["8890","m3","BLENDING SAND","A4","STANDARD ITEM","HOT MIX ASPHALT",14,1881,"M"]
["8892","m3","CRUSHED SCREENINGS","F6","REQUIRES SPECIAL PROV.","HOT MIX ASPHALT",14,1882,"M"]
["8893","t","CRUSHED SCREENINGS","F6","REQUIRES SPECIAL PROV.","HOT MIX ASPHALT",14,1883,"M"]
["8897","t","OPEN GRADED ASPHALT PAVEMENT EXCL. PAVING ASPHALT","A4","REQUIRES SPECIAL PROV.","HOT MIX ASPHALT",14,1884,"M"]
["8898","t","OPEN GRADED ASPHALT PAVEMENT EXCL. EMULSIFIED ASPHALT","A8","REQUIRES SPECIAL PROV.","HOT MIX ASPHALT",14,1885,"M"]
["8910","m2","SOIL RESIDUAL HERBICIDE","L2","STANDARD ITEM","HOT MIX ASPHALT",14,1887,"M"]
["8911","km","SOIL RESIDUAL HERBICIDE 2 M WIDE","L2","STANDARD ITEM","HOT MIX ASPHALT",14,1888,"M"]
["8912","km","SOIL RESIDUAL HERBICIDE","L2","STANDARD ITEM","HOT MIX ASPHALT",14,1890,"M"]
["8915","m","LONGITUDINAL JOINT SEAL","A4","STANDARD ITEM","HOT MIX ASPHALT",14,1892,"M"]
["8916","m","BRIDGE TRANSVERSE JOINT SEAL","A4","REQUIRES SPECIAL PROV.","HOT MIX ASPHALT",14,1895,"M"]
["8920","L.F.","FURNISHING ST. PILING 24 IN. DIAM.","Q4","WSF ITEM REQ. SPECIAL PROV.","STRUCTURE",8,1663,"E"]
["8921","L.F.","FURNISHING ST. PILING 30 IN. DIAM.","Q4","WSF ITEM REQ. SPECIAL PROV.","STRUCTURE",8,1664,"E"]
["8922","L.F.","FURNISHING ST. PILING 36 IN. DIAM.","Q4","WSF ITEM REQ. SPECIAL PROV.","STRUCTURE",8,1665,"E"]
["8925","L.F.","FABRICATING ST. PILING 24 IN. DIAM.","Q4","WSF ITEM REQ. SPECIAL PROV.","STRUCTURE",8,1666,"E"]
["8926","L.F.","FABRICATING ST. PILING 30 IN. DIAM.","Q4","WSF ITEM REQ. SPECIAL PROV.","STRUCTURE",8,1667,"E"]
["8927","L.F.","FABRICATING ST. PILING 36 IN. DIAM.","Q4","WSF ITEM REQ. SPECIAL PROV.","STRUCTURE",8,1668,"E"]
["8930","EACH","DRIVING ST. PILE 24 IN. DIAM.","Q4","WSF ITEM REQ. SPECIAL PROV.","STRUCTURE",8,1669,"C"]
["8931","EACH","DRIVING ST. PILE 30 IN. DIAM.","Q4","WSF ITEM REQ. SPECIAL PROV.","STRUCTURE",8,1670,"C"]
["8932","EACH","DRIVING ST. PILE 36 IN. DIAM.","Q4","WSF ITEM REQ. SPECIAL PROV.","STRUCTURE",8,1671,"C"]
["8934","EACH","DYNAMIC PILE TESTING","Q4","WSF ITEM REQ. SPECIAL PROV.","STRUCTURE",8,1672,"C"]
["8940","L.S.","STRUCTURAL CARBON STEEL","H8","WSF ITEM REQ. SPECIAL PROV.","STRUCTURE",8,1673,"C"]
["8941","L.S.","STRUCTURAL LOW ALLOY STEEL","H8","WSF ITEM REQ. SPECIAL PROV.","STRUCTURE",8,1674,"C"]
["8943","L.S.","CHAIN AND HARDWARE","H8","WSF ITEM REQ. SPECIAL PROV.","STRUCTURE",8,1675,"C"]
["8945","MBM","TIMBER AND LUMBER","V0","WSF ITEM REQ. SPECIAL PROV.","STRUCTURE",8,1676,"E"]
["8946","MBM","GLUED-LAMINATED DECKING","V0","WSF ITEM REQ. SPECIAL PROV.","STRUCTURE",8,1677,"E"]
["8948","L.S.","RESIN BONDED ANCHORS","B0","WSF ITEM REQ. SPECIAL PROV.","STRUCTURE",8,1678,"C"]
["8950","EACH","UNANCHORED MICROPILE","V7","WSF ITEM REQ. SPECIAL PROV.","STRUCTURE",8,1679,"C"]
["8952","EACH","ANCHORED MICROPILE","V7","WSF ITEM REQ. SPECIAL PROV.","STRUCTURE",8,1680,"C"]
["8954","EACH","MICROPILE VERIFICATION TEST","V7","WSF ITEM REQ. SPECIAL PROV.","STRUCTURE",8,1681,"C"]
["8956","EACH","MICROPILE LOAD TEST","V7","WSF ITEM REQ. SPECIAL PROV.","STRUCTURE",8,1682,"C"]
["8958","EACH","MICROPILE SHELL","V7","WSF ITEM REQ. SPECIAL PROV.","STRUCTURE",8,1683,"C"]
["8965","L.S.","FLOATING DOLPHIN","N4","WSF ITEM REQ. SPECIAL PROV.","STRUCTURE",8,1684,"C"]
["8966","L.S.","FLOATING DOLPHIN FENDER ASSEMBLY","N4","WSF ITEM REQ. SPECIAL PROV.","STRUCTURE",8,1685,"C"]
["8967","TON","FLOATING DOLPHIN BALLAST","N4","WSF ITEM REQ. SPECIAL PROV.","STRUCTURE",8,1686,"E"]
["8968","L.F.","FLOATING DOLPHIN ANCHOR CHAIN","N4","WSF ITEM REQ. SPECIAL PROV.","STRUCTURE",8,1687,"E"]
["8969","L.S.","TEMPORARY PROTECTIVE DOLPHIN","N4","WSF ITEM REQ. SPECIAL PROV.","STRUCTURE",8,1688,"C"]
["8974","L.S.","MARINE FENDER","N4","WSF ITEM REQ. SPECIAL PROV.","STRUCTURE",8,1689,"C"]
["8975","EACH","MARINE FENDER","N4","WSF ITEM REQ. SPECIAL PROV.","STRUCTURE",8,1690,"C"]
["8976","EACH","FURNISH MARINE FENDER","N4","WSF ITEM REQ. SPECIAL PROV.","STRUCTURE",8,1691,"C"]
["8977","EACH","INSTALL MARINE FENDER","N4","WSF ITEM REQ. SPECIAL PROV.","STRUCTURE",8,1692,"C"]
["8980","EACH","UHMW POLYETHYLENE RUBBING FACE FOR DOLPHINS","N4","WSF ITEM REQ. SPECIAL PROV.","STRUCTURE",8,1693,"C"]
["8981","L.S.","UHMW POLYETHYLENE RUBBING FACE FOR WINGWALLS","N4","WSF ITEM REQ. SPECIAL PROV.","STRUCTURE",8,1694,"C"]
["9000","EST.","REIMBURSEMENT FOR ESA MONITORING SUSPENSION","Q4","WSF ITEM REQ. SPECIAL PROV.","STRUCTURE",8,1695,"C"]
["9075","m3","TOPSOIL TYPE A","H0","STANDARD ITEM","EROSION CNTL AND ROADSIDE RESTORATION",17,1973,"M"]
["9076","m3","TOPSOIL TYPE A - SITE","H0","STANDARD ITEM","EROSION CNTL AND ROADSIDE RESTORATION",17,1974,"M"]
["9080","m3","TOPSOIL TYPE B","H0","STANDARD ITEM","EROSION CNTL AND ROADSIDE RESTORATION",17,1976,"M"]
["9081","m3","TOPSOIL TYPE B - SITE","O6","STANDARD ITEM","EROSION CNTL AND ROADSIDE RESTORATION",17,1977,"M"]
["9084","m3","TOPSOIL TYPE C","O6","STANDARD ITEM","EROSION CNTL AND ROADSIDE RESTORATION",17,1979,"M"]
["9086","m3","TOPSOIL TYPE C - SITE","O6","STANDARD ITEM","EROSION CNTL AND ROADSIDE RESTORATION",17,1980,"M"]
["9090","ha","SEEDING AND FERTILIZING","T2","STANDARD ITEM","EROSION CNTL AND ROADSIDE RESTORATION",17,1955,"M"]
["9091","ha","SEEDING AND FERTILIZING - SITE","T2","STANDARD ITEM","EROSION CNTL AND ROADSIDE RESTORATION",17,1958,"M"]
["9093","m2","SEEDING AND FERTILIZING BY HAND","T2","STANDARD ITEM","EROSION CNTL AND ROADSIDE RESTORATION",17,1962,"M"]
["9094","ha","SEEDING, FERTILIZING, AND MULCHING","T2","STANDARD ITEM","EROSION CNTL AND ROADSIDE RESTORATION",17,1950,"M"]
["9096","ha","SEEDING, FERTILIZING, AND MULCHING - SITE","T2","STANDARD ITEM","EROSION CNTL AND ROADSIDE RESTORATION",17,1952,"M"]
["9110","ha","SECOND APPLICATION OF FERTILIZER","T2","STANDARD ITEM","EROSION CNTL AND ROADSIDE RESTORATION",17,1964,"M"]
["9111","ha","SECOND APPLICATION OF FERTILIZER - SITE","T2","STANDARD ITEM","EROSION CNTL AND ROADSIDE RESTORATION",17,1966,"M"]
["9112","m3","FINE COMPOST","T2","STANDARD ITEM","EROSION CNTL AND ROADSIDE RESTORATION",17,2003,"M"]
["9113","m3","COARSE COMPOST","T2","STANDARD ITEM","EROSION CNTL AND ROADSIDE RESTORATION",17,2006,"M"]
["9115","ha","LIMING","H0","STANDARD ITEM","EROSION CNTL AND ROADSIDE RESTORATION",17,1968,"M"]
["9116","ha","LIMING - SITE","H0","STANDARD ITEM","EROSION CNTL AND ROADSIDE RESTORATION",17,1971,"M"]
["9120","ha","MULCHING","T2","STANDARD ITEM","EROSION CNTL AND ROADSIDE RESTORATION",17,1938,"M"]
["9122","ha","MULCHING - SITE","T2","STANDARD ITEM","EROSION CNTL AND ROADSIDE RESTORATION",17,1936,"M"]
["9123","m3","COMPOST","T2","GSP ITEM","EROSION CNTL AND ROADSIDE RESTORATION",17,2008,"M"]
["9140","m2","PERMANENT EROSION CONTROL BLANKET","H0","STANDARD ITEM","EROSION CNTL AND ROADSIDE RESTORATION",17,1905,"M"]
["9141","m2","PLASTIC COVERING","H0","STANDARD ITEM","EROSION CNTL AND ROADSIDE RESTORATION",17,1908,"M"]
["9146","m2","LAWN MOWING","O6","STANDARD ITEM","EROSION CNTL AND ROADSIDE RESTORATION",17,2032,"M"]
["9147","m","TEMPORARY CURB","H0","STANDARD ITEM","EROSION CNTL AND ROADSIDE RESTORATION",17,1932,"M"]
["9148","m","CHECK DAM","H0","STANDARD ITEM","EROSION CNTL AND ROADSIDE RESTORATION",17,1910,"M"]
["9149","m2","STABILIZED CONSTRUCTION ENTRANCE","H0","STANDARD ITEM","EROSION CNTL AND ROADSIDE RESTORATION",17,1915,"M"]
["9150","m","SILT FENCE","H0","STANDARD ITEM","EROSION CNTL AND ROADSIDE RESTORATION",17,1919,"M"]
["9151","m","COMPOST BERM","H0","STANDARD ITEM","EROSION CNTL AND ROADSIDE RESTORATION",17,1923,"M"]
["9152","m","GRAVEL FILTER BERM","H0","STANDARD ITEM","EROSION CNTL AND ROADSIDE RESTORATION",17,1913,"M"]
["9153","m","WOOD CHIP BERM","H0","STANDARD ITEM","EROSION CNTL AND ROADSIDE RESTORATION",17,1921,"M"]
["9155","km","SHOULDER SLOPE STERILIZATION","L2","REQUIRES SPECIAL PROV.","EROSION CNTL AND ROADSIDE RESTORATION",17,2024,"M"]
["9157","L","HERBICIDE APPLIED IN LIQUID FORM","L2","REQUIRES SPECIAL PROV.","EROSION CNTL AND ROADSIDE RESTORATION",17,2022,"M"]
["9160","m3","SOIL AMENDMENT","H0","STANDARD ITEM","EROSION CNTL AND ROADSIDE RESTORATION",17,2020,"M"]
["9161","m3","SPECIAL SOIL MIX","M8","REQUIRES SPECIAL PROV.","EROSION CNTL AND ROADSIDE RESTORATION",17,1982,"M"]
["9162","m2","PREPARATION FOR PLANTING","M8","REQUIRES SPECIAL PROV.","EROSION CNTL AND ROADSIDE RESTORATION",17,1984,"M"]
["9166","m","WATTLE","H0","STANDARD ITEM","EROSION CNTL AND ROADSIDE RESTORATION",17,1926,"M"]
["9167","ha","TEMPORARY SEEDING","H0","STANDARD ITEM","EROSION CNTL AND ROADSIDE RESTORATION",17,1947,"M"]
["9168","m","COMPOST SOCK","H0","STANDARD ITEM","EROSION CNTL AND ROADSIDE RESTORATION",17,1929,"M"]
["9180","m2","SOD INSTALLATION","M8","STANDARD ITEM","EROSION CNTL AND ROADSIDE RESTORATION",17,2030,"M"]
["9181","m2","SEEDED LAWN INSTALLATION","M8","STANDARD ITEM","EROSION CNTL AND ROADSIDE RESTORATION",17,2028,"M"]
["9182","m","FASCINES","M8","STANDARD ITEM","EROSION CNTL AND ROADSIDE RESTORATION",17,2000,"M"]
["9183","m","LIVE STAKE ROW","M8","STANDARD ITEM","EROSION CNTL AND ROADSIDE RESTORATION",17,1989,"M"]
["9184","m2","LIVE BRUSH MATTRESS","M8","STANDARD ITEM","EROSION CNTL AND ROADSIDE RESTORATION",17,1991,"M"]
["9185","kg","FERTILIZER","M8","STANDARD ITEM","EROSION CNTL AND ROADSIDE RESTORATION",17,2011,"M"]
["9186","kg","FERTILIZER - TABLET","M8","REQUIRES SPECIAL PROV.","EROSION CNTL AND ROADSIDE RESTORATION",17,2013,"M"]
["9187","kg","FERTILIZER - GRANULAR","M8","REQUIRES SPECIAL PROV.","EROSION CNTL AND ROADSIDE RESTORATION",17,2015,"M"]
["9188","m3","BARK OR WOOD CHIP MULCH","M8","STANDARD ITEM","EROSION CNTL AND ROADSIDE RESTORATION",17,2026,"M"]
["9189","m3","SAWDUST","M8","REQUIRES SPECIAL PROV.","EROSION CNTL AND ROADSIDE RESTORATION",17,2009,"M"]
["9190","m","BRUSH LAYER","H0","STANDARD ITEM","EROSION CNTL AND ROADSIDE RESTORATION",17,1997,"M"]
["9206","ha","GRASS MOWING","O6","REQUIRES SPECIAL PROV.","EROSION CNTL AND ROADSIDE RESTORATION",17,2034,"M"]
["9207","ha","VEGETATIVE CONTROL MOWING","O6","REQUIRES SPECIAL PROV.","EROSION CNTL AND ROADSIDE RESTORATION",17,2036,"M"]
["9209","ha","VEGETATIVE CONTROL MOWING - SITE","O6","REQUIRES SPECIAL PROV.","EROSION CNTL AND ROADSIDE RESTORATION",17,2038,"M"]
["9210","m","CEMENT CONC. TRAFFIC CURB AND GUTTER","C8","STANDARD ITEM","TRAFFIC",18,2042,"M"]
["9211","m","CEMENT CONC. TRAFFIC CURB","C8","STANDARD ITEM","TRAFFIC",18,2044,"M"]
["9212","m","MOUNTABLE CEMENT CONC. TRAFFIC CURB","C8","STANDARD ITEM","TRAFFIC",18,2046,"M"]
["9214","m","DUAL-FACED CEMENT CONC. TRAFFIC CURB","C8","STANDARD ITEM","TRAFFIC",18,2054,"M"]
["9218","m","CEMENT CONC. PEDESTRIAN CURB","C8","STANDARD ITEM","TRAFFIC",18,2056,"M"]
["9219","m","ROUNDABOUT TRUCK APRON INNER CEMENT CONC. CURB","C8","STANDARD ITEM","TRAFFIC",18,2048,"M"]
["9221","m","ROUNDABOUT TRUCK APRON OUTER CEM. CONC. CURB AND GUTTER","C8","STANDARD ITEM","TRAFFIC",18,2050,"M"]
["9229","m","EXTRUDED CURB","A2","STANDARD ITEM","TRAFFIC",18,2058,"M"]
["9230","m","TYPE A PRECAST TRAFFIC CURB","W4","STANDARD ITEM","TRAFFIC",18,2060,"M"]
["9231","m","TYPE C PRECAST TRAFFIC CURB","W4","STANDARD ITEM","TRAFFIC",18,2062,"M"]
["9235","m","TYPE A BLOCK TRAFFIC CURB","W4","STANDARD ITEM","TRAFFIC",18,2064,"M"]
["9236","m","TYPE C BLOCK TRAFFIC CURB","W4","STANDARD ITEM","TRAFFIC",18,2066,"M"]
["9237","EACH","PAINTED YIELD LINE SYMBOL","P6","STANDARD ITEM","TRAFFIC",18,2211,"C"]
["9238","EACH","PLASTIC YIELD LINE SYMBOL","P6","STANDARD ITEM","TRAFFIC",18,2212,"C"]
["9239","EACH","PAINTED YIELD AHEAD SYMBOL","P6","STANDARD ITEM","TRAFFIC",18,2213,"C"]
["9240","EACH","PLASTIC YIELD AHEAD SYMBOL","P6","STANDARD ITEM","TRAFFIC",18,2214,"C"]
["9241","EACH","PAINTED SPEED BUMP SYMBOL","P6","STANDARD ITEM","TRAFFIC",18,2215,"C"]
["9242","EACH","PLASTIC SPEED BUMP SYMBOL","P6","STANDARD ITEM","TRAFFIC",18,2216,"C"]
["9243","EACH","PAINTED AERIAL SURVEILLANCE FULL MARKER","V6","STANDARD ITEM","TRAFFIC",18,2207,"C"]
["9244","EACH","PLASTIC AERIAL SURVEILLANCE FULL MARKER","V6","STANDARD ITEM","TRAFFIC",18,2208,"C"]
["9245","EACH","PAINTED AERIAL SURVEILLANCE 1/2 MARKER","V6","STANDARD ITEM","TRAFFIC",18,2209,"C"]
["9246","EACH","PLASTIC AERIAL SURVEILLANCE 1/2 MARKER","V6","STANDARD ITEM","TRAFFIC",18,2210,"C"]
["9247","EACH","PAINTED ACCESS PARKING SPACE SYMBOL WITH BACKGROUND","P6","STANDARD ITEM","TRAFFIC",18,2217,"C"]
["9248","EACH","PLASTIC ACCESS PARKING SPACE SYMBOL WITH BACKGROUND","P6","STANDARD ITEM","TRAFFIC",18,2218,"C"]
["9250","m","BEAM GUARDRAIL TYPE 1 - 2.4 M LONG POST","J0","STANDARD ITEM","TRAFFIC",18,2071,"M"]
["9253","m","BEAM GUARDRAIL TYPE 1 - 2.7 M LONG POST","J0","STANDARD ITEM","TRAFFIC",18,2072,"M"]
["9255","m","BEAM GUARDRAIL TYPE 1 - 3.3 M LONG POST","J0","STANDARD ITEM","TRAFFIC",18,2073,"M"]
["9258","m","BEAM GUARDRAIL TYPE 2","J0","STANDARD ITEM","TRAFFIC",18,2081,"M"]
["9260","m","BEAM GUARDRAIL TYPE 1","J0","STANDARD ITEM","TRAFFIC",18,2074,"M"]
["9262","m","BEAM GUARDRAIL TYPE 3","J0","STANDARD ITEM","TRAFFIC",18,2084,"M"]
["9263","m","BEAM GUARDRAIL TYPE 4","J0","STANDARD ITEM","TRAFFIC",18,2086,"M"]
["9265","m","BEAM GUARDRAIL TYPE","J0","STANDARD ITEM","TRAFFIC",18,2088,"M"]
["9266","m","BEAM GUARDRAIL TYPE 10","J0","STANDARD ITEM","TRAFFIC",18,2090,"M"]
["9268","m","BEAM GUARDRAIL BURIED TERMINAL TYPE 2","J0","STANDARD ITEM","TRAFFIC",18,2103,"M"]
["9269","EACH","BEAM GUARDRAIL PLACEMENT - 7.6 METER SPAN","J0","STANDARD ITEM","TRAFFIC",18,2105,"C"]
["9270","m","WEATHERING ST. BEAM GUARDRAIL TYPE 1","J0","STANDARD ITEM","TRAFFIC",18,2106,"M"]
["9271","m","WEATHERING ST. BEAM GUARDRAIL TYPE 2","J0","STANDARD ITEM","TRAFFIC",18,2107,"M"]
["9272","m","WEATHERING ST. BEAM GUARDRAIL TYPE 10","J0","STANDARD ITEM","TRAFFIC",18,2108,"M"]
["9295","m","REMOVING AND RESETTING BEAM GUARDRAIL","J0","STANDARD ITEM","TRAFFIC",18,2118,"M"]
["9297","m","RAISING EXISTING BEAM GUARDRAIL","J0","STANDARD ITEM","TRAFFIC",18,2120,"M"]
["9299","m","PRECAST CONC. BARRIER FROM STOCKPILE","N0","REQUIRES SPECIAL PROV.","TRAFFIC",18,2122,"M"]
["9300","m","PRECAST CONC. BARRIER TYPE","N0","STANDARD ITEM","TRAFFIC",18,2123,"M"]
["9302","m","SINGLE SLOPE CONC. BARRIER","D0","STANDARD ITEM","TRAFFIC",18,2124,"M"]
["9305","m","CAST-IN-PLACE CONC. BARRIER","D0","STANDARD ITEM","TRAFFIC",18,2128,"M"]
["9308","m","TEMPORARY CONC. BARRIER","N0","STANDARD ITEM","TRAFFIC",18,2133,"M"]
["9309","m","REMOVING AND RESETTING EXISTING PERMANENT BARRIER","N0","STANDARD ITEM","TRAFFIC",18,2134,"M"]
["9310","m","TEMPORARY PAVEMENT MARKING","N2","STANDARD ITEM","TRAFFIC",18,2226,"M"]
["9311","m","PRECAST CONC. BARRIER FOR SEVERE SERVICE","N0","GSP ITEM","TRAFFIC",18,2137,"M"]
["9314","m3","CONC. CLASS 28 FOR BARRIER","D0","STANDARD ITEM","TRAFFIC",18,2138,"M"]
["9316","kg","ST. REINF. BAR FOR BARRIER","D0","REQUIRES SPECIAL PROV.","TRAFFIC",18,2140,"M"]
["9317","m","CABLE BARRIER","J0","GSP ITEM","TRAFFIC",18,2142,"M"]
["9318","km","SHOULDER RUMBLE STRIP TYPE","C8","STANDARD ITEM","TRAFFIC",18,2221,"M"]
["9321","m","PAINT LINE","P6","STANDARD ITEM","TRAFFIC",18,2155,"M"]
["9322","m","PLASTIC LINE","V6","STANDARD ITEM","TRAFFIC",18,2156,"M"]
["9323","m","EMBOSSED PLASTIC LINE","V6","STANDARD ITEM","TRAFFIC",18,2157,"M"]
["9324","m","PROFILED PLASTIC LINE","V6","STANDARD ITEM","TRAFFIC",18,2175,"M"]
["9325","m","PROFILED EMBOSSED PLASTIC LINE","V6","STANDARD ITEM","TRAFFIC",18,2176,"M"]
["9326","m","INLAID PLASTIC LINE","V6","STANDARD ITEM","TRAFFIC",18,2177,"M"]
["9330","m","PAINTED WIDE LINE","P6","STANDARD ITEM","TRAFFIC",18,2178,"M"]
["9331","m","PLASTIC WIDE LINE","V6","STANDARD ITEM","TRAFFIC",18,2179,"M"]
["9335","m2","SIGN COVERING","U4","STANDARD ITEM","TRAFFIC",18,2233,"M"]
["9339","m","PROFILED PLASTIC WIDE LANE LINE","V6","STANDARD ITEM","TRAFFIC",18,2180,"M"]
["9346","m","PAINTED BARRIER CENTER LINE","P6","STANDARD ITEM","TRAFFIC",18,2181,"M"]
["9347","m","PLASTIC BARRIER CENTER LINE","V6","STANDARD ITEM","TRAFFIC",18,2182,"M"]
["9348","m2","PAINTED CROSSWALK LINE","P6","STANDARD ITEM","TRAFFIC",18,2183,"M"]
["9349","m2","PLASTIC CROSSWALK LINE","V6","STANDARD ITEM","TRAFFIC",18,2184,"M"]
["9350","m","PAINTED STOP LINE","P6","STANDARD ITEM","TRAFFIC",18,2185,"M"]
["9351","m","PLASTIC STOP LINE","V6","STANDARD ITEM","TRAFFIC",18,2186,"M"]
["9354","m","BARRIER GLARE SCREEN","I6","GSP ITEM","OTHER ITEMS",19,2383,"M"]
["9362","EACH","PAINTED ACCESS PARKING SPACE SYMBOL","P0","STANDARD ITEM","TRAFFIC",18,2193,"C"]
["9363","EACH","PLASTIC ACCESS PARKING SPACE SYMBOL","V6","STANDARD ITEM","TRAFFIC",18,2194,"C"]
["9364","EACH","PAINTED HOV LANE SYMBOL","P0","STANDARD ITEM","TRAFFIC",18,2195,"C"]
["9365","EACH","PLASTIC HOV LANE SYMBOL","V6","STANDARD ITEM","TRAFFIC",18,2196,"C"]
["9370","EACH","PAINTED DRAINAGE MARKING","P0","STANDARD ITEM","TRAFFIC",18,2205,"C"]
["9371","EACH","PLASTIC DRAINAGE MARKING","V6","STANDARD ITEM","TRAFFIC",18,2206,"C"]
["9375","m","CONDUIT PIPE 27 MM DIAM.","H2","STANDARD ITEM","TRAFFIC",18,2250,"M"]
["9376","m","CONDUIT PIPE 35 MM DIAM.","H2","STANDARD ITEM","TRAFFIC",18,2251,"M"]
["9377","m","CONDUIT PIPE 41 MM DIAM.","H2","STANDARD ITEM","TRAFFIC",18,2252,"M"]
["9378","m","CONDUIT PIPE 53 MM DIAM.","H2","STANDARD ITEM","TRAFFIC",18,2253,"M"]
["9379","m","CONDUIT PIPE 63 MM DIAM.","H2","STANDARD ITEM","TRAFFIC",18,2254,"M"]
["9382","m","CONDUIT PIPE 78 MM DIAM.","H2","STANDARD ITEM","TRAFFIC",18,2255,"M"]
["9383","m","CONDUIT PIPE 91 MM DIAM.","H2","STANDARD ITEM","TRAFFIC",18,2256,"M"]
["9398","m2","CONSTRUCTION SIGNS CLASS A","W3","STANDARD ITEM","TRAFFIC",18,2264,"M"]
["9410","m3","STRUCTURE EXCAVATION CLASS B","I2","STANDARD ITEM","OTHER ITEMS",19,2275,"M"]
["9412","m3","STRUCTURE EXCAVATION CLASS B INCL. HAUL","I2","STANDARD ITEM","OTHER ITEMS",19,2276,"M"]
["9414","m2","SHORING OR EXTRA EXCAVATION TRENCH","I2","STANDARD ITEM","OTHER ITEMS",19,2281,"M"]
["9416","m2","SHORING OR EXTRA EXCAVATION CLASS B","I2","STANDARD ITEM","OTHER ITEMS",19,2282,"M"]
["9425","m3","GRAVEL BACKFILL FOR FOUNDATION CLASS A","F6","STANDARD ITEM","OTHER ITEMS",19,2283,"M"]
["9427","m3","GRAVEL BACKFILL FOR FOUNDATION CLASS B","F6","STANDARD ITEM","OTHER ITEMS",19,2284,"M"]
["9429","m3","GRAVEL BACKFILL FOR PIPE BEDDING","F6","REQUIRES SPECIAL PROV.","OTHER ITEMS",19,2285,"M"]
["9430","m3","GRAVEL BACKFILL FOR PIPE ZONE BEDDING","F6","STANDARD ITEM","OTHER ITEMS",19,2286,"M"]
["9431","m3","GRAVEL BACKFILL FOR DRAIN","F6","STANDARD ITEM","OTHER ITEMS",19,2287,"M"]
["9433","m3","CONTROLLED DENSITY FILL","F6","STANDARD ITEM","OTHER ITEMS",19,2295,"M"]
["9435","m3","DESIGN C TRENCH CONSTRUCTION","I2","STANDARD ITEM","OTHER ITEMS",19,2296,"M"]
["9440","m3","WATER","A1","STANDARD ITEM","OTHER ITEMS",19,2297,"M"]
["9445","m3","CONC. CLASS 20","E0","STANDARD ITEM","OTHER ITEMS",19,2299,"M"]
["9447","m3","COMMERCIAL CONCRETE","E0","STANDARD ITEM","OTHER ITEMS",19,2303,"M"]
["9450","kg","ST. REINF. BAR","U0","STANDARD ITEM","OTHER ITEMS",19,2305,"M"]
["9475","m2","CEMENT CONC. SIDEWALK","C8","STANDARD ITEM","OTHER ITEMS",19,2327,"M"]
["9476","m2","CEMENT CONC. SIDEWALK WITH RAISED EDGE","C8","STANDARD ITEM","OTHER ITEMS",19,2324,"M"]
["9477","m2","MONOLITHIC CEMENT CONC. CURB AND SIDEWALK","C8","STANDARD ITEM","OTHER ITEMS",19,2322,"M"]
["9480","m2","ASPHALT CONC. SIDEWALK","A2","REQUIRES SPECIAL PROV.","OTHER ITEMS",19,2328,"M"]
["9481","m2","CEMENT CONC. DRIVEWAY ENTRANCE TYPE","C8","STANDARD ITEM","OTHER ITEMS",19,2319,"M"]
["9485","m2","CONC. SLOPE PROTECTION","E8","STANDARD ITEM","OTHER ITEMS",19,2329,"M"]
["9490","m2","SEMI-OPEN CONC. MASONRY SLOPE PROTECTION","E8","GSP ITEM","OTHER ITEMS",19,2330,"M"]
["9491","m","ROCK BOLT","V7","GSP ITEM","OTHER ITEMS",19,2486,"M"]
["9493","m","ROCK DOWEL TYPE","V7","GSP ITEM","OTHER ITEMS",19,2488,"M"]
["9494","m","GALVANIZED WIRE ROPE","X0","STANDARD ITEM","OTHER ITEMS",19,2333,"M"]
["9498","m2","GALVANIZED WIRE MESH","X0","STANDARD ITEM","OTHER ITEMS",19,2334,"M"]
["9499","m","CABLE FENCE","I6","BSP ITEM","OTHER ITEMS",19,2336,"M"]
["9500","m","CHAIN LINK FENCE TYPE 1","I6","STANDARD ITEM","OTHER ITEMS",19,2339,"M"]
["9501","m","COATED CHAIN LINK FENCE TYPE 1","I6","GSP ITEM","OTHER ITEMS",19,2340,"M"]
["9502","m","CHAIN LINK FENCE TYPE 3","I6","STANDARD ITEM","OTHER ITEMS",19,2341,"M"]
["9503","m","COATED CHAIN LINK FENCE TYPE 3","I6","GSP ITEM","OTHER ITEMS",19,2342,"M"]
["9504","m","CHAIN LINK FENCE TYPE 4","I6","STANDARD ITEM","OTHER ITEMS",19,2343,"M"]
["9505","m","COATED CHAIN LINK FENCE TYPE 4","I6","GSP ITEM","OTHER ITEMS",19,2344,"M"]
["9506","m","CHAIN LINK FENCE TYPE 6","I6","STANDARD ITEM","OTHER ITEMS",19,2345,"M"]
["9507","m","COATED CHAIN LINK FENCE TYPE 6","I6","GSP ITEM","OTHER ITEMS",19,2346,"M"]
["9510","EACH","SINGLE 1.8 M CHAIN LINK GATE","I6","STANDARD ITEM","OTHER ITEMS",19,2362,"C"]
["9511","EACH","DOUBLE 4.3 M CHAIN LINK GATE","I6","STANDARD ITEM","OTHER ITEMS",19,2364,"C"]
["9512","EACH","DOUBLE 6.1 M CHAIN LINK GATE","I6","STANDARD ITEM","OTHER ITEMS",19,2366,"C"]
["9513","EACH","SINGLE 1.8 M COATED CHAIN LINK GATE","I6","GSP ITEM","OTHER ITEMS",19,2363,"C"]
["9514","EACH","DOUBLE 4.3 M COATED CHAIN LINK GATE","I6","GSP ITEM","OTHER ITEMS",19,2365,"C"]
["9515","EACH","DOUBLE 6.1 M COATED CHAIN LINK GATE","I6","GSP ITEM","OTHER ITEMS",19,2367,"C"]
["9517","EACH","SINGLE WIRE GATE 4.3 M WIDE","I6","STANDARD ITEM","OTHER ITEMS",19,2375,"C"]
["9519","EACH","DOUBLE WIRE GATE 6.1 M WIDE","I6","STANDARD ITEM","OTHER ITEMS",19,2376,"C"]
["9530","m","WIRE FENCE TYPE 1","I6","STANDARD ITEM","OTHER ITEMS",19,2368,"M"]
["9532","m","WIRE FENCE TYPE 2","I6","STANDARD ITEM","OTHER ITEMS",19,2369,"M"]
["9534","m","REMOVING AND RESETTING WIRE FENCE","I6","REQUIRES SPECIAL PROV.","OTHER ITEMS",19,2372,"M"]
["9540","m","GAME FENCE","I6","REQUIRES SPECIAL PROV.","OTHER ITEMS",19,2378,"M"]
["9550","m","GLARE SCREEN TYPE 1 DESIGN A","I6","STANDARD ITEM","OTHER ITEMS",19,2380,"M"]
["9551","m","GLARE SCREEN TYPE 1 DESIGN B","I6","STANDARD ITEM","OTHER ITEMS",19,2381,"M"]
["9552","m","GLARE SCREEN TYPE 2","I6","STANDARD ITEM","OTHER ITEMS",19,2382,"M"]
["9553","m","TEMPORARY BARRIER GLARE SCREEN","I6","GSP ITEM","OTHER ITEMS",19,2384,"M"]
["9562","m3","GABION CRIBBING","J2","STANDARD ITEM","OTHER ITEMS",19,2396,"M"]
["9564","t","ROCK RETAINING WALL","S4","REQUIRES SPECIAL PROV.","OTHER ITEMS",19,2397,"M"]
["9570","m2","FIBER BONDED METAL CRIBBING TYPE 0 DESIGN 0","O2","STANDARD ITEM","OTHER ITEMS",19,2401,"M"]
["9572","m2","STRUCTURAL EARTH WALL","I2","STANDARD ITEM","STRUCTURE",8,1660,"M"]
["9574","m2","GRAVITY BLOCK WALL","S4","STANDARD ITEM","OTHER ITEMS",19,2398,"M"]
["9583","t","ROCK FOR ROCK WALL","S4","STANDARD ITEM","OTHER ITEMS",19,2399,"M"]
["9584","t","BACKFILL FOR ROCK WALL","S4","STANDARD ITEM","OTHER ITEMS",19,2400,"M"]
["9585","m3","BACKFILL FOR STRUCTURAL EARTH WALL INCL. HAUL","I2","STANDARD ITEM","STRUCTURE",8,1661,"M"]
["9596","m2","CONSTRUCTION GEOTEXTILE","G2","STANDARD ITEM","OTHER ITEMS",19,2461,"M"]
["9598","m2","CONSTRUCTION GEOTEXTILE FOR SEPARATION","G2","STANDARD ITEM","OTHER ITEMS",19,2462,"M"]
["9599","m2","CONSTRUCTION GEOTEXTILE FOR DITCH LINING","G2","STANDARD ITEM","OTHER ITEMS",19,2463,"M"]
["9602","EACH","ADJUST INLET","G2","STANDARD ITEM","OTHER ITEMS",19,2406,"C"]
["9605","EACH","CONNECTION TO DRAINAGE STRUCTURE","T8","STANDARD ITEM","OTHER ITEMS",19,2409,"C"]
["9610","EACH","MANHOLE 1200 MM DIAM. TYPE","T8","STANDARD ITEM","OTHER ITEMS",19,2411,"C"]
["9611","EACH","MANHOLE 1350 MM DIAM. TYPE","T8","STANDARD ITEM","OTHER ITEMS",19,2412,"C"]
["9612","EACH","MANHOLE 1800 MM DIAM. TYPE","T8","STANDARD ITEM","OTHER ITEMS",19,2413,"C"]
["9613","EACH","MANHOLE 2400 MM DIAM. TYPE","T8","STANDARD ITEM","OTHER ITEMS",19,2414,"C"]
["9616","m","MANHOLE ADDITIONAL HEIGHT 1200 MM DIAM. TYPE","T8","STANDARD ITEM","OTHER ITEMS",19,2415,"M"]
["9617","m","MANHOLE ADDITIONAL HEIGHT 1350 MM DIAM. TYPE","T8","STANDARD ITEM","OTHER ITEMS",19,2416,"M"]
["9618","m","MANHOLE ADDITIONAL HEIGHT 1800 MM DIAM. TYPE","T8","STANDARD ITEM","OTHER ITEMS",19,2417,"M"]
["9619","m","MANHOLE ADDITIONAL HEIGHT 2400 MM DIAM. TYPE","T8","STANDARD ITEM","OTHER ITEMS",19,2418,"M"]
["9735","m2","CONSTRUCTION GEOTEXTILE FOR UNDERGROUND DRAINAGE","G2","STANDARD ITEM","OTHER ITEMS",19,2464,"M"]
["9736","m2","CONSTRUCTION GEOTEXTILE FOR SOIL STABILIZATION","G2","STANDARD ITEM","OTHER ITEMS",19,2465,"M"]
["9737","m2","CONSTRUCTION GEOTEXTILE FOR PERMANENT EROSION CONTROL","G2","STANDARD ITEM","OTHER ITEMS",19,2466,"M"]
["9739","m2","GEOTEXTILE RETAINING WALL","G2","GSP ITEM","OTHER ITEMS",19,2467,"M"]
["9742","m2","GEOSYNTHETIC RETAINING WALL","G2","GSP ITEM","OTHER ITEMS",19,2468,"M"]
["9743","m2","TEMPORARY GEOSYNTHETIC RETAINING WALL","G2","GSP ITEM","OTHER ITEMS",19,2469,"M"]
["9745","m3","BORROW FOR GEOSYNTHETIC WALL INCL. HAUL","I2","STANDARD ITEM","OTHER ITEMS",19,2470,"M"]
["9752","m2","SHOTCRETE FACING","E4","STANDARD ITEM","OTHER ITEMS",19,2471,"M"]
["9800","m3","SUPERSTRUCTURE - MISC. CONC. CLASSES","B0","SUPERSTRUCTURE ITEM","SUPERSTRUCTURE",29,2612,"M"]
["9805","m3","SUPERSTRUCTURE - CONC. CLASS 28","B0","SUPERSTRUCTURE ITEM","SUPERSTRUCTURE",29,2615,"M"]
["9810","m3","SUPERSTRUCTURE - CONC. CLASS 35","B0","SUPERSTRUCTURE ITEM","SUPERSTRUCTURE",29,2616,"M"]
["9815","kg","SUPERSTRUCTURE - ST. REINF. BAR","B0","SUPERSTRUCTURE ITEM","SUPERSTRUCTURE",29,2618,"M"]
["9820","kg","SUPERSTRUCTURE - EPOXY-COATED ST. REINF. BAR","B0","SUPERSTRUCTURE ITEM","SUPERSTRUCTURE",29,2620,"M"]
["9825","kg","SUPERSTRUCTURE - STRUCTURAL CARBON ST.","B0","SUPERSTRUCTURE ITEM","SUPERSTRUCTURE",29,2622,"M"]
["9830","kg","SUPERSTRUCTURE - STRUCTURAL LOW ALLOY ST.","B0","SUPERSTRUCTURE ITEM","SUPERSTRUCTURE",29,2624,"M"]
["9835","kg","SUPERSTRUCTURE - STRUCTURAL HIGH ALLOY ST.","B0","SUPERSTRUCTURE ITEM","SUPERSTRUCTURE",29,2626,"M"]
["9840","kg","SUPERSTRUCTURE - CAST STEEL","B0","SUPERSTRUCTURE ITEM","SUPERSTRUCTURE",29,2628,"M"]
["9845","m","SUPERSTRUCTURE - ELECTRICAL CONDUIT","B0","SUPERSTRUCTURE ITEM","SUPERSTRUCTURE",29,2631,"M"]
["9850","m","SUPERSTRUCTURE - BRIDGE RAILING","B0","SUPERSTRUCTURE ITEM","SUPERSTRUCTURE",29,2633,"M"]
["9855","m","SUPERSTRUCTURE - PRESTRESSED CONC. GIRDER W74MG","B0","SUPERSTRUCTURE ITEM","SUPERSTRUCTURE",29,2642,"M"]
["9860","m","SUPERSTRUCTURE - PRESTRESSED CONC. GIRDER W58MG","B0","SUPERSTRUCTURE ITEM","SUPERSTRUCTURE",29,2643,"M"]
["9865","m","SUPERSTRUCTURE - PRESTRESSED CONC. GIRDER W50MG","B0","SUPERSTRUCTURE ITEM","SUPERSTRUCTURE",29,2644,"M"]
["9870","m","SUPERSTRUCTURE - PRESTRESSED CONC. GIRDER W42MG","B0","SUPERSTRUCTURE ITEM","SUPERSTRUCTURE",29,2645,"M"]
["9875","m","SUPERSTRUCTURE - PRESTRESSED CONC. GIRDER W53DMG","B0","SUPERSTRUCTURE ITEM","SUPERSTRUCTURE",29,2646,"M"]
["9880","m","SUPERSTRUCTURE - PRESTRESSED CONC. GIRDER W35DMG","B0","SUPERSTRUCTURE ITEM","SUPERSTRUCTURE",29,2647,"M"]
["9885","kg","SUPERSTRUCTURE - PRESTRESSING","B0","SUPERSTRUCTURE ITEM","SUPERSTRUCTURE",29,2648,"M"]
["9905","C.Y.","SUPERSTRUCTURE - MISC. CONC. CLASSES","B0","SUPERSTRUCTURE ITEM","SUPERSTRUCTURE",29,2611,"E"]
["9906","C.Y.","SUPERSTRUCTURE - CONC. CLASS 4000","B0","SUPERSTRUCTURE ITEM","SUPERSTRUCTURE",29,2613,"E"]
["9907","C.Y.","SUPERSTRUCTURE - CONC. CLASS 5000","B0","SUPERSTRUCTURE ITEM","SUPERSTRUCTURE",29,2614,"E"]
["9910","LB.","SUPERSTRUCTURE - ST. REINF. BAR","B0","SUPERSTRUCTURE ITEM","SUPERSTRUCTURE",29,2617,"E"]
["9912","LB.","SUPERSTRUCTURE - EPOXY-COATED ST. REINF. BAR","B0","SUPERSTRUCTURE ITEM","SUPERSTRUCTURE",29,2619,"E"]
["9915","LB.","SUPERSTRUCTURE - STRUCTURAL CARBON ST.","B0","SUPERSTRUCTURE ITEM","SUPERSTRUCTURE",29,2621,"E"]
["9920","LB.","SUPERSTRUCTURE - STRUCTURAL LOW ALLOY ST.","B0","SUPERSTRUCTURE ITEM","SUPERSTRUCTURE",29,2623,"E"]
["9925","LB.","SUPERSTRUCTURE - STRUCTURAL HIGH ALLOY ST.","B0","SUPERSTRUCTURE ITEM","SUPERSTRUCTURE",29,2625,"E"]
["9930","LB.","SUPERSTRUCTURE - CAST STEEL","B0","SUPERSTRUCTURE ITEM","SUPERSTRUCTURE",29,2627,"E"]
["9935","EACH","SUPERSTRUCTURE - BRIDGE DRAIN","B0","SUPERSTRUCTURE ITEM","SUPERSTRUCTURE",29,2629,"C"]
["9940","L.F.","SUPERSTRUCTURE - ELECTRICAL CONDUIT","B0","SUPERSTRUCTURE ITEM","SUPERSTRUCTURE",29,2630,"E"]
["9950","L.F.","SUPERSTRUCTURE - BRIDGE RAILING","B0","SUPERSTRUCTURE ITEM","SUPERSTRUCTURE",29,2632,"E"]
["9960","EACH","SUPERSTRUCTURE - ELASTOMERIC BEARING PAD","B0","SUPERSTRUCTURE ITEM","SUPERSTRUCTURE",29,2634,"C"]
["9962","L.F.","SUPERSTRUCTURE - PRESTRESSED CONC. GIRDER W74MG","B0","SUPERSTRUCTURE ITEM","SUPERSTRUCTURE",29,2635,"E"]
["9963","L.F.","SUPERSTRUCTURE - PRESTRESSED CONC. GIRDER W58MG","B0","SUPERSTRUCTURE ITEM","SUPERSTRUCTURE",29,2636,"E"]
["9964","L.F.","SUPERSTRUCTURE - PRESTRESSED CONC. GIRDER W50MG","B0","SUPERSTRUCTURE ITEM","SUPERSTRUCTURE",29,2637,"E"]
["9965","L.F.","SUPERSTRUCTURE - PRESTRESSED CONC. GIRDER W42MG","B0","SUPERSTRUCTURE ITEM","SUPERSTRUCTURE",29,2638,"E"]
["9966","L.F.","SUPERSTRUCTURE - PRESTRESSED CONC. GIRDER W53DMG","B0","SUPERSTRUCTURE ITEM","SUPERSTRUCTURE",29,2639,"E"]
["9967","L.F.","SUPERSTRUCTURE - PRESTRESSED CONC. GIRDER W35DMG","B0","SUPERSTRUCTURE ITEM","SUPERSTRUCTURE",29,2640,"E"]
["9980","LB.","SUPERSTRUCTURE - PRESTRESSING","B0","SUPERSTRUCTURE ITEM","SUPERSTRUCTURE",29,2641,"E"]
["8322","L.S.","16400 SERVICE AND DISTRIBUTION","C2","TECHNICAL SPECIFICATIONS","BUILDING",20,2581,"C"]
["8324","L.S.","16500 LIGHTING","C2","TECHNICAL SPECIFICATIONS","BUILDING",20,2582,"C"]
["8326","L.S.","16740 TELEPHONE SYSTEM","C2","TECHNICAL SPECIFICATIONS","BUILDING",20,2583,"C"]
["8328","L.S.","16850 ELECTRIC HEATING","C2","TECHNICAL SPECIFICATIONS","BUILDING",20,2584,"C"]
["8330","m3","STRUCTURE EXCAVATION CLASS A","I2","STANDARD ITEM","STRUCTURE",8,1289,"M"]
["8331","m3","STRUCTURE EXCAVATION CLASS A INCL. HAUL","I2","STANDARD ITEM","STRUCTURE",8,1291,"M"]
["8332","m3","SOIL EXCAVATION FOR SHAFT INCLUDING HAUL","T0","REQUIRES SPECIAL PROV.","STRUCTURE",8,1293,"M"]
["8333","m3","ROCK EXCAVATION FOR SHAFT INCLUDING HAUL","T0","REQUIRES SPECIAL PROV.","STRUCTURE",8,1295,"M"]
["8335","m3","SPECIAL EXCAVATION","I2","REQUIRES SPECIAL PROV.","STRUCTURE",8,1297,"M"]
["8340","m3","GRAVEL BACKFILL FOR WALL","I2","STANDARD ITEM","STRUCTURE",8,1299,"M"]
["8344","m","CASING SHORING","T0","REQUIRES SPECIAL PROV.","STRUCTURE",8,1338,"M"]
["8345","m","SHAFT EXCAVATION","T0","REQUIRES SPECIAL PROV.","OBSOLETE ITEMS HIDEOUT",30,2672,"M"]
["8346","m3","SHAFT EXCAVATION","T0","REQUIRES SPECIAL PROV.","OBSOLETE ITEMS HIDEOUT",30,2674,"M"]
["8347","m","FURNISHING ST. SHAFT","T0","REQUIRES SPECIAL PROV.","OBSOLETE ITEMS HIDEOUT",30,2676,"M"]
["8348","m","SHAFT - 610 MM DIAMETER","T0","STANDARD ITEM","STRUCTURE",8,1340,"M"]
["8349","m","SHAFT - 760 MM DIAMETER","T0","STANDARD ITEM","STRUCTURE",8,1342,"M"]
["8350","m","SHAFT - 915 MM DIAMETER","T0","STANDARD ITEM","STRUCTURE",8,1344,"M"]
["8351","m","SHAFT - 1070 MM DIAMETER","T0","STANDARD ITEM","STRUCTURE",8,1346,"M"]
["8353","m","FURNISHING SOLDIER PILE","T0","STANDARD ITEM","STRUCTURE",8,1348,"M"]
["8355","m","PREBORING FOR PILE","Q4","GSP ITEM","OBSOLETE ITEMS HIDEOUT",30,2790,"M"]
["8356","m","PREBORING FOR 300MM DIAM. CONC. PILE","Q4","GSP ITEM","STRUCTURE",8,1350,"M"]
["8357","m","PREBORING FOR 350MM DIAM. CONC. PILE","Q4","GSP ITEM","STRUCTURE",8,1352,"M"]
["8359","m","FURNISHING CONC. PILING - 490 KN","Q4","STANDARD ITEM","OBSOLETE ITEMS HIDEOUT",30,2679,"M"]
["8361","m","FURNISHING CONC. PILING - 620 KN","Q4","STANDARD ITEM","OBSOLETE ITEMS HIDEOUT",30,2680,"M"]
["8363","m","FURNISHING CONC. PILING","Q4","STANDARD ITEM","STRUCTURE",8,1368,"M"]
["8364","m","PREBORING FOR 400MM DIAM. CONC. PILE","Q4","GSP ITEM","STRUCTURE",8,1354,"M"]
["8366","m","PREBORING FOR 450MM DIAM. CONC. PILE","Q4","GSP ITEM","STRUCTURE",8,1356,"M"]
["8368","m","PREBORING FOR 500MM DIAM. CONC. PILE","Q4","GSP ITEM","STRUCTURE",8,1358,"M"]
["8370","m","PREBORING FOR 600MM DIAM. CONC. PILE","Q4","GSP ITEM","STRUCTURE",8,1360,"M"]
["8372","m","PREBORING FOR 750MM DIAM. CONC. PILE","Q4","GSP ITEM","STRUCTURE",8,1362,"M"]
["8373","m","FURNISHING ST. PILING","Q4","STANDARD ITEM","STRUCTURE",8,1373,"M"]
["8375","m","PREBORING FOR ST. PILE","Q4","GSP ITEM","STRUCTURE",8,1364,"M"]
["8376","EACH","FURNISHING STEEL PILE TIP OR SHOE","Q4","STANDARD ITEM","STRUCTURE",8,1375,"C"]
["8377","m","PREBORING FOR TIMBER PILE","Q4","GSP ITEM","STRUCTURE",8,1366,"M"]
["8378","EACH","PRECAST CONCRETE PILE BUILDUP","Q4","STANDARD ITEM","STRUCTURE",8,1376,"C"]
["8381","m","FURNISHING TIMBER PILING - UNTREATED","Q4","STANDARD ITEM","STRUCTURE",8,1379,"M"]
["8383","m","FURNISHING TIMBER PILING - CREOSOTE TREATED","Q4","CURRENTLY INVALID ITEM","OBSOLETE ITEMS HIDEOUT",30,3123,"M"]
["8384","m","FURNISHING TIMBER PILING ","Q4","STANDARD ITEM","STRUCTURE",8,1380,"M"]
["8393","m","FURNISHING PRESTRESSED HOLLOW CONC. PILING","Q4","STANDARD ITEM","STRUCTURE",8,1386,"M"]
["8410","kg","EPOXY-COATED ST. REINF. BAR","U0","STANDARD ITEM","STRUCTURE",8,1390,"M"]
["8412","kg","EPOXY-COATED ST. REINF. BAR FOR BRIDGE","U0","STANDARD ITEM","STRUCTURE",8,1392,"M"]
["8414","kg","EPOXY-COATED ST. REINF. BAR - SUPERSTR.","U0","STANDARD ITEM","STRUCTURE",8,1394,"M"]
["8416","kg","EPOXY-COATED ST. REINF. BAR - SUPERSTR. INCL. TRAF. BAR.","U0","STANDARD ITEM","STRUCTURE",8,1396,"M"]
["8417","kg","EPOXY-COATED ST. REINF. BAR FOR RETAINING WALL","U0","STANDARD ITEM","STRUCTURE",8,1398,"M"]
["8418","kg","EPOXY-COATED ST. REINF. BAR FOR","U0","STANDARD ITEM","STRUCTURE",8,1400,"M"]
["8420","kg","ST. REINF. BAR FOR BRIDGE","U0","STANDARD ITEM","STRUCTURE",8,1402,"M"]
["8422","kg","ST. REINF. BAR - SUPERSTR.","U0","STANDARD ITEM","STRUCTURE",8,1404,"M"]
["8424","kg","ST. REINF. BAR - SUPERSTR. INCL. TRAF. BAR.","U0","STANDARD ITEM","STRUCTURE",8,1406,"M"]
["8425","kg","ST. REINF. BAR FOR RETAINING WALL","U0","STANDARD ITEM","STRUCTURE",8,1408,"M"]
["8426","kg","ST. REINF. BAR FOR","U0","STANDARD ITEM","STRUCTURE",8,1410,"M"]
["8427","kg","ST. REINF. BAR FOR SHAFT","U0","REQUIRES SPECIAL PROV.","STRUCTURE",8,1412,"M"]
["8428","m2","GALVANIZED WIRE MESH","U0","CURRENTLY INVALID ITEM","OBSOLETE ITEMS HIDEOUT",30,3133,"M"]
["8429","m","CSL ACCESS TUBE","U0","REQUIRES SPECIAL PROV.","STRUCTURE",8,1414,"M"]
["8430","m3","LEAN CONCRETE","E0","STANDARD ITEM","STRUCTURE",8,1416,"M"]
["8435","m3","CONC. CL. PC FOR","E0","REQUIRES SPECIAL PROV.","OBSOLETE ITEMS HIDEOUT",30,2687,"M"]
["8440","m3","CONC. CLASS 20 FOR","E0","STANDARD ITEM","STRUCTURE",8,1417,"M"]
["8441","m3","CONC. CLASS 20 FOR BRIDGE","B0","STANDARD ITEM","OBSOLETE ITEMS HIDEOUT",30,2688,"M"]
["8442","m3","CONC. CLASS 28 FOR","E0","STANDARD ITEM","STRUCTURE",8,1418,"M"]
["8443","m3","CONC. CLASS 20LS FOR BRIDGE","B0","STANDARD ITEM","OBSOLETE ITEMS HIDEOUT",30,2690,"M"]
["8450","m3","CONC. CLASS 20LS FOR","E0","STANDARD ITEM","OBSOLETE ITEMS HIDEOUT",30,2689,"M"]
["8452","m3","CONC. CLASS 28 FOR BRIDGE","B0","STANDARD ITEM","STRUCTURE",8,1419,"M"]
["8454","m3","CONC. CLASS 28 - SUPERSTR.","B0","STANDARD ITEM","STRUCTURE",8,1420,"M"]
["8456","m3","CONC. CLASS 28LS FOR","E0","STANDARD ITEM","OBSOLETE ITEMS HIDEOUT",30,2691,"M"]
["8458","m3","CONC. CLASS 28LS FOR BRIDGE","B0","STANDARD ITEM","OBSOLETE ITEMS HIDEOUT",30,2692,"M"]
["8460","m3","CONC. CLASS 28LS - SUPERSTR.","B0","STANDARD ITEM","OBSOLETE ITEMS HIDEOUT",30,2693,"M"]
["8462","m3","CONC. CLASS 28 TRAFFIC BARRIER - SUPERSTR.","B0","STANDARD ITEM","STRUCTURE",8,1421,"M"]
["8464","m3","CONC. CLASS 28 - SUPERSTR. INCL. TRAF. BAR.","B0","STANDARD ITEM","STRUCTURE",8,1422,"M"]
["8465","m3","CONC. CLASS 28 FOR RETAINING WALL","B0","STANDARD ITEM","STRUCTURE",8,1423,"M"]
["8466","m3","CONC. CLASS 28W FOR","E0","STANDARD ITEM","STRUCTURE",8,1424,"M"]
["8468","m3","CONC. CLASS 28W FOR BRIDGE","B0","STANDARD ITEM","STRUCTURE",8,1425,"M"]
["8469","m3","CONC. CLASS 28P FOR SHAFT","B0","REQUIRES SPECIAL PROV.","STRUCTURE",8,1427,"M"]
["8470","m3","CONC. CLASS 28D FOR BRIDGE","B0","STANDARD ITEM","STRUCTURE",8,1428,"M"]
["8472","m3","CONC. CLASS 28DLS FOR BRIDGE","B0","STD. ITEM, GSP REQUIRED","OBSOLETE ITEMS HIDEOUT",30,2696,"M"]
["8475","m3","CONC. CLASS 35 FOR","E0","STANDARD ITEM","STRUCTURE",8,1429,"M"]
["8477","m3","CONC. CLASS 35 FOR BRIDGE","B0","STANDARD ITEM","STRUCTURE",8,1430,"M"]
["8479","m3","CONC. CLASS 35 - SUPERSTR.","B0","STANDARD ITEM","STRUCTURE",8,1432,"M"]
["8481","m3","CONC. CLASS 35LS FOR","E0","STANDARD ITEM","OBSOLETE ITEMS HIDEOUT",30,2699,"M"]
["8483","m3","CONC. CLASS 35LS FOR BRIDGE","B0","STANDARD ITEM","OBSOLETE ITEMS HIDEOUT",30,2700,"M"]
["8485","m3","CONC. CLASS 35LS - SUPERSTR.","B0","STANDARD ITEM","OBSOLETE ITEMS HIDEOUT",30,2702,"M"]
["8490","m3","CONC. CLASS 43 FOR","E0","STANDARD ITEM","STRUCTURE",8,1435,"M"]
["8491","m3","CONC. CLASS 43 FOR BRIDGE","B0","STANDARD ITEM","STRUCTURE",8,1436,"M"]
["8492","m3","CONC. CLASS 43 - SUPERSTR.","B0","STANDARD ITEM","STRUCTURE",8,1438,"M"]
["8493","m3","CONC. CLASS 43LS FOR","E0","STANDARD ITEM","OBSOLETE ITEMS HIDEOUT",30,2705,"M"]
["8494","m3","CONC. CLASS 43LS FOR BRIDGE","B0","STANDARD ITEM","OBSOLETE ITEMS HIDEOUT",30,2706,"M"]
["8496","m3","CONC. CLASS 28 - BOX GIRDER - SUPERSTR.","B0","STANDARD ITEM","STRUCTURE",8,1444,"M"]
["8498","m3","CONC. CLASS 35 - BOX GIRDER - SUPERSTR.","B0","STANDARD ITEM","STRUCTURE",8,1446,"M"]
["8499","m3","CONC. CLASS 43 - BOX GIRDER - SUPERSTR.","B0","STANDARD ITEM","STRUCTURE",8,1447,"M"]
["8500","m","PRESTRESSED CONC. GIRDER","R8","BSP ITEM","STRUCTURE",8,1458,"M"]
["8505","m","PRESTRESSED CONC. GIRDER W42MG - SUPERSTR.","B0","REQUIRES SPECIAL PROV.","OBSOLETE ITEMS HIDEOUT",30,2714,"M"]
["8506","m","PRESTRESSED CONC. GIRDER W50MG - SUPERSTR.","B0","REQUIRES SPECIAL PROV.","OBSOLETE ITEMS HIDEOUT",30,2716,"M"]
["8507","m","PRESTRESSED CONC. GIRDER W58MG - SUPERSTR.","B0","REQUIRES SPECIAL PROV.","OBSOLETE ITEMS HIDEOUT",30,2718,"M"]
["8508","m","PRESTRESSED CONC. GIRDER W74MG - SUPERSTR.","B0","REQUIRES SPECIAL PROV.","OBSOLETE ITEMS HIDEOUT",30,2720,"M"]
["8509","m","PRESTRESSED CONC. GIRDER W35DMG - SUPERSTR.","B0","REQUIRES SPECIAL PROV.","OBSOLETE ITEMS HIDEOUT",30,2722,"M"]
["8510","m","PRESTRESSED CONC. GIRDER W53DMG - SUPERSTR.","B0","REQUIRES SPECIAL PROV.","OBSOLETE ITEMS HIDEOUT",30,2724,"M"]
["8511","kg","PRESTRESSING BAR - SUPERSTR.","B0","REQUIRES SPECIAL PROV.","STRUCTURE",8,1460,"M"]
["8512","kg","PRESTRESSING STRAND - SUPERSTR.","B0","REQUIRES SPECIAL PROV.","STRUCTURE",8,1462,"M"]
["8515","m3","MODIFIED CONC. OVERLAY","B0","STANDARD ITEM","STRUCTURE",8,1467,"M"]
["8516","m2","FINISHING AND CURING MODIFIED CONC. OVERLAY","E0","STANDARD ITEM","STRUCTURE",8,1469,"M"]
["8517","m2","EXPOSED AGG. FINISH","B0","REQUIRES SPECIAL PROV.","STRUCTURE",8,1471,"M"]
["8518","m2","PERMEON TREATMENT","B0","BSP ITEM","STRUCTURE",8,1473,"M"]
["8526","kg","STRUCTURAL CARBON STEEL - SUPERSTR.","H8","STANDARD ITEM","STRUCTURE",8,1476,"M"]
["8528","kg","STRUCTURAL LOW ALLOY STEEL - SUPERSTR.","H8","CURRENTLY INVALID ITEM","OBSOLETE ITEMS HIDEOUT",30,2893,"M"]
["8530","kg","STRUCTURAL HIGH STRENGTH STEEL - SUPERSTR.","H8","STANDARD ITEM","STRUCTURE",8,1480,"M"]
["8536","kg","CAST STEEL","H8","STANDARD ITEM","STRUCTURE",8,1482,"M"]
["8537","kg","CAST STEEL - SUPERSTR.","H8","STANDARD ITEM","STRUCTURE",8,1483,"M"]
["8539","kg","FORGED STEEL - SUPERSTR.","H8","STANDARD ITEM","STRUCTURE",8,1489,"M"]
["8540","kg","FORGED STEEL","H8","STANDARD ITEM","STRUCTURE",8,1490,"M"]
["8546","kg","CAST IRON","M2","STANDARD ITEM","STRUCTURE",8,1494,"M"]
["8547","kg","CAST IRON - SUPERSTR.","M2","STANDARD ITEM","STRUCTURE",8,1495,"M"]
["8549","kg","MALLEABLE IRON","M2","STANDARD ITEM","STRUCTURE",8,1499,"M"]
["8550","kg","MALLEABLE IRON - SUPERSTR.","M2","STANDARD ITEM","STRUCTURE",8,1500,"M"]
["8552","kg","DUCTILE IRON","M2","STANDARD ITEM","STRUCTURE",8,1504,"M"]
["8553","kg","DUCTILE IRON - SUPERSTR.","M2","STANDARD ITEM","STRUCTURE",8,1505,"M"]
["8555","kg","CAST BRONZE","M2","STANDARD ITEM","STRUCTURE",8,1509,"M"]
["8556","kg","CAST BRONZE - SUPERSTR.","M2","STANDARD ITEM","STRUCTURE",8,1510,"M"]
["8557","m2","LAGGING","V0","STANDARD ITEM","STRUCTURE",8,1511,"M"]
["8558","m3","TIMBER LAGGING","V0","STANDARD ITEM","STRUCTURE",8,1512,"M"]
["8560","m3","TIMBER AND LUMBER - UNTREATED","V0","STANDARD ITEM","STRUCTURE",8,1513,"M"]
["8561","m3","TIMBER AND LUMBER - UNTREATED - SUPERSTR.","V0","STANDARD ITEM","STRUCTURE",8,1514,"M"]
["8562","m3","TIMBER AND LUMBER - CRESOTE TREATED","V0","STANDARD ITEM","STRUCTURE",8,1515,"M"]
["8563","m3","TIMBER AND LUMBER - CRESOTE TREATED - SUPERSTR.","V0","STANDARD ITEM","STRUCTURE",8,1516,"M"]
["8564","m3","TIMBER AND LUMBER - SALTS TREATED","V0","STANDARD ITEM","STRUCTURE",8,1517,"M"]
["8565","m3","TIMBER AND LUMBER - SALTS TREATED - SUPERSTR.","V0","STANDARD ITEM","STRUCTURE",8,1518,"M"]
["8566","m3","GLULAM DECK PANELS - SUPERSTR.","V0","REQUIRES SPECIAL PROV.","STRUCTURE",8,1528,"M"]
["8570","EACH","EARTHQUAKE RESTRAINER 25 MM DIA. BAR - SUPERSTR.","H8","REQUIRES SPECIAL PROV.","OBSOLETE ITEMS HIDEOUT",30,2728,"C"]
["8571","EACH","EARTHQUAKE RESTRAINER 40 MM DIA. BAR - SUPERSTR.","H8","REQUIRES SPECIAL PROV.","OBSOLETE ITEMS HIDEOUT",30,2729,"C"]
["8572","EACH","EARTHQUAKE RESTRAINER 50 MM DIA. BAR - SUPERSTR.","H8","REQUIRES SPECIAL PROV.","OBSOLETE ITEMS HIDEOUT",30,2730,"C"]
["8573","m","FURNISHING & PLACING TEMP. CASING FOR 1220MM DIA. SHAFT","T0","REQUIRES SPECIAL PROV.","STRUCTURE",8,1302,"M"]
["8574","m","FURNISHING & PLACING TEMP. CASING FOR 1520MM DIA. SHAFT","T0","REQUIRES SPECIAL PROV.","STRUCTURE",8,1304,"M"]
["8575","m","FURNISHING & PLACING TEMP. CASING FOR 1830MM DIA. SHAFT","T0","REQUIRES SPECIAL PROV.","STRUCTURE",8,1306,"M"]
["8576","m","FURNISHING & PLACING TEMP. CASING FOR 2130MM DIA. SHAFT","T0","REQUIRES SPECIAL PROV.","STRUCTURE",8,1308,"M"]
["8577","m","FURNISHING & PLACING TEMP. CASING FOR 2440MM DIA. SHAFT","T0","REQUIRES SPECIAL PROV.","STRUCTURE",8,1310,"M"]
["8578","m","FURNISHING & PLACING TEMP. CASING FOR 3050MM DIA. SHAFT","T0","REQUIRES SPECIAL PROV.","STRUCTURE",8,1312,"M"]
["8579","m","FURNISHING PERMANENT CASING FOR 1220 MM DIAM. SHAFT","T0","REQUIRES SPECIAL PROV.","STRUCTURE",8,1314,"M"]
["8580","m","FURNISHING PERMANENT CASING FOR 1520 MM DIAM. SHAFT","T0","REQUIRES SPECIAL PROV.","STRUCTURE",8,1316,"M"]
["8581","m","FURNISHING PERMANENT CASING FOR 1830 MM DIAM. SHAFT","T0","REQUIRES SPECIAL PROV.","STRUCTURE",8,1318,"M"]
["8582","m","FURNISHING PERMANENT CASING FOR 2130 MM DIAM. SHAFT","T0","REQUIRES SPECIAL PROV.","STRUCTURE",8,1320,"M"]
["8583","m","FURNISHING PERMANENT CASING FOR 2440 MM DIAM. SHAFT","T0","REQUIRES SPECIAL PROV.","STRUCTURE",8,1322,"M"]
["8584","m","FURNISHING PERMANENT CASING FOR 3050 MM DIAM. SHAFT","T0","REQUIRES SPECIAL PROV.","STRUCTURE",8,1324,"M"]
["8585","EACH","PLACING PERMANENT CASING FOR 1220 MM DIAM. SHAFT","T0","REQUIRES SPECIAL PROV.","STRUCTURE",8,1326,"C"]
["8586","EACH","PLACING PERMANENT CASING FOR 1520 MM DIAM. SHAFT","T0","REQUIRES SPECIAL PROV.","STRUCTURE",8,1328,"C"]
["8587","EACH","PLACING PERMANENT CASING FOR 1830 MM DIAM. SHAFT","T0","REQUIRES SPECIAL PROV.","STRUCTURE",8,1330,"C"]
["8588","EACH","PLACING PERMANENT CASING FOR 2130 MM DIAM. SHAFT","T0","REQUIRES SPECIAL PROV.","STRUCTURE",8,1332,"C"]
["8589","EACH","PLACING PERMANENT CASING FOR 2440 MM DIAM. SHAFT","T0","REQUIRES SPECIAL PROV.","STRUCTURE",8,1334,"C"]
["8590","EACH","PLACING PERMANENT CASING FOR 3050 MM DIAM. SHAFT","T0","REQUIRES SPECIAL PROV.","STRUCTURE",8,1336,"C"]
["8593","m2","PRECAST PRESTRESSED SLAB - SUPERSTR.","B0","REQUIRES SPECIAL PROV.","OBSOLETE ITEMS HIDEOUT",30,2732,"M"]
["8595","m","ELECTRICAL CONDUIT","B0","REQUIRES SPECIAL PROV.","OBSOLETE ITEMS HIDEOUT",30,2733,"M"]
["8596","m","CONDUIT PIPE 27 MM DIAM.","B0","STANDARD ITEM","OBSOLETE ITEMS HIDEOUT",30,2736,"M"]
["8597","m","CONDUIT PIPE 41 MM DIAM.","B0","STANDARD ITEM","OBSOLETE ITEMS HIDEOUT",30,2737,"M"]
["8598","m","CONDUIT PIPE 53 MM DIAM.","B0","STANDARD ITEM","OBSOLETE ITEMS HIDEOUT",30,2738,"M"]
["8599","m","CONDUIT PIPE 63 MM DIAM.","B0","STANDARD ITEM","OBSOLETE ITEMS HIDEOUT",30,2739,"M"]
["8600","m","ST. HAND RAIL","M2","REQUIRES SPECIAL PROV.","STRUCTURE",8,1547,"M"]
["8601","m","STEEL HANDRAIL - SUPERSTR.","M2","REQUIRES SPECIAL PROV.","STRUCTURE",8,1548,"M"]
["8605","m","BRIDGE RAILING TYPE","B0","STANDARD ITEM","STRUCTURE",8,1550,"M"]
["8606","m","BRIDGE RAILING TYPE BP - SUPERSTR.","B0","STANDARD ITEM","STRUCTURE",8,1553,"M"]
["8607","m","BRIDGE RAILING TYPE BP-B - SUPERSTR.","B0","STANDARD ITEM","STRUCTURE",8,1555,"M"]
["8608","m","BRIDGE RAILING TYPE CHAIN LINK FENCE","I6","STANDARD ITEM","STRUCTURE",8,1557,"M"]
["8609","m","BRIDGE RAIL LOW FENCE TYPE - SUPERSTR.","I6","REQUIRES SPECIAL PROV.","STRUCTURE",8,1559,"M"]
["8615","m","TRAFFIC BARRIER","D0","STANDARD ITEM","STRUCTURE",8,1561,"M"]
["8616","m","TRAFFIC BARRIER - SUPERSTR.","D0","REQUIRES SPECIAL PROV.","STRUCTURE",8,1563,"M"]
["8617","m","BARRIER","D0","GSP ITEM","STRUCTURE",8,1564,"M"]
["8618","m","PEDESTRIAN BARRIER","D0","STANDARD ITEM","STRUCTURE",8,1569,"M"]
["8619","m","TRAFFIC PEDESTRIAN BARRIER","D0","STANDARD ITEM","STRUCTURE",8,1568,"M"]
["8621","m","SEW TRAFFIC BARRIER","D0","STANDARD ITEM","STRUCTURE",8,1571,"M"]
["8622","m","SEW PEDESTRIAN BARRIER","D0","STANDARD ITEM","STRUCTURE",8,1573,"M"]
["8623","m","GEOSYNTHIC WALL F - SHAPE TRAFFIC BARRIER","D0","STANDARD ITEM","STRUCTURE",8,1577,"M"]
["8624","m","GEOSYNTHIC RETAINING WALL PEDESTRIAN BARRIER","D0","STANDARD ITEM","STRUCTURE",8,1579,"M"]
["8625","m","GEOSYNTHIC WALL SINGLE SLOPE TRAFFIC BARRIER","D0","STANDARD ITEM","STRUCTURE",8,1576,"M"]
["8630","m","EXPANSION JOINT SYSTEM COMPRESSION SEAL - SUPERSTR.","B0","GSP ITEM","STRUCTURE",8,1585,"M"]
["8631","m","EXPANSION JOINT SYSTEM STRIP SEAL - SUPERSTR.","B0","GSP ITEM","STRUCTURE",8,1586,"M"]
["8634","m","EXPANSION JOINT MODIFICATION","B0","BSP ITEM","STRUCTURE",8,1593,"M"]
["8636","m3","BRIDGE DECK REPAIR","B6","GSP ITEM","STRUCTURE",8,1596,"M"]
["8638","m2","BRIDGE DECK REPAIR","B6","BSP ITEM","STRUCTURE",8,1598,"M"]
["8640","L","EPOXY RESIN","H6","REQUIRES SPECIAL PROV.","STRUCTURE",8,1600,"M"]
["8641","m","EPOXY CRACK SEALING","H6","GSP ITEM","STRUCTURE",8,1602,"M"]
["8642","m2","WATERPROOFING","O8","STANDARD ITEM","STRUCTURE",8,1604,"M"]
["8643","m2","MEMBRANE WATERPROOFING (DECK SEAL)","X4","GSP ITEM","STRUCTURE",8,1606,"M"]
["8644","m2","SCARIFYING CONC. SURFACE","B0","STANDARD ITEM","STRUCTURE",8,1608,"M"]
["8646","m2","REMOVING EXISTING CONCRETE OVERLAY","B0","REQUIRES SPECIAL PROV.","STRUCTURE",8,1610,"M"]
["8648","m2","FURTHER DECK PREPARATION FOR TYPE 1 DECK REPAIR","B0","BSP ITEM","STRUCTURE",8,1615,"M"]
["8649","m3","FURTHER DECK PREPARATION","B0","STANDARD ITEM","STRUCTURE",8,1611,"M"]
["8650","m2","FURTHER DECK PREPARATION FOR TYPE 2 DECK REPAIR","B0","BSP ITEM","STRUCTURE",8,1617,"M"]
["8651","m2","NOISE BARRIER WALL TYPE","B0","STANDARD ITEM","STRUCTURE",8,1626,"M"]
["8652","m2","CONCRETE FASCIA PANEL","B0","STANDARD ITEM","STRUCTURE",8,1629,"M"]
["8653","m2","PREFABRICATED DRAINAGE MAT","G2","STANDARD ITEM","STRUCTURE",8,1634,"M"]
["8654","m","CLEANING, SEALING AND CAULKING PACK RUST","P4","STANDARD ITEM","STRUCTURE",8,1620,"M"]
["8655","m3","BALLAST FROM STOCKPILE","F4","STANDARD ITEM","SURFACING",9,1675,"M"]
["8656","t","BALLAST FROM STOCKPILE","F4","STANDARD ITEM","SURFACING",9,1677,"M"]
["8657","m3","BALLAST","F6","STANDARD ITEM","SURFACING",9,1679,"M"]
["8658","t","BALLAST","F6","STANDARD ITEM","SURFACING",9,1681,"M"]
["8659","m3","SHOULDER BALLAST FROM STOCKPILE","F4","STANDARD ITEM","SURFACING",9,1683,"M"]
["8660","t","SHOULDER BALLAST FROM STOCKPILE","F4","STANDARD ITEM","SURFACING",9,1685,"M"]
["8661","m3","SHOULDER BALLAST","F6","STANDARD ITEM","SURFACING",9,1687,"M"]
["8662","t","SHOULDER BALLAST","F6","STANDARD ITEM","SURFACING",9,1689,"M"]
["8663","m2","SPOT ABRASIVE BLAST CLEANING","P4","STANDARD ITEM","STRUCTURE",8,1622,"M"]
["8665","t","GRAVEL BASE","F6","STANDARD ITEM","SURFACING",9,1691,"M"]
["8666","m3","GRAVEL BASE","F6","STANDARD ITEM","SURFACING",9,1693,"M"]
["8670","m3","CRUSHED SURFACING BASE COURSE FROM STOCKPILE","F4","STANDARD ITEM","SURFACING",9,1695,"M"]
["8671","t","CRUSHED SURFACING BASE COURSE FROM STOCKPILE","F4","STANDARD ITEM","SURFACING",9,1697,"M"]
["8672","m3","CRUSHED SURFACING BASE COURSE","F6","STANDARD ITEM","SURFACING",9,1699,"M"]
["8673","t","CRUSHED SURFACING BASE COURSE","F6","STANDARD ITEM","SURFACING",9,1701,"M"]
["8674","m3","CRUSHED SURFACING TOP COURSE FROM STOCKPILE","F4","STANDARD ITEM","SURFACING",9,1703,"M"]
["8675","t","CRUSHED SURFACING TOP COURSE FROM STOCKPILE","F4","STANDARD ITEM","SURFACING",9,1705,"M"]
["8676","m3","CRUSHED SURFACING TOP COURSE","F6","STANDARD ITEM","SURFACING",9,1707,"M"]
["8677","t","CRUSHED SURFACING TOP COURSE","F6","STANDARD ITEM","SURFACING",9,1708,"M"]
["8680","t","AGG. GRADING C","F6","REQUIRES SPECIAL PROV.","SURFACING",9,1709,"M"]
["8685","t","ASPHALT MC-70","B4","STANDARD ITEM","OBSOLETE ITEMS HIDEOUT",30,2657,"M"]
["8686","t","ASPHALT RC-70","B4","STANDARD ITEM","OBSOLETE ITEMS HIDEOUT",30,2659,"M"]
["8690","t","ASPHALT MC-250","B4","STANDARD ITEM","OBSOLETE ITEMS HIDEOUT",30,2661,"M"]
["8691","t","ASPHALT RC-250","B4","STANDARD ITEM","OBSOLETE ITEMS HIDEOUT",30,2663,"M"]
["8693","t","ASPHALT MC-800","B4","STANDARD ITEM","OBSOLETE ITEMS HIDEOUT",30,2665,"M"]
["8694","t","ASPHALT RC-800","B4","STANDARD ITEM","OBSOLETE ITEMS HIDEOUT",30,2667,"M"]
["8697","t","ASPHALT MC-3000","B4","STANDARD ITEM","OBSOLETE ITEMS HIDEOUT",30,2669,"M"]
["8698","t","ASPHALT RC-3000","B4","STANDARD ITEM","OBSOLETE ITEMS HIDEOUT",30,2671,"M"]
["8704","t","ASPHALT EMULSION CRS-2P","B4","STANDARD ITEM","LIQUID ASPHALT",10,1715,"M"]
["8705","t","ASPHALT EMULSION CRS-1","B4","STANDARD ITEM","LIQUID ASPHALT",10,1711,"M"]
["8706","t","ASPHALT EMULSION CRS-2","B4","STANDARD ITEM","LIQUID ASPHALT",10,1713,"M"]
["8707","t","ASPHALT EMULSION CMS-2","B4","STANDARD ITEM","LIQUID ASPHALT",10,1718,"M"]
["8708","t","ASPHALT EMULSION CMS-2H","A8","STANDARD ITEM","LIQUID ASPHALT",10,1720,"M"]
["8709","t","ASPHALT EMULSION CMS-2M","A8","GSP ITEM","LIQUID ASPHALT",10,1722,"M"]
["8710","t","ASPHALT EMULSION CMS-2S","A8","STANDARD ITEM","LIQUID ASPHALT",10,1724,"M"]
["8711","t","ASPHALT EMULSION CSS-1","A8","STANDARD ITEM","LIQUID ASPHALT",10,1726,"M"]
["8712","t","ASPHALT EMULSION CSS-1H","A8","STANDARD ITEM","LIQUID ASPHALT",10,1728,"M"]
["8713","t","ASPHALT EMULSION STE-1","A8","STANDARD ITEM","LIQUID ASPHALT",10,1730,"M"]
["8720","t","PAVING ASPHALT AR-4000W","A4","STANDARD ITEM","LIQUID ASPHALT",10,1731,"M"]
["8722","t","ASPHALT FOR TACK COAT","A4","CURRENTLY INVALID ITEM","OBSOLETE ITEMS HIDEOUT",30,2802,"M"]
["8724","t","PLASTICIZING AGENT","A4","REQUIRES SPECIAL PROV.","LIQUID ASPHALT",10,1732,"M"]
["8726","t","RUBBERIZED ASPHALT","B4","CURRENTLY INVALID ITEM","OBSOLETE ITEMS HIDEOUT",30,2853,"M"]
["8730","t","ASPHALT FOR FOG SEAL","B4","STANDARD ITEM","LIQUID ASPHALT",10,1734,"M"]
["8735","km","PROCESSING AND FINISHING","B4","STANDARD ITEM","BITUMINOUS SURFACE TREATMENT",11,1737,"M"]
["8740","m3","AGG. FROM STOCKPILE FOR BST","B4","STANDARD ITEM","BITUMINOUS SURFACE TREATMENT",11,1739,"M"]
["8742","m3","FURNISHING AND PLACING CRUSHED COVER STONE","B4","STANDARD ITEM","BITUMINOUS SURFACE TREATMENT",11,1741,"M"]
["8743","m3","FURNISHING AND PLACING CRUSHED SCREENING 19.0 TO 12.5 MM","B4","STANDARD ITEM","BITUMINOUS SURFACE TREATMENT",11,1743,"M"]
["8744","m3","FURNISHING AND PLACING CRUSHED SCREENING 16.0 TO 6.30 MM","B4","STANDARD ITEM","BITUMINOUS SURFACE TREATMENT",11,1745,"M"]
["8745","m3","FURNISHING AND PLACING CRUSHED SCREENING 12.5 TO 6.30 MM","B4","STANDARD ITEM","BITUMINOUS SURFACE TREATMENT",11,1747,"M"]
["8746","m3","FURNISHING AND PLACING CRUSHED SCREENING 9.50 TO 2.00 MM","B4","STANDARD ITEM","BITUMINOUS SURFACE TREATMENT",11,1749,"M"]
["8747","m3","FURNISHING AND PLACING CRUSHED SCREENING 6.30 TO 0 MM","B4","STANDARD ITEM","BITUMINOUS SURFACE TREATMENT",11,1752,"M"]
["8750","m3","SURFACE DRY AGG. 16.0 TO 6.30 MM","B4","CURRENTLY INVALID ITEM","OBSOLETE ITEMS HIDEOUT",30,2855,"M"]
["8751","m3","SURFACE DRY AGG. 12.5 TO 6.30 MM","B4","CURRENTLY INVALID ITEM","OBSOLETE ITEMS HIDEOUT",30,2857,"M"]
["8756","m3","SURFACE DRY AGG. 9.50 TO 2.00 MM","B4","CURRENTLY INVALID ITEM","OBSOLETE ITEMS HIDEOUT",30,2858,"M"]
["8765","t","ASPHALT TREATED BASE","B2","STANDARD ITEM","ASPHALT TREATED BASE",12,1756,"M"]
["8770","t","ASPHALT TREATED PERMEABLE BASE","B2","GSP ITEM","ASPHALT TREATED BASE",12,1758,"M"]
["8782","m3","FURNISHING 3 DAY CONC. FOR CEMENT CONC. PAVEMENT","C0","CURRENTLY INVALID ITEM","OBSOLETE ITEMS HIDEOUT",30,2900,"M"]
["8784","m3","FURNISHING 4 DAY CONC. FOR CEMENT CONC. PAVEMENT","C0","CURRENTLY INVALID ITEM","OBSOLETE ITEMS HIDEOUT",30,2901,"M"]
["8786","m3","FURNISHING 5 DAY CONC. FOR CEMENT CONC. PAVEMENT","C0","CURRENTLY INVALID ITEM","OBSOLETE ITEMS HIDEOUT",30,2902,"M"]
["8788","m3","FURNISHING 7 DAY CONC. FOR CEMENT CONC. PAVEMENT","C0","CURRENTLY INVALID ITEM","OBSOLETE ITEMS HIDEOUT",30,2897,"M"]
["8790","m3","FURNISHING 14 DAY CONC. FOR CEMENT CONC. PAVEMENT","C0","CURRENTLY INVALID ITEM","OBSOLETE ITEMS HIDEOUT",30,2903,"M"]
["8792","m2","CEMENT CONC. PAVEMENT","C0","CURRENTLY INVALID ITEM","OBSOLETE ITEMS HIDEOUT",30,2904,"M"]
["8793","m3","CEMENT CONC. PAVEMENT","C0","STANDARD ITEM","CEMENT CONCRETE PAVEMENT",13,1759,"M"]
["8800","m2","CEMENT CONC. APPROACH 14 DAY","C8","CURRENTLY INVALID ITEM","OBSOLETE ITEMS HIDEOUT",30,3138,"M"]
["8802","m2","CEMENT CONC. APPROACH 7 DAY","C8","CURRENTLY INVALID ITEM","OBSOLETE ITEMS HIDEOUT",30,3139,"M"]
["8804","m2","CEMENT CONC. APPROACH 5 DAY","C8","CURRENTLY INVALID ITEM","OBSOLETE ITEMS HIDEOUT",30,3141,"M"]
["8806","m2","CEMENT CONC. APPROACH 4 DAY","C8","CURRENTLY INVALID ITEM","OBSOLETE ITEMS HIDEOUT",30,3143,"M"]
["8808","m2","CEMENT CONC. APPROACH 3 DAY","C8","CURRENTLY INVALID ITEM","OBSOLETE ITEMS HIDEOUT",30,3145,"M"]
["8812","m2","BRIDGE APPROACH SLAB","D2","STD. ITEM, GSP REQUIRED","CEMENT CONCRETE PAVEMENT",13,1763,"M"]
["8815","m3","CEMENT CONC. PAVEMENT - INCLUDING DOWELS","C0","STANDARD ITEM","CEMENT CONCRETE PAVEMENT",13,1764,"M"]
["8818","m","SEALING TRANSVERSE AND LONGITUDINAL JOINTS","E7","STANDARD ITEM","CEMENT CONCRETE PAVEMENT",13,1775,"M"]
["8819","m2","CEMENT CONCRETE PAVEMENT GRINDING","E2","STANDARD ITEM","CEMENT CONCRETE PAVEMENT",13,1778,"M"]
["8822","t","ASPHALT CONC. PAVEMENT CL. A PG","A4","STANDARD ITEM","HOT MIX ASPHALT",14,1818,"M"]
["8823","t","ASPHALT CONC. PAVEMENT CL. B PG","A4","STANDARD ITEM","HOT MIX ASPHALT",14,1819,"M"]
["8824","t","ASPHALT CONC. PAVEMENT CL. D PG","A4","STANDARD ITEM","HOT MIX ASPHALT",14,1820,"M"]
["8825","t","ASPHALT CONC. PAVEMENT  CL. E PG","A4","STANDARD ITEM","HOT MIX ASPHALT",14,1821,"M"]
["8826","t","ASPHALT CONC. PAVEMENT CL. F PG","A4","STANDARD ITEM","HOT MIX ASPHALT",14,1822,"M"]
["8827","t","ASPHALT CONC. PAVEMENT CL. G PG","A4","STANDARD ITEM","HOT MIX ASPHALT",14,1823,"M"]
["8828","t","ASPHALT CONC. PAVEMENT CL. MODIFIED D PG","A4","STANDARD ITEM","HOT MIX ASPHALT",14,1824,"M"]
["8830","m3","PAVEMENT SUBSEAL","E4","STANDARD ITEM","CEMENT CONCRETE PAVEMENT",13,1767,"M"]
["8832","m2","REPLACE CEMENT CONCRETE PANEL","D2","STANDARD ITEM","CEMENT CONCRETE PAVEMENT",13,1769,"M"]
["8835","km","PREPARATION OF UNTREATED ROADWAY","B4","STANDARD ITEM","HOT MIX ASPHALT",14,1780,"M"]
["8838","m2","REMOVING EXISTING OVERLAY FROM BRIDGE DECK","A0","BSP ITEM","HOT MIX ASPHALT",14,1783,"M"]
["8840","m2","PLANING BITUMINOUS PAVEMENT","A0","STANDARD ITEM","HOT MIX ASPHALT",14,1784,"M"]
["8841","t","HMA CL. 9.5 MM PG","A4","STANDARD ITEM","HOT MIX ASPHALT",14,1833,"M"]
["8842","t","HMA CL. 12.5 MM PG","A4","STANDARD ITEM","HOT MIX ASPHALT",14,1835,"M"]
["8843","t","HMA CL. 19MM PG","A4","STANDARD ITEM","HOT MIX ASPHALT",14,1837,"M"]
["8845","t","PRIME COAT AGG. FROM STOCKPILE","B4","REQUIRES SPECIAL PROV.","HOT MIX ASPHALT",14,1786,"M"]
["8846","m3","PRIME COAT AGG. FROM STOCKPILE","B4","REQUIRES SPECIAL PROV.","HOT MIX ASPHALT",14,1787,"M"]
["8847","t","PRIME COAT AGG.","B4","STANDARD ITEM","HOT MIX ASPHALT",14,1789,"M"]
["8848","m3","PRIME COAT AGG.","B4","STANDARD ITEM","HOT MIX ASPHALT",14,1791,"M"]
["8850","m2","FABRIC REINFORCEMENT","A4","REQUIRES SPECIAL PROV.","HOT MIX ASPHALT",14,1794,"M"]
["8851","t","HMA FOR PRELEVELING CL.  9.5MM PG","A4","STANDARD ITEM","HOT MIX ASPHALT",14,1797,"M"]
["8852","t","HMA FOR PRELEVELING CL. 12.5MM  PG","A4","STANDARD ITEM","HOT MIX ASPHALT",14,1799,"M"]
["8853","t","HMA FOR PRELEVELING CL. 19MM  PG","A4","STANDARD ITEM","HOT MIX ASPHALT",14,1801,"M"]
["8855","t","ASPHALT CONC. FOR PRELEVELING CL. A","A4","CURRENTLY INVALID ITEM","OBSOLETE ITEMS HIDEOUT",30,3164,"M"]
["8856","t","ASPHALT CONC. FOR PRELEVELING CL. B","A4","CURRENTLY INVALID ITEM","OBSOLETE ITEMS HIDEOUT",30,3165,"M"]
["8857","t","ASPHALT CONC. FOR PRELEVELING CL. D","A4","CURRENTLY INVALID ITEM","OBSOLETE ITEMS HIDEOUT",30,3166,"M"]
["8858","t","ASPHALT CONC. FOR PRELEVELING CL. E","A4","CURRENTLY INVALID ITEM","OBSOLETE ITEMS HIDEOUT",30,3167,"M"]
["8859","t","ASPHALT CONC. FOR PRELEVELING CL. F","A4","STANDARD ITEM","OBSOLETE ITEMS HIDEOUT",30,3168,"M"]
["8860","t","ASPHALT CONC. FOR PRELEVELING CL. G","A4","CURRENTLY INVALID ITEM","OBSOLETE ITEMS HIDEOUT",30,3169,"M"]
["8861","t","ASPHALT CONC. FOR PRELEVELING CL. A PG","A4","STANDARD ITEM","HOT MIX ASPHALT",14,1802,"M"]
["8862","t","ASPHALT CONC. FOR PRELEVELING CL. B PG","A4","STANDARD ITEM","HOT MIX ASPHALT",14,1803,"M"]
["8863","t","ASPHALT CONC. FOR PRELEVELING CL. F PG","A4","STANDARD ITEM","HOT MIX ASPHALT",14,1804,"M"]
["8864","t","ASPHALT CONC. FOR PRELEVELING CL. G PG","A4","STANDARD ITEM","HOT MIX ASPHALT",14,1805,"M"]
["8865","t","ASPHALT CONC. FOR PAVEMENT REPAIR","A4","STANDARD ITEM","HOT MIX ASPHALT",14,1810,"M"]
["8866","t","HMA FOR PAVEMENT REPAIR CL. 9.5MM PG","A4","STANDARD ITEM","HOT MIX ASPHALT",14,1813,"M"]
["8867","t","HMA FOR PAVEMENT REPAIR CL. 12.5MM PG","A4","STANDARD ITEM","HOT MIX ASPHALT",14,1815,"M"]
["8868","t","HMA FOR PAVEMENT REPAIR CL. 19MM PG","A4","STANDARD ITEM","HOT MIX ASPHALT",14,1817,"M"]
["8870","t","ASPHALT CONC. PAVEMENT CL. A","A4","CURRENTLY INVALID ITEM","OBSOLETE ITEMS HIDEOUT",30,3177,"M"]
["8871","t","ASPHALT CONC. PAVEMENT CL. B","A4","CURRENTLY INVALID ITEM","OBSOLETE ITEMS HIDEOUT",30,3178,"M"]
["8872","t","ASPHALT CONC. PAVEMENT CL. D","A4","CURRENTLY INVALID ITEM","OBSOLETE ITEMS HIDEOUT",30,3179,"M"]
["8873","t","ASPHALT CONC. PAVEMENT CL. E","A4","CURRENTLY INVALID ITEM","OBSOLETE ITEMS HIDEOUT",30,3180,"M"]
["8874","t","ASPHALT CONC. PAVEMENT CL. F","A4","CURRENTLY INVALID ITEM","OBSOLETE ITEMS HIDEOUT",30,3181,"M"]
["8875","t","ASPHALT CONC. PAVEMENT CL. G","A4","CURRENTLY INVALID ITEM","OBSOLETE ITEMS HIDEOUT",30,3182,"M"]
["8876","t","ASPHALT CONC. PAVEMENT CL. SUPERPAVE 9.5 MM PG","A4","CURRENTLY INVALID ITEM","OBSOLETE ITEMS HIDEOUT",30,3188,"M"]
["8877","t","ASPHALT CONC. PAVEMENT CL. SUPERPAVE 12.5 MM PG","A4","GSP ITEM","OBSOLETE ITEMS HIDEOUT",30,3189,"M"]
["8878","t","ASPHALT CONC. PAVEMENT CL. SUPERPAVE 19 MM PG","A4","CURRENTLY INVALID ITEM","OBSOLETE ITEMS HIDEOUT",30,3190,"M"]
["8880","t","POLYMER MODIFIED ASPHALT CONC. PAVEMENT CL. D","A4","GSP ITEM","HOT MIX ASPHALT",14,1839,"M"]
["8881","t","HMA FOR APPROACH CL. 9.5 MM PG","A4","STANDARD ITEM","HOT MIX ASPHALT",14,1847,"M"]
["8882","t","HMA FOR APPROACH CL. 12.5 MM PG","A4","STANDARD ITEM","HOT MIX ASPHALT",14,1849,"M"]
["8883","t","HMA FOR APPROACH CL. 19 MM PG","A4","STANDARD ITEM","HOT MIX ASPHALT",14,1851,"M"]
["8884","t","COMMERCIAL HMA","A4","STANDARD ITEM","HOT MIX ASPHALT",14,1853,"M"]
["8885","t","POLYMER MODIFIED ASPHALT CONC. PAVEMENT CL. G","A4","GSP ITEM","HOT MIX ASPHALT",14,1840,"M"]
["8887","t","MODIFIED ASPHALT CONC. PAVEMENT CL.","A4","GSP ITEM","HOT MIX ASPHALT",14,1841,"M"]
["8888","t","ASPHALT CONC. APPROACH CL.","A4","STANDARD ITEM","HOT MIX ASPHALT",14,1845,"M"]
["8890","m3","BLENDING SAND","A4","STANDARD ITEM","HOT MIX ASPHALT",14,1858,"M"]
["8892","m3","CRUSHED SCREENINGS","F6","REQUIRES SPECIAL PROV.","HOT MIX ASPHALT",14,1859,"M"]
["8893","t","CRUSHED SCREENINGS","F6","REQUIRES SPECIAL PROV.","HOT MIX ASPHALT",14,1860,"M"]
["8897","t","OPEN GRADED ASPHALT PAVEMENT EXCL. PAVING ASPHALT","A4","REQUIRES SPECIAL PROV.","HOT MIX ASPHALT",14,1861,"M"]
["8898","t","OPEN GRADED ASPHALT PAVEMENT EXCL. EMULSIFIED ASPHALT","A8","REQUIRES SPECIAL PROV.","HOT MIX ASPHALT",14,1862,"M"]
["8910","m2","SOIL RESIDUAL HERBICIDE","L2","STANDARD ITEM","HOT MIX ASPHALT",14,1864,"M"]
["8911","km","SOIL RESIDUAL HERBICIDE 2 M WIDE","L2","STANDARD ITEM","HOT MIX ASPHALT",14,1865,"M"]
["8912","km","SOIL RESIDUAL HERBICIDE","L2","STANDARD ITEM","HOT MIX ASPHALT",14,1867,"M"]
["8915","m","LONGITUDINAL JOINT SEAL","A4","STANDARD ITEM","HOT MIX ASPHALT",14,1869,"M"]
["8916","m","BRIDGE TRANSVERSE JOINT SEAL","A4","REQUIRES SPECIAL PROV.","HOT MIX ASPHALT",14,1872,"M"]
["8920","L.F.","FURNISHING ST. PILING 24 IN. DIAM.","Q4","WSF ITEM REQ. SPECIAL PROV.","STRUCTURE",8,1643,"E"]
["8921","L.F.","FURNISHING ST. PILING 30 IN. DIAM.","Q4","WSF ITEM REQ. SPECIAL PROV.","STRUCTURE",8,1644,"E"]
["8922","L.F.","FURNISHING ST. PILING 36 IN. DIAM.","Q4","WSF ITEM REQ. SPECIAL PROV.","STRUCTURE",8,1645,"E"]
["8925","L.F.","FABRICATING ST. PILING 24 IN. DIAM.","Q4","WSF ITEM REQ. SPECIAL PROV.","STRUCTURE",8,1646,"E"]
["8926","L.F.","FABRICATING ST. PILING 30 IN. DIAM.","Q4","WSF ITEM REQ. SPECIAL PROV.","STRUCTURE",8,1647,"E"]
["8927","L.F.","FABRICATING ST. PILING 36 IN. DIAM.","Q4","WSF ITEM REQ. SPECIAL PROV.","STRUCTURE",8,1648,"E"]
["8930","EACH","DRIVING ST. PILE 24 IN. DIAM.","Q4","WSF ITEM REQ. SPECIAL PROV.","STRUCTURE",8,1649,"C"]
["8931","EACH","DRIVING ST. PILE 30 IN. DIAM.","Q4","WSF ITEM REQ. SPECIAL PROV.","STRUCTURE",8,1650,"C"]
["8932","EACH","DRIVING ST. PILE 36 IN. DIAM.","Q4","WSF ITEM REQ. SPECIAL PROV.","STRUCTURE",8,1651,"C"]
["8934","EACH","DYNAMIC PILE TESTING","Q4","WSF ITEM REQ. SPECIAL PROV.","STRUCTURE",8,1652,"C"]
["8940","L.S.","STRUCTURAL CARBON STEEL","H8","WSF ITEM REQ. SPECIAL PROV.","STRUCTURE",8,1653,"C"]
["8941","L.S.","STRUCTURAL LOW ALLOY STEEL","H8","WSF ITEM REQ. SPECIAL PROV.","STRUCTURE",8,1654,"C"]
["8943","L.S.","CHAIN AND HARDWARE","H8","WSF ITEM REQ. SPECIAL PROV.","STRUCTURE",8,1655,"C"]
["8945","MBM","TIMBER AND LUMBER","V0","WSF ITEM REQ. SPECIAL PROV.","STRUCTURE",8,1656,"E"]
["8946","MBM","GLUED-LAMINATED DECKING","V0","WSF ITEM REQ. SPECIAL PROV.","STRUCTURE",8,1657,"E"]
["8950","EACH","UNANCHORED MICROPILE","V7","WSF ITEM REQ. SPECIAL PROV.","STRUCTURE",8,1658,"C"]
["8952","EACH","ANCHORED MICROPILE","V7","WSF ITEM REQ. SPECIAL PROV.","STRUCTURE",8,1659,"C"]
["8954","EACH","MICROPILE VERIFICATION TEST","V7","WSF ITEM REQ. SPECIAL PROV.","STRUCTURE",8,1660,"C"]
["8956","EACH","MICROPILE LOAD TEST","V7","WSF ITEM REQ. SPECIAL PROV.","STRUCTURE",8,1661,"C"]
["8958","EACH","MICROPILE SHELL","V7","WSF ITEM REQ. SPECIAL PROV.","STRUCTURE",8,1662,"C"]
["8965","L.S.","FLOATING DOLPHIN","N4","WSF ITEM REQ. SPECIAL PROV.","STRUCTURE",8,1663,"C"]
["8966","L.S.","FLOATING DOLPHIN FENDER ASSEMBLY","N4","WSF ITEM REQ. SPECIAL PROV.","STRUCTURE",8,1664,"C"]
["8967","TON","FLOATING DOLPHIN BALLAST","N4","WSF ITEM REQ. SPECIAL PROV.","STRUCTURE",8,1665,"E"]
["8968","L.F.","FLOATING DOLPHIN ANCHOR CHAIN","N4","WSF ITEM REQ. SPECIAL PROV.","STRUCTURE",8,1666,"E"]
["8969","L.S.","TEMPORARY PROTECTIVE DOLPHIN","N4","WSF ITEM REQ. SPECIAL PROV.","STRUCTURE",8,1667,"C"]
["8975","EACH","MARINE FENDER","N4","WSF ITEM REQ. SPECIAL PROV.","STRUCTURE",8,1668,"C"]
["8976","EACH","FURNISH MARINE FENDER","N4","WSF ITEM REQ. SPECIAL PROV.","STRUCTURE",8,1669,"C"]
["8977","EACH","INSTALL MARINE FENDER","N4","WSF ITEM REQ. SPECIAL PROV.","STRUCTURE",8,1670,"C"]
["8980","EACH","UHMW POLYETHYLENE RUBBING FACE FOR DOLPHINS","N4","WSF ITEM REQ. SPECIAL PROV.","STRUCTURE",8,1671,"C"]
["8981","L.S.","UHMW POLYETHYLENE RUBBING FACE FOR WINGWALLS","N4","WSF ITEM REQ. SPECIAL PROV.","STRUCTURE",8,1672,"C"]
["9075","m3","TOPSOIL TYPE A","H0","STANDARD ITEM","EROSION CNTL AND ROADSIDE RESTORATION",17,1949,"M"]
["9076","m3","TOPSOIL TYPE A - SITE","H0","STANDARD ITEM","EROSION CNTL AND ROADSIDE RESTORATION",17,1950,"M"]
["9080","m3","TOPSOIL TYPE B","H0","STANDARD ITEM","EROSION CNTL AND ROADSIDE RESTORATION",17,1952,"M"]
["9081","m3","TOPSOIL TYPE B - SITE","O6","STANDARD ITEM","EROSION CNTL AND ROADSIDE RESTORATION",17,1953,"M"]
["9084","m3","TOPSOIL TYPE C","O6","STANDARD ITEM","EROSION CNTL AND ROADSIDE RESTORATION",17,1955,"M"]
["9086","m3","TOPSOIL TYPE C - SITE","O6","STANDARD ITEM","EROSION CNTL AND ROADSIDE RESTORATION",17,1956,"M"]
["9090","ha","SEEDING AND FERTILIZING","T2","STANDARD ITEM","EROSION CNTL AND ROADSIDE RESTORATION",17,1931,"M"]
["9091","ha","SEEDING AND FERTILIZING - SITE","T2","STANDARD ITEM","EROSION CNTL AND ROADSIDE RESTORATION",17,1934,"M"]
["9093","m2","SEEDING AND FERTILIZING BY HAND","T2","STANDARD ITEM","EROSION CNTL AND ROADSIDE RESTORATION",17,1938,"M"]
["9094","ha","SEEDING, FERTILIZING, AND MULCHING","T2","STANDARD ITEM","EROSION CNTL AND ROADSIDE RESTORATION",17,1926,"M"]
["9095","ha","SEEDING AND MULCHING","T2","STANDARD ITEM","OBSOLETE ITEMS HIDEOUT",30,2770,"M"]
["9096","ha","SEEDING, FERTILIZING, AND MULCHING - SITE","T2","STANDARD ITEM","EROSION CNTL AND ROADSIDE RESTORATION",17,1928,"M"]
["9100","ha","SEEDING","T2","STANDARD ITEM","OBSOLETE ITEMS HIDEOUT",30,2769,"M"]
["9102","ha","SEEDING - SITE","T2","STANDARD ITEM","OBSOLETE ITEMS HIDEOUT",30,2767,"M"]
["9105","ha","FERTILIZING","T2","STANDARD ITEM","OBSOLETE ITEMS HIDEOUT",30,2772,"M"]
["9107","ha","FERTILIZING - SITE","T2","STANDARD ITEM","OBSOLETE ITEMS HIDEOUT",30,2774,"M"]
["9110","ha","SECOND APPLICATION OF FERTILIZER","T2","STANDARD ITEM","EROSION CNTL AND ROADSIDE RESTORATION",17,1940,"M"]
["9111","ha","SECOND APPLICATION OF FERTILIZER - SITE","T2","STANDARD ITEM","EROSION CNTL AND ROADSIDE RESTORATION",17,1942,"M"]
["9112","m3","FINE COMPOST","T2","STANDARD ITEM","EROSION CNTL AND ROADSIDE RESTORATION",17,1979,"M"]
["9113","m3","COARSE COMPOST","T2","STANDARD ITEM","EROSION CNTL AND ROADSIDE RESTORATION",17,1981,"M"]
["9115","ha","LIMING","H0","STANDARD ITEM","EROSION CNTL AND ROADSIDE RESTORATION",17,1944,"M"]
["9116","ha","LIMING - SITE","H0","STANDARD ITEM","EROSION CNTL AND ROADSIDE RESTORATION",17,1947,"M"]
["9117","m3","COMPOST TYPE 1","T2","STANDARD ITEM","OBSOLETE ITEMS HIDEOUT",30,2785,"M"]
["9118","m3","COMPOST TYPE 2","T2","STANDARD ITEM","OBSOLETE ITEMS HIDEOUT",30,2787,"M"]
["9120","ha","MULCHING","T2","STANDARD ITEM","EROSION CNTL AND ROADSIDE RESTORATION",17,1915,"M"]
["9122","ha","MULCHING - SITE","T2","STANDARD ITEM","EROSION CNTL AND ROADSIDE RESTORATION",17,1913,"M"]
["9123","m3","COMPOST","T2","GSP ITEM","EROSION CNTL AND ROADSIDE RESTORATION",17,1982,"M"]
["9124","ha","PAM","H0","STANDARD ITEM","OBSOLETE ITEMS HIDEOUT",30,2775,"M"]
["9125","L","ASPHALT EMULSION","H0","CURRENTLY INVALID ITEM","OBSOLETE ITEMS HIDEOUT",30,2868,"M"]
["9126","L","ASPHALT EMULSION - SITE","H0","CURRENTLY INVALID ITEM","OBSOLETE ITEMS HIDEOUT",30,2870,"M"]
["9130","ha","SOIL BINDER OR TACKING AGENT","H0","STANDARD ITEM","OBSOLETE ITEMS HIDEOUT",30,2764,"M"]
["9131","ha","SOIL BINDER OR TACKING AGENT - SITE","H0","STANDARD ITEM","OBSOLETE ITEMS HIDEOUT",30,2765,"M"]
["9135","m2","JUTE MATTING","H0","CURRENTLY INVALID ITEM","OBSOLETE ITEMS HIDEOUT",30,2864,"M"]
["9136","m2","JUTE MATTING - SITE","H0","CURRENTLY INVALID ITEM","OBSOLETE ITEMS HIDEOUT",30,2866,"M"]
["9140","m2","PERMANENT EROSION CONTROL BLANKET","H0","STANDARD ITEM","EROSION CNTL AND ROADSIDE RESTORATION",17,1882,"M"]
["9141","m2","PLASTIC COVERING","H0","STANDARD ITEM","EROSION CNTL AND ROADSIDE RESTORATION",17,1885,"M"]
["9142","m2","CLEAR PLASTIC COVERING","H0","CURRENTLY INVALID ITEM","OBSOLETE ITEMS HIDEOUT",30,2860,"M"]
["9144","ha","MOWING","O6","STANDARD ITEM","OBSOLETE ITEMS HIDEOUT",30,2783,"M"]
["9145","ha","MOWING - SITE","O6","CURRENTLY INVALID ITEM","OBSOLETE ITEMS HIDEOUT",30,2862,"M"]
["9146","m2","LAWN MOWING","O6","STANDARD ITEM","EROSION CNTL AND ROADSIDE RESTORATION",17,2006,"M"]
["9147","m","TEMPORARY CURB","H0","STANDARD ITEM","EROSION CNTL AND ROADSIDE RESTORATION",17,1909,"M"]
["9148","m","CHECK DAM","H0","STANDARD ITEM","EROSION CNTL AND ROADSIDE RESTORATION",17,1887,"M"]
["9149","m2","STABILIZED CONSTRUCTION ENTRANCE","H0","STANDARD ITEM","EROSION CNTL AND ROADSIDE RESTORATION",17,1889,"M"]
["9150","m","SILT FENCE","H0","STANDARD ITEM","EROSION CNTL AND ROADSIDE RESTORATION",17,1894,"M"]
["9151","m","COMPOST BERM","H0","STANDARD ITEM","EROSION CNTL AND ROADSIDE RESTORATION",17,1900,"M"]
["9152","m","GRAVEL FILTER BERM","H0","STANDARD ITEM","EROSION CNTL AND ROADSIDE RESTORATION",17,1896,"M"]
["9153","m","WOOD CHIP BERM","H0","STANDARD ITEM","EROSION CNTL AND ROADSIDE RESTORATION",17,1898,"M"]
["9155","km","SHOULDER SLOPE STERILIZATION","L2","REQUIRES SPECIAL PROV.","EROSION CNTL AND ROADSIDE RESTORATION",17,1998,"M"]
["9156","m2","SHOULDER SLOPE WEED CONTROL","H0","STANDARD ITEM","OBSOLETE ITEMS HIDEOUT",30,2780,"M"]
["9157","L","HERBICIDE APPLIED IN LIQUID FORM","L2","REQUIRES SPECIAL PROV.","EROSION CNTL AND ROADSIDE RESTORATION",17,1996,"M"]
["9160","m3","SOIL AMENDMENT","H0","STANDARD ITEM","EROSION CNTL AND ROADSIDE RESTORATION",17,1994,"M"]
["9161","m3","SPECIAL SOIL MIX","M8","REQUIRES SPECIAL PROV.","EROSION CNTL AND ROADSIDE RESTORATION",17,1958,"M"]
["9162","m2","PREPARATION FOR PLANTING","M8","REQUIRES SPECIAL PROV.","EROSION CNTL AND ROADSIDE RESTORATION",17,1960,"M"]
["9165","m","BRUSH BARRIER","H0","STANDARD ITEM","OBSOLETE ITEMS HIDEOUT",30,2777,"M"]
["9166","m","WATTLE","H0","STANDARD ITEM","EROSION CNTL AND ROADSIDE RESTORATION",17,1903,"M"]
["9167","ha","TEMPORARY SEEDING","H0","STANDARD ITEM","EROSION CNTL AND ROADSIDE RESTORATION",17,1923,"M"]
["9168","m","COMPOST SOCK","H0","STANDARD ITEM","EROSION CNTL AND ROADSIDE RESTORATION",17,1906,"M"]
["9180","m2","SOD INSTALLATION","M8","STANDARD ITEM","EROSION CNTL AND ROADSIDE RESTORATION",17,2004,"M"]
["9181","m2","SEEDED LAWN INSTALLATION","M8","STANDARD ITEM","EROSION CNTL AND ROADSIDE RESTORATION",17,2002,"M"]
["9182","m","FASCINES","M8","STANDARD ITEM","EROSION CNTL AND ROADSIDE RESTORATION",17,1976,"M"]
["9183","m","LIVE STAKE ROW","M8","STANDARD ITEM","EROSION CNTL AND ROADSIDE RESTORATION",17,1965,"M"]
["9184","m2","LIVE BRUSH MATTRESS","M8","STANDARD ITEM","EROSION CNTL AND ROADSIDE RESTORATION",17,1967,"M"]
["9185","kg","FERTILIZER","M8","STANDARD ITEM","EROSION CNTL AND ROADSIDE RESTORATION",17,1985,"M"]
["9186","kg","FERTILIZER - TABLET","M8","REQUIRES SPECIAL PROV.","EROSION CNTL AND ROADSIDE RESTORATION",17,1987,"M"]
["9187","kg","FERTILIZER - GRANULAR","M8","REQUIRES SPECIAL PROV.","EROSION CNTL AND ROADSIDE RESTORATION",17,1989,"M"]
["9188","m3","BARK OR WOOD CHIP MULCH","M8","STANDARD ITEM","EROSION CNTL AND ROADSIDE RESTORATION",17,2000,"M"]
["9189","m3","SAWDUST","M8","REQUIRES SPECIAL PROV.","EROSION CNTL AND ROADSIDE RESTORATION",17,1983,"M"]
["9190","m","BRUSH LAYER","H0","STANDARD ITEM","EROSION CNTL AND ROADSIDE RESTORATION",17,1973,"M"]
["9206","ha","GRASS MOWING","O6","REQUIRES SPECIAL PROV.","EROSION CNTL AND ROADSIDE RESTORATION",17,2008,"M"]
["9207","ha","VEGETATIVE CONTROL MOWING","O6","REQUIRES SPECIAL PROV.","EROSION CNTL AND ROADSIDE RESTORATION",17,2010,"M"]
["9209","ha","VEGETATIVE CONTROL MOWING - SITE","O6","REQUIRES SPECIAL PROV.","EROSION CNTL AND ROADSIDE RESTORATION",17,2012,"M"]
["9210","m","CEMENT CONC. TRAFFIC CURB AND GUTTER","C8","STANDARD ITEM","TRAFFIC",18,2016,"M"]
["9211","m","CEMENT CONC. TRAFFIC CURB","C8","STANDARD ITEM","TRAFFIC",18,2018,"M"]
["9212","m","MOUNTABLE CEMENT CONC. TRAFFIC CURB","C8","STANDARD ITEM","TRAFFIC",18,2020,"M"]
["9214","m","DUAL-FACED CEMENT CONC. TRAFFIC CURB","C8","STANDARD ITEM","TRAFFIC",18,2028,"M"]
["9215","m","CEMENT CONC. BARRIER CURB AND GUTTER","C8","CURRENTLY INVALID ITEM","OBSOLETE ITEMS HIDEOUT",30,3148,"M"]
["9216","m","CEMENT CONC. BARRIER CURB","C8","CURRENTLY INVALID ITEM","OBSOLETE ITEMS HIDEOUT",30,3150,"M"]
["9217","m","MOUNTABLE CEMENT CONC. CURB AND GUTTER","C8","CURRENTLY INVALID ITEM","OBSOLETE ITEMS HIDEOUT",30,3152,"M"]
["9218","m","CEMENT CONC. PEDESTRIAN CURB","C8","STANDARD ITEM","TRAFFIC",18,2030,"M"]
["9219","m","ROUNDABOUT TRUCK APRON INNER CEMENT CONC. CURB","C8","STANDARD ITEM","TRAFFIC",18,2022,"M"]
["9220","m","SINGLE FACED MOUNTABLE CEMENT CONC. CURB","C8","CURRENTLY INVALID ITEM","OBSOLETE ITEMS HIDEOUT",30,3154,"M"]
["9221","m","ROUNDABOUT TRUCK APRON OUTER CEM. CONC. CURB AND GUTTER","C8","STANDARD ITEM","TRAFFIC",18,2024,"M"]
["9222","m","INTEGRAL CEMENT CONC. BARRIER CURB","C8","CURRENTLY INVALID ITEM","OBSOLETE ITEMS HIDEOUT",30,3156,"M"]
["9225","m","DOUBLE FACED MOUNTABLE CEMENT CONC. CURB","C8","CURRENTLY INVALID ITEM","OBSOLETE ITEMS HIDEOUT",30,3158,"M"]
["9227","m","MOUNTABLE INTEGRAL CEMENT CONC. CURB","C8","CURRENTLY INVALID ITEM","OBSOLETE ITEMS HIDEOUT",30,3160,"M"]
["9229","m","EXTRUDED CURB","A2","STANDARD ITEM","TRAFFIC",18,2032,"M"]
["9230","m","TYPE A PRECAST TRAFFIC CURB","W4","STANDARD ITEM","TRAFFIC",18,2034,"M"]
["9231","m","TYPE C PRECAST TRAFFIC CURB","W4","STANDARD ITEM","TRAFFIC",18,2036,"M"]
["9235","m","TYPE A BLOCK TRAFFIC CURB","W4","STANDARD ITEM","TRAFFIC",18,2038,"M"]
["9236","m","TYPE C BLOCK TRAFFIC CURB","W4","STANDARD ITEM","TRAFFIC",18,2040,"M"]
["9237","EACH","PAINTED YIELD LINE SYMBOL","P6","STANDARD ITEM","TRAFFIC",18,2187,"C"]
["9238","EACH","PLASTIC YIELD LINE SYMBOL","P6","STANDARD ITEM","TRAFFIC",18,2188,"C"]
["9239","EACH","PAINTED YIELD AHEAD SYMBOL","P6","STANDARD ITEM","TRAFFIC",18,2189,"C"]
["9240","EACH","PLASTIC YIELD AHEAD SYMBOL","P6","STANDARD ITEM","TRAFFIC",18,2190,"C"]
["9241","EACH","PAINTED SPEED BUMP SYMBOL","P6","STANDARD ITEM","TRAFFIC",18,2191,"C"]
["9242","EACH","PLASTIC SPEED BUMP SYMBOL","P6","STANDARD ITEM","TRAFFIC",18,2192,"C"]
["9243","EACH","PAINTED AERIAL SURVEILLANCE FULL MARKER","V6","STANDARD ITEM","TRAFFIC",18,2183,"C"]
["9244","EACH","PLASTIC AERIAL SURVEILLANCE FULL MARKER","V6","STANDARD ITEM","TRAFFIC",18,2184,"C"]
["9245","EACH","PAINTED AERIAL SURVEILLANCE 1/2 MARKER","V6","STANDARD ITEM","TRAFFIC",18,2185,"C"]
["9246","EACH","PLASTIC AERIAL SURVEILLANCE 1/2 MARKER","V6","STANDARD ITEM","TRAFFIC",18,2186,"C"]
["9247","EACH","PAINTED ACCESS PARKING SPACE SYMBOL WITH BACKGROUND","P6","STANDARD ITEM","TRAFFIC",18,2193,"C"]
["9248","EACH","PLASTIC ACCESS PARKING SPACE SYMBOL WITH BACKGROUND","P6","STANDARD ITEM","TRAFFIC",18,2194,"C"]
["9249","m","PAINT STRIPE","P6","CURRENTLY INVALID ITEM","OBSOLETE ITEMS HIDEOUT",30,2803,"M"]
["9250","m","BEAM GUARDRAIL TYPE 1 - 2.4 M LONG POST","J0","STANDARD ITEM","TRAFFIC",18,2045,"M"]
["9251","m","PLASTIC STRIPE","V6","CURRENTLY INVALID ITEM","OBSOLETE ITEMS HIDEOUT",30,2804,"M"]
["9253","m","BEAM GUARDRAIL TYPE 1 - 2.7 M LONG POST","J0","STANDARD ITEM","TRAFFIC",18,2046,"M"]
["9255","m","BEAM GUARDRAIL TYPE 1 - 3.3 M LONG POST","J0","STANDARD ITEM","TRAFFIC",18,2047,"M"]
["9257","m","PLASTIC GORE STRIPE","V6","CURRENTLY INVALID ITEM","OBSOLETE ITEMS HIDEOUT",30,2806,"M"]
["9258","m","BEAM GUARDRAIL TYPE 2","J0","STANDARD ITEM","TRAFFIC",18,2055,"M"]
["9260","m","BEAM GUARDRAIL TYPE 1","J0","STANDARD ITEM","TRAFFIC",18,2048,"M"]
["9261","m","PLASTIC BARRIER STRIPE","V6","CURRENTLY INVALID ITEM","OBSOLETE ITEMS HIDEOUT",30,2814,"M"]
["9262","m","BEAM GUARDRAIL TYPE 3","J0","STANDARD ITEM","TRAFFIC",18,2058,"M"]
["9263","m","BEAM GUARDRAIL TYPE 4","J0","STANDARD ITEM","TRAFFIC",18,2060,"M"]
["9265","m","BEAM GUARDRAIL TYPE","J0","STANDARD ITEM","TRAFFIC",18,2062,"M"]
["9266","m","BEAM GUARDRAIL TYPE 10","J0","STANDARD ITEM","TRAFFIC",18,2064,"M"]
["9267","m","PLASTIC CROSSWALK STRIPE","V6","CURRENTLY INVALID ITEM","OBSOLETE ITEMS HIDEOUT",30,2990,"M"]
["9268","m","BEAM GUARDRAIL BURIED TERMINAL TYPE 2","J0","STANDARD ITEM","TRAFFIC",18,2077,"M"]
["9269","EACH","BEAM GUARDRAIL PLACEMENT - 7.6 METER SPAN","J0","STANDARD ITEM","TRAFFIC",18,2079,"C"]
["9270","m","WEATHERING ST. BEAM GUARDRAIL TYPE 1","J0","STANDARD ITEM","TRAFFIC",18,2080,"M"]
["9271","m","WEATHERING ST. BEAM GUARDRAIL TYPE 2","J0","STANDARD ITEM","TRAFFIC",18,2081,"M"]
["9272","m","WEATHERING ST. BEAM GUARDRAIL TYPE 10","J0","STANDARD ITEM","TRAFFIC",18,2082,"M"]
["9273","m","PLASTIC STOP BAR","V6","CURRENTLY INVALID ITEM","OBSOLETE ITEMS HIDEOUT",30,2818,"M"]
["9278","m","PAINTED DOTTED GORE STRIPE","P0","CURRENTLY INVALID ITEM","OBSOLETE ITEMS HIDEOUT",30,2807,"M"]
["9279","m","PLASTIC DOTTED GORE STRIPE","V6","CURRENTLY INVALID ITEM","OBSOLETE ITEMS HIDEOUT",30,2808,"M"]
["9281","m","PAINTED SKIP GORE STRIPE","P0","CURRENTLY INVALID ITEM","OBSOLETE ITEMS HIDEOUT",30,2809,"M"]
["9282","m","PLASTIC SKIP GORE STRIPE","V6","CURRENTLY INVALID ITEM","OBSOLETE ITEMS HIDEOUT",30,2810,"M"]
["9285","m","PAINTED DROP LANE STRIPE","P0","CURRENTLY INVALID ITEM","OBSOLETE ITEMS HIDEOUT",30,2811,"M"]
["9286","m","PLASTIC DROP LANE STRIPE","V6","CURRENTLY INVALID ITEM","OBSOLETE ITEMS HIDEOUT",30,2812,"M"]
["9288","m2","PAINTED CROSSWALK STRIPE","P0","CURRENTLY INVALID ITEM","OBSOLETE ITEMS HIDEOUT",30,2815,"M"]
["9289","m2","PLASTIC CROSSWALK STRIPE","V6","CURRENTLY INVALID ITEM","OBSOLETE ITEMS HIDEOUT",30,2816,"M"]
["9295","m","REMOVING AND RESETTING BEAM GUARDRAIL","J0","STANDARD ITEM","TRAFFIC",18,2092,"M"]
["9297","m","RAISING EXISTING BEAM GUARDRAIL","J0","STANDARD ITEM","TRAFFIC",18,2094,"M"]
["9299","m","PRECAST CONC. BARRIER FROM STOCKPILE","N0","REQUIRES SPECIAL PROV.","TRAFFIC",18,2096,"M"]
["9300","m","PRECAST CONC. BARRIER TYPE","N0","STANDARD ITEM","TRAFFIC",18,2097,"M"]
["9302","m","SINGLE SLOPE CONC. BARRIER","D0","STANDARD ITEM","TRAFFIC",18,2098,"M"]
["9305","m","CAST-IN-PLACE CONC. BARRIER","D0","STANDARD ITEM","TRAFFIC",18,2102,"M"]
["9308","m","TEMPORARY CONC. BARRIER","N0","STANDARD ITEM","TRAFFIC",18,2107,"M"]
["9309","m","REMOVING AND RESETTING EXISTING PERMANENT BARRIER","N0","STANDARD ITEM","TRAFFIC",18,2108,"M"]
["9310","m","TEMPORARY PAVEMENT MARKING","N2","STANDARD ITEM","TRAFFIC",18,2202,"M"]
["9311","m","PRECAST CONC. BARRIER FOR SEVERE SERVICE","N0","GSP ITEM","TRAFFIC",18,2111,"M"]
["9314","m3","CONC. CLASS 28 FOR BARRIER","D0","STANDARD ITEM","TRAFFIC",18,2113,"M"]
["9316","kg","ST. REINF. BAR FOR BARRIER","D0","REQUIRES SPECIAL PROV.","TRAFFIC",18,2115,"M"]
["9317","m","CABLE BARRIER","J0","GSP ITEM","TRAFFIC",18,2117,"M"]
["9318","km","SHOULDER RUMBLE STRIP TYPE","C8","STANDARD ITEM","TRAFFIC",18,2197,"M"]
["9319","km","CONTINUOUS SHOULDER RUMBLE STRIP","E6","CURRENTLY INVALID ITEM","OBSOLETE ITEMS HIDEOUT",30,3162,"M"]
["9320","m","RESETTING CONC. BARRIER","N0","CURRENTLY INVALID ITEM","OBSOLETE ITEMS HIDEOUT",30,2919,"M"]
["9321","m","PAINT LINE","P6","STANDARD ITEM","TRAFFIC",18,2133,"M"]
["9322","m","PLASTIC LINE","V6","STANDARD ITEM","TRAFFIC",18,2134,"M"]
["9323","m","EMBOSSED PLASTIC LINE","V6","STANDARD ITEM","TRAFFIC",18,2135,"M"]
["9324","m","PROFILED PLASTIC LINE","V6","STANDARD ITEM","TRAFFIC",18,2153,"M"]
["9325","m","PROFILED EMBOSSED PLASTIC LINE","V6","STANDARD ITEM","TRAFFIC",18,2154,"M"]
["9326","m","INLAID PLASTIC LINE","V6","STANDARD ITEM","TRAFFIC",18,2155,"M"]
["9327","m","PAINTED DROP LANE LINE","P6","STANDARD ITEM","OBSOLETE ITEMS HIDEOUT",30,2754,"M"]
["9328","m","PLASTIC DROP LANE LINE","V6","STANDARD ITEM","OBSOLETE ITEMS HIDEOUT",30,2755,"M"]
["9329","m","PROFILED PLASTIC DROP LANE LINE","V6","STANDARD ITEM","OBSOLETE ITEMS HIDEOUT",30,2756,"M"]
["9330","m","PAINTED WIDE LINE","P6","STANDARD ITEM","TRAFFIC",18,2156,"M"]
["9331","m","PLASTIC WIDE LINE","V6","STANDARD ITEM","TRAFFIC",18,2157,"M"]
["9335","m2","SIGN COVERING","U4","STANDARD ITEM","TRAFFIC",18,2209,"M"]
["9339","m","PROFILED PLASTIC WIDE LANE LINE","V6","STANDARD ITEM","TRAFFIC",18,2158,"M"]
["9340","m","PAINTED DOTTED WIDE LINE","P6","STANDARD ITEM","OBSOLETE ITEMS HIDEOUT",30,2747,"M"]
["9341","m","PLASTIC DOTTED WIDE LINE","V6","STANDARD ITEM","OBSOLETE ITEMS HIDEOUT",30,2757,"M"]
["9342","m","PROFILED PLASTIC DOTTED WIDE LINE","V6","STANDARD ITEM","OBSOLETE ITEMS HIDEOUT",30,2758,"M"]
["9343","m","PAINTED SKIP WIDE LINE","P6","STANDARD ITEM","OBSOLETE ITEMS HIDEOUT",30,2759,"M"]
["9344","m","PLASTIC SKIP WIDE LINE","V6","STANDARD ITEM","OBSOLETE ITEMS HIDEOUT",30,2760,"M"]
["9345","m","PROFILED PLASTIC SKIP WIDE LINE","V6","STANDARD ITEM","OBSOLETE ITEMS HIDEOUT",30,2761,"M"]
["9346","m","PAINTED BARRIER CENTER LINE","P6","STANDARD ITEM","TRAFFIC",18,2159,"M"]
["9347","m","PLASTIC BARRIER CENTER LINE","V6","STANDARD ITEM","TRAFFIC",18,2160,"M"]
["9348","m2","PAINTED CROSSWALK LINE","P6","STANDARD ITEM","TRAFFIC",18,2161,"M"]
["9349","m2","PLASTIC CROSSWALK LINE","V6","STANDARD ITEM","TRAFFIC",18,2162,"M"]
["9350","m","PAINTED STOP LINE","P6","STANDARD ITEM","TRAFFIC",18,2163,"M"]
["9351","m","PLASTIC STOP LINE","V6","STANDARD ITEM","TRAFFIC",18,2164,"M"]
["9354","m","BARRIER GLARE SCREEN","I6","GSP ITEM","OTHER ITEMS",19,2364,"M"]
["9355","m","PAINTED GORE STRIPE","P0","CURRENTLY INVALID ITEM","OBSOLETE ITEMS HIDEOUT",30,2805,"M"]
["9359","m","PAINTED BARRIER STRIPE","P0","CURRENTLY INVALID ITEM","OBSOLETE ITEMS HIDEOUT",30,2813,"M"]
["9362","EACH","PAINTED ACCESS PARKING SPACE SYMBOL","P0","STANDARD ITEM","TRAFFIC",18,2171,"C"]
["9363","EACH","PLASTIC ACCESS PARKING SPACE SYMBOL","V6","STANDARD ITEM","TRAFFIC",18,2172,"C"]
["9364","EACH","PAINTED HOV LANE SYMBOL","P0","STANDARD ITEM","TRAFFIC",18,2173,"C"]
["9365","EACH","PLASTIC HOV LANE SYMBOL","V6","STANDARD ITEM","TRAFFIC",18,2174,"C"]
["9368","m","PAINTED STOP BAR","P0","CURRENTLY INVALID ITEM","OBSOLETE ITEMS HIDEOUT",30,2817,"M"]
["9370","EACH","PAINTED DRAINAGE MARKING","P0","STANDARD ITEM","TRAFFIC",18,2181,"C"]
["9371","EACH","PLASTIC DRAINAGE MARKING","V6","STANDARD ITEM","TRAFFIC",18,2182,"C"]
["9375","m","CONDUIT PIPE 27 MM DIAM.","H2","STANDARD ITEM","TRAFFIC",18,2227,"M"]
["9376","m","CONDUIT PIPE 35 MM DIAM.","H2","STANDARD ITEM","TRAFFIC",18,2228,"M"]
["9377","m","CONDUIT PIPE 41 MM DIAM.","H2","STANDARD ITEM","TRAFFIC",18,2229,"M"]
["9378","m","CONDUIT PIPE 53 MM DIAM.","H2","STANDARD ITEM","TRAFFIC",18,2230,"M"]
["9379","m","CONDUIT PIPE 63 MM DIAM.","H2","STANDARD ITEM","TRAFFIC",18,2231,"M"]
["9380","L.S.","TEMPORARY TRAFFIC CONTROL DEVICES","W3","CURRENTLY INVALID ITEM","OBSOLETE ITEMS HIDEOUT",30,3121,"C"]
["9382","m","CONDUIT PIPE 78 MM DIAM.","H2","STANDARD ITEM","TRAFFIC",18,2232,"M"]
["9383","m","CONDUIT PIPE 91 MM DIAM.","H2","STANDARD ITEM","TRAFFIC",18,2233,"M"]
["9398","m2","CONSTRUCTION SIGNS CLASS A","W3","STANDARD ITEM","TRAFFIC",18,2241,"M"]
["9410","m3","STRUCTURE EXCAVATION CLASS B","I2","STANDARD ITEM","OTHER ITEMS",19,2252,"M"]
["9412","m3","STRUCTURE EXCAVATION CLASS B INCL. HAUL","I2","STANDARD ITEM","OTHER ITEMS",19,2253,"M"]
["9414","m2","SHORING OR EXTRA EXCAVATION TRENCH","I2","STANDARD ITEM","OTHER ITEMS",19,2258,"M"]
["9416","m2","SHORING OR EXTRA EXCAVATION CLASS B","I2","STANDARD ITEM","OTHER ITEMS",19,2259,"M"]
["9425","m3","GRAVEL BACKFILL FOR FOUNDATION CLASS A","F6","STANDARD ITEM","OTHER ITEMS",19,2260,"M"]
["9427","m3","GRAVEL BACKFILL FOR FOUNDATION CLASS B","F6","STANDARD ITEM","OTHER ITEMS",19,2261,"M"]
["9429","m3","GRAVEL BACKFILL FOR PIPE BEDDING","F6","REQUIRES SPECIAL PROV.","OTHER ITEMS",19,2262,"M"]
["9430","m3","GRAVEL BACKFILL FOR PIPE ZONE BEDDING","F6","STANDARD ITEM","OTHER ITEMS",19,2263,"M"]
["9431","m3","GRAVEL BACKFILL FOR DRAIN","F6","STANDARD ITEM","OTHER ITEMS",19,2264,"M"]
["9433","m3","CONTROLLED DENSITY FILL","F6","STANDARD ITEM","OTHER ITEMS",19,2272,"M"]
["9435","m3","DESIGN C TRENCH CONSTRUCTION","I2","STANDARD ITEM","OTHER ITEMS",19,2273,"M"]
["9440","m3","WATER","A1","STANDARD ITEM","OTHER ITEMS",19,2274,"M"]
["9445","m3","CONC. CLASS 20","E0","STANDARD ITEM","OTHER ITEMS",19,2276,"M"]
["9447","m3","COMMERCIAL CONCRETE","E0","STANDARD ITEM","OTHER ITEMS",19,2280,"M"]
["9450","kg","ST. REINF. BAR","U0","STANDARD ITEM","OTHER ITEMS",19,2282,"M"]
["9475","m2","CEMENT CONC. SIDEWALK","C8","STANDARD ITEM","OTHER ITEMS",19,2304,"M"]
["9476","m2","CEMENT CONC. SIDEWALK WITH RAISED EDGE","C8","STANDARD ITEM","OTHER ITEMS",19,2301,"M"]
["9477","m2","MONOLITHIC CEMENT CONC. CURB AND SIDEWALK","C8","STANDARD ITEM","OTHER ITEMS",19,2299,"M"]
["9480","m2","ASPHALT CONC. SIDEWALK","A2","REQUIRES SPECIAL PROV.","OTHER ITEMS",19,2305,"M"]
["9481","m2","CEMENT CONC. DRIVEWAY ENTRANCE TYPE","C8","STANDARD ITEM","OTHER ITEMS",19,2296,"M"]
["9485","m2","CONC. SLOPE PROTECTION","E8","STANDARD ITEM","OTHER ITEMS",19,2306,"M"]
["9490","m2","SEMI-OPEN CONC. MASONRY SLOPE PROTECTION","E8","GSP ITEM","OTHER ITEMS",19,2307,"M"]
["9491","m","ROCK BOLT","V7","GSP ITEM","On Hold Items",25,2310,"M"]
["9492","m3","REDIRECTIONAL LAND FORM","A1","CURRENTLY INVALID ITEM","OBSOLETE ITEMS HIDEOUT",30,3198,"M"]
["9493","m","ROCK DOWEL TYPE","V7","GSP ITEM","On Hold Items",25,2312,"M"]
["9494","m","GALVANIZED WIRE ROPE","X0","STANDARD ITEM","OTHER ITEMS",19,2315,"M"]
["9496","m","GALVANIZED WIRE CABLE","X0","CURRENTLY INVALID ITEM","OBSOLETE ITEMS HIDEOUT",30,2874,"M"]
["9498","m2","GALVANIZED WIRE MESH","X0","STANDARD ITEM","OTHER ITEMS",19,2316,"M"]
["9499","m","CABLE FENCE","I6","BSP ITEM","OTHER ITEMS",19,2318,"M"]
["9500","m","CHAIN LINK FENCE TYPE 1","I6","STANDARD ITEM","OTHER ITEMS",19,2320,"M"]
["9501","m","COATED CHAIN LINK FENCE TYPE 1","I6","GSP ITEM","OTHER ITEMS",19,2321,"M"]
["9502","m","CHAIN LINK FENCE TYPE 3","I6","STANDARD ITEM","OTHER ITEMS",19,2322,"M"]
["9503","m","COATED CHAIN LINK FENCE TYPE 3","I6","GSP ITEM","OTHER ITEMS",19,2323,"M"]
["9504","m","CHAIN LINK FENCE TYPE 4","I6","STANDARD ITEM","OTHER ITEMS",19,2324,"M"]
["9505","m","COATED CHAIN LINK FENCE TYPE 4","I6","GSP ITEM","OTHER ITEMS",19,2325,"M"]
["9506","m","CHAIN LINK FENCE TYPE 6","I6","STANDARD ITEM","OTHER ITEMS",19,2326,"M"]
["9507","m","COATED CHAIN LINK FENCE TYPE 6","I6","GSP ITEM","OTHER ITEMS",19,2327,"M"]
["9510","EACH","SINGLE 1.8 M CHAIN LINK GATE","I6","STANDARD ITEM","OTHER ITEMS",19,2343,"C"]
["9511","EACH","DOUBLE 4.3 M CHAIN LINK GATE","I6","STANDARD ITEM","OTHER ITEMS",19,2345,"C"]
["9512","EACH","DOUBLE 6.1 M CHAIN LINK GATE","I6","STANDARD ITEM","OTHER ITEMS",19,2347,"C"]
["9513","EACH","SINGLE 1.8 M COATED CHAIN LINK GATE","I6","GSP ITEM","OTHER ITEMS",19,2344,"C"]
["9514","EACH","DOUBLE 4.3 M COATED CHAIN LINK GATE","I6","GSP ITEM","OTHER ITEMS",19,2346,"C"]
["9515","EACH","DOUBLE 6.1 M COATED CHAIN LINK GATE","I6","GSP ITEM","OTHER ITEMS",19,2348,"C"]
["9517","EACH","SINGLE WIRE GATE 4.3 M WIDE","I6","STANDARD ITEM","OTHER ITEMS",19,2356,"C"]
["9519","EACH","DOUBLE WIRE GATE 6.1 M WIDE","I6","STANDARD ITEM","OTHER ITEMS",19,2357,"C"]
["9530","m","WIRE FENCE TYPE 1","I6","STANDARD ITEM","OTHER ITEMS",19,2349,"M"]
["9532","m","WIRE FENCE TYPE 2","I6","STANDARD ITEM","OTHER ITEMS",19,2350,"M"]
["9534","m","REMOVING AND RESETTING WIRE FENCE","I6","REQUIRES SPECIAL PROV.","OTHER ITEMS",19,2353,"M"]
["9540","m","GAME FENCE","I6","REQUIRES SPECIAL PROV.","OTHER ITEMS",19,2359,"M"]
["9550","m","GLARE SCREEN TYPE 1 DESIGN A","I6","STANDARD ITEM","OTHER ITEMS",19,2361,"M"]
["9551","m","GLARE SCREEN TYPE 1 DESIGN B","I6","STANDARD ITEM","OTHER ITEMS",19,2362,"M"]
["9552","m","GLARE SCREEN TYPE 2","I6","STANDARD ITEM","OTHER ITEMS",19,2363,"M"]
["9553","m","TEMPORARY BARRIER GLARE SCREEN","I6","GSP ITEM","OTHER ITEMS",19,2365,"M"]
["9555","m","ROCK PROTECTION FENCE POSITION A","I6","CURRENTLY INVALID ITEM","OBSOLETE ITEMS HIDEOUT",30,2911,"M"]
["9556","m","ROCK PROTECTION FENCE POSITION B","I6","CURRENTLY INVALID ITEM","OBSOLETE ITEMS HIDEOUT",30,2912,"M"]
["9557","m","ROCK PROTECTION FENCE POSITION C","I6","CURRENTLY INVALID ITEM","OBSOLETE ITEMS HIDEOUT",30,2913,"M"]
["9562","m3","GABION CRIBBING","J2","STANDARD ITEM","OTHER ITEMS",19,2377,"M"]
["9564","t","ROCK RETAINING WALL","S4","REQUIRES SPECIAL PROV.","OTHER ITEMS",19,2378,"M"]
["9570","m2","FIBER BONDED METAL CRIBBING TYPE 0 DESIGN 0","O2","STANDARD ITEM","OTHER ITEMS",19,2382,"M"]
["9572","m2","STRUCTURAL EARTH WALL","I2","STANDARD ITEM","STRUCTURE",8,1640,"M"]
["9574","m2","GRAVITY BLOCK WALL","S4","STANDARD ITEM","OTHER ITEMS",19,2379,"M"]
["9583","t","ROCK FOR ROCK WALL","S4","STANDARD ITEM","OTHER ITEMS",19,2380,"M"]
["9584","t","BACKFILL FOR ROCK WALL","S4","STANDARD ITEM","OTHER ITEMS",19,2381,"M"]
["9585","m3","BACKFILL FOR STRUCTURAL EARTH WALL INCL. HAUL","I2","STANDARD ITEM","STRUCTURE",8,1641,"M"]
["9596","m2","CONSTRUCTION GEOTEXTILE","G2","STANDARD ITEM","OTHER ITEMS",19,2442,"M"]
["9597","EST.","REIMBURSEMENT FOR THIRD PARTY DAMAGE","A1","CURRENTLY INVALID ITEM","OBSOLETE ITEMS HIDEOUT",30,2842,"C"]
["9598","m2","CONSTRUCTION GEOTEXTILE FOR SEPARATION","G2","STANDARD ITEM","OTHER ITEMS",19,2443,"M"]
["9599","m2","CONSTRUCTION GEOTEXTILE FOR DITCH LINING","G2","STANDARD ITEM","OTHER ITEMS",19,2444,"M"]
["9602","EACH","ADJUST INLET","G2","STANDARD ITEM","OTHER ITEMS",19,2387,"C"]
["9605","EACH","CONNECTION TO DRAINAGE STRUCTURE","T8","STANDARD ITEM","OTHER ITEMS",19,2390,"C"]
["9610","EACH","MANHOLE 1200 MM DIAM. TYPE","T8","STANDARD ITEM","OTHER ITEMS",19,2392,"C"]
["9611","EACH","MANHOLE 1350 MM DIAM. TYPE","T8","STANDARD ITEM","OTHER ITEMS",19,2393,"C"]
["9612","EACH","MANHOLE 1800 MM DIAM. TYPE","T8","STANDARD ITEM","OTHER ITEMS",19,2394,"C"]
["9613","EACH","MANHOLE 2400 MM DIAM. TYPE","T8","STANDARD ITEM","OTHER ITEMS",19,2395,"C"]
["9616","m","MANHOLE ADDITIONAL HEIGHT 1200 MM DIAM. TYPE","T8","STANDARD ITEM","OTHER ITEMS",19,2396,"M"]
["9617","m","MANHOLE ADDITIONAL HEIGHT 1350 MM DIAM. TYPE","T8","STANDARD ITEM","OTHER ITEMS",19,2397,"M"]
["9618","m","MANHOLE ADDITIONAL HEIGHT 1800 MM DIAM. TYPE","T8","STANDARD ITEM","OTHER ITEMS",19,2398,"M"]
["9619","m","MANHOLE ADDITIONAL HEIGHT 2400 MM DIAM. TYPE","T8","STANDARD ITEM","OTHER ITEMS",19,2399,"M"]
["9735","m2","CONSTRUCTION GEOTEXTILE FOR UNDERGROUND DRAINAGE","G2","STANDARD ITEM","OTHER ITEMS",19,2445,"M"]
["9736","m2","CONSTRUCTION GEOTEXTILE FOR SOIL STABILIZATION","G2","STANDARD ITEM","OTHER ITEMS",19,2446,"M"]
["9737","m2","CONSTRUCTION GEOTEXTILE FOR PERMANENT EROSION CONTROL","G2","STANDARD ITEM","OTHER ITEMS",19,2447,"M"]
["9738","m","CONSTRUCTION GEOTEXTILE FOR TEMPORARY SILT FENCE","G2","CURRENTLY INVALID ITEM","OBSOLETE ITEMS HIDEOUT",30,2841,"M"]
["9739","m2","GEOTEXTILE RETAINING WALL","G2","GSP ITEM","OTHER ITEMS",19,2448,"M"]
["9742","m2","GEOSYNTHETIC RETAINING WALL","G2","GSP ITEM","OTHER ITEMS",19,2449,"M"]
["9743","m2","TEMPORARY GEOSYNTHETIC RETAINING WALL","G2","GSP ITEM","OTHER ITEMS",19,2450,"M"]
["9745","m3","BORROW FOR GEOSYNTHETIC WALL INCL. HAUL","I2","STANDARD ITEM","OTHER ITEMS",19,2451,"M"]
["9750","m2","SHOTCRETE WALL FACING","E4","GSP ITEM","OBSOLETE ITEMS HIDEOUT",30,2762,"M"]
["9752","m2","SHOTCRETE FACING","E4","STANDARD ITEM","OTHER ITEMS",19,2452,"M"]
["9800","m3","SUPERSTRUCTURE - MISC. CONC. CLASSES","B0","SUPERSTRUCTURE ITEM","SUPERSTRUCTURE",29,2587,"M"]
["9805","m3","SUPERSTRUCTURE - CONC. CLASS 28","B0","SUPERSTRUCTURE ITEM","SUPERSTRUCTURE",29,2590,"M"]
["9810","m3","SUPERSTRUCTURE - CONC. CLASS 35","B0","SUPERSTRUCTURE ITEM","SUPERSTRUCTURE",29,2591,"M"]
["9815","kg","SUPERSTRUCTURE - ST. REINF. BAR","B0","SUPERSTRUCTURE ITEM","SUPERSTRUCTURE",29,2593,"M"]
["9820","kg","SUPERSTRUCTURE - EPOXY-COATED ST. REINF. BAR","B0","SUPERSTRUCTURE ITEM","SUPERSTRUCTURE",29,2595,"M"]
["9825","kg","SUPERSTRUCTURE - STRUCTURAL CARBON ST.","B0","SUPERSTRUCTURE ITEM","SUPERSTRUCTURE",29,2597,"M"]
["9830","kg","SUPERSTRUCTURE - STRUCTURAL LOW ALLOY ST.","B0","SUPERSTRUCTURE ITEM","SUPERSTRUCTURE",29,2599,"M"]
["9835","kg","SUPERSTRUCTURE - STRUCTURAL HIGH ALLOY ST.","B0","SUPERSTRUCTURE ITEM","SUPERSTRUCTURE",29,2601,"M"]
["9840","kg","SUPERSTRUCTURE - CAST STEEL","B0","SUPERSTRUCTURE ITEM","SUPERSTRUCTURE",29,2603,"M"]
["9845","m","SUPERSTRUCTURE - ELECTRICAL CONDUIT","B0","SUPERSTRUCTURE ITEM","SUPERSTRUCTURE",29,2606,"M"]
["9850","m","SUPERSTRUCTURE - BRIDGE RAILING","B0","SUPERSTRUCTURE ITEM","SUPERSTRUCTURE",29,2608,"M"]
["9855","m","SUPERSTRUCTURE - PRESTRESSED CONC. GIRDER W74MG","B0","SUPERSTRUCTURE ITEM","SUPERSTRUCTURE",29,2617,"M"]
["9860","m","SUPERSTRUCTURE - PRESTRESSED CONC. GIRDER W58MG","B0","SUPERSTRUCTURE ITEM","SUPERSTRUCTURE",29,2618,"M"]
["9865","m","SUPERSTRUCTURE - PRESTRESSED CONC. GIRDER W50MG","B0","SUPERSTRUCTURE ITEM","SUPERSTRUCTURE",29,2619,"M"]
["9870","m","SUPERSTRUCTURE - PRESTRESSED CONC. GIRDER W42MG","B0","SUPERSTRUCTURE ITEM","SUPERSTRUCTURE",29,2620,"M"]
["9875","m","SUPERSTRUCTURE - PRESTRESSED CONC. GIRDER W53DMG","B0","SUPERSTRUCTURE ITEM","SUPERSTRUCTURE",29,2621,"M"]
["9880","m","SUPERSTRUCTURE - PRESTRESSED CONC. GIRDER W35DMG","B0","SUPERSTRUCTURE ITEM","SUPERSTRUCTURE",29,2622,"M"]
["9885","kg","SUPERSTRUCTURE - PRESTRESSING","B0","SUPERSTRUCTURE ITEM","SUPERSTRUCTURE",29,2623,"M"]
["9905","C.Y.","SUPERSTRUCTURE - MISC. CONC. CLASSES","B0","SUPERSTRUCTURE ITEM","SUPERSTRUCTURE",29,2586,"E"]
["9906","C.Y.","SUPERSTRUCTURE - CONC. CLASS 4000","B0","SUPERSTRUCTURE ITEM","SUPERSTRUCTURE",29,2588,"E"]
["9907","C.Y.","SUPERSTRUCTURE - CONC. CLASS 5000","B0","SUPERSTRUCTURE ITEM","SUPERSTRUCTURE",29,2589,"E"]
["9910","LB.","SUPERSTRUCTURE - ST. REINF. BAR","B0","SUPERSTRUCTURE ITEM","SUPERSTRUCTURE",29,2592,"E"]
["9912","LB.","SUPERSTRUCTURE - EPOXY-COATED ST. REINF. BAR","B0","SUPERSTRUCTURE ITEM","SUPERSTRUCTURE",29,2594,"E"]
["9915","LB.","SUPERSTRUCTURE - STRUCTURAL CARBON ST.","B0","SUPERSTRUCTURE ITEM","SUPERSTRUCTURE",29,2596,"E"]
["9920","LB.","SUPERSTRUCTURE - STRUCTURAL LOW ALLOY ST.","B0","SUPERSTRUCTURE ITEM","SUPERSTRUCTURE",29,2598,"E"]
["9925","LB.","SUPERSTRUCTURE - STRUCTURAL HIGH ALLOY ST.","B0","SUPERSTRUCTURE ITEM","SUPERSTRUCTURE",29,2600,"E"]
["9930","LB.","SUPERSTRUCTURE - CAST STEEL","B0","SUPERSTRUCTURE ITEM","SUPERSTRUCTURE",29,2602,"E"]
["9935","EACH","SUPERSTRUCTURE - BRIDGE DRAIN","B0","SUPERSTRUCTURE ITEM","SUPERSTRUCTURE",29,2604,"C"]
["9940","L.F.","SUPERSTRUCTURE - ELECTRICAL CONDUIT","B0","SUPERSTRUCTURE ITEM","SUPERSTRUCTURE",29,2605,"E"]
["9950","L.F.","SUPERSTRUCTURE - BRIDGE RAILING","B0","SUPERSTRUCTURE ITEM","SUPERSTRUCTURE",29,2607,"E"]
["9960","EACH","SUPERSTRUCTURE - ELASTOMERIC BEARING PAD","B0","SUPERSTRUCTURE ITEM","SUPERSTRUCTURE",29,2609,"C"]
["9962","L.F.","SUPERSTRUCTURE - PRESTRESSED CONC. GIRDER W74MG","B0","SUPERSTRUCTURE ITEM","SUPERSTRUCTURE",29,2610,"E"]
["9963","L.F.","SUPERSTRUCTURE - PRESTRESSED CONC. GIRDER W58MG","B0","SUPERSTRUCTURE ITEM","SUPERSTRUCTURE",29,2611,"E"]
["9964","L.F.","SUPERSTRUCTURE - PRESTRESSED CONC. GIRDER W50MG","B0","SUPERSTRUCTURE ITEM","SUPERSTRUCTURE",29,2612,"E"]
["9965","L.F.","SUPERSTRUCTURE - PRESTRESSED CONC. GIRDER W42MG","B0","SUPERSTRUCTURE ITEM","SUPERSTRUCTURE",29,2613,"E"]
["9966","L.F.","SUPERSTRUCTURE - PRESTRESSED CONC. GIRDER W53DMG","B0","SUPERSTRUCTURE ITEM","SUPERSTRUCTURE",29,2614,"E"]
["9967","L.F.","SUPERSTRUCTURE - PRESTRESSED CONC. GIRDER W35DMG","B0","SUPERSTRUCTURE ITEM","SUPERSTRUCTURE",29,2615,"E"]
["9980","LB.","SUPERSTRUCTURE - PRESTRESSING","B0","SUPERSTRUCTURE ITEM","SUPERSTRUCTURE",29,2616,"E"]

{"sheet":"Quantities","index":8,"n_rows":109,"n_cols":9,"rows_kept":109,"cut":false,"hidden":false,"merged":[]}
["Asphalt"]
[null,"New Area"]
[null,null,116402,"sf"]
[null,"Patch Area"]
[null,null,{"$f":"10*(18+12+10+5)","v":450},"sf"]
[null,"4\" HMA"]
[null,null,{"$f":"(C3+C5)*0.33/27","v":1428.1911111111112},"cy"]
[null,null,{"$f":"C7*2.05","v":2927.791777777778},"ton"]
[]
["Sidewalk"]
[null,"Area"]
[null,null,3125,"sy"]
[]
["Curb and Gutter"]
[]
[null,"Length"]
[null,null,4900,"lf"]
[]
["Agregate"]
[null,"9\" Roadway Basecourse"]
[null,null,{"$f":"0.75*C3/27","v":3233.3888888888887},"cy"]
[null,null,{"$f":"C21*1.85","v":5981.7694444444442},"ton"]
[null,"2\" sidewalk topcourse"]
[null,null,{"$f":"C12*9*0.167/27","v":173.95833333333334},"cy"]
[null,null,{"$f":"C24*1.85","v":321.82291666666669},"ton"]
[]
["Sawcutting"]
[null,"Longitudinal Joint"]
[null,null,{"$f":"4048.42-2100+10*4","v":1988.42},"lf"]
[null,"Lateral Joint"]
[null,null,{"$f":"24+22+2*(18+12+10+5)","v":136},"lf"]
[]
["Remove and stockpile top layer of sandy loam"]
[null,"Depth"]
[null,null,0.5,"ft"]
[null,"Volume"]
[null,null,{"$f":"SUM(C3,C12*9,C53)*C35/27","v":3266.2407407407409},"cy"]
[]
["Roadway Excavation"]
[null,"Roadway"]
[null,null,{"$f":"C3*1.083/27","v":4669.0135555555553},"cy"]
[null,"Sidewalk"]
[null,null,{"$f":"(C12*9)*0.5/27","v":520.83333333333337},"cy"]
[null,"Rain Garden"]
[null,null,{"$f":"C53*((1.5+2.5)/2)/27","v":2359.2592592592591},"cy"]
[null,"TOTAL",null,null,"Assume 50% reduction factor"]
[null,null,{"$f":"SUM(C41:C45)","v":7549.1061481481474},"cy",null,{"$f":"C47*0.5","v":3774.5530740740737}]
[]
["Rain Gardens"]
[null,"Length"]
[null,null,4900,"lf"]
[null,"Area"]
[null,null,{"$f":"6.5*C51","v":31850},"sf"]
[null,"Mitigated soil",null,null,"Use 55/45 mix with compost"]
[null,null,{"$f":"C53*1.5/27","v":1769.4444444444443},"cy",null,{"$f":"C55*0.45","v":796.25},"cy (compost)",null,"300 cy supplied by COA"]
[null,"Quarry Spalls",null,null,null,{"$f":"C55*0.55","v":973.19444444444446},"cy(Topsoil Type B)"]
[null,null,{"$f":"C53*0.67/27*1.85","v":1462.150925925926},"ton"]
[]
["Site Restoration"]
[null,"Length"]
[null,null,{"$f":"C12*9/5","v":5625},"lf"]
[null,"Volume"]
[null,null,{"$f":"C61*2*0.33/27","v":137.5},"cy","Type B Topsoil"]
["Paint lines"]
[null,"42+41 to 54+57"]
[null,null,{"$f":"4*(5457-4241)+1","v":4865},"lf"]
[null,"39+20 to 42+41"]
[null,null,{"$f":"(4120-3920)*3+80+(4241-4120)","v":801},"lf"]
[null,"30+45 to 39+20"]
[null,null,{"$f":"(3920-3045)*4","v":3500},"lf"]
[null,"27+15 to 30+45"]
[null,null,{"$f":"(2915-2715)*3+80+(3045-2915)","v":810},"lf"]
[null,"22+80 to 27+15"]
[null,null,{"$f":"(2715-2280)*4","v":1740},"lf"]
[null,"20+80 to 22+80"]
[null,null,{"$f":"(2280-2080)*3+80","v":680},"lf"]
[null,"14+80 to 20+80"]
[null,null,{"$f":"(2080-1480)*2","v":1200},"lf"]
[null,"10+91 to 13+43"]
[null,null,{"$f":"(1343-1091)*2","v":504},"lf"]
[null,"TOTAL",{"$f":"SUM(C66:C80)","v":14100},"lf"]
[]
["Crosswalks"]
[null,"Length"]
[null,null,632,"lf"]
[null,"Width"]
[null,null,8,"ft"]
[null,"Striping area"]
[null,null,{"$f":"C85/7*(2*C87)","v":1444.5714285714287},"sf"]
[]
["Planing Existing Pavement"]
[null,"length"]
[null,null,{"$f":"4047-2100","v":1947},"lf"]
[null,"width"]
[null,null,6,"ft"]
[null,"Long Area"]
[null,null,{"$f":"C93*C95","v":11682},"sf"]
[null,"Trans Area"]
[null,null,{"$f":"20*22","v":440},"sf"]
[null,"TOTAL AREA"]
[null,null,{"$f":"(C97+C99)/9","v":1346.8888888888889},"sy"]
[]
["Overlay Pavement"]
[null,"Area"]
[null,null,{"$f":"C93*22","v":42834},"sf"]
[null,"Depth"]
[null,null,2,"in"]
[null,"Volume"]
[null,null,{"$f":"C105*(C107/12)/27*2.05","v":542.03518518518513},"tons"]